Workbook

Sheet Draft decision changes
A1: Cell | B1: Change
A2: I_Global Inputs'!G9 | B2: Substituted our draft decision benchmark labour rate for Field Worker.
A3: I_Global Inputs'!G29 | B3: Substituted our draft decision pre-tax real WACC for 2023-24.
A4: I_Global Inputs'!H60 | B4: Substituted our draft decision CPI forecast.

Sheet Cover page
B27: 2023-01-31
B30: Attachment 9.1.b: Public lighting model FY24-29
B34: Ausgrid’s 2024-29 Regulatory Proposal

Sheet Questions + comments
B1: Questions and comments
B5: Owner | C5: Question/comment | D5: Response
B18: Change Log
B20: General changes:
B21: a) Worksheets with a tab colour highlighted red have not been used, as well as cells highlighted with a grey cross-hatch.
B22: b) Worksheets highlighted with a tab colour of blue are for reporting and have been added
B24: In addition the following specific changes were made to original model:
B25: Change | C25: Change Type | D25: Worksheet | E25: Cell Reference
A26: =N(A25)+1 -> 1 | B26: Added this change log | C26: Version control | D26: Questions + comments | E26: Row 18 onwards
A27: =N(A26)+1 -> 2 | B27: Updated notes to be Ausgrid specific | C27: Labelling | D27: Read This Sheet | E27: C11:C20
A28: 3 | B28: Removed unused mapping and formatted cell to show cells are not used | C28: Formatting | D28: O_New Component SLUOS | E28: Columns F to M
A29: 4 | B29: Replaced Formulas with Ausgrid Support list using 15 of 19 available rows | C29: Labelling | D29: O_New Component SLUOS | E29: B5:B23
A30: 5 | B30: Removed formulas given night patrol is included in bulk contract costs | C30: Formulas | D30: O_New Component SLUOS | E30: C26:D26
A31: 6 | B31: Increased traditional luminaire categories from 57 to 70 aligning to FY23 pricing proposal | C31: Formulas | D31: O_New Component SLUOS | E31: B33:B89
A32: 7 | B32: Created unused categories because only 59 of 92 LED luminaire cateories were required | C32: Formulas | D32: O_New Component SLUOS | E32: B92:B183
A33: 8 | B33: This sheet was hidden as it is not required by Ausgrid | C33: Simplification | D33: Sheet 1 | E33: All
A34: 9 | B34: This sheet was hidden as it is not required by Ausgrid | C34: Simplification | D34: SRC_STLAssetList | E34: All
A35: 10 | B35: This sheet is not required by Ausgrid, grey format applied to show it is not been applied. | C35: Simplification | D35: I_CAPEX - Hybid Calcs | E35: All
A36: 11 | B36: Removed work in progress yellow cell fill colour | C36: Formatting | D36: I_CAPEX | E36: T166:T478
A37: 12 | B37: Removed redundant working notes | C37: Labelling | D37: I_CAPEX | E37: V481:V484
A38: 13 | B38: Removed note not applicable to Ausgrid | C38: Labelling | D38: I_CAPEX | E38: AD398
A39: 14 | B39: Updated and simplified the list of materials required, including minor formatting changes | C39: Simplification | D39: I_CAPEX - Stock Costs | E39: All
A40: 15 | B40: Updated sub assembly mapping to categories which align to Ausgrid's business model | C40: Update | D40: I_CAPEX | E40: AE49:AK121
A41: 16 | B41: Updated bracket mapping to categories which align to Ausgrid's business model | C41: Update | D41: I_CAPEX | E41: K49:Q55
A42: 17 | B42: Updated support mapping to categories which align to Ausgrid's business model | C42: Update | D42: I_CAPEX | E42: A49:G87
A43: 18 | B43: Updated luminaire mapping to categories which align to Ausgrid's business model | C43: Update | D43: I_CAPEX | E43: U49:AA477
A44: 19 | B44: Inserted [40] rows, standardised formatting, greyed out unused columns, removed conditional formatting | C44: Formatting | D44: C_CAPEX Build Up | E44: All
A45: 20 | B45: Replaced logic for Design with Ausgrid Warranty logic including updating column M (Overheads) to exclude the new values in column K | C45: Logic | D45: C_CAPEX Build Up | E45: K14:K185
A46: 21 | B46: Copied formulas from top row all the way down each column from J to N to ensure formula consistency and no hard codes | C46: Logic | D46: C_CAPEX Build Up | E46: J14:AF14
A47: 22 | B47: Removed or greyed out unused mapping and charges | C47: Simplification | D47: O_New Component SLUOS | E47: All
A48: 23 | B48: Updated formulas to include the full reference range | C48: Formulas | D48: O_New Component SLUOS | E48: I5:I19
A49: 24 | B49: Changed heading and worksheet colours to Ausgrid colours | C49: Formatting | D49: All | E49: All
A50: 25
A51: 26
A52: 27
A53: 28
A54: 29
A55: 30

Sheet Read This Sheet
B1: SLUOS Construction Cost Calculation Workbook
B3: Description
B4: This Excel workbook contains a costing model for the calculation of SLUOS Capital charges.
B5: This workbook is designed to take financial, technical and material inputs to calculate both CAPEX and OPEX charges applicable to assemblies relating to Streetlights. For OPEX this is achieved through a ground up approach by calcualting the forecasted level of maintenance per failure rates and calculating the cost of repairs utilising labour, plant and material rates. For CAPEX this is achieved by calculating the cost of labour, plant and materials and applying a return on investment of a period of time for the economic life of the asset. This model takes into consideration appropriate overheads, oncosts and CPI to establish the final fully loaded SLUOS charges. These charges are based on an anuual charge.
B7: A description of each of the sheets is contained below:
C8: Items highlighted in red are not applicable for Ausgrid
B9: Worksheet | C9: Function
B10: Global Inputs | C10: Contains all inputs from other major workbooks - including overheads, oncosts, pay rates.
B11: CAPEX Inputs | C11: • Contains a list of all stock and their associated costs. This data is extracted from WASP. • Models the design costs associated with streetlights. • Contains components (from stock list) used to construct larger assemblies, giving prices for each. • Models the traffic control costs associated with a streetlight construction.
B12: CAPEX - Stock Costs | C12: Contains all stock costs as per 21/22 dollars as tracked through procurement purchase prices
B13: CAPEX - Hybrid Calcs | C13: Calculates assembly costs where assembly cannot be directly calculated (i.e. insufficient data to distinguish assets)
B14: CAPEX Build Up | C14: • For the assemblies listed in the CAPEX Input (luminaire, bracket, pole) the CAPEX cost for the component is calculated. • This is then calculated as an annual cost based of a given asset lifespan.
B15: OPEX Input | C15: • For a given lamp type, this sheet contains the associated lamp, ballast/igniter and starter/PE cell cost. It also contains the failure rates for these components. • Pole maintenance costs are modelled • Small component usage (fuses, etc) are measured to be able to provide a cost per pole to account for these otherwise unrecovered costs • Bulk Works Additional Material usage is measured to pass on these costs on an average per pole basis • Streetlight Improvement Programs are listed to be able to have these costs passed on, in a per pole cost
B16: Warrenty NPV | C16: • Given that LEDs have parts and labour warranty for the first three years, the average NPV cost of maintenance is calculated across the span of the luminaire’s lifetime
B17: OPEX Calc | C17: • All luminaires and poles now have their associated costs calculated
B18: OPEX Tariff and Revenue Summary | C18: • Contains nominal Opex charges for each component and an estimate of the nominal revenue through to FY29
B19: Mapping & Lookups | C19: • This sheet provides construction information for a given construction code (type of pole, number of luminaires etc) • Because of different naming conventions for a number of the bulbs and luminaire types, this sheet provides a given CAPEX and OPEX code for a given lamp code from the traditional tariff code. This then allows the costs to be found in the CAPEX Calc and OPEX Calc sheets
B20: New Component SLUOS (For New Assets) | C20: • To be able to map to the old lamp tariff codes, the new componentised structure is now collapsed again, such that it can map according allowing direct comparison of the old and new costs for a given assembly type.

Sheet Instructions
B2: Steps to create new asset in pricing model
B3: When creating a new code, always work from a copy of the model rather than the model itself
B4: When creating new entries for the steps below, formulas from the previous entry should just be copied down
B6: CAPEX CHARGE
B7: Step | C7: Sheet affected | D7: Columns | E7: Instruction | F7: Notes
B8: 1 | C8: CAPEX - Stock Costs | D8: B:H | E8: Create new entry in "CAPEX - Stock Costs" tab for the purchase price of the luminaire and its stock item code | F8: This should be added after the last entry
B9: 2 | C9: CAPEX - Input | D9: U:AC | E9: Create new sub assembly in "CAPEX - Input" tab | F9: This can be done by copying and pasting the last one in the list (columns U to AC) and changing the materials item code (column Y) to the stock item code created in step 1
B10: 3 | C10: Mapping & Lookups | D10: X:AD | E10: Create new entry in "Mapping & Lookups" tab | F10: Data needs to be entered into columns X, Y, Z and AD
B11: 4 | C11: CAPEX Build Up | D11: B:Z | E11: Create new entry at bottom of table in "CAPEX Build Up" and change the "Mapped to Assembly/Item" (column F) to the new LED code created in step 2
B12: OPEX CHARGE
B13: 5 | C13: OPEX Input | D13: B:N | E13: Create a new entry in the "Additions through the regulatory period" in tab "OPEX Input". | F13: This should be added after the last entry which is currently in row 182. All entries in this table are usually common except for the luminaire failure column (column K) and smart controller cost (column H).
B14: =B13+1 -> 6 | C14: OPEX Calc | D14: B:AG | E14: Create a new entry in the "OPEX Calc" tab and change the Mapping code (column F)
B15: =B14+1 -> 7 | C15: Warranty NPV | D15: B:N | E15: Create a new entry in the "Warranty NPV" tab and change the Lamp Type (Column B) to the new LED code
B16: 8 | C16: OPEX Tariff and Revenue Summary | D16: B:V | E16: Create a new entry in the "OPEX Tariff and Revenue Summary" tab and change the Lamp Type (Column J) to the new LED code
B17: PRICING SUMMARY
B18: =B16+1 -> 9 | C18: New Component SLUOS | D18: B:J | E18: Create a new entry in the "New Component SLUOS" tab and change the CAPEX and OPEX lookups (column G&H) to the LED code created

Sheet Detailed price list
B1: Public lighting price list - post July 2009 capital annuity and annual maintenance charges
B2: This sheet summarises the post July 2009 capital annuity and annual maintenance charges calculated in this model. | M2: Volume (FY25-FY29)
D3: Nominal $ | M3: =MATCH($M$2,$O$4:$Q$4,0) -> 1
B4: Charge Reference | C4: Charge Group | D4: ='C_CAPEX Build Up'!S14 -> FY25 | E4: ='C_CAPEX Build Up'!T14 -> FY26 | F4: ='C_CAPEX Build Up'!U14 -> FY27 | G4: ='C_CAPEX Build Up'!V14 -> FY28 | H4: ='C_CAPEX Build Up'!W14 -> FY29 | J4: Charge Type | K4: Road Type | L4: Applied Scenario Price Grouping | M4: Volume (FY25-FY29) | O4: Volume (FY25-FY29) | P4: Volume (FY22 Billing) | Q4: Estimated Average Revenue
B5: O/U | C5: Opex - Connections | D5: 102.2830643 | E5: 105.2233529 | F5: 108.2481647 | G5: 111.3599295 | H5: 114.5611469 | J5: N/A | K5: N/A | L5: Connection - O/U | M5: =INDEX(O5:Q5,,$M$3) -> 2880 | O5: =SUM('I_Asset number input'!K5:O5) -> 2880 | P5: 4552 | Q5: =+O5/5*AVERAGE(D5,E5,F5,G5,H5) -> 62401.03582
B6: UGR1 | C6: =C5 -> Opex - Connections | D6: 93.75710538 | E6: 96.45230175 | F6: 99.22497581 | G6: 102.0773548 | H6: 105.0117299 | J6: N/A | K6: N/A | L6: Connection - UGR1 | M6: =INDEX(O6:Q6,,$M$3) -> 162507.5 | O6: =SUM('I_Asset number input'!K6:O6) -> 162507.5 | P6: 254888 | Q6: =+O6/5*AVERAGE(D6,E6,F6,G6,H6) -> 3227551.496
B7: UGR2 | C7: =C6 -> Opex - Connections | D7: 34.08928223 | E7: 35.0692326 | F7: 36.07735319 | G7: 37.11445381 | H7: 38.18136752 | J7: N/A | K7: N/A | L7: Connection - UGR2 | M7: =INDEX(O7:Q7,,$M$3) -> 124642.5 | O7: =SUM('I_Asset number input'!K7:O7) -> 124642.5 | P7: 195760 | Q7: 900076.8436
B8: MBF1x1000 | C8: Opex - Maintenance- Traditional Luminaire | D8: 62.63927716 | E8: 64.43994231 | F8: 66.29237044 | G8: 68.19804954 | H8: 70.1585104 | J8: Traditional | K8: Major (Cat V) | L8: Legacy Luminaire - Major (Cat V) road | M8: =INDEX(O8:Q8,,$M$3) -> 5 | O8: =SUM('I_Asset number input'!K8:O8) -> 5 | P8: 16 | Q8: 66.34562997
B9: MBF1x125 | C9: =C8 -> Opex - Maintenance- Traditional Luminaire | D9: 36.45466356 | E9: 37.50261056 | F9: 38.58068245 | G9: 39.68974523 | H9: 40.83068977 | J9: Traditional | K9: Minor (Cat P) | L9: Legacy Luminaire - Minor (Cat P) road | M9: =INDEX(O9:Q9,,$M$3) -> 977 | O9: =SUM('I_Asset number input'!K9:O9) -> 977 | P9: 10520 | Q9: 7544.721943
B10: MBF1x250 | C10: =C9 -> Opex - Maintenance- Traditional Luminaire | D10: 49.58961365 | E10: 51.01514558 | F10: 52.48165667 | G10: 53.99032495 | H10: 55.54236229 | J10: Traditional | K10: Major (Cat V) | L10: Legacy Luminaire - Major (Cat V) road | M10: =INDEX(O10:Q10,,$M$3) -> 8847.5 | O10: =SUM('I_Asset number input'!K10:O10) -> 8847.5 | P10: 92720 | Q10: 92940.9006
B11: MBF1x400 | C11: Opex - Maintenance- Traditional Luminaire | D11: 49.58961365 | E11: 51.01514558 | F11: 52.48165667 | G11: 53.99032495 | H11: 55.54236229 | J11: Traditional | K11: Major (Cat V) | L11: Legacy Luminaire - Major (Cat V) road | M11: =INDEX(O11:Q11,,$M$3) -> 2920 | O11: =SUM('I_Asset number input'!K11:O11) -> 2920 | P11: 31824 | Q11: 30673.91125
B12: MBF1x42 | C12: Opex - Maintenance- Traditional Luminaire | D12: 32.51139971 | E12: 33.44599135 | F12: 34.4074493 | G12: 35.39654589 | H12: 36.41407562 | J12: Traditional | K12: Minor (Cat P) | L12: Legacy Luminaire - Minor (Cat P) road | M12: =INDEX(O12:Q12,,$M$3) -> 23720 | O12: =SUM('I_Asset number input'!K12:O12) -> 23720 | P12: 247472 | Q12: 163360.0782
B13: MBF1x50 | C13: Opex - Maintenance- Traditional Luminaire | D13: 36.47940084 | E13: 37.52805895 | F13: 38.6068624 | G13: 39.71667776 | H13: 40.85839651 | J13: Traditional | K13: Minor (Cat P) | L13: Legacy Luminaire - Minor (Cat P) road | M13: =INDEX(O13:Q13,,$M$3) -> 2154 | O13: =SUM('I_Asset number input'!K13:O13) -> 2154 | P13: 23400 | Q13: 16645.1984
B14: MBF1x80 | C14: Opex - Maintenance- Traditional Luminaire | D14: 34.95765503 | E14: 35.96256815 | F14: 36.99636908 | G14: 38.05988826 | H14: 39.15397999 | J14: Traditional | K14: Minor (Cat P) | L14: Legacy Luminaire - Minor (Cat P) road | M14: =INDEX(O14:Q14,,$M$3) -> 7315.5 | O14: =SUM('I_Asset number input'!K14:O14) -> 7315.5 | P14: 88712 | Q14: 54172.87535
B15: MBF2x80 | C15: Opex - Maintenance- Traditional Luminaire | D15: 44.05061886 | E15: 45.31692361 | F15: 46.6196303 | G15: 47.95978535 | H15: 49.33846528 | J15: Traditional | K15: Minor (Cat P) | L15: Legacy Luminaire - Minor (Cat P) road | M15: =INDEX(O15:Q15,,$M$3) -> 11 | O15: =SUM('I_Asset number input'!K15:O15) -> 11 | P15: 120 | Q15: 102.6455863
B16: MBI1x100 | C16: Opex - Maintenance- Traditional Luminaire | D16: 46.53276857 | E16: 47.87042665 | F16: 49.24653782 | G16: 50.66220749 | H16: 52.11857282 | J16: Traditional | K16: Major (Cat V) | L16: Legacy Luminaire - Major (Cat V) road | M16: =INDEX(O16:Q16,,$M$3) -> 17.5 | O16: =SUM('I_Asset number input'!K16:O16) -> 17.5 | P16: 168 | Q16: 172.5013593
B17: MBI1x1000 | C17: Opex - Maintenance- Traditional Luminaire | D17: 48.45814271 | E17: 49.85114871 | F17: 51.28419887 | G17: 52.75844433 | H17: 54.27506931 | J17: Traditional | K17: Major (Cat V) | L17: Legacy Luminaire - Major (Cat V) road | M17: =INDEX(O17:Q17,,$M$3) -> 8.5 | O17: =SUM('I_Asset number input'!K17:O17) -> 8.5 | P17: 64 | Q17: 87.25318134
B18: MBI1x150 | C18: Opex - Maintenance- Traditional Luminaire | D18: 46.53276857 | E18: 47.87042665 | F18: 49.24653782 | G18: 50.66220749 | H18: 52.11857282 | J18: Traditional | K18: Major (Cat V) | L18: Legacy Luminaire - Major (Cat V) road | M18: =INDEX(O18:Q18,,$M$3) -> 2 | O18: =SUM('I_Asset number input'!K18:O18) -> 2 | P18: 32 | Q18: 19.71444107
B19: MBI1x250 | C19: Opex - Maintenance- Traditional Luminaire | D19: 46.18403433 | E19: 47.51166749 | F19: 48.87746557 | G19: 50.28252567 | H19: 51.72797645 | J19: Traditional | K19: Major (Cat V) | L19: Legacy Luminaire - Major (Cat V) road | M19: =INDEX(O19:Q19,,$M$3) -> 38 | O19: =SUM('I_Asset number input'!K19:O19) -> 38 | P19: 440 | Q19: 371.7671777
B20: MBI1x400 | C20: Opex - Maintenance- Traditional Luminaire | D20: 46.17274844 | E20: 47.50005716 | F20: 48.86552148 | G20: 50.27023823 | H20: 51.71533579 | J20: Traditional | K20: Major (Cat V) | L20: Legacy Luminaire - Major (Cat V) road | M20: =INDEX(O20:Q20,,$M$3) -> 87 | O20: =SUM('I_Asset number input'!K20:O20) -> 87 | P20: 968 | Q20: 850.9431758
B21: MBI1x70 | C21: Opex - Maintenance- Traditional Luminaire | D21: 34.36205855 | E21: 35.3498503 | F21: 36.36603769 | G21: 37.411437 | H21: 38.48688796 | J21: Traditional | K21: Minor (Cat P) | L21: Legacy Luminaire - Minor (Cat P) road | M21: =INDEX(O21:Q21,,$M$3) -> 102 | O21: =SUM('I_Asset number input'!K21:O21) -> 102 | P21: 1400 | Q21: 742.4631877
B22: MBI1x70 II | C22: Opex - Maintenance- Traditional Luminaire | D22: 36.81674128 | E22: 37.87509677 | F22: 38.96387637 | G22: 40.08395466 | H22: 41.23623138 | J22: Traditional | K22: Minor (Cat P) | L22: Legacy Luminaire - Minor (Cat P) road | M22: =INDEX(O22:Q22,,$M$3) -> 13 | O22: =SUM('I_Asset number input'!K22:O22) -> 13 | P22: 584 | Q22: 101.3874682
B23: SON1x100 | C23: Opex - Maintenance- Traditional Luminaire | D23: 55.61490349 | E23: 57.21364191 | F23: 58.85833859 | G23: 60.55031469 | H23: 62.29092931 | J23: Traditional | K23: Major (Cat V) | L23: Legacy Luminaire - Major (Cat V) road | M23: =INDEX(O23:Q23,,$M$3) -> 876.5 | O23: =SUM('I_Asset number input'!K23:O23) -> 876.5 | P23: 10112 | Q23: 10326.15617
B24: SON1x1000 | C24: Opex - Maintenance- Traditional Luminaire | D24: 56.95476945 | E24: 58.59202444 | F24: 60.27634491 | G24: 62.00908383 | H24: 63.79163309 | J24: Traditional | K24: Major (Cat V) | L24: Legacy Luminaire - Major (Cat V) road | M24: =INDEX(O24:Q24,,$M$3) -> 28.5 | O24: =SUM('I_Asset number input'!K24:O24) -> 28.5 | P24: 264 | Q24: 343.8511955
B25: SON1x150 | C25: Opex - Maintenance- Traditional Luminaire | D25: 54.95002835 | E25: 56.52965388 | F25: 58.15468824 | G25: 59.82643679 | H25: 61.5462424 | J25: Traditional | K25: Major (Cat V) | L25: Legacy Luminaire - Major (Cat V) road | M25: =INDEX(O25:Q25,,$M$3) -> 12998.5 | O25: =SUM('I_Asset number input'!K25:O25) -> 12998.5 | P25: 137320 | Q25: 151306.2054
B26: SON1x150 AR | C26: Opex - Maintenance- Traditional Luminaire | D26: 54.95002835 | E26: 56.52965388 | F26: 58.15468824 | G26: 59.82643679 | H26: 61.5462424 | J26: Traditional | K26: Major (Cat V) | L26: Legacy Luminaire - Major (Cat V) road | M26: =INDEX(O26:Q26,,$M$3) -> 2321.5 | O26: =SUM('I_Asset number input'!K26:O26) -> 2321.5 | P26: 25040 | Q26: 27022.91463
B27: SON1x250 | C27: Opex - Maintenance- Traditional Luminaire | D27: 55.26269439 | E27: 56.851308 | F27: 58.48558882 | G27: 60.16684963 | H27: 61.89644095 | J27: Traditional | K27: Major (Cat V) | L27: Legacy Luminaire - Major (Cat V) road | M27: =INDEX(O27:Q27,,$M$3) -> 15865.5 | O27: =SUM('I_Asset number input'!K27:O27) -> 15865.5 | P27: 167184 | Q27: 185729.718
B28: SON1x250 AR | C28: Opex - Maintenance- Traditional Luminaire | D28: 55.26269439 | E28: 56.851308 | F28: 58.48558882 | G28: 60.16684963 | H28: 61.89644095 | J28: Traditional | K28: Major (Cat V) | L28: Legacy Luminaire - Major (Cat V) road | M28: =INDEX(O28:Q28,,$M$3) -> 3019.5 | O28: =SUM('I_Asset number input'!K28:O28) -> 3019.5 | P28: 32080 | Q28: 35347.82286
B29: SON1x400 | C29: Opex - Maintenance- Traditional Luminaire | D29: 55.40063529 | E29: 56.99321423 | F29: 58.63157437 | G29: 60.31703177 | H29: 62.05094031 | J29: Traditional | K29: Major (Cat V) | L29: Legacy Luminaire - Major (Cat V) road | M29: =INDEX(O29:Q29,,$M$3) -> 1455.5 | O29: =SUM('I_Asset number input'!K29:O29) -> 1455.5 | P29: 15120 | Q29: 17081.36351
B30: SON1x400 AR | C30: Opex - Maintenance- Traditional Luminaire | D30: 55.40063529 | E30: 56.99321423 | F30: 58.63157437 | G30: 60.31703177 | H30: 62.05094031 | J30: Traditional | K30: Major (Cat V) | L30: Legacy Luminaire - Major (Cat V) road | M30: =INDEX(O30:Q30,,$M$3) -> 313 | O30: =SUM('I_Asset number input'!K30:O30) -> 313 | P30: 3280 | Q30: 3673.285318
B31: SON1x50 | C31: Opex - Maintenance- Traditional Luminaire | D31: 40.8287828 | E31: 42.00247077 | F31: 43.20989827 | G31: 44.45203518 | H31: 45.72987928 | J31: Traditional | K31: Minor (Cat P) | L31: Legacy Luminaire - Minor (Cat P) road | M31: =INDEX(O31:Q31,,$M$3) -> 8.5 | O31: =SUM('I_Asset number input'!K31:O31) -> 8.5 | P31: 88 | Q31: 73.51584254
B32: SON1x600 | C32: Opex - Maintenance- Traditional Luminaire | D32: 56.95476945 | E32: 58.59202444 | F32: 60.27634491 | G32: 62.00908383 | H32: 63.79163309 | J32: Traditional | K32: Major (Cat V) | L32: Legacy Luminaire - Major (Cat V) road | M32: =INDEX(O32:Q32,,$M$3) -> 0 | O32: =SUM('I_Asset number input'!K32:O32) -> 0 | P32: 0 | Q32: 0
B33: SON1x70 | C33: Opex - Maintenance- Traditional Luminaire | D33: 40.48301094 | E33: 41.64675915 | F33: 42.84396116 | G33: 44.07557862 | H33: 45.34260089 | J33: Traditional | K33: Minor (Cat P) | L33: Legacy Luminaire - Minor (Cat P) road | M33: =INDEX(O33:Q33,,$M$3) -> 360.5 | O33: =SUM('I_Asset number input'!K33:O33) -> 360.5 | P33: 5096 | Q33: 3091.531353
B34: SON2x250 | C34: Opex - Maintenance- Traditional Luminaire | D34: 77.06429739 | E34: 79.27963258 | F34: 81.55865109 | G34: 83.90318359 | H34: 86.31511339 | J34: Traditional | K34: Major (Cat V) | L34: Legacy Luminaire - Major (Cat V) road | M34: =INDEX(O34:Q34,,$M$3) -> 9 | O34: =SUM('I_Asset number input'!K34:O34) -> 9 | P34: 88 | Q34: 146.9235161
B35: SON2x400 | C35: Opex - Maintenance- Traditional Luminaire | D35: 77.33118735 | E35: 79.55419472 | F35: 81.84110595 | G35: 84.19375806 | H35: 86.61404088 | J35: Traditional | K35: Major (Cat V) | L35: Legacy Luminaire - Major (Cat V) road | M35: =INDEX(O35:Q35,,$M$3) -> 2 | O35: =SUM('I_Asset number input'!K35:O35) -> 2 | P35: 32 | Q35: 32.76274296
B36: SON4x250 | C36: Opex - Maintenance- Traditional Luminaire | D36: 116.4966525 | E36: 119.8455332 | F36: 123.2906827 | G36: 126.8348685 | H36: 130.4809375 | J36: Traditional | K36: Major (Cat V) | L36: Legacy Luminaire - Major (Cat V) road | M36: =INDEX(O36:Q36,,$M$3) -> 2 | O36: =SUM('I_Asset number input'!K36:O36) -> 2 | P36: 40 | Q36: 49.35589395
B37: SON4x600 | C37: Opex - Maintenance- Traditional Luminaire | D37: 122.6314445 | E37: 126.1566795 | F37: 129.7832529 | G37: 133.5140779 | H37: 137.3521514 | J37: Traditional | K37: Major (Cat V) | L37: Legacy Luminaire - Major (Cat V) road | M37: =INDEX(O37:Q37,,$M$3) -> -3 | O37: =SUM('I_Asset number input'!K37:O37) -> -3 | P37: 24 | Q37: -77.93251274
B38: TF1x20 | C38: Opex - Maintenance- Traditional Luminaire | D38: 38.70411626 | E38: 39.81672733 | F38: 40.96132217 | G38: 42.13882021 | H38: 43.35016728 | J38: Traditional | K38: Minor (Cat P) | L38: Legacy Luminaire - Minor (Cat P) road | M38: =INDEX(O38:Q38,,$M$3) -> 5 | O38: =SUM('I_Asset number input'!K38:O38) -> 5 | P38: 8 | Q38: 40.99423065
B39: TF1x40 | C39: Opex - Maintenance- Traditional Luminaire | D39: 63.67463762 | E39: 65.50506585 | F39: 67.38811264 | G39: 69.32529059 | H39: 71.31815578 | J39: Traditional | K39: Minor (Cat P) | L39: Legacy Luminaire - Minor (Cat P) road | M39: =INDEX(O39:Q39,,$M$3) -> 42.5 | O39: =SUM('I_Asset number input'!K39:O39) -> 42.5 | P39: 472 | Q39: 573.2591462
B40: TF1x80 | C40: Opex - Maintenance- Traditional Luminaire | D40: 38.7210451 | E40: 39.83414282 | F40: 40.9792383 | G40: 42.15725136 | H40: 43.36912827 | J40: Traditional | K40: Minor (Cat P) | L40: Legacy Luminaire - Minor (Cat P) road | M40: =INDEX(O40:Q40,,$M$3) -> 16 | O40: =SUM('I_Asset number input'!K40:O40) -> 16 | P40: 144 | Q40: 131.2389158
B41: TF2x14 T5 | C41: Opex - Maintenance- Traditional Luminaire | D41: 38.7210451 | E41: 39.83414282 | F41: 40.9792383 | G41: 42.15725136 | H41: 43.36912827 | J41: Traditional | K41: Minor (Cat P) | L41: Legacy Luminaire - Minor (Cat P) road | M41: =INDEX(O41:Q41,,$M$3) -> 2 | O41: =SUM('I_Asset number input'!K41:O41) -> 2 | P41: 56 | Q41: 16.40486447
B42: TF2x20 | C42: Opex - Maintenance- Traditional Luminaire | D42: 49.61557457 | E42: 51.04185278 | F42: 52.50913162 | G42: 54.01858971 | H42: 55.57143956 | J42: Traditional | K42: Minor (Cat P) | L42: Legacy Luminaire - Minor (Cat P) road | M42: =INDEX(O42:Q42,,$M$3) -> 226 | O42: =SUM('I_Asset number input'!K42:O42) -> 226 | P42: 2648 | Q42: 2375.319558
B43: TF2x26 | C43: Opex - Maintenance- Traditional Luminaire | D43: 38.7210451 | E43: 39.83414282 | F43: 40.9792383 | G43: 42.15725136 | H43: 43.36912827 | J43: Traditional | K43: Minor (Cat P) | L43: Legacy Luminaire - Minor (Cat P) road | M43: =INDEX(O43:Q43,,$M$3) -> 8.5 | O43: =SUM('I_Asset number input'!K43:O43) -> 8.5 | P43: 64 | Q43: 69.72067399
B44: TF2x40 | C44: Opex - Maintenance- Traditional Luminaire | D44: 38.7210451 | E44: 39.83414282 | F44: 40.9792383 | G44: 42.15725136 | H44: 43.36912827 | J44: Traditional | K44: Minor (Cat P) | L44: Legacy Luminaire - Minor (Cat P) road | M44: =INDEX(O44:Q44,,$M$3) -> 14 | O44: =SUM('I_Asset number input'!K44:O44) -> 14 | P44: 96 | Q44: 114.8340513
B45: TF4x20 | C45: Opex - Maintenance- Traditional Luminaire | D45: 38.70411626 | E45: 39.81672733 | F45: 40.96132217 | G45: 42.13882021 | H45: 43.35016728 | J45: Traditional | K45: Minor (Cat P) | L45: Legacy Luminaire - Minor (Cat P) road | M45: =INDEX(O45:Q45,,$M$3) -> 12 | O45: =SUM('I_Asset number input'!K45:O45) -> 12 | P45: 56 | Q45: 98.38615356
B46: TF4x40 | C46: Opex - Maintenance- Traditional Luminaire | D46: 38.7210451 | E46: 39.83414282 | F46: 40.9792383 | G46: 42.15725136 | H46: 43.36912827 | J46: Traditional | K46: Minor (Cat P) | L46: Legacy Luminaire - Minor (Cat P) road | M46: =INDEX(O46:Q46,,$M$3) -> 5 | O46: =SUM('I_Asset number input'!K46:O46) -> 5 | P46: 16 | Q46: 41.01216117
B47: LED TRIAL | C47: Opex - Maintenance- LED Luminaire | D47: 23.4433354 | E47: 24.11725117 | F47: 24.81053973 | G47: 25.52375796 | H47: 26.25747877 | J47: LED | K47: Minor (Cat P) | L47: Luminaire - Minor (Cat P) road | M47: =INDEX(O47:Q47,,$M$3) -> 440 | O47: =SUM('I_Asset number input'!K47:O47) -> 440 | P47: 712 | Q47: 2185.081589
B48: LED1x100 | C48: Opex - Maintenance- LED Luminaire | D48: 31.94082745 | E48: 32.85901708 | F48: 33.80360153 | G48: 34.77533956 | H48: 35.77501173 | J48: LED | K48: Major (Cat V) | L48: Luminaire - Major (Cat V) road | M48: =INDEX(O48:Q48,,$M$3) -> 40918.5 | O48: =SUM('I_Asset number input'!K48:O48) -> 40918.5 | P48: 71120 | Q48: 276860.7863
B49: LED1x17 | C49: Opex - Maintenance- LED Luminaire | D49: 23.4433354 | E49: 24.11725117 | F49: 24.81053973 | G49: 25.52375796 | H49: 26.25747877 | J49: LED | K49: Minor (Cat P) | L49: Luminaire - Minor (Cat P) road | M49: =INDEX(O49:Q49,,$M$3) -> 692170 | O49: =SUM('I_Asset number input'!K49:O49) -> 692170 | P49: 764648 | Q49: 3437381.645
B50: LED1x200 | C50: Opex - Maintenance- LED Luminaire | D50: 31.94082745 | E50: 32.85901708 | F50: 33.80360153 | G50: 34.77533956 | H50: 35.77501173 | J50: LED | K50: Major (Cat V) | L50: Luminaire - Major (Cat V) road | M50: =INDEX(O50:Q50,,$M$3) -> 13525 | O50: =SUM('I_Asset number input'!K50:O50) -> 13525 | P50: 21384 | Q50: 91512.20436
B51: LED1x22 | C51: Opex - Maintenance- LED Luminaire | D51: 23.4433354 | E51: 24.11725117 | F51: 24.81053973 | G51: 25.52375796 | H51: 26.25747877 | J51: LED | K51: Minor (Cat P) | L51: Luminaire - Minor (Cat P) road | M51: =INDEX(O51:Q51,,$M$3) -> 72155 | O51: =SUM('I_Asset number input'!K51:O51) -> 72155 | P51: 115744 | Q51: 358328.5502
B52: LED1x25 GE | C52: Opex - Maintenance- LED Luminaire | D52: 23.4433354 | E52: 24.11725117 | F52: 24.81053973 | G52: 25.52375796 | H52: 26.25747877 | J52: LED | K52: Minor (Cat P) | L52: Luminaire - Minor (Cat P) road | M52: =INDEX(O52:Q52,,$M$3) -> 22460 | O52: =SUM('I_Asset number input'!K52:O52) -> 22460 | P52: 35840 | Q52: 111538.4829
B53: LED1x28 | C53: Opex - Maintenance- LED Luminaire | D53: 23.4433354 | E53: 24.11725117 | F53: 24.81053973 | G53: 25.52375796 | H53: 26.25747877 | J53: LED | K53: Minor (Cat P) | L53: Luminaire - Minor (Cat P) road | M53: =INDEX(O53:Q53,,$M$3) -> 19825 | O53: =SUM('I_Asset number input'!K53:O53) -> 19825 | P53: 30088 | Q53: 98452.82388
B54: LED1x29 | C54: Opex - Maintenance- LED Luminaire | D54: 23.4433354 | E54: 24.11725117 | F54: 24.81053973 | G54: 25.52375796 | H54: 26.25747877 | J54: LED | K54: Minor (Cat P) | L54: Luminaire - Minor (Cat P) road | M54: =INDEX(O54:Q54,,$M$3) -> 72590 | O54: =SUM('I_Asset number input'!K54:O54) -> 72590 | P54: 116496 | Q54: 360488.8013
B55: LED1x298 | C55: Opex - Maintenance- LED Luminaire | D55: 31.94082745 | E55: 32.85901708 | F55: 33.80360153 | G55: 34.77533956 | H55: 35.77501173 | J55: LED | K55: Major (Cat V) | L55: Luminaire - Major (Cat V) road | M55: =INDEX(O55:Q55,,$M$3) -> 265 | O55: =SUM('I_Asset number input'!K55:O55) -> 265 | P55: 424 | Q55: 1793.030252
B56: LED1x33 | C56: Opex - Maintenance- LED Luminaire | D56: 23.4433354 | E56: 24.11725117 | F56: 24.81053973 | G56: 25.52375796 | H56: 26.25747877 | J56: LED | K56: Minor (Cat P) | L56: Luminaire - Minor (Cat P) road | M56: =INDEX(O56:Q56,,$M$3) -> 145 | O56: =SUM('I_Asset number input'!K56:O56) -> 145 | P56: 232 | Q56: 720.0837056
B57: LED1x42 | C57: Opex - Maintenance- LED Luminaire | D57: 23.4433354 | E57: 24.11725117 | F57: 24.81053973 | G57: 25.52375796 | H57: 26.25747877 | J57: LED | K57: Minor (Cat P) | L57: Luminaire - Minor (Cat P) road | M57: =INDEX(O57:Q57,,$M$3) -> 200 | O57: =SUM('I_Asset number input'!K57:O57) -> 200 | P57: 328 | Q57: 993.2189042
B58: Smart Controller (Licence and maintenance fee) | C58: Opex - Maintenance- Smart controller | D58: 5.919619229 | E58: 6.089788052 | F58: 6.264848647 | G58: 6.444941636 | H58: 6.630211684 | J58: Smart Controller | K58: N/A | L58: Smart Controller - Licence and maintenance fee | M58: =INDEX(O58:Q58,,$M$3) -> 304000 | O58: =SUM('I_Asset number input'!K58:O58) -> 304000 | P58: 0 | Q58: 381208.8165
B59: Luminaire - Decorative | C59: Opex - Maintenance- LED Luminaire | D59: 25.14924292 | E59: 25.87219771 | F59: 26.61593497 | G59: 27.38105215 | H59: 28.16816383 | J59: LED | K59: Minor (Cat P) | L59: Luminaire - Decorative | M59: =INDEX(O59:Q59,,$M$3) -> 0 | O59: =SUM('I_Asset number input'!K59:O59) -> 0 | P59: 0 | Q59: 0
B60: Luminaire - Floodlight | C60: Opex - Maintenance- LED Luminaire | D60: 31.94082745 | E60: 32.85901708 | F60: 33.80360153 | G60: 34.77533956 | H60: 35.77501173 | J60: LED | K60: Major (Cat V) | L60: Luminaire - Floodlight | M60: =INDEX(O60:Q60,,$M$3) -> 0 | O60: =SUM('I_Asset number input'!K60:O60) -> 0 | P60: 0 | Q60: 0
B61: Luminaire - Major (Cat V) road - smart controller installed | C61: Opex - Maintenance- LED Luminaire | D61: 22.6182694 | E61: 23.26846735 | F61: 23.93735627 | G61: 24.62547346 | H61: 25.33337167 | J61: LED | K61: Major (Cat V) | L61: Luminaire - Major (Cat V) road - smart controller installed | M61: =INDEX(O61:Q61,,$M$3) -> 260865 | O61: =SUM('I_Asset number input'!K61:O61) -> 260865 | P61: 0 | Q61: 1249887.046
B62: Luminaire - Minor (Cat P) road - smart controller installed | C62: Opex - Maintenance- LED Luminaire | D62: 18.12991292 | E62: 18.65108596 | F62: 19.18724095 | G62: 19.73880855 | H62: 20.30623184 | J62: LED | K62: Minor (Cat P) | L62: Luminaire - Minor (Cat P) road - smart controller installed | M62: =INDEX(O62:Q62,,$M$3) -> 28985 | O62: =SUM('I_Asset number input'!K62:O62) -> 28985 | P62: 0 | Q62: 111317.7971
B63: Luminaire - Floodlight - smart controller installed | C63: Opex - Maintenance- LED Luminaire | D63: 22.6182694 | E63: 23.26846735 | F63: 23.93735627 | G63: 24.62547346 | H63: 25.33337167 | J63: LED | K63: Major (Cat V) | L63: Luminaire - Floodlight - smart controller installed | M63: =INDEX(O63:Q63,,$M$3) -> 0 | O63: =SUM('I_Asset number input'!K63:O63) -> 0 | P63: 0 | Q63: 0
B64: Luminaire - Decorative - smart controller installed | C64: Opex - Maintenance- LED Luminaire | D64: 19.83582044 | E64: 20.40603249 | F64: 20.99263619 | G64: 21.59610274 | H64: 22.2169169 | J64: LED | K64: Minor (Cat P) | L64: Luminaire - Decorative - smart controller installed | M64: =INDEX(O64:Q64,,$M$3) -> 0 | O64: =SUM('I_Asset number input'!K64:O64) -> 0 | P64: 0 | Q64: 0
B65: 0.5 | C65: Capital - Bracket | D65: 6.506336411 | E65: 6.693371348 | F65: 6.885782901 | G65: 7.083725628 | H65: 7.287358532 | J65: Bracket | K65: Minor (Cat P) | L65: Legacy Bracket - Minor (Cat P) road - Short | M65: =INDEX(O65:Q65,,$M$3) -> 32543.5 | O65: =SUM('I_Asset number input'!K65:O65) -> 32543.5 | P65: 49704 | Q65: 44853.50171
B66: 0.6 | C66: Capital - Bracket | D66: 6.506336411 | E66: 6.693371348 | F66: 6.885782901 | G66: 7.083725628 | H66: 7.287358532 | J66: Bracket | K66: Minor (Cat P) | L66: Legacy Bracket - Minor (Cat P) road - Short | M66: =INDEX(O66:Q66,,$M$3) -> 130 | O66: =SUM('I_Asset number input'!K66:O66) -> 130 | P66: 208 | Q66: 179.1741891
B67: 1.0 | C67: Capital - Bracket | D67: 7.992838083 | E67: 8.222604863 | F67: 8.458976653 | G67: 8.702143324 | H67: 8.952300206 | J67: Bracket | K67: Minor (Cat P) | L67: Legacy Bracket - Minor (Cat P) road - Short | M67: =INDEX(O67:Q67,,$M$3) -> 580 | O67: =SUM('I_Asset number input'!K67:O67) -> 580 | P67: 952 | Q67: 982.0296246
B68: 1.2 | C68: Capital - Bracket | D68: 7.992838083 | E68: 8.222604863 | F68: 8.458976653 | G68: 8.702143324 | H68: 8.952300206 | J68: Bracket | K68: Minor (Cat P) | L68: Legacy Bracket - Minor (Cat P) road - Short | M68: =INDEX(O68:Q68,,$M$3) -> 2285 | O68: =SUM('I_Asset number input'!K68:O68) -> 2285 | P68: 3648 | Q68: 3868.85809
B69: 1.5 | C69: Capital - Bracket | D69: 7.992838083 | E69: 8.222604863 | F69: 8.458976653 | G69: 8.702143324 | H69: 8.952300206 | J69: Bracket | K69: Minor (Cat P) | L69: Legacy Bracket - Minor (Cat P) road - Short | M69: =INDEX(O69:Q69,,$M$3) -> 1330 | O69: =SUM('I_Asset number input'!K69:O69) -> 1330 | P69: 2160 | Q69: 2251.895518
B70: 2.0 | C70: Capital - Bracket | D70: 7.992838083 | E70: 8.222604863 | F70: 8.458976653 | G70: 8.702143324 | H70: 8.952300206 | J70: Bracket | K70: Minor (Cat P) | L70: Legacy Bracket - Minor (Cat P) road - Short | M70: =INDEX(O70:Q70,,$M$3) -> 203421.5 | O70: =SUM('I_Asset number input'!K70:O70) -> 203421.5 | P70: 300376 | Q70: =+O70/5*AVERAGE(D70,E70,F70,G70,H70) -> 344424.0332
B71: 2.5 | C71: Capital - Bracket | D71: 7.992838083 | E71: 8.222604863 | F71: 8.458976653 | G71: 8.702143324 | H71: 8.952300206 | J71: Bracket | K71: Minor (Cat P) | L71: Legacy Bracket - Minor (Cat P) road - Short | M71: =INDEX(O71:Q71,,$M$3) -> 345 | O71: =SUM('I_Asset number input'!K71:O71) -> 345 | P71: 552 | Q71: 584.1383112
B72: 3.0 | C72: Capital - Bracket | D72: 7.992838083 | E72: 8.222604863 | F72: 8.458976653 | G72: 8.702143324 | H72: 8.952300206 | J72: Bracket | K72: Minor (Cat P) | L72: Legacy Bracket - Minor (Cat P) road - Short | M72: =INDEX(O72:Q72,,$M$3) -> 3245 | O72: =SUM('I_Asset number input'!K72:O72) -> 3245 | P72: 5008 | Q72: 5494.286434
B73: 3.5 | C73: Capital - Bracket | D73: 11.28327147 | E73: 11.60762697 | F73: 11.94130657 | G73: 12.28457833 | H73: 12.63771797 | J73: Bracket | K73: Minor (Cat P) | L73: Legacy Bracket - Minor (Cat P) road - Medium | M73: =INDEX(O73:Q73,,$M$3) -> 5285 | O73: =SUM('I_Asset number input'!K73:O73) -> 5285 | P73: 8456 | Q73: 12632.10158
B74: 4.0 | C74: Capital - Bracket | D74: 18.11665295 | E74: 18.63744481 | F74: 19.17320766 | G74: 19.72437186 | H74: 20.29138014 | J74: Bracket | K74: Minor (Cat P) | L74: Legacy Bracket - Minor (Cat P) road - Medium | M74: =INDEX(O74:Q74,,$M$3) -> 3145 | O74: =SUM('I_Asset number input'!K74:O74) -> 3145 | P74: 4952 | Q74: 12069.63662
B75: 4.5 | C75: Capital - Bracket | D75: 18.11665295 | E75: 18.63744481 | F75: 19.17320766 | G75: 19.72437186 | H75: 20.29138014 | J75: Bracket | K75: Minor (Cat P) | L75: Legacy Bracket - Minor (Cat P) road - Medium | M75: =INDEX(O75:Q75,,$M$3) -> 720 | O75: =SUM('I_Asset number input'!K75:O75) -> 720 | P75: 1096 | Q75: 2763.160054
B76: 5.0 | C76: Capital - Bracket | D76: 18.11665295 | E76: 18.63744481 | F76: 19.17320766 | G76: 19.72437186 | H76: 20.29138014 | J76: Bracket | K76: Minor (Cat P) | L76: Legacy Bracket - Minor (Cat P) road - Medium | M76: =INDEX(O76:Q76,,$M$3) -> 220 | O76: =SUM('I_Asset number input'!K76:O76) -> 220 | P76: 368 | Q76: 844.2989053
B77: 6.0 | C77: Capital - Bracket | D77: 22.51958038 | E77: 23.16694136 | F77: 23.83291175 | G77: 24.51802652 | H77: 25.22283599 | J77: Bracket | K77: Minor (Cat P) | L77: Legacy Bracket - Minor (Cat P) road - Long | M77: =INDEX(O77:Q77,,$M$3) -> 1360 | O77: =SUM('I_Asset number input'!K77:O77) -> 1360 | P77: 2144 | Q77: 6487.760102
B78: 6.5 | C78: Capital - Bracket | D78: 22.51958038 | E78: 23.16694136 | F78: 23.83291175 | G78: 24.51802652 | H78: 25.22283599 | J78: Bracket | K78: Minor (Cat P) | L78: Legacy Bracket - Minor (Cat P) road - Long | M78: =INDEX(O78:Q78,,$M$3) -> 190 | O78: =SUM('I_Asset number input'!K78:O78) -> 190 | P78: 312 | Q78: 906.3782495
B79: 7.0 | C79: Capital - Bracket | D79: 22.51958038 | E79: 23.16694136 | F79: 23.83291175 | G79: 24.51802652 | H79: 25.22283599 | J79: Bracket | K79: Minor (Cat P) | L79: Legacy Bracket - Minor (Cat P) road - Long | M79: =INDEX(O79:Q79,,$M$3) -> 120 | O79: =SUM('I_Asset number input'!K79:O79) -> 120 | P79: 200 | Q79: 572.4494208
B80: 8.0 | C80: =C79 -> Capital - Bracket | D80: 22.51958038 | E80: 23.16694136 | F80: 23.83291175 | G80: 24.51802652 | H80: 25.22283599 | J80: Bracket | K80: Minor (Cat P) | L80: Legacy Bracket - Minor (Cat P) road - Long | M80: =INDEX(O80:Q80,,$M$3) -> 10 | O80: =SUM('I_Asset number input'!K80:O80) -> 10 | P80: 16 | Q80: 47.7041184
B81: C4 | C81: Capital - Bracket | D81: 10.4260394 | E81: 10.7257524 | F81: 11.03408113 | G81: 11.35127325 | H81: 11.67758357 | J81: Bracket | K81: Major (Cat V) | L81: Legacy Bracket - Major (Cat V) road - Short | M81: =INDEX(O81:Q81,,$M$3) -> 270 | O81: =SUM('I_Asset number input'!K81:O81) -> 270 | P81: 432 | Q81: 596.3190812
B82: T1 | C82: Capital - Bracket | D82: 9.59226442 | E82: 9.868009242 | F82: 10.15168078 | G82: 10.44350692 | H82: 10.74372205 | J82: Bracket | K82: Major (Cat V) | L82: Legacy Bracket - Major (Cat V) road - Short | M82: =INDEX(O82:Q82,,$M$3) -> 10485 | O82: =SUM('I_Asset number input'!K82:O82) -> 10485 | P82: 14688 | Q82: 21305.17752
B83: T2 | C83: Capital - Bracket | D83: 15.30957854 | E83: 15.74967661 | F83: 16.20242599 | G83: 16.66819036 | H83: 17.14734387 | J83: Bracket | K83: Major (Cat V) | L83: Legacy Bracket - Major (Cat V) road - Short | M83: =INDEX(O83:Q83,,$M$3) -> 3660 | O83: =SUM('I_Asset number input'!K83:O83) -> 3660 | P83: 5848 | Q83: 11869.70433
B84: T2A | C84: Capital - Bracket | D84: 15.30957854 | E84: 15.74967661 | F84: 16.20242599 | G84: 16.66819036 | H84: 17.14734387 | J84: Bracket | K84: Major (Cat V) | L84: Legacy Bracket - Major (Cat V) road - Short | M84: =INDEX(O84:Q84,,$M$3) -> 1905 | O84: =SUM('I_Asset number input'!K84:O84) -> 1905 | P84: 2584 | Q84: 6178.083811
B85: T3 | C85: Capital - Bracket | D85: 22.18822209 | E85: 22.82605765 | F85: 23.4822288 | G85: 24.15726263 | H85: 24.85170138 | J85: Bracket | K85: Major (Cat V) | L85: Legacy Bracket - Major (Cat V) road - Medium | M85: =INDEX(O85:Q85,,$M$3) -> 3160 | O85: =SUM('I_Asset number input'!K85:O85) -> 3160 | P85: 5064 | Q85: 14852.69173
B86: T3A | C86: Capital - Bracket | D86: 22.18822209 | E86: 22.82605765 | F86: 23.4822288 | G86: 24.15726263 | H86: 24.85170138 | J86: Bracket | K86: Major (Cat V) | L86: Legacy Bracket - Major (Cat V) road - Medium | M86: =INDEX(O86:Q86,,$M$3) -> 1550 | O86: =SUM('I_Asset number input'!K86:O86) -> 1550 | P86: 2120 | Q86: 7285.339299
B87: T4 | C87: Capital - Bracket | D87: 22.18822209 | E87: 22.82605765 | F87: 23.4822288 | G87: 24.15726263 | H87: 24.85170138 | J87: Bracket | K87: Major (Cat V) | L87: Legacy Bracket - Major (Cat V) road - Medium | M87: =INDEX(O87:Q87,,$M$3) -> 2270 | O87: =SUM('I_Asset number input'!K87:O87) -> 2270 | P87: 3656 | Q87: 10669.49691
B88: T5 | C88: Capital - Bracket | D88: 22.18822209 | E88: 22.82605765 | F88: 23.4822288 | G88: 24.15726263 | H88: 24.85170138 | J88: Bracket | K88: Major (Cat V) | L88: Legacy Bracket - Major (Cat V) road - Medium | M88: =INDEX(O88:Q88,,$M$3) -> 395 | O88: =SUM('I_Asset number input'!K88:O88) -> 395 | P88: 624 | Q88: 1856.586467
B89: T6 | C89: Capital - Bracket | D89: 22.18822209 | E89: 22.82605765 | F89: 23.4822288 | G89: 24.15726263 | H89: 24.85170138 | J89: Bracket | K89: Major (Cat V) | L89: Legacy Bracket - Major (Cat V) road - Medium | M89: =INDEX(O89:Q89,,$M$3) -> 2525 | O89: =SUM('I_Asset number input'!K89:O89) -> 2525 | P89: 3896 | Q89: 11868.05273
B90: T7 | C90: Capital - Bracket | D90: 32.16374413 | E90: 33.08834186 | F90: 34.03951861 | G90: 35.01803844 | H90: 36.02468738 | J90: Bracket | K90: Major (Cat V) | L90: Legacy Bracket - Major (Cat V) road - Long | M90: =INDEX(O90:Q90,,$M$3) -> 1380 | O90: =SUM('I_Asset number input'!K90:O90) -> 1380 | P90: 2104 | Q90: 9402.455038
B91: Bracket - Minor Road (Cat P) - Short | C91: Capital - Bracket | D91: 9.649455457 | E91: 9.926844325 | F91: 10.21220718 | G91: 10.50577323 | H91: 10.80777831 | J91: Bracket | K91: Minor (Cat P) | L91: Bracket - Minor Road (Cat P) - Short | M91: =INDEX(O91:Q91,,$M$3) -> 10333.2 | O91: =SUM('I_Asset number input'!K91:O91) -> 10333.2 | Q91: 21121.91164
B92: Bracket - Minor Road (Cat P) - Medium | C92: Capital - Bracket | D92: 15.32114801 | E92: 15.76157866 | F92: 16.21467018 | G92: 16.68078653 | H92: 17.16030214 | J92: Bracket | K92: Minor (Cat P) | L92: Bracket - Minor Road (Cat P) - Medium | M92: =INDEX(O92:Q92,,$M$3) -> 0 | O92: =SUM('I_Asset number input'!K92:O92) -> 0 | Q92: 0
B93: Bracket - Major Road (Cat V) - Short | C93: Capital - Bracket | D93: 12.52024703 | E93: 12.88016135 | F93: 13.25042197 | G93: 13.63132632 | H93: 14.02318037 | J93: Bracket | K93: Major (Cat V) | L93: Bracket - Major Road (Cat V) - Short | M93: =INDEX(O93:Q93,,$M$3) -> 2583.3 | O93: =SUM('I_Asset number input'!K93:O93) -> 2583.3 | Q93: 6851.463087
B94: Bracket - Major Road (Cat V) - Medium | C94: Capital - Bracket | D94: 22.69334612 | E94: 23.34570227 | F94: 24.01681143 | G94: 24.70721269 | H94: 25.41746062 | J94: Bracket | K94: Major (Cat V) | L94: Bracket - Major Road (Cat V) - Medium | M94: =INDEX(O94:Q94,,$M$3) -> 0 | O94: =SUM('I_Asset number input'!K94:O94) -> 0 | Q94: 0
B95: Bracket - Major Road (Cat V) - Long | C95: Capital - Bracket | D95: 28.28351127 | E95: 29.09656556 | F95: 29.93299238 | G95: 30.79346362 | H95: 31.67867047 | J95: Bracket | K95: Major (Cat V) | L95: Bracket - Major Road (Cat V) - Long | M95: =INDEX(O95:Q95,,$M$3) -> 0 | O95: =SUM('I_Asset number input'!K95:O95) -> 0 | Q95: 0
B96: 1000W SON | C96: Capital - Traditional Luminaire | D96: 107.467215 | E96: 110.5565302 | F96: 113.7346526 | G96: 117.0041352 | H96: 120.3676042 | J96: Traditional | K96: Major (Cat V) | L96: Legacy Luminaire - 1000W SON | M96: =INDEX(O96:Q96,,$M$3) -> 32.5 | O96: =SUM('I_Asset number input'!K96:O96) -> 32.5 | P96: 64 | Q96: 739.8691782
B97: 1000W SON FLOODLIGHT | C97: Capital - Traditional Luminaire | D97: 87.92947588 | E97: 90.45714783 | F97: 93.0574817 | G97: 95.73256628 | H97: 98.48455041 | J97: Traditional | K97: Major (Cat V) | L97: Legacy Luminaire - 1000W SON FLOODLIGHT | M97: =INDEX(O97:Q97,,$M$3) -> 7.5 | O97: =SUM('I_Asset number input'!K97:O97) -> 7.5 | P97: 24 | Q97: 139.6983666
B98: 1000W/1500W MBI FLOODLIG | C98: Capital - Traditional Luminaire | D98: 119.1045106 | E98: 122.5283582 | F98: 126.0506298 | G98: 129.6741547 | H98: 133.4018435 | J98: Traditional | K98: Major (Cat V) | L98: Legacy Luminaire - 1000W/1500W MBI FLOODLIG | M98: =INDEX(O98:Q98,,$M$3) -> 12.5 | O98: =SUM('I_Asset number input'!K98:O98) -> 12.5 | P98: 40 | Q98: 315.3797484
B99: 100W MBI | C99: Capital - Traditional Luminaire | D99: 40.35189024 | E99: 41.51186919 | F99: 42.70519357 | G99: 43.93282194 | H99: 45.19574044 | J99: Traditional | K99: Major (Cat V) | L99: Legacy Luminaire - 100W MBI | M99: =INDEX(O99:Q99,,$M$3) -> 0 | O99: =SUM('I_Asset number input'!K99:O99) -> 0 | P99: 80 | Q99: 0
B100: 100W MBI FLOODLIGHT | C100: Capital - Traditional Luminaire | D100: 43.71390379 | E100: 44.97052913 | F100: 46.26327817 | G100: 47.59318931 | H100: 48.96133086 | J100: Traditional | K100: Major (Cat V) | L100: Legacy Luminaire - 100W MBI FLOODLIGHT | M100: =INDEX(O100:Q100,,$M$3) -> 7.5 | O100: =SUM('I_Asset number input'!K100:O100) -> 7.5 | P100: 32 | Q100: 69.45066938
B101: 100W SON | C101: Capital - Traditional Luminaire | D101: 42.97576016 | E101: 44.2111664 | F101: 45.48208635 | G101: 46.7895409 | H101: 48.1345803 | J101: Traditional | K101: Major (Cat V) | L101: Legacy Luminaire - 100W SON | M101: =INDEX(O101:Q101,,$M$3) -> 223.3333333 | O101: =SUM('I_Asset number input'!K101:O101) -> 223.3333333 | P101: 3040 | Q101: 2033.165331
B102: 100W SON - PLAIN | C102: Capital - Traditional Luminaire | D102: 42.97576016 | E102: 44.2111664 | F102: 45.48208635 | G102: 46.7895409 | H102: 48.1345803 | J102: Traditional | K102: Major (Cat V) | L102: Legacy Luminaire - 100W SON - PLAIN | M102: =INDEX(O102:Q102,,$M$3) -> 84.66666667 | O102: =SUM('I_Asset number input'!K102:O102) -> 84.66666667 | P102: 1016 | Q102: 770.7820809
B103: 100W SON FLOODLIGHT | C103: Capital - Traditional Luminaire | D103: 63.17283068 | E103: 64.98883367 | F103: 66.85704055 | G103: 68.77895199 | H103: 70.75611181 | J103: Traditional | K103: Major (Cat V) | L103: Legacy Luminaire - 100W SON FLOODLIGHT | M103: =INDEX(O103:Q103,,$M$3) -> 5 | O103: =SUM('I_Asset number input'!K103:O103) -> 5 | P103: 16 | Q103: 66.91075374
B104: 125W MBF | C104: Capital - Traditional Luminaire | D104: 26.09404348 | E104: 26.84415806 | F104: 27.61583587 | G104: 28.40969677 | H104: 29.22637847 | J104: Traditional | K104: Minor (Cat P) | L104: Legacy Luminaire - 125W MBF | M104: =INDEX(O104:Q104,,$M$3) -> 0 | O104: =SUM('I_Asset number input'!K104:O104) -> 0 | P104: 1896 | Q104: 0
B105: 125W MBF - BOURKE HILL | C105: Capital - Traditional Luminaire | D105: 80.65131534 | E105: 82.96976504 | F105: 85.35486224 | G105: 87.80852284 | H105: 90.3327178 | J105: Traditional | K105: Minor (Cat P) | L105: Legacy Luminaire - 125W MBF - BOURKE HILL | M105: =INDEX(O105:Q105,,$M$3) -> 72.5 | O105: =SUM('I_Asset number input'!K105:O105) -> 72.5 | P105: 16 | Q105: 1238.639831
B106: 125W MBF - PARKVILLE | C106: Capital - Traditional Luminaire | D106: 101.5423178 | E106: 104.4613124 | F106: 107.4642181 | G106: 110.5534471 | H106: 113.7314809 | J106: Traditional | K106: Minor (Cat P) | L106: Legacy Luminaire - 125W MBF - PARKVILLE | M106: =INDEX(O106:Q106,,$M$3) -> 20 | O106: =SUM('I_Asset number input'!K106:O106) -> 20 | P106: 32 | Q106: 430.2022211
B107: 125W MBF - PLAIN | C107: Capital - Traditional Luminaire | D107: 26.09404348 | E107: 26.84415806 | F107: 27.61583587 | G107: 28.40969677 | H107: 29.22637847 | J107: Traditional | K107: Minor (Cat P) | L107: Legacy Luminaire - 125W MBF - PLAIN | M107: =INDEX(O107:Q107,,$M$3) -> 915 | O107: =SUM('I_Asset number input'!K107:O107) -> 915 | P107: 1528 | Q107: 5057.758123
B108: 125W/250W MBF FLOODLIGHT | C108: Capital - Traditional Luminaire | D108: 36.02313249 | E108: 37.05867444 | F108: 38.12398469 | G108: 39.21991896 | H108: 40.34735761 | J108: Traditional | K108: Minor (Cat P) | L108: Legacy Luminaire - 125W/250W MBF FLOODLIGHT | M108: =INDEX(O108:Q108,,$M$3) -> 25 | O108: =SUM('I_Asset number input'!K108:O108) -> 25 | P108: 72 | Q108: 190.7730682
B109: 150W SON | C109: Capital - Traditional Luminaire | D109: 43.36020997 | E109: 44.60666783 | F109: 45.88895709 | G109: 47.20810778 | H109: 48.56517955 | J109: Traditional | K109: Major (Cat V) | L109: Legacy Luminaire - 150W SON | M109: =INDEX(O109:Q109,,$M$3) -> 5170 | O109: =SUM('I_Asset number input'!K109:O109) -> 5170 | P109: 60400 | Q109: 47487.30247
B110: 150W SON - PARKVILLE | C110: Capital - Traditional Luminaire | D110: 117.0669266 | E110: 120.4322007 | F110: 123.8942149 | G110: 127.4557502 | H110: 131.1196674 | J110: Traditional | K110: Major (Cat V) | L110: Legacy Luminaire - 150W SON - PARKVILLE | M110: =INDEX(O110:Q110,,$M$3) -> 75 | O110: =SUM('I_Asset number input'!K110:O110) -> 75 | P110: 112 | Q110: 1859.90628
B111: 150W SON - PARKWAY 1 | C111: Capital - Traditional Luminaire | D111: 51.72199323 | E111: 53.20882378 | F111: 54.73839563 | G111: 56.31193744 | H111: 57.9307132 | J111: Traditional | K111: Major (Cat V) | L111: Legacy Luminaire - 150W SON - PARKWAY 1 | M111: =INDEX(O111:Q111,,$M$3) -> 37.33333333 | O111: =SUM('I_Asset number input'!K111:O111) -> 37.33333333 | P111: 424 | Q111: 409.0417158
B112: 150W SON ACTIVE REACTOR | C112: Capital - Traditional Luminaire | D112: 63.73604964 | E112: 65.56824326 | F112: 67.45310618 | G112: 69.39215247 | H112: 71.38693971 | J112: Traditional | K112: Major (Cat V) | L112: Legacy Luminaire - 150W SON ACTIVE REACTOR | M112: =INDEX(O112:Q112,,$M$3) -> 1924.666667 | O112: =SUM('I_Asset number input'!K112:O112) -> 1924.666667 | P112: 21016 | Q112: 25985.80934
B113: 150W SON FLOODLIGHT | C113: Capital - Traditional Luminaire | D113: 50.76086872 | E113: 52.22007022 | F113: 53.72121879 | G113: 55.26552024 | H113: 56.85421508 | J113: Traditional | K113: Major (Cat V) | L113: Legacy Luminaire - 150W SON FLOODLIGHT | M113: =INDEX(O113:Q113,,$M$3) -> 625 | O113: =SUM('I_Asset number input'!K113:O113) -> 625 | P113: 1488 | Q113: 6720.547326
B114: 150W/250W MBI FLOODLIGHT | C114: Capital - Traditional Luminaire | D114: 77.94531444 | E114: 80.18597586 | F114: 82.49104864 | G114: 84.86238439 | H114: 87.30188793 | J114: Traditional | K114: Major (Cat V) | L114: Legacy Luminaire - 150W/250W MBI FLOODLIGHT | M114: =INDEX(O114:Q114,,$M$3) -> 100 | O114: =SUM('I_Asset number input'!K114:O114) -> 100 | P114: 288 | Q114: 1651.146445
B115: 250W MBF | C115: Capital - Traditional Luminaire | D115: 42.59131036 | E115: 43.81566498 | F115: 45.07521561 | G115: 46.37097402 | H115: 47.70398106 | J115: Traditional | K115: Major (Cat V) | L115: Legacy Luminaire - 250W MBF | M115: =INDEX(O115:Q115,,$M$3) -> 794 | O115: =SUM('I_Asset number input'!K115:O115) -> 794 | P115: 9040 | Q115: 7163.694958
B116: 250W MBF - PARKWAY 1 | C116: Capital - Traditional Luminaire | D116: 51.72199323 | E116: 53.20882378 | F116: 54.73839563 | G116: 56.31193744 | H116: 57.9307132 | J116: Traditional | K116: Major (Cat V) | L116: Legacy Luminaire - 250W MBF - PARKWAY 1 | M116: =INDEX(O116:Q116,,$M$3) -> 86 | O116: =SUM('I_Asset number input'!K116:O116) -> 86 | P116: 1032 | Q116: 942.2568097
B117: 250W SON | C117: Capital - Traditional Luminaire | D117: 43.36020997 | E117: 44.60666783 | F117: 45.88895709 | G117: 47.20810778 | H117: 48.56517955 | J117: Traditional | K117: Major (Cat V) | L117: Legacy Luminaire - 250W SON | M117: =INDEX(O117:Q117,,$M$3) -> 5995.333333 | O117: =SUM('I_Asset number input'!K117:O117) -> 5995.333333 | P117: 62872 | Q117: 55068.12523
B118: 250W SON - PARKVILLE | C118: Capital - Traditional Luminaire | D118: 126.4398129 | E118: 130.0745254 | F118: 133.8137235 | G118: 137.6604107 | H118: 141.6176771 | J118: Traditional | K118: Major (Cat V) | L118: Legacy Luminaire - 250W SON - PARKVILLE | M118: =INDEX(O118:Q118,,$M$3) -> 55 | O118: =SUM('I_Asset number input'!K118:O118) -> 55 | P118: 48 | Q118: 1473.133529
B119: 250W SON - PARKWAY 1 | C119: Capital - Traditional Luminaire | D119: 51.72199323 | E119: 53.20882378 | F119: 54.73839563 | G119: 56.31193744 | H119: 57.9307132 | J119: Traditional | K119: Major (Cat V) | L119: Legacy Luminaire - 250W SON - PARKWAY 1 | M119: =INDEX(O119:Q119,,$M$3) -> 185 | O119: =SUM('I_Asset number input'!K119:O119) -> 185 | P119: 280 | Q119: 2026.947788
B120: 250W SON ACTIVE REACTOR | C120: Capital - Traditional Luminaire | D120: 63.73604964 | E120: 65.56824326 | F120: 67.45310618 | G120: 69.39215247 | H120: 71.38693971 | J120: Traditional | K120: Major (Cat V) | L120: Legacy Luminaire - 250W SON ACTIVE REACTOR | M120: =INDEX(O120:Q120,,$M$3) -> 2546 | O120: =SUM('I_Asset number input'!K120:O120) -> 2546 | P120: 25160 | Q120: 34374.71627
B121: 250W SON FLOODLIGHT | C121: Capital - Traditional Luminaire | D121: 50.76086872 | E121: 52.22007022 | F121: 53.72121879 | G121: 55.26552024 | H121: 56.85421508 | J121: Traditional | K121: Major (Cat V) | L121: Legacy Luminaire - 250W SON FLOODLIGHT | M121: =INDEX(O121:Q121,,$M$3) -> 2652.5 | O121: =SUM('I_Asset number input'!K121:O121) -> 2652.5 | P121: 7184 | Q121: 28522.00285
B122: 250W SON GEC 'BOSTON 3' | C122: Capital - Traditional Luminaire | D122: 109.0184699 | E122: 112.1523784 | F122: 115.376376 | G122: 118.6930525 | H122: 122.1050722 | J122: Traditional | K122: Major (Cat V) | L122: Legacy Luminaire - 250W SON GEC 'BOSTON 3' | M122: =INDEX(O122:Q122,,$M$3) -> 35 | O122: =SUM('I_Asset number input'!K122:O122) -> 35 | P122: 24 | Q122: 808.2834887
B123: 2X14W TF - T5 PIERLIGHT | C123: Capital - Traditional Luminaire | D123: 34.14346128 | E123: 35.12496911 | F123: 36.13469194 | G123: 37.17344084 | H123: 38.24205023 | J123: Traditional | K123: Minor (Cat P) | L123: Legacy Luminaire - 2X14W TF - T5 PIERLIGHT | M123: =INDEX(O123:Q123,,$M$3) -> 0 | O123: =SUM('I_Asset number input'!K123:O123) -> 0 | P123: 0 | Q123: 0
B124: 2x14W TF - T5 PIERLITE M | C124: Capital - Traditional Luminaire | D124: 34.14346128 | E124: 35.12496911 | F124: 36.13469194 | G124: 37.17344084 | H124: 38.24205023 | J124: Traditional | K124: Minor (Cat P) | L124: Legacy Luminaire - 2x14W TF - T5 PIERLITE M | M124: =INDEX(O124:Q124,,$M$3) -> 0 | O124: =SUM('I_Asset number input'!K124:O124) -> 0 | P124: 16 | Q124: 0
B125: 2x250W SON FLOODLIGHT | C125: Capital - Traditional Luminaire | D125: 71.42504575 | E125: 73.47827172 | F125: 75.59052093 | G125: 77.76349009 | H125: 79.99892468 | J125: Traditional | K125: Major (Cat V) | L125: Legacy Luminaire - 2x250W SON FLOODLIGHT | M125: =INDEX(O125:Q125,,$M$3) -> 4.666666667 | O125: =SUM('I_Asset number input'!K125:O125) -> 4.666666667 | P125: 40 | Q125: 70.60783393
B126: 2x400W SON FLOODLIGHT | C126: Capital - Traditional Luminaire | D126: 142.434847 | E126: 146.5293621 | F126: 150.7415805 | G126: 155.0748858 | H126: 159.5327588 | J126: Traditional | K126: Major (Cat V) | L126: Legacy Luminaire - 2x400W SON FLOODLIGHT | M126: =INDEX(O126:Q126,,$M$3) -> 5.333333333 | O126: =SUM('I_Asset number input'!K126:O126) -> 5.333333333 | P126: 48 | Q126: 160.9201993
B127: 2x80W MBF - BOURKE HILL | C127: Capital - Traditional Luminaire | D127: 70.30577108 | E127: 72.32682174 | F127: 74.40597069 | G127: 76.54488808 | H127: 78.74529202 | J127: Traditional | K127: Minor (Cat P) | L127: Legacy Luminaire - 2x80W MBF - BOURKE HILL | M127: =INDEX(O127:Q127,,$M$3) -> 2.666666667 | O127: =SUM('I_Asset number input'!K127:O127) -> 2.666666667 | P127: 32 | Q127: 39.71506599
B128: 400W MBF | C128: Capital - Traditional Luminaire | D128: 34.10458091 | E128: 35.08497106 | F128: 36.09354408 | G128: 37.13111013 | H128: 38.19850265 | J128: Traditional | K128: Major (Cat V) | L128: Legacy Luminaire - 400W MBF | M128: =INDEX(O128:Q128,,$M$3) -> 329.3333333 | O128: =SUM('I_Asset number input'!K128:O128) -> 329.3333333 | P128: 3800 | Q128: 2379.271418
B129: 400W MBF - B2229 | C129: Capital - Traditional Luminaire | D129: 34.10458091 | E129: 35.08497106 | F129: 36.09354408 | G129: 37.13111013 | H129: 38.19850265 | J129: Traditional | K129: Major (Cat V) | L129: Legacy Luminaire - 400W MBF - B2229 | M129: =INDEX(O129:Q129,,$M$3) -> 56.66666667 | O129: =SUM('I_Asset number input'!K129:O129) -> 56.66666667 | P129: 664 | Q129: 409.3888067
B130: 400W MBF - PARKWAY 1 | C130: Capital - Traditional Luminaire | D130: 68.47954216 | E130: 70.44809498 | F130: 72.47323696 | G130: 74.55659485 | H130: 76.69984217 | J130: Traditional | K130: Major (Cat V) | L130: Legacy Luminaire - 400W MBF - PARKWAY 1 | M130: =INDEX(O130:Q130,,$M$3) -> 48.66666667 | O130: =SUM('I_Asset number input'!K130:O130) -> 48.66666667 | P130: 544 | Q130: 705.972899
B131: 400W MBF FLOODLIGHT | C131: Capital - Traditional Luminaire | D131: 75.19871555 | E131: 77.36042164 | F131: 79.58426939 | G131: 81.87204516 | H131: 84.22558667 | J131: Traditional | K131: Major (Cat V) | L131: Legacy Luminaire - 400W MBF FLOODLIGHT | M131: =INDEX(O131:Q131,,$M$3) -> 70 | O131: =SUM('I_Asset number input'!K131:O131) -> 70 | P131: 176 | Q131: 1115.074908
B132: 400W MBI FLOODLIGHT | C132: Capital - Traditional Luminaire | D132: 59.19954194 | E132: 60.90132646 | F132: 62.65203148 | G132: 64.45306328 | H132: 66.30586858 | J132: Traditional | K132: Major (Cat V) | L132: Legacy Luminaire - 400W MBI FLOODLIGHT | M132: =INDEX(O132:Q132,,$M$3) -> 132.5 | O132: =SUM('I_Asset number input'!K132:O132) -> 132.5 | P132: 432 | Q132: 1661.612708
B133: 400W SON | C133: Capital - Traditional Luminaire | D133: 47.10859557 | E133: 48.4628067 | F133: 49.85594678 | G133: 51.28913487 | H133: 52.76352222 | J133: Traditional | K133: Major (Cat V) | L133: Legacy Luminaire - 400W SON | M133: =INDEX(O133:Q133,,$M$3) -> 447.3333333 | O133: =SUM('I_Asset number input'!K133:O133) -> 447.3333333 | P133: 3952 | Q133: 4464.02891
B134: 400W SON - PARKWAY 1 | C134: Capital - Traditional Luminaire | D134: 51.72199323 | E134: 53.20882378 | F134: 54.73839563 | G134: 56.31193744 | H134: 57.9307132 | J134: Traditional | K134: Major (Cat V) | L134: Legacy Luminaire - 400W SON - PARKWAY 1 | M134: =INDEX(O134:Q134,,$M$3) -> 3.333333333 | O134: =SUM('I_Asset number input'!K134:O134) -> 3.333333333 | P134: 40 | Q134: =+O134/5*AVERAGE(D134,E134,F134,G134,H134) -> 36.52158177
B135: 400W SON ACTIVE REACTOR | C135: Capital - Traditional Luminaire | D135: 71.42504575 | E135: 73.47827172 | F135: 75.59052093 | G135: 77.76349009 | H135: 79.99892468 | J135: Traditional | K135: Major (Cat V) | L135: Legacy Luminaire - 400W SON ACTIVE REACTOR | M135: =INDEX(O135:Q135,,$M$3) -> 268.6666667 | O135: =SUM('I_Asset number input'!K135:O135) -> 268.6666667 | P135: 1528 | Q135: 4064.993867
B136: 400W SON FLOODLIGHT | C136: Capital - Traditional Luminaire | D136: 50.76086872 | E136: 52.22007022 | F136: 53.72121879 | G136: 55.26552024 | H136: 56.85421508 | J136: Traditional | K136: Major (Cat V) | L136: Legacy Luminaire - 400W SON FLOODLIGHT | M136: =INDEX(O136:Q136,,$M$3) -> 877.5 | O136: =SUM('I_Asset number input'!K136:O136) -> 877.5 | P136: 2248 | Q136: 9435.648446
B137: 42W MBF SYLVANIA SUB ECO | C137: Capital - Traditional Luminaire | D137: 31.3802283 | E137: 32.28230263 | F137: 33.21030851 | G137: 34.16499139 | H137: 35.14711813 | J137: Traditional | K137: Minor (Cat P) | L137: Legacy Luminaire - 42W MBF SYLVANIA SUB ECO | M137: =INDEX(O137:Q137,,$M$3) -> 0 | O137: =SUM('I_Asset number input'!K137:O137) -> 0 | P137: 193272 | Q137: 0
B138: 4x250W SON | C138: Capital - Traditional Luminaire | D138: 80.3904152 | E138: 82.70136492 | F138: 85.07874653 | G138: 87.52446975 | H138: 90.04049915 | J138: Traditional | K138: Major (Cat V) | L138: Legacy Luminaire - 4x250W SON | M138: =INDEX(O138:Q138,,$M$3) -> 0 | O138: =SUM('I_Asset number input'!K138:O138) -> 0 | P138: 0 | Q138: 0
B139: 4x600W SON | C139: Capital - Traditional Luminaire | D139: 122.3646449 | E139: 125.8822103 | F139: 129.5008937 | G139: 133.2236018 | H139: 137.0533251 | J139: Traditional | K139: Major (Cat V) | L139: Legacy Luminaire - 4x600W SON | M139: =INDEX(O139:Q139,,$M$3) -> 7.5 | O139: =SUM('I_Asset number input'!K139:O139) -> 7.5 | P139: 24 | Q139: 194.4074027
B140: 50W MBF | C140: Capital - Traditional Luminaire | D140: 23.6912322 | E140: 24.37227416 | F140: 25.07289376 | G140: 25.79365377 | H140: 26.53513317 | J140: Traditional | K140: Minor (Cat P) | L140: Legacy Luminaire - 50W MBF | M140: =INDEX(O140:Q140,,$M$3) -> 0 | O140: =SUM('I_Asset number input'!K140:O140) -> 0 | P140: 1208 | Q140: 0
B141: 50W MBF - BOURKE HILL | C141: Capital - Traditional Luminaire | D141: 70.30577108 | E141: 72.32682174 | F141: 74.40597069 | G141: 76.54488808 | H141: 78.74529202 | J141: Traditional | K141: Minor (Cat P) | L141: Legacy Luminaire - 50W MBF - BOURKE HILL | M141: =INDEX(O141:Q141,,$M$3) -> 40 | O141: =SUM('I_Asset number input'!K141:O141) -> 40 | P141: 8 | Q141: 595.7259898
B142: 50W MBF - NOSTALGIA | C142: Capital - Traditional Luminaire | D142: 70.30577108 | E142: 72.32682174 | F142: 74.40597069 | G142: 76.54488808 | H142: 78.74529202 | J142: Traditional | K142: Minor (Cat P) | L142: Legacy Luminaire - 50W MBF - NOSTALGIA | M142: =INDEX(O142:Q142,,$M$3) -> 0 | O142: =SUM('I_Asset number input'!K142:O142) -> 0 | P142: 392 | Q142: 0
B143: 50W MBF - PLAIN | C143: Capital - Traditional Luminaire | D143: 23.6912322 | E143: 24.37227416 | F143: 25.07289376 | G143: 25.79365377 | H143: 26.53513317 | J143: Traditional | K143: Minor (Cat P) | L143: Legacy Luminaire - 50W MBF - PLAIN | M143: =INDEX(O143:Q143,,$M$3) -> 290 | O143: =SUM('I_Asset number input'!K143:O143) -> 290 | P143: 536 | Q143: 1455.39617
B144: 50W SON | C144: Capital - Traditional Luminaire | D144: 22.92233259 | E144: 23.58127132 | F144: 24.25915228 | G144: 24.95652001 | H144: 25.67393467 | J144: Traditional | K144: Minor (Cat P) | L144: Legacy Luminaire - 50W SON | M144: =INDEX(O144:Q144,,$M$3) -> 0 | O144: =SUM('I_Asset number input'!K144:O144) -> 0 | P144: 16 | Q144: 0
B145: 50W SON - NOSTALGIA | C145: Capital - Traditional Luminaire | D145: 35.70528861 | E145: 36.73169364 | F145: 37.78760431 | G145: 38.8738688 | H145: 39.99135968 | J145: Traditional | K145: Minor (Cat P) | L145: Legacy Luminaire - 50W SON - NOSTALGIA | M145: =INDEX(O145:Q145,,$M$3) -> 0 | O145: =SUM('I_Asset number input'!K145:O145) -> 0 | P145: 16 | Q145: 0
B146: 50W SON - PLAIN | C146: Capital - Traditional Luminaire | D146: 22.92233259 | E146: 23.58127132 | F146: 24.25915228 | G146: 24.95652001 | H146: 25.67393467 | J146: Traditional | K146: Minor (Cat P) | L146: Legacy Luminaire - 50W SON - PLAIN | M146: =INDEX(O146:Q146,,$M$3) -> 0 | O146: =SUM('I_Asset number input'!K146:O146) -> 0 | P146: 8 | Q146: 0
B147: 70W MBI | C147: =C146 -> Capital - Traditional Luminaire | D147: 29.60983695 | E147: 30.46101858 | F147: 31.33666876 | G147: 32.2374909 | H147: 33.16420859 | J147: Traditional | K147: Minor (Cat P) | L147: Legacy Luminaire - 70W MBI | M147: =INDEX(O147:Q147,,$M$3) -> 0 | O147: =SUM('I_Asset number input'!K147:O147) -> 0 | P147: 384 | Q147: 0
B148: 70W MBI - MACQUARIE DEC. | C148: Capital - Traditional Luminaire | D148: 114.1695716 | E148: 117.4515566 | F148: 120.8278875 | G148: 124.3012764 | H148: 127.8745133 | J148: Traditional | K148: Minor (Cat P) | L148: Legacy Luminaire - 70W MBI - MACQUARIE DEC. | M148: =INDEX(O148:Q148,,$M$3) -> 25 | O148: =SUM('I_Asset number input'!K148:O148) -> 25 | P148: 48 | Q148: 604.6248053
B149: 70W MBI II | C149: Capital - Traditional Luminaire | D149: 26.09404348 | E149: 26.84415806 | F149: 27.61583587 | G149: 28.40969677 | H149: 29.22637847 | J149: Traditional | K149: Minor (Cat P) | L149: Legacy Luminaire - 70W MBI II | M149: =INDEX(O149:Q149,,$M$3) -> 0 | O149: =SUM('I_Asset number input'!K149:O149) -> 0 | P149: 520 | Q149: 0
B150: 70W MBI II AERO | C150: Capital - Traditional Luminaire | D150: 27.055168 | E150: 27.83291162 | F150: 28.63301271 | G150: 29.45611398 | H150: 30.30287659 | J150: Traditional | K150: Minor (Cat P) | L150: Legacy Luminaire - 70W MBI II AERO | M150: =INDEX(O150:Q150,,$M$3) -> 0 | O150: =SUM('I_Asset number input'!K150:O150) -> 0 | P150: 24 | Q150: 0
B151: 70W SON | C151: Capital - Traditional Luminaire | D151: 25.99793103 | E151: 26.7452827 | F151: 27.51411818 | G151: 28.30505505 | H151: 29.11872866 | J151: Traditional | K151: Minor (Cat P) | L151: Legacy Luminaire - 70W SON | M151: =INDEX(O151:Q151,,$M$3) -> 0 | O151: =SUM('I_Asset number input'!K151:O151) -> 0 | P151: 1144 | Q151: 0
B152: 70W SON - BOURKE HILL | C152: Capital - Traditional Luminaire | D152: 78.61373137 | E152: 80.87360749 | F152: 83.19844733 | G152: 85.59011837 | H152: 88.05054178 | J152: Traditional | K152: Minor (Cat P) | L152: Legacy Luminaire - 70W SON - BOURKE HILL | M152: =INDEX(O152:Q152,,$M$3) -> 5 | O152: =SUM('I_Asset number input'!K152:O152) -> 5 | P152: 16 | Q152: 83.26528927
B153: 70W SON - NOSTALGIA | C153: Capital - Traditional Luminaire | D153: 73.31601305 | E153: 75.42359788 | F153: 77.59176857 | G153: 79.82226675 | H153: 82.11688414 | J153: Traditional | K153: Minor (Cat P) | L153: Legacy Luminaire - 70W SON - NOSTALGIA | M153: =INDEX(O153:Q153,,$M$3) -> 345 | O153: =SUM('I_Asset number input'!K153:O153) -> 345 | P153: 480 | Q153: 5358.133319
B154: 70W SON - PARKVILLE | C154: Capital - Traditional Luminaire | D154: 91.93107262 | E154: 94.5737768 | F154: 97.29244968 | G154: 100.0892751 | H154: 102.9664997 | J154: Traditional | K154: Minor (Cat P) | L154: Legacy Luminaire - 70W SON - PARKVILLE | M154: =INDEX(O154:Q154,,$M$3) -> 30 | O154: =SUM('I_Asset number input'!K154:O154) -> 30 | P154: 40 | Q154: 584.2236888
B155: 70W SON - PLAIN | C155: Capital - Traditional Luminaire | D155: 25.99793103 | E155: 26.7452827 | F155: 27.51411818 | G155: 28.30505505 | H155: 29.11872866 | J155: Traditional | K155: Minor (Cat P) | L155: Legacy Luminaire - 70W SON - PLAIN | M155: =INDEX(O155:Q155,,$M$3) -> 160 | O155: =SUM('I_Asset number input'!K155:O155) -> 160 | P155: 272 | Q155: 881.15914
B156: 70W SON BOLLARD | C156: Capital - Traditional Luminaire | D156: 55.99654933 | E156: 57.60625876 | F156: 59.26224184 | G156: 60.96582877 | H156: 62.718388 | J156: Traditional | K156: Minor (Cat P) | L156: Legacy Luminaire - 70W SON BOLLARD | M156: =INDEX(O156:Q156,,$M$3) -> 5 | O156: =SUM('I_Asset number input'!K156:O156) -> 5 | P156: 8 | Q156: 59.30985334
B157: 70W SON FLOODLIGHT | C157: Capital - Traditional Luminaire | D157: 31.32650144 | E157: 32.22703131 | F157: 33.15344832 | G157: 34.10649666 | H157: 35.08694189 | J157: Traditional | K157: Minor (Cat P) | L157: Legacy Luminaire - 70W SON FLOODLIGHT | M157: =INDEX(O157:Q157,,$M$3) -> 52.5 | O157: =SUM('I_Asset number input'!K157:O157) -> 52.5 | P157: 168 | Q157: 348.3908812
B158: 80W MBF - BEGA+CURVE BRA | C158: Capital - Traditional Luminaire | D158: 114.7808468 | E158: 118.0804039 | F158: 121.474812 | G158: 124.9667977 | H158: 128.5591661 | J158: Traditional | K158: Minor (Cat P) | L158: Legacy Luminaire - 80W MBF - BEGA+CURVE BRA | M158: =INDEX(O158:Q158,,$M$3) -> 150 | O158: =SUM('I_Asset number input'!K158:O158) -> 150 | P158: 64 | Q158: 3647.172158
B159: 80W MBF - BOURKE HILL | C159: Capital - Traditional Luminaire | D159: 53.85708616 | E159: 55.40529334 | F159: 56.99800618 | G159: 58.63650408 | H159: 60.32210319 | J159: Traditional | K159: Minor (Cat P) | L159: Legacy Luminaire - 80W MBF - BOURKE HILL | M159: =INDEX(O159:Q159,,$M$3) -> 1445 | O159: =SUM('I_Asset number input'!K159:O159) -> 1445 | P159: 1744 | Q159: 16485.65779
B160: 80W MBF - NOSTALGIA | C160: Capital - Traditional Luminaire | D160: 69.13896592 | E160: 71.12647492 | F160: 73.171118 | G160: 75.27453759 | H160: 77.43842331 | J160: Traditional | K160: Minor (Cat P) | L160: Legacy Luminaire - 80W MBF - NOSTALGIA | M160: =INDEX(O160:Q160,,$M$3) -> 0 | O160: =SUM('I_Asset number input'!K160:O160) -> 0 | P160: 760 | Q160: 0
B161: 80W MBF - PLAIN | C161: Capital - Traditional Luminaire | D161: 22.59555026 | E161: 23.24509511 | F161: 23.91331215 | G161: 24.60073816 | H161: 25.30792531 | J161: Traditional | K161: Minor (Cat P) | L161: Legacy Luminaire - 80W MBF - PLAIN | M161: =INDEX(O161:Q161,,$M$3) -> 815 | O161: =SUM('I_Asset number input'!K161:O161) -> 815 | P161: 12048 | Q161: 3901.001444
B162: 80W MBF - REGAL/FLINDERS | C162: Capital - Traditional Luminaire | D162: 125.0706458 | E162: 128.6659995 | F162: 132.3647073 | G162: 136.1697403 | H162: 140.0841549 | J162: Traditional | K162: Minor (Cat P) | L162: Legacy Luminaire - 80W MBF - REGAL/FLINDERS | M162: =INDEX(O162:Q162,,$M$3) -> 85 | O162: =SUM('I_Asset number input'!K162:O162) -> 85 | P162: 112 | Q162: 2252.007842
B163: 80W MBF BOLLARD | C163: Capital - Traditional Luminaire | D163: 44.58607911 | E163: 45.86777652 | F163: 47.18631835 | G163: 48.54276374 | H163: 49.93820231 | J163: Traditional | K163: Minor (Cat P) | L163: Legacy Luminaire - 80W MBF BOLLARD | M163: =INDEX(O163:Q163,,$M$3) -> 215 | O163: =SUM('I_Asset number input'!K163:O163) -> 215 | P163: 32 | Q163: 2030.641804
B164: 80W MBF TOORAK | C164: Capital - Traditional Luminaire | D164: 63.09733723 | E164: 64.91117005 | F164: 66.77714436 | G164: 68.69675906 | H164: 70.67155612 | J164: Traditional | K164: Minor (Cat P) | L164: Legacy Luminaire - 80W MBF TOORAK | M164: =INDEX(O164:Q164,,$M$3) -> 330 | O164: =SUM('I_Asset number input'!K164:O164) -> 330 | P164: 104 | Q164: 4410.832362
B165: TH FLOODLIGHT | C165: Capital - Traditional Luminaire | D165: 128.2736384 | E165: 131.9610672 | F165: 135.7544969 | G165: 139.6569748 | H165: 143.6716355 | J165: Traditional | K165: Major (Cat V) | L165: Legacy Luminaire - TH FLOODLIGHT | M165: =INDEX(O165:Q165,,$M$3) -> 27.5 | O165: =SUM('I_Asset number input'!K165:O165) -> 27.5 | P165: 88 | Q165: 747.2495941
B166: 10W LED PH RRW | C166: Capital - LED Luminaire | D166: 54.93115126 | E166: 56.51023414 | F166: 58.13471026 | G166: 59.80588451 | H166: 61.52509931 | J166: LED | K166: Minor (Cat P) | L166: Philips minor road RRW | M166: =INDEX(O166:Q166,,$M$3) -> 5 | O166: =SUM('I_Asset number input'!K166:O166) -> 5 | P166: 0 | Q166: 58.1814159
B167: 16W LED PH | C167: Capital - LED Luminaire | D167: 55.08158237 | E167: 56.66498962 | F167: 58.29391443 | G167: 59.96966526 | H167: 61.69358819 | J167: LED | K167: Minor (Cat P) | L167: Philips minor road | M167: =INDEX(O167:Q167,,$M$3) -> 985 | O167: =SUM('I_Asset number input'!K167:O167) -> 985 | P167: 896 | Q167: 11493.12735
B168: 17W LED ALD | C168: Capital - LED Luminaire | D168: 51.10418403 | E168: 52.57325467 | F168: 54.08455608 | G168: 55.63930224 | H168: 57.23874204 | J168: LED | K168: Minor (Cat P) | L168: Aldridge minor road | M168: =INDEX(O168:Q168,,$M$3) -> 60485 | O168: =SUM('I_Asset number input'!K168:O168) -> 60485 | P168: 204624 | Q168: 654786.5105
B169: 17W LED ALD RRW | C169: Capital - LED Luminaire | D169: 51.10418403 | E169: 52.57325467 | F169: 54.08455608 | G169: 55.63930224 | H169: 57.23874204 | J169: LED | K169: Minor (Cat P) | L169: Aldridge minor road RRW | M169: =INDEX(O169:Q169,,$M$3) -> 3525 | O169: =SUM('I_Asset number input'!K169:O169) -> 3525 | P169: 4856 | Q169: 38160.24551
B170: 17W LED ALD RRW ZHAGA | C170: Capital - LED Luminaire | D170: 53.802918 | E170: 55.34956803 | F170: 56.94067896 | G170: 58.57752889 | H170: 60.26143266 | J170: LED | K170: Minor (Cat P) | L170: Aldridge minor road RRW ZHAGA | M170: =INDEX(O170:Q170,,$M$3) -> 3480 | O170: =SUM('I_Asset number input'!K170:O170) -> 3480 | P170: 0 | Q170: 39662.55201
B171: 17W LED ALD ZHAGA | C171: Capital - LED Luminaire | D171: 53.802918 | E171: 55.34956803 | F171: 56.94067896 | G171: 58.57752889 | H171: 60.26143266 | J171: LED | K171: Minor (Cat P) | L171: Aldridge minor road ZHAGA | M171: =INDEX(O171:Q171,,$M$3) -> 195465 | O171: =SUM('I_Asset number input'!K171:O171) -> 195465 | P171: 0 | Q171: 2227770.324
B172: 17W LED SY RRW | C172: Capital - LED Luminaire | D172: 67.0098847 | E172: 68.93618988 | F172: 70.91786976 | G172: 72.95651616 | H172: 75.05376668 | J172: LED | K172: Minor (Cat P) | L172: 17W LED SY RRW | M172: =INDEX(O172:Q172,,$M$3) -> 12565 | O172: =SUM('I_Asset number input'!K172:O172) -> 12565 | P172: 20088 | Q172: 178359.7866
B173: 1x17W LED | C173: Capital - LED Luminaire | D173: 63.16356781 | E173: 64.97930453 | F173: 66.84723747 | G173: 68.7688671 | H173: 70.74573702 | J173: LED | K173: Minor (Cat P) | L173: 1x17W LED | M173: =INDEX(O173:Q173,,$M$3) -> 95490.13909 | O173: =SUM('I_Asset number input'!K173:O173) -> 95490.13909 | P173: 45040 | Q173: 1277676.066
B174: 20W LED GE | C174: Capital - LED Luminaire | D174: 56.27225004 | E174: 57.88988493 | F174: 59.55402129 | G174: 61.26599588 | H174: 63.02718389 | J174: LED | K174: Minor (Cat P) | L174: 20W LED GE | M174: =INDEX(O174:Q174,,$M$3) -> 223.2292886 | O174: =SUM('I_Asset number input'!K174:O174) -> 223.2292886 | P174: 392 | Q174: 2660.976483
B175: 1x22W LED | C175: Capital - LED Luminaire | D175: 65.56751586 | E175: 67.45235787 | F175: 69.39138265 | G175: 71.38614777 | H175: 73.43825556 | J175: LED | K175: Minor (Cat P) | L175: 1x22W LED | M175: =INDEX(O175:Q175,,$M$3) -> 28375.36095 | O175: =SUM('I_Asset number input'!K175:O175) -> 28375.36095 | P175: 96776 | Q175: 394117.4872
B176: 1x25W LED GE | C176: Capital - LED Luminaire | D176: 56.27225004 | E176: 57.88988493 | F176: 59.55402129 | G176: 61.26599588 | H176: 63.02718389 | J176: LED | K176: Minor (Cat P) | L176: 1x25W LED GE | M176: =INDEX(O176:Q176,,$M$3) -> 12330.26196 | O176: =SUM('I_Asset number input'!K176:O176) -> 12330.26196 | P176: 32944 | Q176: 146981.3272
B177: 25W LED PH | C177: Capital - LED Luminaire | D177: 55.23201347 | E177: 56.81974511 | F177: 58.4531186 | G177: 60.13344601 | H177: 61.86207708 | J177: LED | K177: Minor (Cat P) | L177: Philips minor road high | M177: =INDEX(O177:Q177,,$M$3) -> 4200 | O177: =SUM('I_Asset number input'!K177:O177) -> 4200 | P177: 1840 | Q177: 49140.06724
B178: 28W LED SY | C178: Capital - LED Luminaire | D178: 69.89462236 | E178: 71.9038539 | F178: 73.97084398 | G178: 76.09725295 | H178: 78.28478892 | J178: LED | K178: Minor (Cat P) | L178: 28W LED SY | M178: =INDEX(O178:Q178,,$M$3) -> 4894.559844 | O178: =SUM('I_Asset number input'!K178:O178) -> 4894.559844 | P178: 6344 | Q178: 72469.11973
B179: 1x29W LED | C179: Capital - LED Luminaire | D179: 40.92277845 | E179: 42.09916848 | F179: 43.3093757 | G179: 44.55437225 | H179: 45.83515819 | J179: LED20 | K179: Minor (Cat P) | L179: 1x29W LED | M179: =INDEX(O179:Q179,,$M$3) -> 65825 | O179: =SUM('I_Asset number input'!K179:O179) -> 65825 | P179: 105648 | Q179: 570626.0061
B180: 33W LED LRL | C180: Capital - LED Luminaire | D180: 76.46541372 | E180: 78.66353305 | F180: 80.9248408 | G180: 83.25115343 | H180: 85.64433959 | J180: LED | K180: Minor (Cat P) | L180: 33W LED LRL | M180: =INDEX(O180:Q180,,$M$3) -> 14.5025 | O180: =SUM('I_Asset number input'!K180:O180) -> 14.5025 | P180: 24 | Q180: 234.9110777
B181: 34W LED BOURKE HILL | C181: Capital - LED Luminaire | D181: 156.6225763 | E181: 161.1249401 | F181: 165.7567315 | G181: 170.5216711 | H181: 175.4235864 | J181: LED | K181: Minor (Cat P) | L181: Bourke Hill Decorative | M181: =INDEX(O181:Q181,,$M$3) -> 235 | O181: =SUM('I_Asset number input'!K181:O181) -> 235 | P181: 328 | Q181: 7796.825351
B182: 40W LED ALD | C182: Capital - LED Luminaire | D182: 54.38642059 | E182: 55.94984433 | F182: 57.55821115 | G182: 59.21281302 | H182: 60.91497904 | J182: LED | K182: Minor (Cat P) | L182: 40W LED ALD | M182: =INDEX(O182:Q182,,$M$3) -> 15 | O182: =SUM('I_Asset number input'!K182:O182) -> 15 | P182: 0 | Q182: 172.8133609
B183: 40W LED ALD ZHAGA | C183: Capital - LED Luminaire | D183: 57.25230317 | E183: 58.89811123 | F183: 60.59123065 | G183: 62.33302147 | H183: 64.12488282 | J183: LED | K183: Minor (Cat P) | L183: 40W LED ALD ZHAGA | M183: =INDEX(O183:Q183,,$M$3) -> 0 | O183: =SUM('I_Asset number input'!K183:O183) -> 0 | P183: 0 | Q183: 0
B184: 42W LED LRL | C184: Capital - LED Luminaire | D184: 94.04318281 | E184: 96.74660293 | F184: 99.52773714 | G184: 102.3888195 | H184: 105.3321481 | J184: LED | K184: Major (Cat V) | L184: 42W LED LRL | M184: =INDEX(O184:Q184,,$M$3) -> 48.2612375 | O184: =SUM('I_Asset number input'!K184:O184) -> 48.2612375 | P184: 80 | Q184: 961.4381549
B185: 49W LED PH | C185: Capital - LED Luminaire | D185: 59.14322212 | E185: 60.84338764 | F185: 62.59242711 | G185: 64.39174549 | H185: 66.24278812 | J185: LED | K185: Minor (Cat P) | L185: Philips major road V5 | M185: =INDEX(O185:Q185,,$M$3) -> 940 | O185: =SUM('I_Asset number input'!K185:O185) -> 940 | P185: 528 | Q185: 11776.83025
B186: 49W LED PH ZHAGA | C186: Capital - LED Luminaire | D186: 67.41693274 | E186: 69.35493917 | F186: 71.34865665 | G186: 73.39968671 | H186: 75.50967686 | J186: LED | K186: Minor (Cat P) | L186: Philips major road V5 ZHAGA | M186: =INDEX(O186:Q186,,$M$3) -> 4779.666667 | O186: =SUM('I_Asset number input'!K186:O186) -> 4779.666667 | P186: 0 | Q186: 68259.35498
B187: 50W LED SY PT | C187: Capital - LED Luminaire | D187: 201.3935263 | E187: 207.182902 | F187: 213.1387024 | G187: 219.2657117 | H187: 225.5688516 | J187: LED | K187: Minor (Cat P) | L187: 50W LED SY PT | M187: =INDEX(O187:Q187,,$M$3) -> 125 | O187: =SUM('I_Asset number input'!K187:O187) -> 125 | P187: 152 | Q187: 5332.74847
B188: 58W LED ALD | C188: Capital - LED Luminaire | D188: 83.64779154 | E188: 86.05237969 | F188: 88.52609153 | G188: 91.07091413 | H188: 93.68889169 | J188: LED | K188: Minor (Cat P) | L188: Aldridge major road V5 | M188: =INDEX(O188:Q188,,$M$3) -> 30 | O188: =SUM('I_Asset number input'!K188:O188) -> 30 | P188: 16 | Q188: 531.5832823
B189: 58W LED ALD ZHAGA | C189: Capital - LED Luminaire | D189: 86.64720963 | E189: 89.1380208 | F189: 91.70043428 | G189: 94.33650839 | H189: 97.04836062 | J189: LED | K189: Minor (Cat P) | L189: Aldridge major road V5 Zhaga | M189: =INDEX(O189:Q189,,$M$3) -> 0 | O189: =SUM('I_Asset number input'!K189:O189) -> 0 | P189: 0 | Q189: 0
B190: 70W LED PH FLOOD | C190: Capital - LED Luminaire | D190: 86.78905958 | E190: 89.28394845 | F190: 91.85055685 | G190: 94.49094647 | H190: 97.20723827 | J190: LED | K190: Major (Cat V) | L190: Philips floodlight PX3 | M190: =INDEX(O190:Q190,,$M$3) -> 1177.5 | O190: =SUM('I_Asset number input'!K190:O190) -> 1177.5 | P190: 40 | Q190: 21648.18441
B191: 74W LED ALD | C191: Capital - LED Luminaire | D191: 93.69319004 | E191: 96.38654907 | F191: 99.15733297 | G191: 102.0077674 | H191: 104.9401421 | J191: LED | K191: Major (Cat V) | L191: Aldridge major road V3 | M191: =INDEX(O191:Q191,,$M$3) -> 155 | O191: =SUM('I_Asset number input'!K191:O191) -> 155 | P191: 184 | Q191: 3076.346886
B192: 74W LED ALD ZHAGA | C192: Capital - LED Luminaire | D192: 96.69260814 | E192: 99.47219018 | F192: 102.3316757 | G192: 105.2733617 | H192: 108.2996111 | J192: LED | K192: Major (Cat V) | L192: Aldridge major road V3 ZHAGA | M192: =INDEX(O192:Q192,,$M$3) -> 5 | O192: =SUM('I_Asset number input'!K192:O192) -> 5 | P192: 0 | Q192: 102.4138894
B193: 76W LED PH | C193: Capital - LED Luminaire | D193: 70.24163834 | E193: 72.2608454 | F193: 74.33809777 | G193: 76.47506403 | H193: 78.67346078 | J193: LED | K193: Major (Cat V) | L193: Philips major road V3 | M193: =INDEX(O193:Q193,,$M$3) -> 16885 | O193: =SUM('I_Asset number input'!K193:O193) -> 16885 | P193: 19376 | Q193: 251241.4424
B194: 76W LED PH ZHAGA | C194: Capital - LED Luminaire | D194: 78.51534896 | E194: 80.77239693 | F194: 83.09432731 | G194: 85.48300525 | H194: 87.94034952 | J194: LED | K194: Major (Cat V) | L194: Philips major road V3 ZHAGA | M194: =INDEX(O194:Q194,,$M$3) -> 133207.6667 | O194: =SUM('I_Asset number input'!K194:O194) -> 133207.6667 | P194: 0 | Q194: 2215538.834
B195: 100W LED ALD | C195: Capital - LED Luminaire | D195: 125.9355604 | E195: 129.5557774 | F195: 133.2800632 | G195: 137.1114096 | H195: 141.052894 | J195: LED | K195: Major (Cat V) | L195: 100W LED ALD | M195: =INDEX(O195:Q195,,$M$3) -> 13519.92888 | O195: =SUM('I_Asset number input'!K195:O195) -> 13519.92888 | P195: 22168 | Q195: 360676.9316
B196: 100W LED SY CT | C196: Capital - LED Luminaire | D196: 219.4867086 | E196: 225.7962014 | F196: 232.2870705 | G196: 238.96453 | H196: 245.8339436 | J196: LED | K196: Minor (Cat P) | L196: 100W LED SY CT | M196: =INDEX(O196:Q196,,$M$3) -> 30 | O196: =SUM('I_Asset number input'!K196:O196) -> 30 | P196: 40 | Q196: 1394.842145
B197: 100W LED SY PT | C197: Capital - LED Luminaire | D197: 216.4711782 | E197: 222.6939848 | F197: 229.0956758 | G197: 235.6813936 | H197: 242.4564283 | J197: LED | K197: Minor (Cat P) | L197: 100W LED SY PT | M197: =INDEX(O197:Q197,,$M$3) -> 215 | O197: =SUM('I_Asset number input'!K197:O197) -> 215 | P197: 304 | Q197: 9859.028482
B198: 110W LED SY FLOOD | C198: Capital - LED Luminaire | D198: 129.0601993 | E198: 132.770239 | F198: 136.5869296 | G198: 140.513337 | H198: 144.5526153 | J198: LED | K198: Major (Cat V) | L198: Sylvania floodlight PX2 | M198: =INDEX(O198:Q198,,$M$3) -> 20 | O198: =SUM('I_Asset number input'!K198:O198) -> 20 | P198: 0 | Q198: =+O198/5*AVERAGE(D198,E198,F198,G198,H198) -> 546.7866561
B199: 120W LED PH FLOOD | C199: Capital - LED Luminaire | D199: 95.3636324 | E199: 98.10501093 | F199: 100.9251947 | G199: 103.8264492 | H199: 106.8111048 | J199: LED | K199: Major (Cat V) | L199: Philips floodlight PX2 | M199: =INDEX(O199:Q199,,$M$3) -> 130 | O199: =SUM('I_Asset number input'!K199:O199) -> 130 | P199: 112 | Q199: 2626.163239
B200: 140W LED PH | C200: Capital - LED Luminaire | D200: 75.50672692 | E200: 77.67728728 | F200: 79.91024384 | G200: 82.20739026 | H200: 84.5705718 | J200: LED | K200: Major (Cat V) | L200: Philips major road V1 | M200: =INDEX(O200:Q200,,$M$3) -> 16890 | O200: =SUM('I_Asset number input'!K200:O200) -> 16890 | P200: 19768 | Q200: 270153.6719
... 37 more rows

Sheet Weighted average price list
B1: Public lighting pricing list - weighted average price
B2: This sheet displays the proposed weighted average post 2009 annuity capital and and annual maintenace charges.
C3: Nominal $
B4: Categories | C4: ='C_CAPEX Build Up'!S14 -> FY25 | D4: ='C_CAPEX Build Up'!T14 -> FY26 | E4: ='C_CAPEX Build Up'!U14 -> FY27 | F4: ='C_CAPEX Build Up'!V14 -> FY28 | G4: ='C_CAPEX Build Up'!W14 -> FY29
B5: Connection - O/U | C5: =IF(SUMIF('Detailed price list'!$L$5:$L$237,$B5,'Detailed price list'!$M$5:$M$237)=0,0, SUMPRODUCT(('Detailed price list'!D$5:D$237)*('Detailed price list'!$M$5:$M$237)*('Detailed price list'!$L$5:$L$237=$B5))/SUMIF('Detailed price list'!$L$5:$L$237,$B5,'Detailed price list'!$M$5:$M$237)) -> 102.2830643 | D5: =IF(SUMIF('Detailed price list'!$L$5:$L$237,$B5,'Detailed price list'!$M$5:$M$237)=0,0, SUMPRODUCT(('Detailed price list'!E$5:E$237)*('Detailed price list'!$M$5:$M$237)*('Detailed price list'!$L$5:$L$237=$B5))/SUMIF('Detailed price list'!$L$5:$L$237,$B5,'Detailed price list'!$M$5:$M$237)) -> 105.2233529 | E5: =IF(SUMIF('Detailed price list'!$L$5:$L$237,$B5,'Detailed price list'!$M$5:$M$237)=0,0, SUMPRODUCT(('Detailed price list'!F$5:F$237)*('Detailed price list'!$M$5:$M$237)*('Detailed price list'!$L$5:$L$237=$B5))/SUMIF('Detailed price list'!$L$5:$L$237,$B5,'Detailed price list'!$M$5:$M$237)) -> 108.2481647 | F5: =IF(SUMIF('Detailed price list'!$L$5:$L$237,$B5,'Detailed price list'!$M$5:$M$237)=0,0, SUMPRODUCT(('Detailed price list'!G$5:G$237)*('Detailed price list'!$M$5:$M$237)*('Detailed price list'!$L$5:$L$237=$B5))/SUMIF('Detailed price list'!$L$5:$L$237,$B5,'Detailed price list'!$M$5:$M$237)) -> 111.3599295 | G5: =IF(SUMIF('Detailed price list'!$L$5:$L$237,$B5,'Detailed price list'!$M$5:$M$237)=0,0, SUMPRODUCT(('Detailed price list'!H$5:H$237)*('Detailed price list'!$M$5:$M$237)*('Detailed price list'!$L$5:$L$237=$B5))/SUMIF('Detailed price list'!$L$5:$L$237,$B5,'Detailed price list'!$M$5:$M$237)) -> 114.5611469
B6: Connection - UGR1 | C6: =IF(SUMIF('Detailed price list'!$L$5:$L$237,$B6,'Detailed price list'!$M$5:$M$237)=0,0, SUMPRODUCT(('Detailed price list'!D$5:D$237)*('Detailed price list'!$M$5:$M$237)*('Detailed price list'!$L$5:$L$237=$B6))/SUMIF('Detailed price list'!$L$5:$L$237,$B6,'Detailed price list'!$M$5:$M$237)) -> 93.75710538 | D6: =IF(SUMIF('Detailed price list'!$L$5:$L$237,$B6,'Detailed price list'!$M$5:$M$237)=0,0, SUMPRODUCT(('Detailed price list'!E$5:E$237)*('Detailed price list'!$M$5:$M$237)*('Detailed price list'!$L$5:$L$237=$B6))/SUMIF('Detailed price list'!$L$5:$L$237,$B6,'Detailed price list'!$M$5:$M$237)) -> 96.45230175 | E6: =IF(SUMIF('Detailed price list'!$L$5:$L$237,$B6,'Detailed price list'!$M$5:$M$237)=0,0, SUMPRODUCT(('Detailed price list'!F$5:F$237)*('Detailed price list'!$M$5:$M$237)*('Detailed price list'!$L$5:$L$237=$B6))/SUMIF('Detailed price list'!$L$5:$L$237,$B6,'Detailed price list'!$M$5:$M$237)) -> 99.22497581 | F6: =IF(SUMIF('Detailed price list'!$L$5:$L$237,$B6,'Detailed price list'!$M$5:$M$237)=0,0, SUMPRODUCT(('Detailed price list'!G$5:G$237)*('Detailed price list'!$M$5:$M$237)*('Detailed price list'!$L$5:$L$237=$B6))/SUMIF('Detailed price list'!$L$5:$L$237,$B6,'Detailed price list'!$M$5:$M$237)) -> 102.0773548 | G6: =IF(SUMIF('Detailed price list'!$L$5:$L$237,$B6,'Detailed price list'!$M$5:$M$237)=0,0, SUMPRODUCT(('Detailed price list'!H$5:H$237)*('Detailed price list'!$M$5:$M$237)*('Detailed price list'!$L$5:$L$237=$B6))/SUMIF('Detailed price list'!$L$5:$L$237,$B6,'Detailed price list'!$M$5:$M$237)) -> 105.0117299
B7: Connection - UGR2 | C7: =IF(SUMIF('Detailed price list'!$L$5:$L$237,$B7,'Detailed price list'!$M$5:$M$237)=0,0, SUMPRODUCT(('Detailed price list'!D$5:D$237)*('Detailed price list'!$M$5:$M$237)*('Detailed price list'!$L$5:$L$237=$B7))/SUMIF('Detailed price list'!$L$5:$L$237,$B7,'Detailed price list'!$M$5:$M$237)) -> 34.08928223 | D7: =IF(SUMIF('Detailed price list'!$L$5:$L$237,$B7,'Detailed price list'!$M$5:$M$237)=0,0, SUMPRODUCT(('Detailed price list'!E$5:E$237)*('Detailed price list'!$M$5:$M$237)*('Detailed price list'!$L$5:$L$237=$B7))/SUMIF('Detailed price list'!$L$5:$L$237,$B7,'Detailed price list'!$M$5:$M$237)) -> 35.0692326 | E7: =IF(SUMIF('Detailed price list'!$L$5:$L$237,$B7,'Detailed price list'!$M$5:$M$237)=0,0, SUMPRODUCT(('Detailed price list'!F$5:F$237)*('Detailed price list'!$M$5:$M$237)*('Detailed price list'!$L$5:$L$237=$B7))/SUMIF('Detailed price list'!$L$5:$L$237,$B7,'Detailed price list'!$M$5:$M$237)) -> 36.07735319 | F7: =IF(SUMIF('Detailed price list'!$L$5:$L$237,$B7,'Detailed price list'!$M$5:$M$237)=0,0, SUMPRODUCT(('Detailed price list'!G$5:G$237)*('Detailed price list'!$M$5:$M$237)*('Detailed price list'!$L$5:$L$237=$B7))/SUMIF('Detailed price list'!$L$5:$L$237,$B7,'Detailed price list'!$M$5:$M$237)) -> 37.11445381 | G7: =IF(SUMIF('Detailed price list'!$L$5:$L$237,$B7,'Detailed price list'!$M$5:$M$237)=0,0, SUMPRODUCT(('Detailed price list'!H$5:H$237)*('Detailed price list'!$M$5:$M$237)*('Detailed price list'!$L$5:$L$237=$B7))/SUMIF('Detailed price list'!$L$5:$L$237,$B7,'Detailed price list'!$M$5:$M$237)) -> 38.18136752
B8: Legacy Luminaire - Major (Cat V) road | C8: =IF(SUMIF('Detailed price list'!$L$5:$L$237,$B8,'Detailed price list'!$M$5:$M$237)=0,0, SUMPRODUCT(('Detailed price list'!D$5:D$237)*('Detailed price list'!$M$5:$M$237)*('Detailed price list'!$L$5:$L$237=$B8))/SUMIF('Detailed price list'!$L$5:$L$237,$B8,'Detailed price list'!$M$5:$M$237)) -> 53.78538403 | D8: =IF(SUMIF('Detailed price list'!$L$5:$L$237,$B8,'Detailed price list'!$M$5:$M$237)=0,0, SUMPRODUCT(('Detailed price list'!E$5:E$237)*('Detailed price list'!$M$5:$M$237)*('Detailed price list'!$L$5:$L$237=$B8))/SUMIF('Detailed price list'!$L$5:$L$237,$B8,'Detailed price list'!$M$5:$M$237)) -> 55.33153001 | E8: =IF(SUMIF('Detailed price list'!$L$5:$L$237,$B8,'Detailed price list'!$M$5:$M$237)=0,0, SUMPRODUCT(('Detailed price list'!F$5:F$237)*('Detailed price list'!$M$5:$M$237)*('Detailed price list'!$L$5:$L$237=$B8))/SUMIF('Detailed price list'!$L$5:$L$237,$B8,'Detailed price list'!$M$5:$M$237)) -> 56.92212241 | F8: =IF(SUMIF('Detailed price list'!$L$5:$L$237,$B8,'Detailed price list'!$M$5:$M$237)=0,0, SUMPRODUCT(('Detailed price list'!G$5:G$237)*('Detailed price list'!$M$5:$M$237)*('Detailed price list'!$L$5:$L$237=$B8))/SUMIF('Detailed price list'!$L$5:$L$237,$B8,'Detailed price list'!$M$5:$M$237)) -> 58.55843891 | G8: =IF(SUMIF('Detailed price list'!$L$5:$L$237,$B8,'Detailed price list'!$M$5:$M$237)=0,0, SUMPRODUCT(('Detailed price list'!H$5:H$237)*('Detailed price list'!$M$5:$M$237)*('Detailed price list'!$L$5:$L$237=$B8))/SUMIF('Detailed price list'!$L$5:$L$237,$B8,'Detailed price list'!$M$5:$M$237)) -> 60.24179391
B9: Legacy Luminaire - Minor (Cat P) road | C9: =IF(SUMIF('Detailed price list'!$L$5:$L$237,$B9,'Detailed price list'!$M$5:$M$237)=0,0, SUMPRODUCT(('Detailed price list'!D$5:D$237)*('Detailed price list'!$M$5:$M$237)*('Detailed price list'!$L$5:$L$237=$B9))/SUMIF('Detailed price list'!$L$5:$L$237,$B9,'Detailed price list'!$M$5:$M$237)) -> 33.63132975 | D9: =IF(SUMIF('Detailed price list'!$L$5:$L$237,$B9,'Detailed price list'!$M$5:$M$237)=0,0, SUMPRODUCT(('Detailed price list'!E$5:E$237)*('Detailed price list'!$M$5:$M$237)*('Detailed price list'!$L$5:$L$237=$B9))/SUMIF('Detailed price list'!$L$5:$L$237,$B9,'Detailed price list'!$M$5:$M$237)) -> 34.59811555 | E9: =IF(SUMIF('Detailed price list'!$L$5:$L$237,$B9,'Detailed price list'!$M$5:$M$237)=0,0, SUMPRODUCT(('Detailed price list'!F$5:F$237)*('Detailed price list'!$M$5:$M$237)*('Detailed price list'!$L$5:$L$237=$B9))/SUMIF('Detailed price list'!$L$5:$L$237,$B9,'Detailed price list'!$M$5:$M$237)) -> 35.59269313 | F9: =IF(SUMIF('Detailed price list'!$L$5:$L$237,$B9,'Detailed price list'!$M$5:$M$237)=0,0, SUMPRODUCT(('Detailed price list'!G$5:G$237)*('Detailed price list'!$M$5:$M$237)*('Detailed price list'!$L$5:$L$237=$B9))/SUMIF('Detailed price list'!$L$5:$L$237,$B9,'Detailed price list'!$M$5:$M$237)) -> 36.61586143 | G9: =IF(SUMIF('Detailed price list'!$L$5:$L$237,$B9,'Detailed price list'!$M$5:$M$237)=0,0, SUMPRODUCT(('Detailed price list'!H$5:H$237)*('Detailed price list'!$M$5:$M$237)*('Detailed price list'!$L$5:$L$237=$B9))/SUMIF('Detailed price list'!$L$5:$L$237,$B9,'Detailed price list'!$M$5:$M$237)) -> 37.66844231
B10: Legacy Luminaire - Major (Cat V) road | C10: =IF(SUMIF('Detailed price list'!$L$5:$L$237,$B10,'Detailed price list'!$M$5:$M$237)=0,0, SUMPRODUCT(('Detailed price list'!D$5:D$237)*('Detailed price list'!$M$5:$M$237)*('Detailed price list'!$L$5:$L$237=$B10))/SUMIF('Detailed price list'!$L$5:$L$237,$B10,'Detailed price list'!$M$5:$M$237)) -> 53.78538403 | D10: =IF(SUMIF('Detailed price list'!$L$5:$L$237,$B10,'Detailed price list'!$M$5:$M$237)=0,0, SUMPRODUCT(('Detailed price list'!E$5:E$237)*('Detailed price list'!$M$5:$M$237)*('Detailed price list'!$L$5:$L$237=$B10))/SUMIF('Detailed price list'!$L$5:$L$237,$B10,'Detailed price list'!$M$5:$M$237)) -> 55.33153001 | E10: =IF(SUMIF('Detailed price list'!$L$5:$L$237,$B10,'Detailed price list'!$M$5:$M$237)=0,0, SUMPRODUCT(('Detailed price list'!F$5:F$237)*('Detailed price list'!$M$5:$M$237)*('Detailed price list'!$L$5:$L$237=$B10))/SUMIF('Detailed price list'!$L$5:$L$237,$B10,'Detailed price list'!$M$5:$M$237)) -> 56.92212241 | F10: =IF(SUMIF('Detailed price list'!$L$5:$L$237,$B10,'Detailed price list'!$M$5:$M$237)=0,0, SUMPRODUCT(('Detailed price list'!G$5:G$237)*('Detailed price list'!$M$5:$M$237)*('Detailed price list'!$L$5:$L$237=$B10))/SUMIF('Detailed price list'!$L$5:$L$237,$B10,'Detailed price list'!$M$5:$M$237)) -> 58.55843891 | G10: =IF(SUMIF('Detailed price list'!$L$5:$L$237,$B10,'Detailed price list'!$M$5:$M$237)=0,0, SUMPRODUCT(('Detailed price list'!H$5:H$237)*('Detailed price list'!$M$5:$M$237)*('Detailed price list'!$L$5:$L$237=$B10))/SUMIF('Detailed price list'!$L$5:$L$237,$B10,'Detailed price list'!$M$5:$M$237)) -> 60.24179391
B11: Legacy Luminaire - Major (Cat V) road | C11: =IF(SUMIF('Detailed price list'!$L$5:$L$237,$B11,'Detailed price list'!$M$5:$M$237)=0,0, SUMPRODUCT(('Detailed price list'!D$5:D$237)*('Detailed price list'!$M$5:$M$237)*('Detailed price list'!$L$5:$L$237=$B11))/SUMIF('Detailed price list'!$L$5:$L$237,$B11,'Detailed price list'!$M$5:$M$237)) -> 53.78538403 | D11: =IF(SUMIF('Detailed price list'!$L$5:$L$237,$B11,'Detailed price list'!$M$5:$M$237)=0,0, SUMPRODUCT(('Detailed price list'!E$5:E$237)*('Detailed price list'!$M$5:$M$237)*('Detailed price list'!$L$5:$L$237=$B11))/SUMIF('Detailed price list'!$L$5:$L$237,$B11,'Detailed price list'!$M$5:$M$237)) -> 55.33153001 | E11: =IF(SUMIF('Detailed price list'!$L$5:$L$237,$B11,'Detailed price list'!$M$5:$M$237)=0,0, SUMPRODUCT(('Detailed price list'!F$5:F$237)*('Detailed price list'!$M$5:$M$237)*('Detailed price list'!$L$5:$L$237=$B11))/SUMIF('Detailed price list'!$L$5:$L$237,$B11,'Detailed price list'!$M$5:$M$237)) -> 56.92212241 | F11: =IF(SUMIF('Detailed price list'!$L$5:$L$237,$B11,'Detailed price list'!$M$5:$M$237)=0,0, SUMPRODUCT(('Detailed price list'!G$5:G$237)*('Detailed price list'!$M$5:$M$237)*('Detailed price list'!$L$5:$L$237=$B11))/SUMIF('Detailed price list'!$L$5:$L$237,$B11,'Detailed price list'!$M$5:$M$237)) -> 58.55843891 | G11: =IF(SUMIF('Detailed price list'!$L$5:$L$237,$B11,'Detailed price list'!$M$5:$M$237)=0,0, SUMPRODUCT(('Detailed price list'!H$5:H$237)*('Detailed price list'!$M$5:$M$237)*('Detailed price list'!$L$5:$L$237=$B11))/SUMIF('Detailed price list'!$L$5:$L$237,$B11,'Detailed price list'!$M$5:$M$237)) -> 60.24179391
B12: Legacy Luminaire - Minor (Cat P) road | C12: =IF(SUMIF('Detailed price list'!$L$5:$L$237,$B12,'Detailed price list'!$M$5:$M$237)=0,0, SUMPRODUCT(('Detailed price list'!D$5:D$237)*('Detailed price list'!$M$5:$M$237)*('Detailed price list'!$L$5:$L$237=$B12))/SUMIF('Detailed price list'!$L$5:$L$237,$B12,'Detailed price list'!$M$5:$M$237)) -> 33.63132975 | D12: =IF(SUMIF('Detailed price list'!$L$5:$L$237,$B12,'Detailed price list'!$M$5:$M$237)=0,0, SUMPRODUCT(('Detailed price list'!E$5:E$237)*('Detailed price list'!$M$5:$M$237)*('Detailed price list'!$L$5:$L$237=$B12))/SUMIF('Detailed price list'!$L$5:$L$237,$B12,'Detailed price list'!$M$5:$M$237)) -> 34.59811555 | E12: =IF(SUMIF('Detailed price list'!$L$5:$L$237,$B12,'Detailed price list'!$M$5:$M$237)=0,0, SUMPRODUCT(('Detailed price list'!F$5:F$237)*('Detailed price list'!$M$5:$M$237)*('Detailed price list'!$L$5:$L$237=$B12))/SUMIF('Detailed price list'!$L$5:$L$237,$B12,'Detailed price list'!$M$5:$M$237)) -> 35.59269313 | F12: =IF(SUMIF('Detailed price list'!$L$5:$L$237,$B12,'Detailed price list'!$M$5:$M$237)=0,0, SUMPRODUCT(('Detailed price list'!G$5:G$237)*('Detailed price list'!$M$5:$M$237)*('Detailed price list'!$L$5:$L$237=$B12))/SUMIF('Detailed price list'!$L$5:$L$237,$B12,'Detailed price list'!$M$5:$M$237)) -> 36.61586143 | G12: =IF(SUMIF('Detailed price list'!$L$5:$L$237,$B12,'Detailed price list'!$M$5:$M$237)=0,0, SUMPRODUCT(('Detailed price list'!H$5:H$237)*('Detailed price list'!$M$5:$M$237)*('Detailed price list'!$L$5:$L$237=$B12))/SUMIF('Detailed price list'!$L$5:$L$237,$B12,'Detailed price list'!$M$5:$M$237)) -> 37.66844231
B13: Legacy Luminaire - Minor (Cat P) road | C13: =IF(SUMIF('Detailed price list'!$L$5:$L$237,$B13,'Detailed price list'!$M$5:$M$237)=0,0, SUMPRODUCT(('Detailed price list'!D$5:D$237)*('Detailed price list'!$M$5:$M$237)*('Detailed price list'!$L$5:$L$237=$B13))/SUMIF('Detailed price list'!$L$5:$L$237,$B13,'Detailed price list'!$M$5:$M$237)) -> 33.63132975 | D13: =IF(SUMIF('Detailed price list'!$L$5:$L$237,$B13,'Detailed price list'!$M$5:$M$237)=0,0, SUMPRODUCT(('Detailed price list'!E$5:E$237)*('Detailed price list'!$M$5:$M$237)*('Detailed price list'!$L$5:$L$237=$B13))/SUMIF('Detailed price list'!$L$5:$L$237,$B13,'Detailed price list'!$M$5:$M$237)) -> 34.59811555 | E13: =IF(SUMIF('Detailed price list'!$L$5:$L$237,$B13,'Detailed price list'!$M$5:$M$237)=0,0, SUMPRODUCT(('Detailed price list'!F$5:F$237)*('Detailed price list'!$M$5:$M$237)*('Detailed price list'!$L$5:$L$237=$B13))/SUMIF('Detailed price list'!$L$5:$L$237,$B13,'Detailed price list'!$M$5:$M$237)) -> 35.59269313 | F13: =IF(SUMIF('Detailed price list'!$L$5:$L$237,$B13,'Detailed price list'!$M$5:$M$237)=0,0, SUMPRODUCT(('Detailed price list'!G$5:G$237)*('Detailed price list'!$M$5:$M$237)*('Detailed price list'!$L$5:$L$237=$B13))/SUMIF('Detailed price list'!$L$5:$L$237,$B13,'Detailed price list'!$M$5:$M$237)) -> 36.61586143 | G13: =IF(SUMIF('Detailed price list'!$L$5:$L$237,$B13,'Detailed price list'!$M$5:$M$237)=0,0, SUMPRODUCT(('Detailed price list'!H$5:H$237)*('Detailed price list'!$M$5:$M$237)*('Detailed price list'!$L$5:$L$237=$B13))/SUMIF('Detailed price list'!$L$5:$L$237,$B13,'Detailed price list'!$M$5:$M$237)) -> 37.66844231
B14: Legacy Luminaire - Minor (Cat P) road | C14: =IF(SUMIF('Detailed price list'!$L$5:$L$237,$B14,'Detailed price list'!$M$5:$M$237)=0,0, SUMPRODUCT(('Detailed price list'!D$5:D$237)*('Detailed price list'!$M$5:$M$237)*('Detailed price list'!$L$5:$L$237=$B14))/SUMIF('Detailed price list'!$L$5:$L$237,$B14,'Detailed price list'!$M$5:$M$237)) -> 33.63132975 | D14: =IF(SUMIF('Detailed price list'!$L$5:$L$237,$B14,'Detailed price list'!$M$5:$M$237)=0,0, SUMPRODUCT(('Detailed price list'!E$5:E$237)*('Detailed price list'!$M$5:$M$237)*('Detailed price list'!$L$5:$L$237=$B14))/SUMIF('Detailed price list'!$L$5:$L$237,$B14,'Detailed price list'!$M$5:$M$237)) -> 34.59811555 | E14: =IF(SUMIF('Detailed price list'!$L$5:$L$237,$B14,'Detailed price list'!$M$5:$M$237)=0,0, SUMPRODUCT(('Detailed price list'!F$5:F$237)*('Detailed price list'!$M$5:$M$237)*('Detailed price list'!$L$5:$L$237=$B14))/SUMIF('Detailed price list'!$L$5:$L$237,$B14,'Detailed price list'!$M$5:$M$237)) -> 35.59269313 | F14: =IF(SUMIF('Detailed price list'!$L$5:$L$237,$B14,'Detailed price list'!$M$5:$M$237)=0,0, SUMPRODUCT(('Detailed price list'!G$5:G$237)*('Detailed price list'!$M$5:$M$237)*('Detailed price list'!$L$5:$L$237=$B14))/SUMIF('Detailed price list'!$L$5:$L$237,$B14,'Detailed price list'!$M$5:$M$237)) -> 36.61586143 | G14: =IF(SUMIF('Detailed price list'!$L$5:$L$237,$B14,'Detailed price list'!$M$5:$M$237)=0,0, SUMPRODUCT(('Detailed price list'!H$5:H$237)*('Detailed price list'!$M$5:$M$237)*('Detailed price list'!$L$5:$L$237=$B14))/SUMIF('Detailed price list'!$L$5:$L$237,$B14,'Detailed price list'!$M$5:$M$237)) -> 37.66844231
B15: Legacy Luminaire - Minor (Cat P) road | C15: =IF(SUMIF('Detailed price list'!$L$5:$L$237,$B15,'Detailed price list'!$M$5:$M$237)=0,0, SUMPRODUCT(('Detailed price list'!D$5:D$237)*('Detailed price list'!$M$5:$M$237)*('Detailed price list'!$L$5:$L$237=$B15))/SUMIF('Detailed price list'!$L$5:$L$237,$B15,'Detailed price list'!$M$5:$M$237)) -> 33.63132975 | D15: =IF(SUMIF('Detailed price list'!$L$5:$L$237,$B15,'Detailed price list'!$M$5:$M$237)=0,0, SUMPRODUCT(('Detailed price list'!E$5:E$237)*('Detailed price list'!$M$5:$M$237)*('Detailed price list'!$L$5:$L$237=$B15))/SUMIF('Detailed price list'!$L$5:$L$237,$B15,'Detailed price list'!$M$5:$M$237)) -> 34.59811555 | E15: =IF(SUMIF('Detailed price list'!$L$5:$L$237,$B15,'Detailed price list'!$M$5:$M$237)=0,0, SUMPRODUCT(('Detailed price list'!F$5:F$237)*('Detailed price list'!$M$5:$M$237)*('Detailed price list'!$L$5:$L$237=$B15))/SUMIF('Detailed price list'!$L$5:$L$237,$B15,'Detailed price list'!$M$5:$M$237)) -> 35.59269313 | F15: =IF(SUMIF('Detailed price list'!$L$5:$L$237,$B15,'Detailed price list'!$M$5:$M$237)=0,0, SUMPRODUCT(('Detailed price list'!G$5:G$237)*('Detailed price list'!$M$5:$M$237)*('Detailed price list'!$L$5:$L$237=$B15))/SUMIF('Detailed price list'!$L$5:$L$237,$B15,'Detailed price list'!$M$5:$M$237)) -> 36.61586143 | G15: =IF(SUMIF('Detailed price list'!$L$5:$L$237,$B15,'Detailed price list'!$M$5:$M$237)=0,0, SUMPRODUCT(('Detailed price list'!H$5:H$237)*('Detailed price list'!$M$5:$M$237)*('Detailed price list'!$L$5:$L$237=$B15))/SUMIF('Detailed price list'!$L$5:$L$237,$B15,'Detailed price list'!$M$5:$M$237)) -> 37.66844231
B16: Legacy Luminaire - Major (Cat V) road | C16: =IF(SUMIF('Detailed price list'!$L$5:$L$237,$B16,'Detailed price list'!$M$5:$M$237)=0,0, SUMPRODUCT(('Detailed price list'!D$5:D$237)*('Detailed price list'!$M$5:$M$237)*('Detailed price list'!$L$5:$L$237=$B16))/SUMIF('Detailed price list'!$L$5:$L$237,$B16,'Detailed price list'!$M$5:$M$237)) -> 53.78538403 | D16: =IF(SUMIF('Detailed price list'!$L$5:$L$237,$B16,'Detailed price list'!$M$5:$M$237)=0,0, SUMPRODUCT(('Detailed price list'!E$5:E$237)*('Detailed price list'!$M$5:$M$237)*('Detailed price list'!$L$5:$L$237=$B16))/SUMIF('Detailed price list'!$L$5:$L$237,$B16,'Detailed price list'!$M$5:$M$237)) -> 55.33153001 | E16: =IF(SUMIF('Detailed price list'!$L$5:$L$237,$B16,'Detailed price list'!$M$5:$M$237)=0,0, SUMPRODUCT(('Detailed price list'!F$5:F$237)*('Detailed price list'!$M$5:$M$237)*('Detailed price list'!$L$5:$L$237=$B16))/SUMIF('Detailed price list'!$L$5:$L$237,$B16,'Detailed price list'!$M$5:$M$237)) -> 56.92212241 | F16: =IF(SUMIF('Detailed price list'!$L$5:$L$237,$B16,'Detailed price list'!$M$5:$M$237)=0,0, SUMPRODUCT(('Detailed price list'!G$5:G$237)*('Detailed price list'!$M$5:$M$237)*('Detailed price list'!$L$5:$L$237=$B16))/SUMIF('Detailed price list'!$L$5:$L$237,$B16,'Detailed price list'!$M$5:$M$237)) -> 58.55843891 | G16: =IF(SUMIF('Detailed price list'!$L$5:$L$237,$B16,'Detailed price list'!$M$5:$M$237)=0,0, SUMPRODUCT(('Detailed price list'!H$5:H$237)*('Detailed price list'!$M$5:$M$237)*('Detailed price list'!$L$5:$L$237=$B16))/SUMIF('Detailed price list'!$L$5:$L$237,$B16,'Detailed price list'!$M$5:$M$237)) -> 60.24179391
B17: Legacy Luminaire - Major (Cat V) road | C17: =IF(SUMIF('Detailed price list'!$L$5:$L$237,$B17,'Detailed price list'!$M$5:$M$237)=0,0, SUMPRODUCT(('Detailed price list'!D$5:D$237)*('Detailed price list'!$M$5:$M$237)*('Detailed price list'!$L$5:$L$237=$B17))/SUMIF('Detailed price list'!$L$5:$L$237,$B17,'Detailed price list'!$M$5:$M$237)) -> 53.78538403 | D17: =IF(SUMIF('Detailed price list'!$L$5:$L$237,$B17,'Detailed price list'!$M$5:$M$237)=0,0, SUMPRODUCT(('Detailed price list'!E$5:E$237)*('Detailed price list'!$M$5:$M$237)*('Detailed price list'!$L$5:$L$237=$B17))/SUMIF('Detailed price list'!$L$5:$L$237,$B17,'Detailed price list'!$M$5:$M$237)) -> 55.33153001 | E17: =IF(SUMIF('Detailed price list'!$L$5:$L$237,$B17,'Detailed price list'!$M$5:$M$237)=0,0, SUMPRODUCT(('Detailed price list'!F$5:F$237)*('Detailed price list'!$M$5:$M$237)*('Detailed price list'!$L$5:$L$237=$B17))/SUMIF('Detailed price list'!$L$5:$L$237,$B17,'Detailed price list'!$M$5:$M$237)) -> 56.92212241 | F17: =IF(SUMIF('Detailed price list'!$L$5:$L$237,$B17,'Detailed price list'!$M$5:$M$237)=0,0, SUMPRODUCT(('Detailed price list'!G$5:G$237)*('Detailed price list'!$M$5:$M$237)*('Detailed price list'!$L$5:$L$237=$B17))/SUMIF('Detailed price list'!$L$5:$L$237,$B17,'Detailed price list'!$M$5:$M$237)) -> 58.55843891 | G17: =IF(SUMIF('Detailed price list'!$L$5:$L$237,$B17,'Detailed price list'!$M$5:$M$237)=0,0, SUMPRODUCT(('Detailed price list'!H$5:H$237)*('Detailed price list'!$M$5:$M$237)*('Detailed price list'!$L$5:$L$237=$B17))/SUMIF('Detailed price list'!$L$5:$L$237,$B17,'Detailed price list'!$M$5:$M$237)) -> 60.24179391
B18: Legacy Luminaire - Major (Cat V) road | C18: =IF(SUMIF('Detailed price list'!$L$5:$L$237,$B18,'Detailed price list'!$M$5:$M$237)=0,0, SUMPRODUCT(('Detailed price list'!D$5:D$237)*('Detailed price list'!$M$5:$M$237)*('Detailed price list'!$L$5:$L$237=$B18))/SUMIF('Detailed price list'!$L$5:$L$237,$B18,'Detailed price list'!$M$5:$M$237)) -> 53.78538403 | D18: =IF(SUMIF('Detailed price list'!$L$5:$L$237,$B18,'Detailed price list'!$M$5:$M$237)=0,0, SUMPRODUCT(('Detailed price list'!E$5:E$237)*('Detailed price list'!$M$5:$M$237)*('Detailed price list'!$L$5:$L$237=$B18))/SUMIF('Detailed price list'!$L$5:$L$237,$B18,'Detailed price list'!$M$5:$M$237)) -> 55.33153001 | E18: =IF(SUMIF('Detailed price list'!$L$5:$L$237,$B18,'Detailed price list'!$M$5:$M$237)=0,0, SUMPRODUCT(('Detailed price list'!F$5:F$237)*('Detailed price list'!$M$5:$M$237)*('Detailed price list'!$L$5:$L$237=$B18))/SUMIF('Detailed price list'!$L$5:$L$237,$B18,'Detailed price list'!$M$5:$M$237)) -> 56.92212241 | F18: =IF(SUMIF('Detailed price list'!$L$5:$L$237,$B18,'Detailed price list'!$M$5:$M$237)=0,0, SUMPRODUCT(('Detailed price list'!G$5:G$237)*('Detailed price list'!$M$5:$M$237)*('Detailed price list'!$L$5:$L$237=$B18))/SUMIF('Detailed price list'!$L$5:$L$237,$B18,'Detailed price list'!$M$5:$M$237)) -> 58.55843891 | G18: =IF(SUMIF('Detailed price list'!$L$5:$L$237,$B18,'Detailed price list'!$M$5:$M$237)=0,0, SUMPRODUCT(('Detailed price list'!H$5:H$237)*('Detailed price list'!$M$5:$M$237)*('Detailed price list'!$L$5:$L$237=$B18))/SUMIF('Detailed price list'!$L$5:$L$237,$B18,'Detailed price list'!$M$5:$M$237)) -> 60.24179391
B19: Legacy Luminaire - Major (Cat V) road | C19: =IF(SUMIF('Detailed price list'!$L$5:$L$237,$B19,'Detailed price list'!$M$5:$M$237)=0,0, SUMPRODUCT(('Detailed price list'!D$5:D$237)*('Detailed price list'!$M$5:$M$237)*('Detailed price list'!$L$5:$L$237=$B19))/SUMIF('Detailed price list'!$L$5:$L$237,$B19,'Detailed price list'!$M$5:$M$237)) -> 53.78538403 | D19: =IF(SUMIF('Detailed price list'!$L$5:$L$237,$B19,'Detailed price list'!$M$5:$M$237)=0,0, SUMPRODUCT(('Detailed price list'!E$5:E$237)*('Detailed price list'!$M$5:$M$237)*('Detailed price list'!$L$5:$L$237=$B19))/SUMIF('Detailed price list'!$L$5:$L$237,$B19,'Detailed price list'!$M$5:$M$237)) -> 55.33153001 | E19: =IF(SUMIF('Detailed price list'!$L$5:$L$237,$B19,'Detailed price list'!$M$5:$M$237)=0,0, SUMPRODUCT(('Detailed price list'!F$5:F$237)*('Detailed price list'!$M$5:$M$237)*('Detailed price list'!$L$5:$L$237=$B19))/SUMIF('Detailed price list'!$L$5:$L$237,$B19,'Detailed price list'!$M$5:$M$237)) -> 56.92212241 | F19: =IF(SUMIF('Detailed price list'!$L$5:$L$237,$B19,'Detailed price list'!$M$5:$M$237)=0,0, SUMPRODUCT(('Detailed price list'!G$5:G$237)*('Detailed price list'!$M$5:$M$237)*('Detailed price list'!$L$5:$L$237=$B19))/SUMIF('Detailed price list'!$L$5:$L$237,$B19,'Detailed price list'!$M$5:$M$237)) -> 58.55843891 | G19: =IF(SUMIF('Detailed price list'!$L$5:$L$237,$B19,'Detailed price list'!$M$5:$M$237)=0,0, SUMPRODUCT(('Detailed price list'!H$5:H$237)*('Detailed price list'!$M$5:$M$237)*('Detailed price list'!$L$5:$L$237=$B19))/SUMIF('Detailed price list'!$L$5:$L$237,$B19,'Detailed price list'!$M$5:$M$237)) -> 60.24179391
B20: Legacy Luminaire - Major (Cat V) road | C20: =IF(SUMIF('Detailed price list'!$L$5:$L$237,$B20,'Detailed price list'!$M$5:$M$237)=0,0, SUMPRODUCT(('Detailed price list'!D$5:D$237)*('Detailed price list'!$M$5:$M$237)*('Detailed price list'!$L$5:$L$237=$B20))/SUMIF('Detailed price list'!$L$5:$L$237,$B20,'Detailed price list'!$M$5:$M$237)) -> 53.78538403 | D20: =IF(SUMIF('Detailed price list'!$L$5:$L$237,$B20,'Detailed price list'!$M$5:$M$237)=0,0, SUMPRODUCT(('Detailed price list'!E$5:E$237)*('Detailed price list'!$M$5:$M$237)*('Detailed price list'!$L$5:$L$237=$B20))/SUMIF('Detailed price list'!$L$5:$L$237,$B20,'Detailed price list'!$M$5:$M$237)) -> 55.33153001 | E20: =IF(SUMIF('Detailed price list'!$L$5:$L$237,$B20,'Detailed price list'!$M$5:$M$237)=0,0, SUMPRODUCT(('Detailed price list'!F$5:F$237)*('Detailed price list'!$M$5:$M$237)*('Detailed price list'!$L$5:$L$237=$B20))/SUMIF('Detailed price list'!$L$5:$L$237,$B20,'Detailed price list'!$M$5:$M$237)) -> 56.92212241 | F20: =IF(SUMIF('Detailed price list'!$L$5:$L$237,$B20,'Detailed price list'!$M$5:$M$237)=0,0, SUMPRODUCT(('Detailed price list'!G$5:G$237)*('Detailed price list'!$M$5:$M$237)*('Detailed price list'!$L$5:$L$237=$B20))/SUMIF('Detailed price list'!$L$5:$L$237,$B20,'Detailed price list'!$M$5:$M$237)) -> 58.55843891 | G20: =IF(SUMIF('Detailed price list'!$L$5:$L$237,$B20,'Detailed price list'!$M$5:$M$237)=0,0, SUMPRODUCT(('Detailed price list'!H$5:H$237)*('Detailed price list'!$M$5:$M$237)*('Detailed price list'!$L$5:$L$237=$B20))/SUMIF('Detailed price list'!$L$5:$L$237,$B20,'Detailed price list'!$M$5:$M$237)) -> 60.24179391
B21: Legacy Luminaire - Minor (Cat P) road | C21: =IF(SUMIF('Detailed price list'!$L$5:$L$237,$B21,'Detailed price list'!$M$5:$M$237)=0,0, SUMPRODUCT(('Detailed price list'!D$5:D$237)*('Detailed price list'!$M$5:$M$237)*('Detailed price list'!$L$5:$L$237=$B21))/SUMIF('Detailed price list'!$L$5:$L$237,$B21,'Detailed price list'!$M$5:$M$237)) -> 33.63132975 | D21: =IF(SUMIF('Detailed price list'!$L$5:$L$237,$B21,'Detailed price list'!$M$5:$M$237)=0,0, SUMPRODUCT(('Detailed price list'!E$5:E$237)*('Detailed price list'!$M$5:$M$237)*('Detailed price list'!$L$5:$L$237=$B21))/SUMIF('Detailed price list'!$L$5:$L$237,$B21,'Detailed price list'!$M$5:$M$237)) -> 34.59811555 | E21: =IF(SUMIF('Detailed price list'!$L$5:$L$237,$B21,'Detailed price list'!$M$5:$M$237)=0,0, SUMPRODUCT(('Detailed price list'!F$5:F$237)*('Detailed price list'!$M$5:$M$237)*('Detailed price list'!$L$5:$L$237=$B21))/SUMIF('Detailed price list'!$L$5:$L$237,$B21,'Detailed price list'!$M$5:$M$237)) -> 35.59269313 | F21: =IF(SUMIF('Detailed price list'!$L$5:$L$237,$B21,'Detailed price list'!$M$5:$M$237)=0,0, SUMPRODUCT(('Detailed price list'!G$5:G$237)*('Detailed price list'!$M$5:$M$237)*('Detailed price list'!$L$5:$L$237=$B21))/SUMIF('Detailed price list'!$L$5:$L$237,$B21,'Detailed price list'!$M$5:$M$237)) -> 36.61586143 | G21: =IF(SUMIF('Detailed price list'!$L$5:$L$237,$B21,'Detailed price list'!$M$5:$M$237)=0,0, SUMPRODUCT(('Detailed price list'!H$5:H$237)*('Detailed price list'!$M$5:$M$237)*('Detailed price list'!$L$5:$L$237=$B21))/SUMIF('Detailed price list'!$L$5:$L$237,$B21,'Detailed price list'!$M$5:$M$237)) -> 37.66844231
B22: Legacy Luminaire - Minor (Cat P) road | C22: =IF(SUMIF('Detailed price list'!$L$5:$L$237,$B22,'Detailed price list'!$M$5:$M$237)=0,0, SUMPRODUCT(('Detailed price list'!D$5:D$237)*('Detailed price list'!$M$5:$M$237)*('Detailed price list'!$L$5:$L$237=$B22))/SUMIF('Detailed price list'!$L$5:$L$237,$B22,'Detailed price list'!$M$5:$M$237)) -> 33.63132975 | D22: =IF(SUMIF('Detailed price list'!$L$5:$L$237,$B22,'Detailed price list'!$M$5:$M$237)=0,0, SUMPRODUCT(('Detailed price list'!E$5:E$237)*('Detailed price list'!$M$5:$M$237)*('Detailed price list'!$L$5:$L$237=$B22))/SUMIF('Detailed price list'!$L$5:$L$237,$B22,'Detailed price list'!$M$5:$M$237)) -> 34.59811555 | E22: =IF(SUMIF('Detailed price list'!$L$5:$L$237,$B22,'Detailed price list'!$M$5:$M$237)=0,0, SUMPRODUCT(('Detailed price list'!F$5:F$237)*('Detailed price list'!$M$5:$M$237)*('Detailed price list'!$L$5:$L$237=$B22))/SUMIF('Detailed price list'!$L$5:$L$237,$B22,'Detailed price list'!$M$5:$M$237)) -> 35.59269313 | F22: =IF(SUMIF('Detailed price list'!$L$5:$L$237,$B22,'Detailed price list'!$M$5:$M$237)=0,0, SUMPRODUCT(('Detailed price list'!G$5:G$237)*('Detailed price list'!$M$5:$M$237)*('Detailed price list'!$L$5:$L$237=$B22))/SUMIF('Detailed price list'!$L$5:$L$237,$B22,'Detailed price list'!$M$5:$M$237)) -> 36.61586143 | G22: =IF(SUMIF('Detailed price list'!$L$5:$L$237,$B22,'Detailed price list'!$M$5:$M$237)=0,0, SUMPRODUCT(('Detailed price list'!H$5:H$237)*('Detailed price list'!$M$5:$M$237)*('Detailed price list'!$L$5:$L$237=$B22))/SUMIF('Detailed price list'!$L$5:$L$237,$B22,'Detailed price list'!$M$5:$M$237)) -> 37.66844231
B23: Legacy Luminaire - Major (Cat V) road | C23: =IF(SUMIF('Detailed price list'!$L$5:$L$237,$B23,'Detailed price list'!$M$5:$M$237)=0,0, SUMPRODUCT(('Detailed price list'!D$5:D$237)*('Detailed price list'!$M$5:$M$237)*('Detailed price list'!$L$5:$L$237=$B23))/SUMIF('Detailed price list'!$L$5:$L$237,$B23,'Detailed price list'!$M$5:$M$237)) -> 53.78538403 | D23: =IF(SUMIF('Detailed price list'!$L$5:$L$237,$B23,'Detailed price list'!$M$5:$M$237)=0,0, SUMPRODUCT(('Detailed price list'!E$5:E$237)*('Detailed price list'!$M$5:$M$237)*('Detailed price list'!$L$5:$L$237=$B23))/SUMIF('Detailed price list'!$L$5:$L$237,$B23,'Detailed price list'!$M$5:$M$237)) -> 55.33153001 | E23: =IF(SUMIF('Detailed price list'!$L$5:$L$237,$B23,'Detailed price list'!$M$5:$M$237)=0,0, SUMPRODUCT(('Detailed price list'!F$5:F$237)*('Detailed price list'!$M$5:$M$237)*('Detailed price list'!$L$5:$L$237=$B23))/SUMIF('Detailed price list'!$L$5:$L$237,$B23,'Detailed price list'!$M$5:$M$237)) -> 56.92212241 | F23: =IF(SUMIF('Detailed price list'!$L$5:$L$237,$B23,'Detailed price list'!$M$5:$M$237)=0,0, SUMPRODUCT(('Detailed price list'!G$5:G$237)*('Detailed price list'!$M$5:$M$237)*('Detailed price list'!$L$5:$L$237=$B23))/SUMIF('Detailed price list'!$L$5:$L$237,$B23,'Detailed price list'!$M$5:$M$237)) -> 58.55843891 | G23: =IF(SUMIF('Detailed price list'!$L$5:$L$237,$B23,'Detailed price list'!$M$5:$M$237)=0,0, SUMPRODUCT(('Detailed price list'!H$5:H$237)*('Detailed price list'!$M$5:$M$237)*('Detailed price list'!$L$5:$L$237=$B23))/SUMIF('Detailed price list'!$L$5:$L$237,$B23,'Detailed price list'!$M$5:$M$237)) -> 60.24179391
B24: Legacy Luminaire - Major (Cat V) road | C24: =IF(SUMIF('Detailed price list'!$L$5:$L$237,$B24,'Detailed price list'!$M$5:$M$237)=0,0, SUMPRODUCT(('Detailed price list'!D$5:D$237)*('Detailed price list'!$M$5:$M$237)*('Detailed price list'!$L$5:$L$237=$B24))/SUMIF('Detailed price list'!$L$5:$L$237,$B24,'Detailed price list'!$M$5:$M$237)) -> 53.78538403 | D24: =IF(SUMIF('Detailed price list'!$L$5:$L$237,$B24,'Detailed price list'!$M$5:$M$237)=0,0, SUMPRODUCT(('Detailed price list'!E$5:E$237)*('Detailed price list'!$M$5:$M$237)*('Detailed price list'!$L$5:$L$237=$B24))/SUMIF('Detailed price list'!$L$5:$L$237,$B24,'Detailed price list'!$M$5:$M$237)) -> 55.33153001 | E24: =IF(SUMIF('Detailed price list'!$L$5:$L$237,$B24,'Detailed price list'!$M$5:$M$237)=0,0, SUMPRODUCT(('Detailed price list'!F$5:F$237)*('Detailed price list'!$M$5:$M$237)*('Detailed price list'!$L$5:$L$237=$B24))/SUMIF('Detailed price list'!$L$5:$L$237,$B24,'Detailed price list'!$M$5:$M$237)) -> 56.92212241 | F24: =IF(SUMIF('Detailed price list'!$L$5:$L$237,$B24,'Detailed price list'!$M$5:$M$237)=0,0, SUMPRODUCT(('Detailed price list'!G$5:G$237)*('Detailed price list'!$M$5:$M$237)*('Detailed price list'!$L$5:$L$237=$B24))/SUMIF('Detailed price list'!$L$5:$L$237,$B24,'Detailed price list'!$M$5:$M$237)) -> 58.55843891 | G24: =IF(SUMIF('Detailed price list'!$L$5:$L$237,$B24,'Detailed price list'!$M$5:$M$237)=0,0, SUMPRODUCT(('Detailed price list'!H$5:H$237)*('Detailed price list'!$M$5:$M$237)*('Detailed price list'!$L$5:$L$237=$B24))/SUMIF('Detailed price list'!$L$5:$L$237,$B24,'Detailed price list'!$M$5:$M$237)) -> 60.24179391
B25: Legacy Luminaire - Major (Cat V) road | C25: =IF(SUMIF('Detailed price list'!$L$5:$L$237,$B25,'Detailed price list'!$M$5:$M$237)=0,0, SUMPRODUCT(('Detailed price list'!D$5:D$237)*('Detailed price list'!$M$5:$M$237)*('Detailed price list'!$L$5:$L$237=$B25))/SUMIF('Detailed price list'!$L$5:$L$237,$B25,'Detailed price list'!$M$5:$M$237)) -> 53.78538403 | D25: =IF(SUMIF('Detailed price list'!$L$5:$L$237,$B25,'Detailed price list'!$M$5:$M$237)=0,0, SUMPRODUCT(('Detailed price list'!E$5:E$237)*('Detailed price list'!$M$5:$M$237)*('Detailed price list'!$L$5:$L$237=$B25))/SUMIF('Detailed price list'!$L$5:$L$237,$B25,'Detailed price list'!$M$5:$M$237)) -> 55.33153001 | E25: =IF(SUMIF('Detailed price list'!$L$5:$L$237,$B25,'Detailed price list'!$M$5:$M$237)=0,0, SUMPRODUCT(('Detailed price list'!F$5:F$237)*('Detailed price list'!$M$5:$M$237)*('Detailed price list'!$L$5:$L$237=$B25))/SUMIF('Detailed price list'!$L$5:$L$237,$B25,'Detailed price list'!$M$5:$M$237)) -> 56.92212241 | F25: =IF(SUMIF('Detailed price list'!$L$5:$L$237,$B25,'Detailed price list'!$M$5:$M$237)=0,0, SUMPRODUCT(('Detailed price list'!G$5:G$237)*('Detailed price list'!$M$5:$M$237)*('Detailed price list'!$L$5:$L$237=$B25))/SUMIF('Detailed price list'!$L$5:$L$237,$B25,'Detailed price list'!$M$5:$M$237)) -> 58.55843891 | G25: =IF(SUMIF('Detailed price list'!$L$5:$L$237,$B25,'Detailed price list'!$M$5:$M$237)=0,0, SUMPRODUCT(('Detailed price list'!H$5:H$237)*('Detailed price list'!$M$5:$M$237)*('Detailed price list'!$L$5:$L$237=$B25))/SUMIF('Detailed price list'!$L$5:$L$237,$B25,'Detailed price list'!$M$5:$M$237)) -> 60.24179391
B26: Legacy Luminaire - Major (Cat V) road | C26: =IF(SUMIF('Detailed price list'!$L$5:$L$237,$B26,'Detailed price list'!$M$5:$M$237)=0,0, SUMPRODUCT(('Detailed price list'!D$5:D$237)*('Detailed price list'!$M$5:$M$237)*('Detailed price list'!$L$5:$L$237=$B26))/SUMIF('Detailed price list'!$L$5:$L$237,$B26,'Detailed price list'!$M$5:$M$237)) -> 53.78538403 | D26: =IF(SUMIF('Detailed price list'!$L$5:$L$237,$B26,'Detailed price list'!$M$5:$M$237)=0,0, SUMPRODUCT(('Detailed price list'!E$5:E$237)*('Detailed price list'!$M$5:$M$237)*('Detailed price list'!$L$5:$L$237=$B26))/SUMIF('Detailed price list'!$L$5:$L$237,$B26,'Detailed price list'!$M$5:$M$237)) -> 55.33153001 | E26: =IF(SUMIF('Detailed price list'!$L$5:$L$237,$B26,'Detailed price list'!$M$5:$M$237)=0,0, SUMPRODUCT(('Detailed price list'!F$5:F$237)*('Detailed price list'!$M$5:$M$237)*('Detailed price list'!$L$5:$L$237=$B26))/SUMIF('Detailed price list'!$L$5:$L$237,$B26,'Detailed price list'!$M$5:$M$237)) -> 56.92212241 | F26: =IF(SUMIF('Detailed price list'!$L$5:$L$237,$B26,'Detailed price list'!$M$5:$M$237)=0,0, SUMPRODUCT(('Detailed price list'!G$5:G$237)*('Detailed price list'!$M$5:$M$237)*('Detailed price list'!$L$5:$L$237=$B26))/SUMIF('Detailed price list'!$L$5:$L$237,$B26,'Detailed price list'!$M$5:$M$237)) -> 58.55843891 | G26: =IF(SUMIF('Detailed price list'!$L$5:$L$237,$B26,'Detailed price list'!$M$5:$M$237)=0,0, SUMPRODUCT(('Detailed price list'!H$5:H$237)*('Detailed price list'!$M$5:$M$237)*('Detailed price list'!$L$5:$L$237=$B26))/SUMIF('Detailed price list'!$L$5:$L$237,$B26,'Detailed price list'!$M$5:$M$237)) -> 60.24179391
B27: Legacy Luminaire - Major (Cat V) road | C27: =IF(SUMIF('Detailed price list'!$L$5:$L$237,$B27,'Detailed price list'!$M$5:$M$237)=0,0, SUMPRODUCT(('Detailed price list'!D$5:D$237)*('Detailed price list'!$M$5:$M$237)*('Detailed price list'!$L$5:$L$237=$B27))/SUMIF('Detailed price list'!$L$5:$L$237,$B27,'Detailed price list'!$M$5:$M$237)) -> 53.78538403 | D27: =IF(SUMIF('Detailed price list'!$L$5:$L$237,$B27,'Detailed price list'!$M$5:$M$237)=0,0, SUMPRODUCT(('Detailed price list'!E$5:E$237)*('Detailed price list'!$M$5:$M$237)*('Detailed price list'!$L$5:$L$237=$B27))/SUMIF('Detailed price list'!$L$5:$L$237,$B27,'Detailed price list'!$M$5:$M$237)) -> 55.33153001 | E27: =IF(SUMIF('Detailed price list'!$L$5:$L$237,$B27,'Detailed price list'!$M$5:$M$237)=0,0, SUMPRODUCT(('Detailed price list'!F$5:F$237)*('Detailed price list'!$M$5:$M$237)*('Detailed price list'!$L$5:$L$237=$B27))/SUMIF('Detailed price list'!$L$5:$L$237,$B27,'Detailed price list'!$M$5:$M$237)) -> 56.92212241 | F27: =IF(SUMIF('Detailed price list'!$L$5:$L$237,$B27,'Detailed price list'!$M$5:$M$237)=0,0, SUMPRODUCT(('Detailed price list'!G$5:G$237)*('Detailed price list'!$M$5:$M$237)*('Detailed price list'!$L$5:$L$237=$B27))/SUMIF('Detailed price list'!$L$5:$L$237,$B27,'Detailed price list'!$M$5:$M$237)) -> 58.55843891 | G27: =IF(SUMIF('Detailed price list'!$L$5:$L$237,$B27,'Detailed price list'!$M$5:$M$237)=0,0, SUMPRODUCT(('Detailed price list'!H$5:H$237)*('Detailed price list'!$M$5:$M$237)*('Detailed price list'!$L$5:$L$237=$B27))/SUMIF('Detailed price list'!$L$5:$L$237,$B27,'Detailed price list'!$M$5:$M$237)) -> 60.24179391
B28: Legacy Luminaire - Major (Cat V) road | C28: =IF(SUMIF('Detailed price list'!$L$5:$L$237,$B28,'Detailed price list'!$M$5:$M$237)=0,0, SUMPRODUCT(('Detailed price list'!D$5:D$237)*('Detailed price list'!$M$5:$M$237)*('Detailed price list'!$L$5:$L$237=$B28))/SUMIF('Detailed price list'!$L$5:$L$237,$B28,'Detailed price list'!$M$5:$M$237)) -> 53.78538403 | D28: =IF(SUMIF('Detailed price list'!$L$5:$L$237,$B28,'Detailed price list'!$M$5:$M$237)=0,0, SUMPRODUCT(('Detailed price list'!E$5:E$237)*('Detailed price list'!$M$5:$M$237)*('Detailed price list'!$L$5:$L$237=$B28))/SUMIF('Detailed price list'!$L$5:$L$237,$B28,'Detailed price list'!$M$5:$M$237)) -> 55.33153001 | E28: =IF(SUMIF('Detailed price list'!$L$5:$L$237,$B28,'Detailed price list'!$M$5:$M$237)=0,0, SUMPRODUCT(('Detailed price list'!F$5:F$237)*('Detailed price list'!$M$5:$M$237)*('Detailed price list'!$L$5:$L$237=$B28))/SUMIF('Detailed price list'!$L$5:$L$237,$B28,'Detailed price list'!$M$5:$M$237)) -> 56.92212241 | F28: =IF(SUMIF('Detailed price list'!$L$5:$L$237,$B28,'Detailed price list'!$M$5:$M$237)=0,0, SUMPRODUCT(('Detailed price list'!G$5:G$237)*('Detailed price list'!$M$5:$M$237)*('Detailed price list'!$L$5:$L$237=$B28))/SUMIF('Detailed price list'!$L$5:$L$237,$B28,'Detailed price list'!$M$5:$M$237)) -> 58.55843891 | G28: =IF(SUMIF('Detailed price list'!$L$5:$L$237,$B28,'Detailed price list'!$M$5:$M$237)=0,0, SUMPRODUCT(('Detailed price list'!H$5:H$237)*('Detailed price list'!$M$5:$M$237)*('Detailed price list'!$L$5:$L$237=$B28))/SUMIF('Detailed price list'!$L$5:$L$237,$B28,'Detailed price list'!$M$5:$M$237)) -> 60.24179391
B29: Legacy Luminaire - Major (Cat V) road | C29: =IF(SUMIF('Detailed price list'!$L$5:$L$237,$B29,'Detailed price list'!$M$5:$M$237)=0,0, SUMPRODUCT(('Detailed price list'!D$5:D$237)*('Detailed price list'!$M$5:$M$237)*('Detailed price list'!$L$5:$L$237=$B29))/SUMIF('Detailed price list'!$L$5:$L$237,$B29,'Detailed price list'!$M$5:$M$237)) -> 53.78538403 | D29: =IF(SUMIF('Detailed price list'!$L$5:$L$237,$B29,'Detailed price list'!$M$5:$M$237)=0,0, SUMPRODUCT(('Detailed price list'!E$5:E$237)*('Detailed price list'!$M$5:$M$237)*('Detailed price list'!$L$5:$L$237=$B29))/SUMIF('Detailed price list'!$L$5:$L$237,$B29,'Detailed price list'!$M$5:$M$237)) -> 55.33153001 | E29: =IF(SUMIF('Detailed price list'!$L$5:$L$237,$B29,'Detailed price list'!$M$5:$M$237)=0,0, SUMPRODUCT(('Detailed price list'!F$5:F$237)*('Detailed price list'!$M$5:$M$237)*('Detailed price list'!$L$5:$L$237=$B29))/SUMIF('Detailed price list'!$L$5:$L$237,$B29,'Detailed price list'!$M$5:$M$237)) -> 56.92212241 | F29: =IF(SUMIF('Detailed price list'!$L$5:$L$237,$B29,'Detailed price list'!$M$5:$M$237)=0,0, SUMPRODUCT(('Detailed price list'!G$5:G$237)*('Detailed price list'!$M$5:$M$237)*('Detailed price list'!$L$5:$L$237=$B29))/SUMIF('Detailed price list'!$L$5:$L$237,$B29,'Detailed price list'!$M$5:$M$237)) -> 58.55843891 | G29: =IF(SUMIF('Detailed price list'!$L$5:$L$237,$B29,'Detailed price list'!$M$5:$M$237)=0,0, SUMPRODUCT(('Detailed price list'!H$5:H$237)*('Detailed price list'!$M$5:$M$237)*('Detailed price list'!$L$5:$L$237=$B29))/SUMIF('Detailed price list'!$L$5:$L$237,$B29,'Detailed price list'!$M$5:$M$237)) -> 60.24179391
B30: Legacy Luminaire - Major (Cat V) road | C30: =IF(SUMIF('Detailed price list'!$L$5:$L$237,$B30,'Detailed price list'!$M$5:$M$237)=0,0, SUMPRODUCT(('Detailed price list'!D$5:D$237)*('Detailed price list'!$M$5:$M$237)*('Detailed price list'!$L$5:$L$237=$B30))/SUMIF('Detailed price list'!$L$5:$L$237,$B30,'Detailed price list'!$M$5:$M$237)) -> 53.78538403 | D30: =IF(SUMIF('Detailed price list'!$L$5:$L$237,$B30,'Detailed price list'!$M$5:$M$237)=0,0, SUMPRODUCT(('Detailed price list'!E$5:E$237)*('Detailed price list'!$M$5:$M$237)*('Detailed price list'!$L$5:$L$237=$B30))/SUMIF('Detailed price list'!$L$5:$L$237,$B30,'Detailed price list'!$M$5:$M$237)) -> 55.33153001 | E30: =IF(SUMIF('Detailed price list'!$L$5:$L$237,$B30,'Detailed price list'!$M$5:$M$237)=0,0, SUMPRODUCT(('Detailed price list'!F$5:F$237)*('Detailed price list'!$M$5:$M$237)*('Detailed price list'!$L$5:$L$237=$B30))/SUMIF('Detailed price list'!$L$5:$L$237,$B30,'Detailed price list'!$M$5:$M$237)) -> 56.92212241 | F30: =IF(SUMIF('Detailed price list'!$L$5:$L$237,$B30,'Detailed price list'!$M$5:$M$237)=0,0, SUMPRODUCT(('Detailed price list'!G$5:G$237)*('Detailed price list'!$M$5:$M$237)*('Detailed price list'!$L$5:$L$237=$B30))/SUMIF('Detailed price list'!$L$5:$L$237,$B30,'Detailed price list'!$M$5:$M$237)) -> 58.55843891 | G30: =IF(SUMIF('Detailed price list'!$L$5:$L$237,$B30,'Detailed price list'!$M$5:$M$237)=0,0, SUMPRODUCT(('Detailed price list'!H$5:H$237)*('Detailed price list'!$M$5:$M$237)*('Detailed price list'!$L$5:$L$237=$B30))/SUMIF('Detailed price list'!$L$5:$L$237,$B30,'Detailed price list'!$M$5:$M$237)) -> 60.24179391
B31: Legacy Luminaire - Minor (Cat P) road | C31: =IF(SUMIF('Detailed price list'!$L$5:$L$237,$B31,'Detailed price list'!$M$5:$M$237)=0,0, SUMPRODUCT(('Detailed price list'!D$5:D$237)*('Detailed price list'!$M$5:$M$237)*('Detailed price list'!$L$5:$L$237=$B31))/SUMIF('Detailed price list'!$L$5:$L$237,$B31,'Detailed price list'!$M$5:$M$237)) -> 33.63132975 | D31: =IF(SUMIF('Detailed price list'!$L$5:$L$237,$B31,'Detailed price list'!$M$5:$M$237)=0,0, SUMPRODUCT(('Detailed price list'!E$5:E$237)*('Detailed price list'!$M$5:$M$237)*('Detailed price list'!$L$5:$L$237=$B31))/SUMIF('Detailed price list'!$L$5:$L$237,$B31,'Detailed price list'!$M$5:$M$237)) -> 34.59811555 | E31: =IF(SUMIF('Detailed price list'!$L$5:$L$237,$B31,'Detailed price list'!$M$5:$M$237)=0,0, SUMPRODUCT(('Detailed price list'!F$5:F$237)*('Detailed price list'!$M$5:$M$237)*('Detailed price list'!$L$5:$L$237=$B31))/SUMIF('Detailed price list'!$L$5:$L$237,$B31,'Detailed price list'!$M$5:$M$237)) -> 35.59269313 | F31: =IF(SUMIF('Detailed price list'!$L$5:$L$237,$B31,'Detailed price list'!$M$5:$M$237)=0,0, SUMPRODUCT(('Detailed price list'!G$5:G$237)*('Detailed price list'!$M$5:$M$237)*('Detailed price list'!$L$5:$L$237=$B31))/SUMIF('Detailed price list'!$L$5:$L$237,$B31,'Detailed price list'!$M$5:$M$237)) -> 36.61586143 | G31: =IF(SUMIF('Detailed price list'!$L$5:$L$237,$B31,'Detailed price list'!$M$5:$M$237)=0,0, SUMPRODUCT(('Detailed price list'!H$5:H$237)*('Detailed price list'!$M$5:$M$237)*('Detailed price list'!$L$5:$L$237=$B31))/SUMIF('Detailed price list'!$L$5:$L$237,$B31,'Detailed price list'!$M$5:$M$237)) -> 37.66844231
B32: Legacy Luminaire - Major (Cat V) road | C32: =IF(SUMIF('Detailed price list'!$L$5:$L$237,$B32,'Detailed price list'!$M$5:$M$237)=0,0, SUMPRODUCT(('Detailed price list'!D$5:D$237)*('Detailed price list'!$M$5:$M$237)*('Detailed price list'!$L$5:$L$237=$B32))/SUMIF('Detailed price list'!$L$5:$L$237,$B32,'Detailed price list'!$M$5:$M$237)) -> 53.78538403 | D32: =IF(SUMIF('Detailed price list'!$L$5:$L$237,$B32,'Detailed price list'!$M$5:$M$237)=0,0, SUMPRODUCT(('Detailed price list'!E$5:E$237)*('Detailed price list'!$M$5:$M$237)*('Detailed price list'!$L$5:$L$237=$B32))/SUMIF('Detailed price list'!$L$5:$L$237,$B32,'Detailed price list'!$M$5:$M$237)) -> 55.33153001 | E32: =IF(SUMIF('Detailed price list'!$L$5:$L$237,$B32,'Detailed price list'!$M$5:$M$237)=0,0, SUMPRODUCT(('Detailed price list'!F$5:F$237)*('Detailed price list'!$M$5:$M$237)*('Detailed price list'!$L$5:$L$237=$B32))/SUMIF('Detailed price list'!$L$5:$L$237,$B32,'Detailed price list'!$M$5:$M$237)) -> 56.92212241 | F32: =IF(SUMIF('Detailed price list'!$L$5:$L$237,$B32,'Detailed price list'!$M$5:$M$237)=0,0, SUMPRODUCT(('Detailed price list'!G$5:G$237)*('Detailed price list'!$M$5:$M$237)*('Detailed price list'!$L$5:$L$237=$B32))/SUMIF('Detailed price list'!$L$5:$L$237,$B32,'Detailed price list'!$M$5:$M$237)) -> 58.55843891 | G32: =IF(SUMIF('Detailed price list'!$L$5:$L$237,$B32,'Detailed price list'!$M$5:$M$237)=0,0, SUMPRODUCT(('Detailed price list'!H$5:H$237)*('Detailed price list'!$M$5:$M$237)*('Detailed price list'!$L$5:$L$237=$B32))/SUMIF('Detailed price list'!$L$5:$L$237,$B32,'Detailed price list'!$M$5:$M$237)) -> 60.24179391
B33: Legacy Luminaire - Minor (Cat P) road | C33: =IF(SUMIF('Detailed price list'!$L$5:$L$237,$B33,'Detailed price list'!$M$5:$M$237)=0,0, SUMPRODUCT(('Detailed price list'!D$5:D$237)*('Detailed price list'!$M$5:$M$237)*('Detailed price list'!$L$5:$L$237=$B33))/SUMIF('Detailed price list'!$L$5:$L$237,$B33,'Detailed price list'!$M$5:$M$237)) -> 33.63132975 | D33: =IF(SUMIF('Detailed price list'!$L$5:$L$237,$B33,'Detailed price list'!$M$5:$M$237)=0,0, SUMPRODUCT(('Detailed price list'!E$5:E$237)*('Detailed price list'!$M$5:$M$237)*('Detailed price list'!$L$5:$L$237=$B33))/SUMIF('Detailed price list'!$L$5:$L$237,$B33,'Detailed price list'!$M$5:$M$237)) -> 34.59811555 | E33: =IF(SUMIF('Detailed price list'!$L$5:$L$237,$B33,'Detailed price list'!$M$5:$M$237)=0,0, SUMPRODUCT(('Detailed price list'!F$5:F$237)*('Detailed price list'!$M$5:$M$237)*('Detailed price list'!$L$5:$L$237=$B33))/SUMIF('Detailed price list'!$L$5:$L$237,$B33,'Detailed price list'!$M$5:$M$237)) -> 35.59269313 | F33: =IF(SUMIF('Detailed price list'!$L$5:$L$237,$B33,'Detailed price list'!$M$5:$M$237)=0,0, SUMPRODUCT(('Detailed price list'!G$5:G$237)*('Detailed price list'!$M$5:$M$237)*('Detailed price list'!$L$5:$L$237=$B33))/SUMIF('Detailed price list'!$L$5:$L$237,$B33,'Detailed price list'!$M$5:$M$237)) -> 36.61586143 | G33: =IF(SUMIF('Detailed price list'!$L$5:$L$237,$B33,'Detailed price list'!$M$5:$M$237)=0,0, SUMPRODUCT(('Detailed price list'!H$5:H$237)*('Detailed price list'!$M$5:$M$237)*('Detailed price list'!$L$5:$L$237=$B33))/SUMIF('Detailed price list'!$L$5:$L$237,$B33,'Detailed price list'!$M$5:$M$237)) -> 37.66844231
B34: Legacy Luminaire - Major (Cat V) road | C34: =IF(SUMIF('Detailed price list'!$L$5:$L$237,$B34,'Detailed price list'!$M$5:$M$237)=0,0, SUMPRODUCT(('Detailed price list'!D$5:D$237)*('Detailed price list'!$M$5:$M$237)*('Detailed price list'!$L$5:$L$237=$B34))/SUMIF('Detailed price list'!$L$5:$L$237,$B34,'Detailed price list'!$M$5:$M$237)) -> 53.78538403 | D34: =IF(SUMIF('Detailed price list'!$L$5:$L$237,$B34,'Detailed price list'!$M$5:$M$237)=0,0, SUMPRODUCT(('Detailed price list'!E$5:E$237)*('Detailed price list'!$M$5:$M$237)*('Detailed price list'!$L$5:$L$237=$B34))/SUMIF('Detailed price list'!$L$5:$L$237,$B34,'Detailed price list'!$M$5:$M$237)) -> 55.33153001 | E34: =IF(SUMIF('Detailed price list'!$L$5:$L$237,$B34,'Detailed price list'!$M$5:$M$237)=0,0, SUMPRODUCT(('Detailed price list'!F$5:F$237)*('Detailed price list'!$M$5:$M$237)*('Detailed price list'!$L$5:$L$237=$B34))/SUMIF('Detailed price list'!$L$5:$L$237,$B34,'Detailed price list'!$M$5:$M$237)) -> 56.92212241 | F34: =IF(SUMIF('Detailed price list'!$L$5:$L$237,$B34,'Detailed price list'!$M$5:$M$237)=0,0, SUMPRODUCT(('Detailed price list'!G$5:G$237)*('Detailed price list'!$M$5:$M$237)*('Detailed price list'!$L$5:$L$237=$B34))/SUMIF('Detailed price list'!$L$5:$L$237,$B34,'Detailed price list'!$M$5:$M$237)) -> 58.55843891 | G34: =IF(SUMIF('Detailed price list'!$L$5:$L$237,$B34,'Detailed price list'!$M$5:$M$237)=0,0, SUMPRODUCT(('Detailed price list'!H$5:H$237)*('Detailed price list'!$M$5:$M$237)*('Detailed price list'!$L$5:$L$237=$B34))/SUMIF('Detailed price list'!$L$5:$L$237,$B34,'Detailed price list'!$M$5:$M$237)) -> 60.24179391
B35: Legacy Luminaire - Major (Cat V) road | C35: =IF(SUMIF('Detailed price list'!$L$5:$L$237,$B35,'Detailed price list'!$M$5:$M$237)=0,0, SUMPRODUCT(('Detailed price list'!D$5:D$237)*('Detailed price list'!$M$5:$M$237)*('Detailed price list'!$L$5:$L$237=$B35))/SUMIF('Detailed price list'!$L$5:$L$237,$B35,'Detailed price list'!$M$5:$M$237)) -> 53.78538403 | D35: =IF(SUMIF('Detailed price list'!$L$5:$L$237,$B35,'Detailed price list'!$M$5:$M$237)=0,0, SUMPRODUCT(('Detailed price list'!E$5:E$237)*('Detailed price list'!$M$5:$M$237)*('Detailed price list'!$L$5:$L$237=$B35))/SUMIF('Detailed price list'!$L$5:$L$237,$B35,'Detailed price list'!$M$5:$M$237)) -> 55.33153001 | E35: =IF(SUMIF('Detailed price list'!$L$5:$L$237,$B35,'Detailed price list'!$M$5:$M$237)=0,0, SUMPRODUCT(('Detailed price list'!F$5:F$237)*('Detailed price list'!$M$5:$M$237)*('Detailed price list'!$L$5:$L$237=$B35))/SUMIF('Detailed price list'!$L$5:$L$237,$B35,'Detailed price list'!$M$5:$M$237)) -> 56.92212241 | F35: =IF(SUMIF('Detailed price list'!$L$5:$L$237,$B35,'Detailed price list'!$M$5:$M$237)=0,0, SUMPRODUCT(('Detailed price list'!G$5:G$237)*('Detailed price list'!$M$5:$M$237)*('Detailed price list'!$L$5:$L$237=$B35))/SUMIF('Detailed price list'!$L$5:$L$237,$B35,'Detailed price list'!$M$5:$M$237)) -> 58.55843891 | G35: =IF(SUMIF('Detailed price list'!$L$5:$L$237,$B35,'Detailed price list'!$M$5:$M$237)=0,0, SUMPRODUCT(('Detailed price list'!H$5:H$237)*('Detailed price list'!$M$5:$M$237)*('Detailed price list'!$L$5:$L$237=$B35))/SUMIF('Detailed price list'!$L$5:$L$237,$B35,'Detailed price list'!$M$5:$M$237)) -> 60.24179391
B36: Legacy Luminaire - Major (Cat V) road | C36: =IF(SUMIF('Detailed price list'!$L$5:$L$237,$B36,'Detailed price list'!$M$5:$M$237)=0,0, SUMPRODUCT(('Detailed price list'!D$5:D$237)*('Detailed price list'!$M$5:$M$237)*('Detailed price list'!$L$5:$L$237=$B36))/SUMIF('Detailed price list'!$L$5:$L$237,$B36,'Detailed price list'!$M$5:$M$237)) -> 53.78538403 | D36: =IF(SUMIF('Detailed price list'!$L$5:$L$237,$B36,'Detailed price list'!$M$5:$M$237)=0,0, SUMPRODUCT(('Detailed price list'!E$5:E$237)*('Detailed price list'!$M$5:$M$237)*('Detailed price list'!$L$5:$L$237=$B36))/SUMIF('Detailed price list'!$L$5:$L$237,$B36,'Detailed price list'!$M$5:$M$237)) -> 55.33153001 | E36: =IF(SUMIF('Detailed price list'!$L$5:$L$237,$B36,'Detailed price list'!$M$5:$M$237)=0,0, SUMPRODUCT(('Detailed price list'!F$5:F$237)*('Detailed price list'!$M$5:$M$237)*('Detailed price list'!$L$5:$L$237=$B36))/SUMIF('Detailed price list'!$L$5:$L$237,$B36,'Detailed price list'!$M$5:$M$237)) -> 56.92212241 | F36: =IF(SUMIF('Detailed price list'!$L$5:$L$237,$B36,'Detailed price list'!$M$5:$M$237)=0,0, SUMPRODUCT(('Detailed price list'!G$5:G$237)*('Detailed price list'!$M$5:$M$237)*('Detailed price list'!$L$5:$L$237=$B36))/SUMIF('Detailed price list'!$L$5:$L$237,$B36,'Detailed price list'!$M$5:$M$237)) -> 58.55843891 | G36: =IF(SUMIF('Detailed price list'!$L$5:$L$237,$B36,'Detailed price list'!$M$5:$M$237)=0,0, SUMPRODUCT(('Detailed price list'!H$5:H$237)*('Detailed price list'!$M$5:$M$237)*('Detailed price list'!$L$5:$L$237=$B36))/SUMIF('Detailed price list'!$L$5:$L$237,$B36,'Detailed price list'!$M$5:$M$237)) -> 60.24179391
B37: Legacy Luminaire - Major (Cat V) road | C37: =IF(SUMIF('Detailed price list'!$L$5:$L$237,$B37,'Detailed price list'!$M$5:$M$237)=0,0, SUMPRODUCT(('Detailed price list'!D$5:D$237)*('Detailed price list'!$M$5:$M$237)*('Detailed price list'!$L$5:$L$237=$B37))/SUMIF('Detailed price list'!$L$5:$L$237,$B37,'Detailed price list'!$M$5:$M$237)) -> 53.78538403 | D37: =IF(SUMIF('Detailed price list'!$L$5:$L$237,$B37,'Detailed price list'!$M$5:$M$237)=0,0, SUMPRODUCT(('Detailed price list'!E$5:E$237)*('Detailed price list'!$M$5:$M$237)*('Detailed price list'!$L$5:$L$237=$B37))/SUMIF('Detailed price list'!$L$5:$L$237,$B37,'Detailed price list'!$M$5:$M$237)) -> 55.33153001 | E37: =IF(SUMIF('Detailed price list'!$L$5:$L$237,$B37,'Detailed price list'!$M$5:$M$237)=0,0, SUMPRODUCT(('Detailed price list'!F$5:F$237)*('Detailed price list'!$M$5:$M$237)*('Detailed price list'!$L$5:$L$237=$B37))/SUMIF('Detailed price list'!$L$5:$L$237,$B37,'Detailed price list'!$M$5:$M$237)) -> 56.92212241 | F37: =IF(SUMIF('Detailed price list'!$L$5:$L$237,$B37,'Detailed price list'!$M$5:$M$237)=0,0, SUMPRODUCT(('Detailed price list'!G$5:G$237)*('Detailed price list'!$M$5:$M$237)*('Detailed price list'!$L$5:$L$237=$B37))/SUMIF('Detailed price list'!$L$5:$L$237,$B37,'Detailed price list'!$M$5:$M$237)) -> 58.55843891 | G37: =IF(SUMIF('Detailed price list'!$L$5:$L$237,$B37,'Detailed price list'!$M$5:$M$237)=0,0, SUMPRODUCT(('Detailed price list'!H$5:H$237)*('Detailed price list'!$M$5:$M$237)*('Detailed price list'!$L$5:$L$237=$B37))/SUMIF('Detailed price list'!$L$5:$L$237,$B37,'Detailed price list'!$M$5:$M$237)) -> 60.24179391
B38: Legacy Luminaire - Minor (Cat P) road | C38: =IF(SUMIF('Detailed price list'!$L$5:$L$237,$B38,'Detailed price list'!$M$5:$M$237)=0,0, SUMPRODUCT(('Detailed price list'!D$5:D$237)*('Detailed price list'!$M$5:$M$237)*('Detailed price list'!$L$5:$L$237=$B38))/SUMIF('Detailed price list'!$L$5:$L$237,$B38,'Detailed price list'!$M$5:$M$237)) -> 33.63132975 | D38: =IF(SUMIF('Detailed price list'!$L$5:$L$237,$B38,'Detailed price list'!$M$5:$M$237)=0,0, SUMPRODUCT(('Detailed price list'!E$5:E$237)*('Detailed price list'!$M$5:$M$237)*('Detailed price list'!$L$5:$L$237=$B38))/SUMIF('Detailed price list'!$L$5:$L$237,$B38,'Detailed price list'!$M$5:$M$237)) -> 34.59811555 | E38: =IF(SUMIF('Detailed price list'!$L$5:$L$237,$B38,'Detailed price list'!$M$5:$M$237)=0,0, SUMPRODUCT(('Detailed price list'!F$5:F$237)*('Detailed price list'!$M$5:$M$237)*('Detailed price list'!$L$5:$L$237=$B38))/SUMIF('Detailed price list'!$L$5:$L$237,$B38,'Detailed price list'!$M$5:$M$237)) -> 35.59269313 | F38: =IF(SUMIF('Detailed price list'!$L$5:$L$237,$B38,'Detailed price list'!$M$5:$M$237)=0,0, SUMPRODUCT(('Detailed price list'!G$5:G$237)*('Detailed price list'!$M$5:$M$237)*('Detailed price list'!$L$5:$L$237=$B38))/SUMIF('Detailed price list'!$L$5:$L$237,$B38,'Detailed price list'!$M$5:$M$237)) -> 36.61586143 | G38: =IF(SUMIF('Detailed price list'!$L$5:$L$237,$B38,'Detailed price list'!$M$5:$M$237)=0,0, SUMPRODUCT(('Detailed price list'!H$5:H$237)*('Detailed price list'!$M$5:$M$237)*('Detailed price list'!$L$5:$L$237=$B38))/SUMIF('Detailed price list'!$L$5:$L$237,$B38,'Detailed price list'!$M$5:$M$237)) -> 37.66844231
B39: Legacy Luminaire - Minor (Cat P) road | C39: =IF(SUMIF('Detailed price list'!$L$5:$L$237,$B39,'Detailed price list'!$M$5:$M$237)=0,0, SUMPRODUCT(('Detailed price list'!D$5:D$237)*('Detailed price list'!$M$5:$M$237)*('Detailed price list'!$L$5:$L$237=$B39))/SUMIF('Detailed price list'!$L$5:$L$237,$B39,'Detailed price list'!$M$5:$M$237)) -> 33.63132975 | D39: =IF(SUMIF('Detailed price list'!$L$5:$L$237,$B39,'Detailed price list'!$M$5:$M$237)=0,0, SUMPRODUCT(('Detailed price list'!E$5:E$237)*('Detailed price list'!$M$5:$M$237)*('Detailed price list'!$L$5:$L$237=$B39))/SUMIF('Detailed price list'!$L$5:$L$237,$B39,'Detailed price list'!$M$5:$M$237)) -> 34.59811555 | E39: =IF(SUMIF('Detailed price list'!$L$5:$L$237,$B39,'Detailed price list'!$M$5:$M$237)=0,0, SUMPRODUCT(('Detailed price list'!F$5:F$237)*('Detailed price list'!$M$5:$M$237)*('Detailed price list'!$L$5:$L$237=$B39))/SUMIF('Detailed price list'!$L$5:$L$237,$B39,'Detailed price list'!$M$5:$M$237)) -> 35.59269313 | F39: =IF(SUMIF('Detailed price list'!$L$5:$L$237,$B39,'Detailed price list'!$M$5:$M$237)=0,0, SUMPRODUCT(('Detailed price list'!G$5:G$237)*('Detailed price list'!$M$5:$M$237)*('Detailed price list'!$L$5:$L$237=$B39))/SUMIF('Detailed price list'!$L$5:$L$237,$B39,'Detailed price list'!$M$5:$M$237)) -> 36.61586143 | G39: =IF(SUMIF('Detailed price list'!$L$5:$L$237,$B39,'Detailed price list'!$M$5:$M$237)=0,0, SUMPRODUCT(('Detailed price list'!H$5:H$237)*('Detailed price list'!$M$5:$M$237)*('Detailed price list'!$L$5:$L$237=$B39))/SUMIF('Detailed price list'!$L$5:$L$237,$B39,'Detailed price list'!$M$5:$M$237)) -> 37.66844231
B40: Legacy Luminaire - Minor (Cat P) road | C40: =IF(SUMIF('Detailed price list'!$L$5:$L$237,$B40,'Detailed price list'!$M$5:$M$237)=0,0, SUMPRODUCT(('Detailed price list'!D$5:D$237)*('Detailed price list'!$M$5:$M$237)*('Detailed price list'!$L$5:$L$237=$B40))/SUMIF('Detailed price list'!$L$5:$L$237,$B40,'Detailed price list'!$M$5:$M$237)) -> 33.63132975 | D40: =IF(SUMIF('Detailed price list'!$L$5:$L$237,$B40,'Detailed price list'!$M$5:$M$237)=0,0, SUMPRODUCT(('Detailed price list'!E$5:E$237)*('Detailed price list'!$M$5:$M$237)*('Detailed price list'!$L$5:$L$237=$B40))/SUMIF('Detailed price list'!$L$5:$L$237,$B40,'Detailed price list'!$M$5:$M$237)) -> 34.59811555 | E40: =IF(SUMIF('Detailed price list'!$L$5:$L$237,$B40,'Detailed price list'!$M$5:$M$237)=0,0, SUMPRODUCT(('Detailed price list'!F$5:F$237)*('Detailed price list'!$M$5:$M$237)*('Detailed price list'!$L$5:$L$237=$B40))/SUMIF('Detailed price list'!$L$5:$L$237,$B40,'Detailed price list'!$M$5:$M$237)) -> 35.59269313 | F40: =IF(SUMIF('Detailed price list'!$L$5:$L$237,$B40,'Detailed price list'!$M$5:$M$237)=0,0, SUMPRODUCT(('Detailed price list'!G$5:G$237)*('Detailed price list'!$M$5:$M$237)*('Detailed price list'!$L$5:$L$237=$B40))/SUMIF('Detailed price list'!$L$5:$L$237,$B40,'Detailed price list'!$M$5:$M$237)) -> 36.61586143 | G40: =IF(SUMIF('Detailed price list'!$L$5:$L$237,$B40,'Detailed price list'!$M$5:$M$237)=0,0, SUMPRODUCT(('Detailed price list'!H$5:H$237)*('Detailed price list'!$M$5:$M$237)*('Detailed price list'!$L$5:$L$237=$B40))/SUMIF('Detailed price list'!$L$5:$L$237,$B40,'Detailed price list'!$M$5:$M$237)) -> 37.66844231
B41: Legacy Luminaire - Minor (Cat P) road | C41: =IF(SUMIF('Detailed price list'!$L$5:$L$237,$B41,'Detailed price list'!$M$5:$M$237)=0,0, SUMPRODUCT(('Detailed price list'!D$5:D$237)*('Detailed price list'!$M$5:$M$237)*('Detailed price list'!$L$5:$L$237=$B41))/SUMIF('Detailed price list'!$L$5:$L$237,$B41,'Detailed price list'!$M$5:$M$237)) -> 33.63132975 | D41: =IF(SUMIF('Detailed price list'!$L$5:$L$237,$B41,'Detailed price list'!$M$5:$M$237)=0,0, SUMPRODUCT(('Detailed price list'!E$5:E$237)*('Detailed price list'!$M$5:$M$237)*('Detailed price list'!$L$5:$L$237=$B41))/SUMIF('Detailed price list'!$L$5:$L$237,$B41,'Detailed price list'!$M$5:$M$237)) -> 34.59811555 | E41: =IF(SUMIF('Detailed price list'!$L$5:$L$237,$B41,'Detailed price list'!$M$5:$M$237)=0,0, SUMPRODUCT(('Detailed price list'!F$5:F$237)*('Detailed price list'!$M$5:$M$237)*('Detailed price list'!$L$5:$L$237=$B41))/SUMIF('Detailed price list'!$L$5:$L$237,$B41,'Detailed price list'!$M$5:$M$237)) -> 35.59269313 | F41: =IF(SUMIF('Detailed price list'!$L$5:$L$237,$B41,'Detailed price list'!$M$5:$M$237)=0,0, SUMPRODUCT(('Detailed price list'!G$5:G$237)*('Detailed price list'!$M$5:$M$237)*('Detailed price list'!$L$5:$L$237=$B41))/SUMIF('Detailed price list'!$L$5:$L$237,$B41,'Detailed price list'!$M$5:$M$237)) -> 36.61586143 | G41: =IF(SUMIF('Detailed price list'!$L$5:$L$237,$B41,'Detailed price list'!$M$5:$M$237)=0,0, SUMPRODUCT(('Detailed price list'!H$5:H$237)*('Detailed price list'!$M$5:$M$237)*('Detailed price list'!$L$5:$L$237=$B41))/SUMIF('Detailed price list'!$L$5:$L$237,$B41,'Detailed price list'!$M$5:$M$237)) -> 37.66844231
B42: Legacy Luminaire - Minor (Cat P) road | C42: =IF(SUMIF('Detailed price list'!$L$5:$L$237,$B42,'Detailed price list'!$M$5:$M$237)=0,0, SUMPRODUCT(('Detailed price list'!D$5:D$237)*('Detailed price list'!$M$5:$M$237)*('Detailed price list'!$L$5:$L$237=$B42))/SUMIF('Detailed price list'!$L$5:$L$237,$B42,'Detailed price list'!$M$5:$M$237)) -> 33.63132975 | D42: =IF(SUMIF('Detailed price list'!$L$5:$L$237,$B42,'Detailed price list'!$M$5:$M$237)=0,0, SUMPRODUCT(('Detailed price list'!E$5:E$237)*('Detailed price list'!$M$5:$M$237)*('Detailed price list'!$L$5:$L$237=$B42))/SUMIF('Detailed price list'!$L$5:$L$237,$B42,'Detailed price list'!$M$5:$M$237)) -> 34.59811555 | E42: =IF(SUMIF('Detailed price list'!$L$5:$L$237,$B42,'Detailed price list'!$M$5:$M$237)=0,0, SUMPRODUCT(('Detailed price list'!F$5:F$237)*('Detailed price list'!$M$5:$M$237)*('Detailed price list'!$L$5:$L$237=$B42))/SUMIF('Detailed price list'!$L$5:$L$237,$B42,'Detailed price list'!$M$5:$M$237)) -> 35.59269313 | F42: =IF(SUMIF('Detailed price list'!$L$5:$L$237,$B42,'Detailed price list'!$M$5:$M$237)=0,0, SUMPRODUCT(('Detailed price list'!G$5:G$237)*('Detailed price list'!$M$5:$M$237)*('Detailed price list'!$L$5:$L$237=$B42))/SUMIF('Detailed price list'!$L$5:$L$237,$B42,'Detailed price list'!$M$5:$M$237)) -> 36.61586143 | G42: =IF(SUMIF('Detailed price list'!$L$5:$L$237,$B42,'Detailed price list'!$M$5:$M$237)=0,0, SUMPRODUCT(('Detailed price list'!H$5:H$237)*('Detailed price list'!$M$5:$M$237)*('Detailed price list'!$L$5:$L$237=$B42))/SUMIF('Detailed price list'!$L$5:$L$237,$B42,'Detailed price list'!$M$5:$M$237)) -> 37.66844231
B43: Legacy Luminaire - Minor (Cat P) road | C43: =IF(SUMIF('Detailed price list'!$L$5:$L$237,$B43,'Detailed price list'!$M$5:$M$237)=0,0, SUMPRODUCT(('Detailed price list'!D$5:D$237)*('Detailed price list'!$M$5:$M$237)*('Detailed price list'!$L$5:$L$237=$B43))/SUMIF('Detailed price list'!$L$5:$L$237,$B43,'Detailed price list'!$M$5:$M$237)) -> 33.63132975 | D43: =IF(SUMIF('Detailed price list'!$L$5:$L$237,$B43,'Detailed price list'!$M$5:$M$237)=0,0, SUMPRODUCT(('Detailed price list'!E$5:E$237)*('Detailed price list'!$M$5:$M$237)*('Detailed price list'!$L$5:$L$237=$B43))/SUMIF('Detailed price list'!$L$5:$L$237,$B43,'Detailed price list'!$M$5:$M$237)) -> 34.59811555 | E43: =IF(SUMIF('Detailed price list'!$L$5:$L$237,$B43,'Detailed price list'!$M$5:$M$237)=0,0, SUMPRODUCT(('Detailed price list'!F$5:F$237)*('Detailed price list'!$M$5:$M$237)*('Detailed price list'!$L$5:$L$237=$B43))/SUMIF('Detailed price list'!$L$5:$L$237,$B43,'Detailed price list'!$M$5:$M$237)) -> 35.59269313 | F43: =IF(SUMIF('Detailed price list'!$L$5:$L$237,$B43,'Detailed price list'!$M$5:$M$237)=0,0, SUMPRODUCT(('Detailed price list'!G$5:G$237)*('Detailed price list'!$M$5:$M$237)*('Detailed price list'!$L$5:$L$237=$B43))/SUMIF('Detailed price list'!$L$5:$L$237,$B43,'Detailed price list'!$M$5:$M$237)) -> 36.61586143 | G43: =IF(SUMIF('Detailed price list'!$L$5:$L$237,$B43,'Detailed price list'!$M$5:$M$237)=0,0, SUMPRODUCT(('Detailed price list'!H$5:H$237)*('Detailed price list'!$M$5:$M$237)*('Detailed price list'!$L$5:$L$237=$B43))/SUMIF('Detailed price list'!$L$5:$L$237,$B43,'Detailed price list'!$M$5:$M$237)) -> 37.66844231
B44: Legacy Luminaire - Minor (Cat P) road | C44: =IF(SUMIF('Detailed price list'!$L$5:$L$237,$B44,'Detailed price list'!$M$5:$M$237)=0,0, SUMPRODUCT(('Detailed price list'!D$5:D$237)*('Detailed price list'!$M$5:$M$237)*('Detailed price list'!$L$5:$L$237=$B44))/SUMIF('Detailed price list'!$L$5:$L$237,$B44,'Detailed price list'!$M$5:$M$237)) -> 33.63132975 | D44: =IF(SUMIF('Detailed price list'!$L$5:$L$237,$B44,'Detailed price list'!$M$5:$M$237)=0,0, SUMPRODUCT(('Detailed price list'!E$5:E$237)*('Detailed price list'!$M$5:$M$237)*('Detailed price list'!$L$5:$L$237=$B44))/SUMIF('Detailed price list'!$L$5:$L$237,$B44,'Detailed price list'!$M$5:$M$237)) -> 34.59811555 | E44: =IF(SUMIF('Detailed price list'!$L$5:$L$237,$B44,'Detailed price list'!$M$5:$M$237)=0,0, SUMPRODUCT(('Detailed price list'!F$5:F$237)*('Detailed price list'!$M$5:$M$237)*('Detailed price list'!$L$5:$L$237=$B44))/SUMIF('Detailed price list'!$L$5:$L$237,$B44,'Detailed price list'!$M$5:$M$237)) -> 35.59269313 | F44: =IF(SUMIF('Detailed price list'!$L$5:$L$237,$B44,'Detailed price list'!$M$5:$M$237)=0,0, SUMPRODUCT(('Detailed price list'!G$5:G$237)*('Detailed price list'!$M$5:$M$237)*('Detailed price list'!$L$5:$L$237=$B44))/SUMIF('Detailed price list'!$L$5:$L$237,$B44,'Detailed price list'!$M$5:$M$237)) -> 36.61586143 | G44: =IF(SUMIF('Detailed price list'!$L$5:$L$237,$B44,'Detailed price list'!$M$5:$M$237)=0,0, SUMPRODUCT(('Detailed price list'!H$5:H$237)*('Detailed price list'!$M$5:$M$237)*('Detailed price list'!$L$5:$L$237=$B44))/SUMIF('Detailed price list'!$L$5:$L$237,$B44,'Detailed price list'!$M$5:$M$237)) -> 37.66844231
B45: Legacy Luminaire - Minor (Cat P) road | C45: =IF(SUMIF('Detailed price list'!$L$5:$L$237,$B45,'Detailed price list'!$M$5:$M$237)=0,0, SUMPRODUCT(('Detailed price list'!D$5:D$237)*('Detailed price list'!$M$5:$M$237)*('Detailed price list'!$L$5:$L$237=$B45))/SUMIF('Detailed price list'!$L$5:$L$237,$B45,'Detailed price list'!$M$5:$M$237)) -> 33.63132975 | D45: =IF(SUMIF('Detailed price list'!$L$5:$L$237,$B45,'Detailed price list'!$M$5:$M$237)=0,0, SUMPRODUCT(('Detailed price list'!E$5:E$237)*('Detailed price list'!$M$5:$M$237)*('Detailed price list'!$L$5:$L$237=$B45))/SUMIF('Detailed price list'!$L$5:$L$237,$B45,'Detailed price list'!$M$5:$M$237)) -> 34.59811555 | E45: =IF(SUMIF('Detailed price list'!$L$5:$L$237,$B45,'Detailed price list'!$M$5:$M$237)=0,0, SUMPRODUCT(('Detailed price list'!F$5:F$237)*('Detailed price list'!$M$5:$M$237)*('Detailed price list'!$L$5:$L$237=$B45))/SUMIF('Detailed price list'!$L$5:$L$237,$B45,'Detailed price list'!$M$5:$M$237)) -> 35.59269313 | F45: =IF(SUMIF('Detailed price list'!$L$5:$L$237,$B45,'Detailed price list'!$M$5:$M$237)=0,0, SUMPRODUCT(('Detailed price list'!G$5:G$237)*('Detailed price list'!$M$5:$M$237)*('Detailed price list'!$L$5:$L$237=$B45))/SUMIF('Detailed price list'!$L$5:$L$237,$B45,'Detailed price list'!$M$5:$M$237)) -> 36.61586143 | G45: =IF(SUMIF('Detailed price list'!$L$5:$L$237,$B45,'Detailed price list'!$M$5:$M$237)=0,0, SUMPRODUCT(('Detailed price list'!H$5:H$237)*('Detailed price list'!$M$5:$M$237)*('Detailed price list'!$L$5:$L$237=$B45))/SUMIF('Detailed price list'!$L$5:$L$237,$B45,'Detailed price list'!$M$5:$M$237)) -> 37.66844231
B46: Legacy Luminaire - Minor (Cat P) road | C46: =IF(SUMIF('Detailed price list'!$L$5:$L$237,$B46,'Detailed price list'!$M$5:$M$237)=0,0, SUMPRODUCT(('Detailed price list'!D$5:D$237)*('Detailed price list'!$M$5:$M$237)*('Detailed price list'!$L$5:$L$237=$B46))/SUMIF('Detailed price list'!$L$5:$L$237,$B46,'Detailed price list'!$M$5:$M$237)) -> 33.63132975 | D46: =IF(SUMIF('Detailed price list'!$L$5:$L$237,$B46,'Detailed price list'!$M$5:$M$237)=0,0, SUMPRODUCT(('Detailed price list'!E$5:E$237)*('Detailed price list'!$M$5:$M$237)*('Detailed price list'!$L$5:$L$237=$B46))/SUMIF('Detailed price list'!$L$5:$L$237,$B46,'Detailed price list'!$M$5:$M$237)) -> 34.59811555 | E46: =IF(SUMIF('Detailed price list'!$L$5:$L$237,$B46,'Detailed price list'!$M$5:$M$237)=0,0, SUMPRODUCT(('Detailed price list'!F$5:F$237)*('Detailed price list'!$M$5:$M$237)*('Detailed price list'!$L$5:$L$237=$B46))/SUMIF('Detailed price list'!$L$5:$L$237,$B46,'Detailed price list'!$M$5:$M$237)) -> 35.59269313 | F46: =IF(SUMIF('Detailed price list'!$L$5:$L$237,$B46,'Detailed price list'!$M$5:$M$237)=0,0, SUMPRODUCT(('Detailed price list'!G$5:G$237)*('Detailed price list'!$M$5:$M$237)*('Detailed price list'!$L$5:$L$237=$B46))/SUMIF('Detailed price list'!$L$5:$L$237,$B46,'Detailed price list'!$M$5:$M$237)) -> 36.61586143 | G46: =IF(SUMIF('Detailed price list'!$L$5:$L$237,$B46,'Detailed price list'!$M$5:$M$237)=0,0, SUMPRODUCT(('Detailed price list'!H$5:H$237)*('Detailed price list'!$M$5:$M$237)*('Detailed price list'!$L$5:$L$237=$B46))/SUMIF('Detailed price list'!$L$5:$L$237,$B46,'Detailed price list'!$M$5:$M$237)) -> 37.66844231
B47: Luminaire - Minor (Cat P) road | C47: =IF(SUMIF('Detailed price list'!$L$5:$L$237,$B47,'Detailed price list'!$M$5:$M$237)=0,0, SUMPRODUCT(('Detailed price list'!D$5:D$237)*('Detailed price list'!$M$5:$M$237)*('Detailed price list'!$L$5:$L$237=$B47))/SUMIF('Detailed price list'!$L$5:$L$237,$B47,'Detailed price list'!$M$5:$M$237)) -> 23.4433354 | D47: =IF(SUMIF('Detailed price list'!$L$5:$L$237,$B47,'Detailed price list'!$M$5:$M$237)=0,0, SUMPRODUCT(('Detailed price list'!E$5:E$237)*('Detailed price list'!$M$5:$M$237)*('Detailed price list'!$L$5:$L$237=$B47))/SUMIF('Detailed price list'!$L$5:$L$237,$B47,'Detailed price list'!$M$5:$M$237)) -> 24.11725117 | E47: =IF(SUMIF('Detailed price list'!$L$5:$L$237,$B47,'Detailed price list'!$M$5:$M$237)=0,0, SUMPRODUCT(('Detailed price list'!F$5:F$237)*('Detailed price list'!$M$5:$M$237)*('Detailed price list'!$L$5:$L$237=$B47))/SUMIF('Detailed price list'!$L$5:$L$237,$B47,'Detailed price list'!$M$5:$M$237)) -> 24.81053973 | F47: =IF(SUMIF('Detailed price list'!$L$5:$L$237,$B47,'Detailed price list'!$M$5:$M$237)=0,0, SUMPRODUCT(('Detailed price list'!G$5:G$237)*('Detailed price list'!$M$5:$M$237)*('Detailed price list'!$L$5:$L$237=$B47))/SUMIF('Detailed price list'!$L$5:$L$237,$B47,'Detailed price list'!$M$5:$M$237)) -> 25.52375796 | G47: =IF(SUMIF('Detailed price list'!$L$5:$L$237,$B47,'Detailed price list'!$M$5:$M$237)=0,0, SUMPRODUCT(('Detailed price list'!H$5:H$237)*('Detailed price list'!$M$5:$M$237)*('Detailed price list'!$L$5:$L$237=$B47))/SUMIF('Detailed price list'!$L$5:$L$237,$B47,'Detailed price list'!$M$5:$M$237)) -> 26.25747877
B48: Luminaire - Major (Cat V) road | C48: =IF(SUMIF('Detailed price list'!$L$5:$L$237,$B48,'Detailed price list'!$M$5:$M$237)=0,0, SUMPRODUCT(('Detailed price list'!D$5:D$237)*('Detailed price list'!$M$5:$M$237)*('Detailed price list'!$L$5:$L$237=$B48))/SUMIF('Detailed price list'!$L$5:$L$237,$B48,'Detailed price list'!$M$5:$M$237)) -> 31.94082745 | D48: =IF(SUMIF('Detailed price list'!$L$5:$L$237,$B48,'Detailed price list'!$M$5:$M$237)=0,0, SUMPRODUCT(('Detailed price list'!E$5:E$237)*('Detailed price list'!$M$5:$M$237)*('Detailed price list'!$L$5:$L$237=$B48))/SUMIF('Detailed price list'!$L$5:$L$237,$B48,'Detailed price list'!$M$5:$M$237)) -> 32.85901708 | E48: =IF(SUMIF('Detailed price list'!$L$5:$L$237,$B48,'Detailed price list'!$M$5:$M$237)=0,0, SUMPRODUCT(('Detailed price list'!F$5:F$237)*('Detailed price list'!$M$5:$M$237)*('Detailed price list'!$L$5:$L$237=$B48))/SUMIF('Detailed price list'!$L$5:$L$237,$B48,'Detailed price list'!$M$5:$M$237)) -> 33.80360153 | F48: =IF(SUMIF('Detailed price list'!$L$5:$L$237,$B48,'Detailed price list'!$M$5:$M$237)=0,0, SUMPRODUCT(('Detailed price list'!G$5:G$237)*('Detailed price list'!$M$5:$M$237)*('Detailed price list'!$L$5:$L$237=$B48))/SUMIF('Detailed price list'!$L$5:$L$237,$B48,'Detailed price list'!$M$5:$M$237)) -> 34.77533956 | G48: =IF(SUMIF('Detailed price list'!$L$5:$L$237,$B48,'Detailed price list'!$M$5:$M$237)=0,0, SUMPRODUCT(('Detailed price list'!H$5:H$237)*('Detailed price list'!$M$5:$M$237)*('Detailed price list'!$L$5:$L$237=$B48))/SUMIF('Detailed price list'!$L$5:$L$237,$B48,'Detailed price list'!$M$5:$M$237)) -> 35.77501173
B49: Luminaire - Minor (Cat P) road | C49: =IF(SUMIF('Detailed price list'!$L$5:$L$237,$B49,'Detailed price list'!$M$5:$M$237)=0,0, SUMPRODUCT(('Detailed price list'!D$5:D$237)*('Detailed price list'!$M$5:$M$237)*('Detailed price list'!$L$5:$L$237=$B49))/SUMIF('Detailed price list'!$L$5:$L$237,$B49,'Detailed price list'!$M$5:$M$237)) -> 23.4433354 | D49: =IF(SUMIF('Detailed price list'!$L$5:$L$237,$B49,'Detailed price list'!$M$5:$M$237)=0,0, SUMPRODUCT(('Detailed price list'!E$5:E$237)*('Detailed price list'!$M$5:$M$237)*('Detailed price list'!$L$5:$L$237=$B49))/SUMIF('Detailed price list'!$L$5:$L$237,$B49,'Detailed price list'!$M$5:$M$237)) -> 24.11725117 | E49: =IF(SUMIF('Detailed price list'!$L$5:$L$237,$B49,'Detailed price list'!$M$5:$M$237)=0,0, SUMPRODUCT(('Detailed price list'!F$5:F$237)*('Detailed price list'!$M$5:$M$237)*('Detailed price list'!$L$5:$L$237=$B49))/SUMIF('Detailed price list'!$L$5:$L$237,$B49,'Detailed price list'!$M$5:$M$237)) -> 24.81053973 | F49: =IF(SUMIF('Detailed price list'!$L$5:$L$237,$B49,'Detailed price list'!$M$5:$M$237)=0,0, SUMPRODUCT(('Detailed price list'!G$5:G$237)*('Detailed price list'!$M$5:$M$237)*('Detailed price list'!$L$5:$L$237=$B49))/SUMIF('Detailed price list'!$L$5:$L$237,$B49,'Detailed price list'!$M$5:$M$237)) -> 25.52375796 | G49: =IF(SUMIF('Detailed price list'!$L$5:$L$237,$B49,'Detailed price list'!$M$5:$M$237)=0,0, SUMPRODUCT(('Detailed price list'!H$5:H$237)*('Detailed price list'!$M$5:$M$237)*('Detailed price list'!$L$5:$L$237=$B49))/SUMIF('Detailed price list'!$L$5:$L$237,$B49,'Detailed price list'!$M$5:$M$237)) -> 26.25747877
B50: Luminaire - Major (Cat V) road | C50: =IF(SUMIF('Detailed price list'!$L$5:$L$237,$B50,'Detailed price list'!$M$5:$M$237)=0,0, SUMPRODUCT(('Detailed price list'!D$5:D$237)*('Detailed price list'!$M$5:$M$237)*('Detailed price list'!$L$5:$L$237=$B50))/SUMIF('Detailed price list'!$L$5:$L$237,$B50,'Detailed price list'!$M$5:$M$237)) -> 31.94082745 | D50: =IF(SUMIF('Detailed price list'!$L$5:$L$237,$B50,'Detailed price list'!$M$5:$M$237)=0,0, SUMPRODUCT(('Detailed price list'!E$5:E$237)*('Detailed price list'!$M$5:$M$237)*('Detailed price list'!$L$5:$L$237=$B50))/SUMIF('Detailed price list'!$L$5:$L$237,$B50,'Detailed price list'!$M$5:$M$237)) -> 32.85901708 | E50: =IF(SUMIF('Detailed price list'!$L$5:$L$237,$B50,'Detailed price list'!$M$5:$M$237)=0,0, SUMPRODUCT(('Detailed price list'!F$5:F$237)*('Detailed price list'!$M$5:$M$237)*('Detailed price list'!$L$5:$L$237=$B50))/SUMIF('Detailed price list'!$L$5:$L$237,$B50,'Detailed price list'!$M$5:$M$237)) -> 33.80360153 | F50: =IF(SUMIF('Detailed price list'!$L$5:$L$237,$B50,'Detailed price list'!$M$5:$M$237)=0,0, SUMPRODUCT(('Detailed price list'!G$5:G$237)*('Detailed price list'!$M$5:$M$237)*('Detailed price list'!$L$5:$L$237=$B50))/SUMIF('Detailed price list'!$L$5:$L$237,$B50,'Detailed price list'!$M$5:$M$237)) -> 34.77533956 | G50: =IF(SUMIF('Detailed price list'!$L$5:$L$237,$B50,'Detailed price list'!$M$5:$M$237)=0,0, SUMPRODUCT(('Detailed price list'!H$5:H$237)*('Detailed price list'!$M$5:$M$237)*('Detailed price list'!$L$5:$L$237=$B50))/SUMIF('Detailed price list'!$L$5:$L$237,$B50,'Detailed price list'!$M$5:$M$237)) -> 35.77501173
B51: Luminaire - Minor (Cat P) road | C51: =IF(SUMIF('Detailed price list'!$L$5:$L$237,$B51,'Detailed price list'!$M$5:$M$237)=0,0, SUMPRODUCT(('Detailed price list'!D$5:D$237)*('Detailed price list'!$M$5:$M$237)*('Detailed price list'!$L$5:$L$237=$B51))/SUMIF('Detailed price list'!$L$5:$L$237,$B51,'Detailed price list'!$M$5:$M$237)) -> 23.4433354 | D51: =IF(SUMIF('Detailed price list'!$L$5:$L$237,$B51,'Detailed price list'!$M$5:$M$237)=0,0, SUMPRODUCT(('Detailed price list'!E$5:E$237)*('Detailed price list'!$M$5:$M$237)*('Detailed price list'!$L$5:$L$237=$B51))/SUMIF('Detailed price list'!$L$5:$L$237,$B51,'Detailed price list'!$M$5:$M$237)) -> 24.11725117 | E51: =IF(SUMIF('Detailed price list'!$L$5:$L$237,$B51,'Detailed price list'!$M$5:$M$237)=0,0, SUMPRODUCT(('Detailed price list'!F$5:F$237)*('Detailed price list'!$M$5:$M$237)*('Detailed price list'!$L$5:$L$237=$B51))/SUMIF('Detailed price list'!$L$5:$L$237,$B51,'Detailed price list'!$M$5:$M$237)) -> 24.81053973 | F51: =IF(SUMIF('Detailed price list'!$L$5:$L$237,$B51,'Detailed price list'!$M$5:$M$237)=0,0, SUMPRODUCT(('Detailed price list'!G$5:G$237)*('Detailed price list'!$M$5:$M$237)*('Detailed price list'!$L$5:$L$237=$B51))/SUMIF('Detailed price list'!$L$5:$L$237,$B51,'Detailed price list'!$M$5:$M$237)) -> 25.52375796 | G51: =IF(SUMIF('Detailed price list'!$L$5:$L$237,$B51,'Detailed price list'!$M$5:$M$237)=0,0, SUMPRODUCT(('Detailed price list'!H$5:H$237)*('Detailed price list'!$M$5:$M$237)*('Detailed price list'!$L$5:$L$237=$B51))/SUMIF('Detailed price list'!$L$5:$L$237,$B51,'Detailed price list'!$M$5:$M$237)) -> 26.25747877
B52: Luminaire - Minor (Cat P) road | C52: =IF(SUMIF('Detailed price list'!$L$5:$L$237,$B52,'Detailed price list'!$M$5:$M$237)=0,0, SUMPRODUCT(('Detailed price list'!D$5:D$237)*('Detailed price list'!$M$5:$M$237)*('Detailed price list'!$L$5:$L$237=$B52))/SUMIF('Detailed price list'!$L$5:$L$237,$B52,'Detailed price list'!$M$5:$M$237)) -> 23.4433354 | D52: =IF(SUMIF('Detailed price list'!$L$5:$L$237,$B52,'Detailed price list'!$M$5:$M$237)=0,0, SUMPRODUCT(('Detailed price list'!E$5:E$237)*('Detailed price list'!$M$5:$M$237)*('Detailed price list'!$L$5:$L$237=$B52))/SUMIF('Detailed price list'!$L$5:$L$237,$B52,'Detailed price list'!$M$5:$M$237)) -> 24.11725117 | E52: =IF(SUMIF('Detailed price list'!$L$5:$L$237,$B52,'Detailed price list'!$M$5:$M$237)=0,0, SUMPRODUCT(('Detailed price list'!F$5:F$237)*('Detailed price list'!$M$5:$M$237)*('Detailed price list'!$L$5:$L$237=$B52))/SUMIF('Detailed price list'!$L$5:$L$237,$B52,'Detailed price list'!$M$5:$M$237)) -> 24.81053973 | F52: =IF(SUMIF('Detailed price list'!$L$5:$L$237,$B52,'Detailed price list'!$M$5:$M$237)=0,0, SUMPRODUCT(('Detailed price list'!G$5:G$237)*('Detailed price list'!$M$5:$M$237)*('Detailed price list'!$L$5:$L$237=$B52))/SUMIF('Detailed price list'!$L$5:$L$237,$B52,'Detailed price list'!$M$5:$M$237)) -> 25.52375796 | G52: =IF(SUMIF('Detailed price list'!$L$5:$L$237,$B52,'Detailed price list'!$M$5:$M$237)=0,0, SUMPRODUCT(('Detailed price list'!H$5:H$237)*('Detailed price list'!$M$5:$M$237)*('Detailed price list'!$L$5:$L$237=$B52))/SUMIF('Detailed price list'!$L$5:$L$237,$B52,'Detailed price list'!$M$5:$M$237)) -> 26.25747877
B53: Luminaire - Minor (Cat P) road | C53: =IF(SUMIF('Detailed price list'!$L$5:$L$237,$B53,'Detailed price list'!$M$5:$M$237)=0,0, SUMPRODUCT(('Detailed price list'!D$5:D$237)*('Detailed price list'!$M$5:$M$237)*('Detailed price list'!$L$5:$L$237=$B53))/SUMIF('Detailed price list'!$L$5:$L$237,$B53,'Detailed price list'!$M$5:$M$237)) -> 23.4433354 | D53: =IF(SUMIF('Detailed price list'!$L$5:$L$237,$B53,'Detailed price list'!$M$5:$M$237)=0,0, SUMPRODUCT(('Detailed price list'!E$5:E$237)*('Detailed price list'!$M$5:$M$237)*('Detailed price list'!$L$5:$L$237=$B53))/SUMIF('Detailed price list'!$L$5:$L$237,$B53,'Detailed price list'!$M$5:$M$237)) -> 24.11725117 | E53: =IF(SUMIF('Detailed price list'!$L$5:$L$237,$B53,'Detailed price list'!$M$5:$M$237)=0,0, SUMPRODUCT(('Detailed price list'!F$5:F$237)*('Detailed price list'!$M$5:$M$237)*('Detailed price list'!$L$5:$L$237=$B53))/SUMIF('Detailed price list'!$L$5:$L$237,$B53,'Detailed price list'!$M$5:$M$237)) -> 24.81053973 | F53: =IF(SUMIF('Detailed price list'!$L$5:$L$237,$B53,'Detailed price list'!$M$5:$M$237)=0,0, SUMPRODUCT(('Detailed price list'!G$5:G$237)*('Detailed price list'!$M$5:$M$237)*('Detailed price list'!$L$5:$L$237=$B53))/SUMIF('Detailed price list'!$L$5:$L$237,$B53,'Detailed price list'!$M$5:$M$237)) -> 25.52375796 | G53: =IF(SUMIF('Detailed price list'!$L$5:$L$237,$B53,'Detailed price list'!$M$5:$M$237)=0,0, SUMPRODUCT(('Detailed price list'!H$5:H$237)*('Detailed price list'!$M$5:$M$237)*('Detailed price list'!$L$5:$L$237=$B53))/SUMIF('Detailed price list'!$L$5:$L$237,$B53,'Detailed price list'!$M$5:$M$237)) -> 26.25747877
B54: Luminaire - Minor (Cat P) road | C54: =IF(SUMIF('Detailed price list'!$L$5:$L$237,$B54,'Detailed price list'!$M$5:$M$237)=0,0, SUMPRODUCT(('Detailed price list'!D$5:D$237)*('Detailed price list'!$M$5:$M$237)*('Detailed price list'!$L$5:$L$237=$B54))/SUMIF('Detailed price list'!$L$5:$L$237,$B54,'Detailed price list'!$M$5:$M$237)) -> 23.4433354 | D54: =IF(SUMIF('Detailed price list'!$L$5:$L$237,$B54,'Detailed price list'!$M$5:$M$237)=0,0, SUMPRODUCT(('Detailed price list'!E$5:E$237)*('Detailed price list'!$M$5:$M$237)*('Detailed price list'!$L$5:$L$237=$B54))/SUMIF('Detailed price list'!$L$5:$L$237,$B54,'Detailed price list'!$M$5:$M$237)) -> 24.11725117 | E54: =IF(SUMIF('Detailed price list'!$L$5:$L$237,$B54,'Detailed price list'!$M$5:$M$237)=0,0, SUMPRODUCT(('Detailed price list'!F$5:F$237)*('Detailed price list'!$M$5:$M$237)*('Detailed price list'!$L$5:$L$237=$B54))/SUMIF('Detailed price list'!$L$5:$L$237,$B54,'Detailed price list'!$M$5:$M$237)) -> 24.81053973 | F54: =IF(SUMIF('Detailed price list'!$L$5:$L$237,$B54,'Detailed price list'!$M$5:$M$237)=0,0, SUMPRODUCT(('Detailed price list'!G$5:G$237)*('Detailed price list'!$M$5:$M$237)*('Detailed price list'!$L$5:$L$237=$B54))/SUMIF('Detailed price list'!$L$5:$L$237,$B54,'Detailed price list'!$M$5:$M$237)) -> 25.52375796 | G54: =IF(SUMIF('Detailed price list'!$L$5:$L$237,$B54,'Detailed price list'!$M$5:$M$237)=0,0, SUMPRODUCT(('Detailed price list'!H$5:H$237)*('Detailed price list'!$M$5:$M$237)*('Detailed price list'!$L$5:$L$237=$B54))/SUMIF('Detailed price list'!$L$5:$L$237,$B54,'Detailed price list'!$M$5:$M$237)) -> 26.25747877
B55: Luminaire - Major (Cat V) road | C55: =IF(SUMIF('Detailed price list'!$L$5:$L$237,$B55,'Detailed price list'!$M$5:$M$237)=0,0, SUMPRODUCT(('Detailed price list'!D$5:D$237)*('Detailed price list'!$M$5:$M$237)*('Detailed price list'!$L$5:$L$237=$B55))/SUMIF('Detailed price list'!$L$5:$L$237,$B55,'Detailed price list'!$M$5:$M$237)) -> 31.94082745 | D55: =IF(SUMIF('Detailed price list'!$L$5:$L$237,$B55,'Detailed price list'!$M$5:$M$237)=0,0, SUMPRODUCT(('Detailed price list'!E$5:E$237)*('Detailed price list'!$M$5:$M$237)*('Detailed price list'!$L$5:$L$237=$B55))/SUMIF('Detailed price list'!$L$5:$L$237,$B55,'Detailed price list'!$M$5:$M$237)) -> 32.85901708 | E55: =IF(SUMIF('Detailed price list'!$L$5:$L$237,$B55,'Detailed price list'!$M$5:$M$237)=0,0, SUMPRODUCT(('Detailed price list'!F$5:F$237)*('Detailed price list'!$M$5:$M$237)*('Detailed price list'!$L$5:$L$237=$B55))/SUMIF('Detailed price list'!$L$5:$L$237,$B55,'Detailed price list'!$M$5:$M$237)) -> 33.80360153 | F55: =IF(SUMIF('Detailed price list'!$L$5:$L$237,$B55,'Detailed price list'!$M$5:$M$237)=0,0, SUMPRODUCT(('Detailed price list'!G$5:G$237)*('Detailed price list'!$M$5:$M$237)*('Detailed price list'!$L$5:$L$237=$B55))/SUMIF('Detailed price list'!$L$5:$L$237,$B55,'Detailed price list'!$M$5:$M$237)) -> 34.77533956 | G55: =IF(SUMIF('Detailed price list'!$L$5:$L$237,$B55,'Detailed price list'!$M$5:$M$237)=0,0, SUMPRODUCT(('Detailed price list'!H$5:H$237)*('Detailed price list'!$M$5:$M$237)*('Detailed price list'!$L$5:$L$237=$B55))/SUMIF('Detailed price list'!$L$5:$L$237,$B55,'Detailed price list'!$M$5:$M$237)) -> 35.77501173
B56: Luminaire - Minor (Cat P) road | C56: =IF(SUMIF('Detailed price list'!$L$5:$L$237,$B56,'Detailed price list'!$M$5:$M$237)=0,0, SUMPRODUCT(('Detailed price list'!D$5:D$237)*('Detailed price list'!$M$5:$M$237)*('Detailed price list'!$L$5:$L$237=$B56))/SUMIF('Detailed price list'!$L$5:$L$237,$B56,'Detailed price list'!$M$5:$M$237)) -> 23.4433354 | D56: =IF(SUMIF('Detailed price list'!$L$5:$L$237,$B56,'Detailed price list'!$M$5:$M$237)=0,0, SUMPRODUCT(('Detailed price list'!E$5:E$237)*('Detailed price list'!$M$5:$M$237)*('Detailed price list'!$L$5:$L$237=$B56))/SUMIF('Detailed price list'!$L$5:$L$237,$B56,'Detailed price list'!$M$5:$M$237)) -> 24.11725117 | E56: =IF(SUMIF('Detailed price list'!$L$5:$L$237,$B56,'Detailed price list'!$M$5:$M$237)=0,0, SUMPRODUCT(('Detailed price list'!F$5:F$237)*('Detailed price list'!$M$5:$M$237)*('Detailed price list'!$L$5:$L$237=$B56))/SUMIF('Detailed price list'!$L$5:$L$237,$B56,'Detailed price list'!$M$5:$M$237)) -> 24.81053973 | F56: =IF(SUMIF('Detailed price list'!$L$5:$L$237,$B56,'Detailed price list'!$M$5:$M$237)=0,0, SUMPRODUCT(('Detailed price list'!G$5:G$237)*('Detailed price list'!$M$5:$M$237)*('Detailed price list'!$L$5:$L$237=$B56))/SUMIF('Detailed price list'!$L$5:$L$237,$B56,'Detailed price list'!$M$5:$M$237)) -> 25.52375796 | G56: =IF(SUMIF('Detailed price list'!$L$5:$L$237,$B56,'Detailed price list'!$M$5:$M$237)=0,0, SUMPRODUCT(('Detailed price list'!H$5:H$237)*('Detailed price list'!$M$5:$M$237)*('Detailed price list'!$L$5:$L$237=$B56))/SUMIF('Detailed price list'!$L$5:$L$237,$B56,'Detailed price list'!$M$5:$M$237)) -> 26.25747877
B57: Luminaire - Minor (Cat P) road | C57: =IF(SUMIF('Detailed price list'!$L$5:$L$237,$B57,'Detailed price list'!$M$5:$M$237)=0,0, SUMPRODUCT(('Detailed price list'!D$5:D$237)*('Detailed price list'!$M$5:$M$237)*('Detailed price list'!$L$5:$L$237=$B57))/SUMIF('Detailed price list'!$L$5:$L$237,$B57,'Detailed price list'!$M$5:$M$237)) -> 23.4433354 | D57: =IF(SUMIF('Detailed price list'!$L$5:$L$237,$B57,'Detailed price list'!$M$5:$M$237)=0,0, SUMPRODUCT(('Detailed price list'!E$5:E$237)*('Detailed price list'!$M$5:$M$237)*('Detailed price list'!$L$5:$L$237=$B57))/SUMIF('Detailed price list'!$L$5:$L$237,$B57,'Detailed price list'!$M$5:$M$237)) -> 24.11725117 | E57: =IF(SUMIF('Detailed price list'!$L$5:$L$237,$B57,'Detailed price list'!$M$5:$M$237)=0,0, SUMPRODUCT(('Detailed price list'!F$5:F$237)*('Detailed price list'!$M$5:$M$237)*('Detailed price list'!$L$5:$L$237=$B57))/SUMIF('Detailed price list'!$L$5:$L$237,$B57,'Detailed price list'!$M$5:$M$237)) -> 24.81053973 | F57: =IF(SUMIF('Detailed price list'!$L$5:$L$237,$B57,'Detailed price list'!$M$5:$M$237)=0,0, SUMPRODUCT(('Detailed price list'!G$5:G$237)*('Detailed price list'!$M$5:$M$237)*('Detailed price list'!$L$5:$L$237=$B57))/SUMIF('Detailed price list'!$L$5:$L$237,$B57,'Detailed price list'!$M$5:$M$237)) -> 25.52375796 | G57: =IF(SUMIF('Detailed price list'!$L$5:$L$237,$B57,'Detailed price list'!$M$5:$M$237)=0,0, SUMPRODUCT(('Detailed price list'!H$5:H$237)*('Detailed price list'!$M$5:$M$237)*('Detailed price list'!$L$5:$L$237=$B57))/SUMIF('Detailed price list'!$L$5:$L$237,$B57,'Detailed price list'!$M$5:$M$237)) -> 26.25747877
B58: Smart Controller - Licence and maintenance fee | C58: =IF(SUMIF('Detailed price list'!$L$5:$L$237,$B58,'Detailed price list'!$M$5:$M$237)=0,0, SUMPRODUCT(('Detailed price list'!D$5:D$237)*('Detailed price list'!$M$5:$M$237)*('Detailed price list'!$L$5:$L$237=$B58))/SUMIF('Detailed price list'!$L$5:$L$237,$B58,'Detailed price list'!$M$5:$M$237)) -> 5.919619229 | D58: =IF(SUMIF('Detailed price list'!$L$5:$L$237,$B58,'Detailed price list'!$M$5:$M$237)=0,0, SUMPRODUCT(('Detailed price list'!E$5:E$237)*('Detailed price list'!$M$5:$M$237)*('Detailed price list'!$L$5:$L$237=$B58))/SUMIF('Detailed price list'!$L$5:$L$237,$B58,'Detailed price list'!$M$5:$M$237)) -> 6.089788052 | E58: =IF(SUMIF('Detailed price list'!$L$5:$L$237,$B58,'Detailed price list'!$M$5:$M$237)=0,0, SUMPRODUCT(('Detailed price list'!F$5:F$237)*('Detailed price list'!$M$5:$M$237)*('Detailed price list'!$L$5:$L$237=$B58))/SUMIF('Detailed price list'!$L$5:$L$237,$B58,'Detailed price list'!$M$5:$M$237)) -> 6.264848647 | F58: =IF(SUMIF('Detailed price list'!$L$5:$L$237,$B58,'Detailed price list'!$M$5:$M$237)=0,0, SUMPRODUCT(('Detailed price list'!G$5:G$237)*('Detailed price list'!$M$5:$M$237)*('Detailed price list'!$L$5:$L$237=$B58))/SUMIF('Detailed price list'!$L$5:$L$237,$B58,'Detailed price list'!$M$5:$M$237)) -> 6.444941636 | G58: =IF(SUMIF('Detailed price list'!$L$5:$L$237,$B58,'Detailed price list'!$M$5:$M$237)=0,0, SUMPRODUCT(('Detailed price list'!H$5:H$237)*('Detailed price list'!$M$5:$M$237)*('Detailed price list'!$L$5:$L$237=$B58))/SUMIF('Detailed price list'!$L$5:$L$237,$B58,'Detailed price list'!$M$5:$M$237)) -> 6.630211684
B59: Luminaire - Decorative | C59: =IF(SUMIF('Detailed price list'!$L$5:$L$237,$B59,'Detailed price list'!$M$5:$M$237)=0,0, SUMPRODUCT(('Detailed price list'!D$5:D$237)*('Detailed price list'!$M$5:$M$237)*('Detailed price list'!$L$5:$L$237=$B59))/SUMIF('Detailed price list'!$L$5:$L$237,$B59,'Detailed price list'!$M$5:$M$237)) -> 0 | D59: =IF(SUMIF('Detailed price list'!$L$5:$L$237,$B59,'Detailed price list'!$M$5:$M$237)=0,0, SUMPRODUCT(('Detailed price list'!E$5:E$237)*('Detailed price list'!$M$5:$M$237)*('Detailed price list'!$L$5:$L$237=$B59))/SUMIF('Detailed price list'!$L$5:$L$237,$B59,'Detailed price list'!$M$5:$M$237)) -> 0 | E59: =IF(SUMIF('Detailed price list'!$L$5:$L$237,$B59,'Detailed price list'!$M$5:$M$237)=0,0, SUMPRODUCT(('Detailed price list'!F$5:F$237)*('Detailed price list'!$M$5:$M$237)*('Detailed price list'!$L$5:$L$237=$B59))/SUMIF('Detailed price list'!$L$5:$L$237,$B59,'Detailed price list'!$M$5:$M$237)) -> 0 | F59: =IF(SUMIF('Detailed price list'!$L$5:$L$237,$B59,'Detailed price list'!$M$5:$M$237)=0,0, SUMPRODUCT(('Detailed price list'!G$5:G$237)*('Detailed price list'!$M$5:$M$237)*('Detailed price list'!$L$5:$L$237=$B59))/SUMIF('Detailed price list'!$L$5:$L$237,$B59,'Detailed price list'!$M$5:$M$237)) -> 0 | G59: =IF(SUMIF('Detailed price list'!$L$5:$L$237,$B59,'Detailed price list'!$M$5:$M$237)=0,0, SUMPRODUCT(('Detailed price list'!H$5:H$237)*('Detailed price list'!$M$5:$M$237)*('Detailed price list'!$L$5:$L$237=$B59))/SUMIF('Detailed price list'!$L$5:$L$237,$B59,'Detailed price list'!$M$5:$M$237)) -> 0
B60: Luminaire - Floodlight | C60: =IF(SUMIF('Detailed price list'!$L$5:$L$237,$B60,'Detailed price list'!$M$5:$M$237)=0,0, SUMPRODUCT(('Detailed price list'!D$5:D$237)*('Detailed price list'!$M$5:$M$237)*('Detailed price list'!$L$5:$L$237=$B60))/SUMIF('Detailed price list'!$L$5:$L$237,$B60,'Detailed price list'!$M$5:$M$237)) -> 0 | D60: =IF(SUMIF('Detailed price list'!$L$5:$L$237,$B60,'Detailed price list'!$M$5:$M$237)=0,0, SUMPRODUCT(('Detailed price list'!E$5:E$237)*('Detailed price list'!$M$5:$M$237)*('Detailed price list'!$L$5:$L$237=$B60))/SUMIF('Detailed price list'!$L$5:$L$237,$B60,'Detailed price list'!$M$5:$M$237)) -> 0 | E60: =IF(SUMIF('Detailed price list'!$L$5:$L$237,$B60,'Detailed price list'!$M$5:$M$237)=0,0, SUMPRODUCT(('Detailed price list'!F$5:F$237)*('Detailed price list'!$M$5:$M$237)*('Detailed price list'!$L$5:$L$237=$B60))/SUMIF('Detailed price list'!$L$5:$L$237,$B60,'Detailed price list'!$M$5:$M$237)) -> 0 | F60: =IF(SUMIF('Detailed price list'!$L$5:$L$237,$B60,'Detailed price list'!$M$5:$M$237)=0,0, SUMPRODUCT(('Detailed price list'!G$5:G$237)*('Detailed price list'!$M$5:$M$237)*('Detailed price list'!$L$5:$L$237=$B60))/SUMIF('Detailed price list'!$L$5:$L$237,$B60,'Detailed price list'!$M$5:$M$237)) -> 0 | G60: =IF(SUMIF('Detailed price list'!$L$5:$L$237,$B60,'Detailed price list'!$M$5:$M$237)=0,0, SUMPRODUCT(('Detailed price list'!H$5:H$237)*('Detailed price list'!$M$5:$M$237)*('Detailed price list'!$L$5:$L$237=$B60))/SUMIF('Detailed price list'!$L$5:$L$237,$B60,'Detailed price list'!$M$5:$M$237)) -> 0
B61: Luminaire - Major (Cat V) road - smart controller installed | C61: =IF(SUMIF('Detailed price list'!$L$5:$L$237,$B61,'Detailed price list'!$M$5:$M$237)=0,0, SUMPRODUCT(('Detailed price list'!D$5:D$237)*('Detailed price list'!$M$5:$M$237)*('Detailed price list'!$L$5:$L$237=$B61))/SUMIF('Detailed price list'!$L$5:$L$237,$B61,'Detailed price list'!$M$5:$M$237)) -> 22.6182694 | D61: =IF(SUMIF('Detailed price list'!$L$5:$L$237,$B61,'Detailed price list'!$M$5:$M$237)=0,0, SUMPRODUCT(('Detailed price list'!E$5:E$237)*('Detailed price list'!$M$5:$M$237)*('Detailed price list'!$L$5:$L$237=$B61))/SUMIF('Detailed price list'!$L$5:$L$237,$B61,'Detailed price list'!$M$5:$M$237)) -> 23.26846735 | E61: =IF(SUMIF('Detailed price list'!$L$5:$L$237,$B61,'Detailed price list'!$M$5:$M$237)=0,0, SUMPRODUCT(('Detailed price list'!F$5:F$237)*('Detailed price list'!$M$5:$M$237)*('Detailed price list'!$L$5:$L$237=$B61))/SUMIF('Detailed price list'!$L$5:$L$237,$B61,'Detailed price list'!$M$5:$M$237)) -> 23.93735627 | F61: =IF(SUMIF('Detailed price list'!$L$5:$L$237,$B61,'Detailed price list'!$M$5:$M$237)=0,0, SUMPRODUCT(('Detailed price list'!G$5:G$237)*('Detailed price list'!$M$5:$M$237)*('Detailed price list'!$L$5:$L$237=$B61))/SUMIF('Detailed price list'!$L$5:$L$237,$B61,'Detailed price list'!$M$5:$M$237)) -> 24.62547346 | G61: =IF(SUMIF('Detailed price list'!$L$5:$L$237,$B61,'Detailed price list'!$M$5:$M$237)=0,0, SUMPRODUCT(('Detailed price list'!H$5:H$237)*('Detailed price list'!$M$5:$M$237)*('Detailed price list'!$L$5:$L$237=$B61))/SUMIF('Detailed price list'!$L$5:$L$237,$B61,'Detailed price list'!$M$5:$M$237)) -> 25.33337167
B62: Luminaire - Minor (Cat P) road - smart controller installed | C62: =IF(SUMIF('Detailed price list'!$L$5:$L$237,$B62,'Detailed price list'!$M$5:$M$237)=0,0, SUMPRODUCT(('Detailed price list'!D$5:D$237)*('Detailed price list'!$M$5:$M$237)*('Detailed price list'!$L$5:$L$237=$B62))/SUMIF('Detailed price list'!$L$5:$L$237,$B62,'Detailed price list'!$M$5:$M$237)) -> 18.12991292 | D62: =IF(SUMIF('Detailed price list'!$L$5:$L$237,$B62,'Detailed price list'!$M$5:$M$237)=0,0, SUMPRODUCT(('Detailed price list'!E$5:E$237)*('Detailed price list'!$M$5:$M$237)*('Detailed price list'!$L$5:$L$237=$B62))/SUMIF('Detailed price list'!$L$5:$L$237,$B62,'Detailed price list'!$M$5:$M$237)) -> 18.65108596 | E62: =IF(SUMIF('Detailed price list'!$L$5:$L$237,$B62,'Detailed price list'!$M$5:$M$237)=0,0, SUMPRODUCT(('Detailed price list'!F$5:F$237)*('Detailed price list'!$M$5:$M$237)*('Detailed price list'!$L$5:$L$237=$B62))/SUMIF('Detailed price list'!$L$5:$L$237,$B62,'Detailed price list'!$M$5:$M$237)) -> 19.18724095 | F62: =IF(SUMIF('Detailed price list'!$L$5:$L$237,$B62,'Detailed price list'!$M$5:$M$237)=0,0, SUMPRODUCT(('Detailed price list'!G$5:G$237)*('Detailed price list'!$M$5:$M$237)*('Detailed price list'!$L$5:$L$237=$B62))/SUMIF('Detailed price list'!$L$5:$L$237,$B62,'Detailed price list'!$M$5:$M$237)) -> 19.73880855 | G62: =IF(SUMIF('Detailed price list'!$L$5:$L$237,$B62,'Detailed price list'!$M$5:$M$237)=0,0, SUMPRODUCT(('Detailed price list'!H$5:H$237)*('Detailed price list'!$M$5:$M$237)*('Detailed price list'!$L$5:$L$237=$B62))/SUMIF('Detailed price list'!$L$5:$L$237,$B62,'Detailed price list'!$M$5:$M$237)) -> 20.30623184
B63: Luminaire - Floodlight - smart controller installed | C63: =IF(SUMIF('Detailed price list'!$L$5:$L$237,$B63,'Detailed price list'!$M$5:$M$237)=0,0, SUMPRODUCT(('Detailed price list'!D$5:D$237)*('Detailed price list'!$M$5:$M$237)*('Detailed price list'!$L$5:$L$237=$B63))/SUMIF('Detailed price list'!$L$5:$L$237,$B63,'Detailed price list'!$M$5:$M$237)) -> 0 | D63: =IF(SUMIF('Detailed price list'!$L$5:$L$237,$B63,'Detailed price list'!$M$5:$M$237)=0,0, SUMPRODUCT(('Detailed price list'!E$5:E$237)*('Detailed price list'!$M$5:$M$237)*('Detailed price list'!$L$5:$L$237=$B63))/SUMIF('Detailed price list'!$L$5:$L$237,$B63,'Detailed price list'!$M$5:$M$237)) -> 0 | E63: =IF(SUMIF('Detailed price list'!$L$5:$L$237,$B63,'Detailed price list'!$M$5:$M$237)=0,0, SUMPRODUCT(('Detailed price list'!F$5:F$237)*('Detailed price list'!$M$5:$M$237)*('Detailed price list'!$L$5:$L$237=$B63))/SUMIF('Detailed price list'!$L$5:$L$237,$B63,'Detailed price list'!$M$5:$M$237)) -> 0 | F63: =IF(SUMIF('Detailed price list'!$L$5:$L$237,$B63,'Detailed price list'!$M$5:$M$237)=0,0, SUMPRODUCT(('Detailed price list'!G$5:G$237)*('Detailed price list'!$M$5:$M$237)*('Detailed price list'!$L$5:$L$237=$B63))/SUMIF('Detailed price list'!$L$5:$L$237,$B63,'Detailed price list'!$M$5:$M$237)) -> 0 | G63: =IF(SUMIF('Detailed price list'!$L$5:$L$237,$B63,'Detailed price list'!$M$5:$M$237)=0,0, SUMPRODUCT(('Detailed price list'!H$5:H$237)*('Detailed price list'!$M$5:$M$237)*('Detailed price list'!$L$5:$L$237=$B63))/SUMIF('Detailed price list'!$L$5:$L$237,$B63,'Detailed price list'!$M$5:$M$237)) -> 0
B64: Luminaire - Decorative - smart controller installed | C64: =IF(SUMIF('Detailed price list'!$L$5:$L$237,$B64,'Detailed price list'!$M$5:$M$237)=0,0, SUMPRODUCT(('Detailed price list'!D$5:D$237)*('Detailed price list'!$M$5:$M$237)*('Detailed price list'!$L$5:$L$237=$B64))/SUMIF('Detailed price list'!$L$5:$L$237,$B64,'Detailed price list'!$M$5:$M$237)) -> 0 | D64: =IF(SUMIF('Detailed price list'!$L$5:$L$237,$B64,'Detailed price list'!$M$5:$M$237)=0,0, SUMPRODUCT(('Detailed price list'!E$5:E$237)*('Detailed price list'!$M$5:$M$237)*('Detailed price list'!$L$5:$L$237=$B64))/SUMIF('Detailed price list'!$L$5:$L$237,$B64,'Detailed price list'!$M$5:$M$237)) -> 0 | E64: =IF(SUMIF('Detailed price list'!$L$5:$L$237,$B64,'Detailed price list'!$M$5:$M$237)=0,0, SUMPRODUCT(('Detailed price list'!F$5:F$237)*('Detailed price list'!$M$5:$M$237)*('Detailed price list'!$L$5:$L$237=$B64))/SUMIF('Detailed price list'!$L$5:$L$237,$B64,'Detailed price list'!$M$5:$M$237)) -> 0 | F64: =IF(SUMIF('Detailed price list'!$L$5:$L$237,$B64,'Detailed price list'!$M$5:$M$237)=0,0, SUMPRODUCT(('Detailed price list'!G$5:G$237)*('Detailed price list'!$M$5:$M$237)*('Detailed price list'!$L$5:$L$237=$B64))/SUMIF('Detailed price list'!$L$5:$L$237,$B64,'Detailed price list'!$M$5:$M$237)) -> 0 | G64: =IF(SUMIF('Detailed price list'!$L$5:$L$237,$B64,'Detailed price list'!$M$5:$M$237)=0,0, SUMPRODUCT(('Detailed price list'!H$5:H$237)*('Detailed price list'!$M$5:$M$237)*('Detailed price list'!$L$5:$L$237=$B64))/SUMIF('Detailed price list'!$L$5:$L$237,$B64,'Detailed price list'!$M$5:$M$237)) -> 0
B65: Legacy Bracket - Minor (Cat P) road - Short | C65: =IF(SUMIF('Detailed price list'!$L$5:$L$237,$B65,'Detailed price list'!$M$5:$M$237)=0,0, SUMPRODUCT(('Detailed price list'!D$5:D$237)*('Detailed price list'!$M$5:$M$237)*('Detailed price list'!$L$5:$L$237=$B65))/SUMIF('Detailed price list'!$L$5:$L$237,$B65,'Detailed price list'!$M$5:$M$237)) -> 7.79368599 | D65: =IF(SUMIF('Detailed price list'!$L$5:$L$237,$B65,'Detailed price list'!$M$5:$M$237)=0,0, SUMPRODUCT(('Detailed price list'!E$5:E$237)*('Detailed price list'!$M$5:$M$237)*('Detailed price list'!$L$5:$L$237=$B65))/SUMIF('Detailed price list'!$L$5:$L$237,$B65,'Detailed price list'!$M$5:$M$237)) -> 8.017727828 | E65: =IF(SUMIF('Detailed price list'!$L$5:$L$237,$B65,'Detailed price list'!$M$5:$M$237)=0,0, SUMPRODUCT(('Detailed price list'!F$5:F$237)*('Detailed price list'!$M$5:$M$237)*('Detailed price list'!$L$5:$L$237=$B65))/SUMIF('Detailed price list'!$L$5:$L$237,$B65,'Detailed price list'!$M$5:$M$237)) -> 8.248210104 | F65: =IF(SUMIF('Detailed price list'!$L$5:$L$237,$B65,'Detailed price list'!$M$5:$M$237)=0,0, SUMPRODUCT(('Detailed price list'!G$5:G$237)*('Detailed price list'!$M$5:$M$237)*('Detailed price list'!$L$5:$L$237=$B65))/SUMIF('Detailed price list'!$L$5:$L$237,$B65,'Detailed price list'!$M$5:$M$237)) -> 8.485317957 | G65: =IF(SUMIF('Detailed price list'!$L$5:$L$237,$B65,'Detailed price list'!$M$5:$M$237)=0,0, SUMPRODUCT(('Detailed price list'!H$5:H$237)*('Detailed price list'!$M$5:$M$237)*('Detailed price list'!$L$5:$L$237=$B65))/SUMIF('Detailed price list'!$L$5:$L$237,$B65,'Detailed price list'!$M$5:$M$237)) -> 8.72924185
B66: Legacy Bracket - Minor (Cat P) road - Short | C66: =IF(SUMIF('Detailed price list'!$L$5:$L$237,$B66,'Detailed price list'!$M$5:$M$237)=0,0, SUMPRODUCT(('Detailed price list'!D$5:D$237)*('Detailed price list'!$M$5:$M$237)*('Detailed price list'!$L$5:$L$237=$B66))/SUMIF('Detailed price list'!$L$5:$L$237,$B66,'Detailed price list'!$M$5:$M$237)) -> 7.79368599 | D66: =IF(SUMIF('Detailed price list'!$L$5:$L$237,$B66,'Detailed price list'!$M$5:$M$237)=0,0, SUMPRODUCT(('Detailed price list'!E$5:E$237)*('Detailed price list'!$M$5:$M$237)*('Detailed price list'!$L$5:$L$237=$B66))/SUMIF('Detailed price list'!$L$5:$L$237,$B66,'Detailed price list'!$M$5:$M$237)) -> 8.017727828 | E66: =IF(SUMIF('Detailed price list'!$L$5:$L$237,$B66,'Detailed price list'!$M$5:$M$237)=0,0, SUMPRODUCT(('Detailed price list'!F$5:F$237)*('Detailed price list'!$M$5:$M$237)*('Detailed price list'!$L$5:$L$237=$B66))/SUMIF('Detailed price list'!$L$5:$L$237,$B66,'Detailed price list'!$M$5:$M$237)) -> 8.248210104 | F66: =IF(SUMIF('Detailed price list'!$L$5:$L$237,$B66,'Detailed price list'!$M$5:$M$237)=0,0, SUMPRODUCT(('Detailed price list'!G$5:G$237)*('Detailed price list'!$M$5:$M$237)*('Detailed price list'!$L$5:$L$237=$B66))/SUMIF('Detailed price list'!$L$5:$L$237,$B66,'Detailed price list'!$M$5:$M$237)) -> 8.485317957 | G66: =IF(SUMIF('Detailed price list'!$L$5:$L$237,$B66,'Detailed price list'!$M$5:$M$237)=0,0, SUMPRODUCT(('Detailed price list'!H$5:H$237)*('Detailed price list'!$M$5:$M$237)*('Detailed price list'!$L$5:$L$237=$B66))/SUMIF('Detailed price list'!$L$5:$L$237,$B66,'Detailed price list'!$M$5:$M$237)) -> 8.72924185
B67: Legacy Bracket - Minor (Cat P) road - Short | C67: =IF(SUMIF('Detailed price list'!$L$5:$L$237,$B67,'Detailed price list'!$M$5:$M$237)=0,0, SUMPRODUCT(('Detailed price list'!D$5:D$237)*('Detailed price list'!$M$5:$M$237)*('Detailed price list'!$L$5:$L$237=$B67))/SUMIF('Detailed price list'!$L$5:$L$237,$B67,'Detailed price list'!$M$5:$M$237)) -> 7.79368599 | D67: =IF(SUMIF('Detailed price list'!$L$5:$L$237,$B67,'Detailed price list'!$M$5:$M$237)=0,0, SUMPRODUCT(('Detailed price list'!E$5:E$237)*('Detailed price list'!$M$5:$M$237)*('Detailed price list'!$L$5:$L$237=$B67))/SUMIF('Detailed price list'!$L$5:$L$237,$B67,'Detailed price list'!$M$5:$M$237)) -> 8.017727828 | E67: =IF(SUMIF('Detailed price list'!$L$5:$L$237,$B67,'Detailed price list'!$M$5:$M$237)=0,0, SUMPRODUCT(('Detailed price list'!F$5:F$237)*('Detailed price list'!$M$5:$M$237)*('Detailed price list'!$L$5:$L$237=$B67))/SUMIF('Detailed price list'!$L$5:$L$237,$B67,'Detailed price list'!$M$5:$M$237)) -> 8.248210104 | F67: =IF(SUMIF('Detailed price list'!$L$5:$L$237,$B67,'Detailed price list'!$M$5:$M$237)=0,0, SUMPRODUCT(('Detailed price list'!G$5:G$237)*('Detailed price list'!$M$5:$M$237)*('Detailed price list'!$L$5:$L$237=$B67))/SUMIF('Detailed price list'!$L$5:$L$237,$B67,'Detailed price list'!$M$5:$M$237)) -> 8.485317957 | G67: =IF(SUMIF('Detailed price list'!$L$5:$L$237,$B67,'Detailed price list'!$M$5:$M$237)=0,0, SUMPRODUCT(('Detailed price list'!H$5:H$237)*('Detailed price list'!$M$5:$M$237)*('Detailed price list'!$L$5:$L$237=$B67))/SUMIF('Detailed price list'!$L$5:$L$237,$B67,'Detailed price list'!$M$5:$M$237)) -> 8.72924185
B68: Legacy Bracket - Minor (Cat P) road - Short | C68: =IF(SUMIF('Detailed price list'!$L$5:$L$237,$B68,'Detailed price list'!$M$5:$M$237)=0,0, SUMPRODUCT(('Detailed price list'!D$5:D$237)*('Detailed price list'!$M$5:$M$237)*('Detailed price list'!$L$5:$L$237=$B68))/SUMIF('Detailed price list'!$L$5:$L$237,$B68,'Detailed price list'!$M$5:$M$237)) -> 7.79368599 | D68: =IF(SUMIF('Detailed price list'!$L$5:$L$237,$B68,'Detailed price list'!$M$5:$M$237)=0,0, SUMPRODUCT(('Detailed price list'!E$5:E$237)*('Detailed price list'!$M$5:$M$237)*('Detailed price list'!$L$5:$L$237=$B68))/SUMIF('Detailed price list'!$L$5:$L$237,$B68,'Detailed price list'!$M$5:$M$237)) -> 8.017727828 | E68: =IF(SUMIF('Detailed price list'!$L$5:$L$237,$B68,'Detailed price list'!$M$5:$M$237)=0,0, SUMPRODUCT(('Detailed price list'!F$5:F$237)*('Detailed price list'!$M$5:$M$237)*('Detailed price list'!$L$5:$L$237=$B68))/SUMIF('Detailed price list'!$L$5:$L$237,$B68,'Detailed price list'!$M$5:$M$237)) -> 8.248210104 | F68: =IF(SUMIF('Detailed price list'!$L$5:$L$237,$B68,'Detailed price list'!$M$5:$M$237)=0,0, SUMPRODUCT(('Detailed price list'!G$5:G$237)*('Detailed price list'!$M$5:$M$237)*('Detailed price list'!$L$5:$L$237=$B68))/SUMIF('Detailed price list'!$L$5:$L$237,$B68,'Detailed price list'!$M$5:$M$237)) -> 8.485317957 | G68: =IF(SUMIF('Detailed price list'!$L$5:$L$237,$B68,'Detailed price list'!$M$5:$M$237)=0,0, SUMPRODUCT(('Detailed price list'!H$5:H$237)*('Detailed price list'!$M$5:$M$237)*('Detailed price list'!$L$5:$L$237=$B68))/SUMIF('Detailed price list'!$L$5:$L$237,$B68,'Detailed price list'!$M$5:$M$237)) -> 8.72924185
B69: Legacy Bracket - Minor (Cat P) road - Short | C69: =IF(SUMIF('Detailed price list'!$L$5:$L$237,$B69,'Detailed price list'!$M$5:$M$237)=0,0, SUMPRODUCT(('Detailed price list'!D$5:D$237)*('Detailed price list'!$M$5:$M$237)*('Detailed price list'!$L$5:$L$237=$B69))/SUMIF('Detailed price list'!$L$5:$L$237,$B69,'Detailed price list'!$M$5:$M$237)) -> 7.79368599 | D69: =IF(SUMIF('Detailed price list'!$L$5:$L$237,$B69,'Detailed price list'!$M$5:$M$237)=0,0, SUMPRODUCT(('Detailed price list'!E$5:E$237)*('Detailed price list'!$M$5:$M$237)*('Detailed price list'!$L$5:$L$237=$B69))/SUMIF('Detailed price list'!$L$5:$L$237,$B69,'Detailed price list'!$M$5:$M$237)) -> 8.017727828 | E69: =IF(SUMIF('Detailed price list'!$L$5:$L$237,$B69,'Detailed price list'!$M$5:$M$237)=0,0, SUMPRODUCT(('Detailed price list'!F$5:F$237)*('Detailed price list'!$M$5:$M$237)*('Detailed price list'!$L$5:$L$237=$B69))/SUMIF('Detailed price list'!$L$5:$L$237,$B69,'Detailed price list'!$M$5:$M$237)) -> 8.248210104 | F69: =IF(SUMIF('Detailed price list'!$L$5:$L$237,$B69,'Detailed price list'!$M$5:$M$237)=0,0, SUMPRODUCT(('Detailed price list'!G$5:G$237)*('Detailed price list'!$M$5:$M$237)*('Detailed price list'!$L$5:$L$237=$B69))/SUMIF('Detailed price list'!$L$5:$L$237,$B69,'Detailed price list'!$M$5:$M$237)) -> 8.485317957 | G69: =IF(SUMIF('Detailed price list'!$L$5:$L$237,$B69,'Detailed price list'!$M$5:$M$237)=0,0, SUMPRODUCT(('Detailed price list'!H$5:H$237)*('Detailed price list'!$M$5:$M$237)*('Detailed price list'!$L$5:$L$237=$B69))/SUMIF('Detailed price list'!$L$5:$L$237,$B69,'Detailed price list'!$M$5:$M$237)) -> 8.72924185
B70: Legacy Bracket - Minor (Cat P) road - Short | C70: =IF(SUMIF('Detailed price list'!$L$5:$L$237,$B70,'Detailed price list'!$M$5:$M$237)=0,0, SUMPRODUCT(('Detailed price list'!D$5:D$237)*('Detailed price list'!$M$5:$M$237)*('Detailed price list'!$L$5:$L$237=$B70))/SUMIF('Detailed price list'!$L$5:$L$237,$B70,'Detailed price list'!$M$5:$M$237)) -> 7.79368599 | D70: =IF(SUMIF('Detailed price list'!$L$5:$L$237,$B70,'Detailed price list'!$M$5:$M$237)=0,0, SUMPRODUCT(('Detailed price list'!E$5:E$237)*('Detailed price list'!$M$5:$M$237)*('Detailed price list'!$L$5:$L$237=$B70))/SUMIF('Detailed price list'!$L$5:$L$237,$B70,'Detailed price list'!$M$5:$M$237)) -> 8.017727828 | E70: =IF(SUMIF('Detailed price list'!$L$5:$L$237,$B70,'Detailed price list'!$M$5:$M$237)=0,0, SUMPRODUCT(('Detailed price list'!F$5:F$237)*('Detailed price list'!$M$5:$M$237)*('Detailed price list'!$L$5:$L$237=$B70))/SUMIF('Detailed price list'!$L$5:$L$237,$B70,'Detailed price list'!$M$5:$M$237)) -> 8.248210104 | F70: =IF(SUMIF('Detailed price list'!$L$5:$L$237,$B70,'Detailed price list'!$M$5:$M$237)=0,0, SUMPRODUCT(('Detailed price list'!G$5:G$237)*('Detailed price list'!$M$5:$M$237)*('Detailed price list'!$L$5:$L$237=$B70))/SUMIF('Detailed price list'!$L$5:$L$237,$B70,'Detailed price list'!$M$5:$M$237)) -> 8.485317957 | G70: =IF(SUMIF('Detailed price list'!$L$5:$L$237,$B70,'Detailed price list'!$M$5:$M$237)=0,0, SUMPRODUCT(('Detailed price list'!H$5:H$237)*('Detailed price list'!$M$5:$M$237)*('Detailed price list'!$L$5:$L$237=$B70))/SUMIF('Detailed price list'!$L$5:$L$237,$B70,'Detailed price list'!$M$5:$M$237)) -> 8.72924185
B71: Legacy Bracket - Minor (Cat P) road - Short | C71: =IF(SUMIF('Detailed price list'!$L$5:$L$237,$B71,'Detailed price list'!$M$5:$M$237)=0,0, SUMPRODUCT(('Detailed price list'!D$5:D$237)*('Detailed price list'!$M$5:$M$237)*('Detailed price list'!$L$5:$L$237=$B71))/SUMIF('Detailed price list'!$L$5:$L$237,$B71,'Detailed price list'!$M$5:$M$237)) -> 7.79368599 | D71: =IF(SUMIF('Detailed price list'!$L$5:$L$237,$B71,'Detailed price list'!$M$5:$M$237)=0,0, SUMPRODUCT(('Detailed price list'!E$5:E$237)*('Detailed price list'!$M$5:$M$237)*('Detailed price list'!$L$5:$L$237=$B71))/SUMIF('Detailed price list'!$L$5:$L$237,$B71,'Detailed price list'!$M$5:$M$237)) -> 8.017727828 | E71: =IF(SUMIF('Detailed price list'!$L$5:$L$237,$B71,'Detailed price list'!$M$5:$M$237)=0,0, SUMPRODUCT(('Detailed price list'!F$5:F$237)*('Detailed price list'!$M$5:$M$237)*('Detailed price list'!$L$5:$L$237=$B71))/SUMIF('Detailed price list'!$L$5:$L$237,$B71,'Detailed price list'!$M$5:$M$237)) -> 8.248210104 | F71: =IF(SUMIF('Detailed price list'!$L$5:$L$237,$B71,'Detailed price list'!$M$5:$M$237)=0,0, SUMPRODUCT(('Detailed price list'!G$5:G$237)*('Detailed price list'!$M$5:$M$237)*('Detailed price list'!$L$5:$L$237=$B71))/SUMIF('Detailed price list'!$L$5:$L$237,$B71,'Detailed price list'!$M$5:$M$237)) -> 8.485317957 | G71: =IF(SUMIF('Detailed price list'!$L$5:$L$237,$B71,'Detailed price list'!$M$5:$M$237)=0,0, SUMPRODUCT(('Detailed price list'!H$5:H$237)*('Detailed price list'!$M$5:$M$237)*('Detailed price list'!$L$5:$L$237=$B71))/SUMIF('Detailed price list'!$L$5:$L$237,$B71,'Detailed price list'!$M$5:$M$237)) -> 8.72924185
B72: Legacy Bracket - Minor (Cat P) road - Short | C72: =IF(SUMIF('Detailed price list'!$L$5:$L$237,$B72,'Detailed price list'!$M$5:$M$237)=0,0, SUMPRODUCT(('Detailed price list'!D$5:D$237)*('Detailed price list'!$M$5:$M$237)*('Detailed price list'!$L$5:$L$237=$B72))/SUMIF('Detailed price list'!$L$5:$L$237,$B72,'Detailed price list'!$M$5:$M$237)) -> 7.79368599 | D72: =IF(SUMIF('Detailed price list'!$L$5:$L$237,$B72,'Detailed price list'!$M$5:$M$237)=0,0, SUMPRODUCT(('Detailed price list'!E$5:E$237)*('Detailed price list'!$M$5:$M$237)*('Detailed price list'!$L$5:$L$237=$B72))/SUMIF('Detailed price list'!$L$5:$L$237,$B72,'Detailed price list'!$M$5:$M$237)) -> 8.017727828 | E72: =IF(SUMIF('Detailed price list'!$L$5:$L$237,$B72,'Detailed price list'!$M$5:$M$237)=0,0, SUMPRODUCT(('Detailed price list'!F$5:F$237)*('Detailed price list'!$M$5:$M$237)*('Detailed price list'!$L$5:$L$237=$B72))/SUMIF('Detailed price list'!$L$5:$L$237,$B72,'Detailed price list'!$M$5:$M$237)) -> 8.248210104 | F72: =IF(SUMIF('Detailed price list'!$L$5:$L$237,$B72,'Detailed price list'!$M$5:$M$237)=0,0, SUMPRODUCT(('Detailed price list'!G$5:G$237)*('Detailed price list'!$M$5:$M$237)*('Detailed price list'!$L$5:$L$237=$B72))/SUMIF('Detailed price list'!$L$5:$L$237,$B72,'Detailed price list'!$M$5:$M$237)) -> 8.485317957 | G72: =IF(SUMIF('Detailed price list'!$L$5:$L$237,$B72,'Detailed price list'!$M$5:$M$237)=0,0, SUMPRODUCT(('Detailed price list'!H$5:H$237)*('Detailed price list'!$M$5:$M$237)*('Detailed price list'!$L$5:$L$237=$B72))/SUMIF('Detailed price list'!$L$5:$L$237,$B72,'Detailed price list'!$M$5:$M$237)) -> 8.72924185
B73: Legacy Bracket - Minor (Cat P) road - Medium | C73: =IF(SUMIF('Detailed price list'!$L$5:$L$237,$B73,'Detailed price list'!$M$5:$M$237)=0,0, SUMPRODUCT(('Detailed price list'!D$5:D$237)*('Detailed price list'!$M$5:$M$237)*('Detailed price list'!$L$5:$L$237=$B73))/SUMIF('Detailed price list'!$L$5:$L$237,$B73,'Detailed price list'!$M$5:$M$237)) -> 14.26239243 | D73: =IF(SUMIF('Detailed price list'!$L$5:$L$237,$B73,'Detailed price list'!$M$5:$M$237)=0,0, SUMPRODUCT(('Detailed price list'!E$5:E$237)*('Detailed price list'!$M$5:$M$237)*('Detailed price list'!$L$5:$L$237=$B73))/SUMIF('Detailed price list'!$L$5:$L$237,$B73,'Detailed price list'!$M$5:$M$237)) -> 14.67238747 | E73: =IF(SUMIF('Detailed price list'!$L$5:$L$237,$B73,'Detailed price list'!$M$5:$M$237)=0,0, SUMPRODUCT(('Detailed price list'!F$5:F$237)*('Detailed price list'!$M$5:$M$237)*('Detailed price list'!$L$5:$L$237=$B73))/SUMIF('Detailed price list'!$L$5:$L$237,$B73,'Detailed price list'!$M$5:$M$237)) -> 15.09416847 | F73: =IF(SUMIF('Detailed price list'!$L$5:$L$237,$B73,'Detailed price list'!$M$5:$M$237)=0,0, SUMPRODUCT(('Detailed price list'!G$5:G$237)*('Detailed price list'!$M$5:$M$237)*('Detailed price list'!$L$5:$L$237=$B73))/SUMIF('Detailed price list'!$L$5:$L$237,$B73,'Detailed price list'!$M$5:$M$237)) -> 15.52807423 | G73: =IF(SUMIF('Detailed price list'!$L$5:$L$237,$B73,'Detailed price list'!$M$5:$M$237)=0,0, SUMPRODUCT(('Detailed price list'!H$5:H$237)*('Detailed price list'!$M$5:$M$237)*('Detailed price list'!$L$5:$L$237=$B73))/SUMIF('Detailed price list'!$L$5:$L$237,$B73,'Detailed price list'!$M$5:$M$237)) -> 15.9744533
B74: Legacy Bracket - Minor (Cat P) road - Medium | C74: =IF(SUMIF('Detailed price list'!$L$5:$L$237,$B74,'Detailed price list'!$M$5:$M$237)=0,0, SUMPRODUCT(('Detailed price list'!D$5:D$237)*('Detailed price list'!$M$5:$M$237)*('Detailed price list'!$L$5:$L$237=$B74))/SUMIF('Detailed price list'!$L$5:$L$237,$B74,'Detailed price list'!$M$5:$M$237)) -> 14.26239243 | D74: =IF(SUMIF('Detailed price list'!$L$5:$L$237,$B74,'Detailed price list'!$M$5:$M$237)=0,0, SUMPRODUCT(('Detailed price list'!E$5:E$237)*('Detailed price list'!$M$5:$M$237)*('Detailed price list'!$L$5:$L$237=$B74))/SUMIF('Detailed price list'!$L$5:$L$237,$B74,'Detailed price list'!$M$5:$M$237)) -> 14.67238747 | E74: =IF(SUMIF('Detailed price list'!$L$5:$L$237,$B74,'Detailed price list'!$M$5:$M$237)=0,0, SUMPRODUCT(('Detailed price list'!F$5:F$237)*('Detailed price list'!$M$5:$M$237)*('Detailed price list'!$L$5:$L$237=$B74))/SUMIF('Detailed price list'!$L$5:$L$237,$B74,'Detailed price list'!$M$5:$M$237)) -> 15.09416847 | F74: =IF(SUMIF('Detailed price list'!$L$5:$L$237,$B74,'Detailed price list'!$M$5:$M$237)=0,0, SUMPRODUCT(('Detailed price list'!G$5:G$237)*('Detailed price list'!$M$5:$M$237)*('Detailed price list'!$L$5:$L$237=$B74))/SUMIF('Detailed price list'!$L$5:$L$237,$B74,'Detailed price list'!$M$5:$M$237)) -> 15.52807423 | G74: =IF(SUMIF('Detailed price list'!$L$5:$L$237,$B74,'Detailed price list'!$M$5:$M$237)=0,0, SUMPRODUCT(('Detailed price list'!H$5:H$237)*('Detailed price list'!$M$5:$M$237)*('Detailed price list'!$L$5:$L$237=$B74))/SUMIF('Detailed price list'!$L$5:$L$237,$B74,'Detailed price list'!$M$5:$M$237)) -> 15.9744533
B75: Legacy Bracket - Minor (Cat P) road - Medium | C75: =IF(SUMIF('Detailed price list'!$L$5:$L$237,$B75,'Detailed price list'!$M$5:$M$237)=0,0, SUMPRODUCT(('Detailed price list'!D$5:D$237)*('Detailed price list'!$M$5:$M$237)*('Detailed price list'!$L$5:$L$237=$B75))/SUMIF('Detailed price list'!$L$5:$L$237,$B75,'Detailed price list'!$M$5:$M$237)) -> 14.26239243 | D75: =IF(SUMIF('Detailed price list'!$L$5:$L$237,$B75,'Detailed price list'!$M$5:$M$237)=0,0, SUMPRODUCT(('Detailed price list'!E$5:E$237)*('Detailed price list'!$M$5:$M$237)*('Detailed price list'!$L$5:$L$237=$B75))/SUMIF('Detailed price list'!$L$5:$L$237,$B75,'Detailed price list'!$M$5:$M$237)) -> 14.67238747 | E75: =IF(SUMIF('Detailed price list'!$L$5:$L$237,$B75,'Detailed price list'!$M$5:$M$237)=0,0, SUMPRODUCT(('Detailed price list'!F$5:F$237)*('Detailed price list'!$M$5:$M$237)*('Detailed price list'!$L$5:$L$237=$B75))/SUMIF('Detailed price list'!$L$5:$L$237,$B75,'Detailed price list'!$M$5:$M$237)) -> 15.09416847 | F75: =IF(SUMIF('Detailed price list'!$L$5:$L$237,$B75,'Detailed price list'!$M$5:$M$237)=0,0, SUMPRODUCT(('Detailed price list'!G$5:G$237)*('Detailed price list'!$M$5:$M$237)*('Detailed price list'!$L$5:$L$237=$B75))/SUMIF('Detailed price list'!$L$5:$L$237,$B75,'Detailed price list'!$M$5:$M$237)) -> 15.52807423 | G75: =IF(SUMIF('Detailed price list'!$L$5:$L$237,$B75,'Detailed price list'!$M$5:$M$237)=0,0, SUMPRODUCT(('Detailed price list'!H$5:H$237)*('Detailed price list'!$M$5:$M$237)*('Detailed price list'!$L$5:$L$237=$B75))/SUMIF('Detailed price list'!$L$5:$L$237,$B75,'Detailed price list'!$M$5:$M$237)) -> 15.9744533
B76: Legacy Bracket - Minor (Cat P) road - Medium | C76: =IF(SUMIF('Detailed price list'!$L$5:$L$237,$B76,'Detailed price list'!$M$5:$M$237)=0,0, SUMPRODUCT(('Detailed price list'!D$5:D$237)*('Detailed price list'!$M$5:$M$237)*('Detailed price list'!$L$5:$L$237=$B76))/SUMIF('Detailed price list'!$L$5:$L$237,$B76,'Detailed price list'!$M$5:$M$237)) -> 14.26239243 | D76: =IF(SUMIF('Detailed price list'!$L$5:$L$237,$B76,'Detailed price list'!$M$5:$M$237)=0,0, SUMPRODUCT(('Detailed price list'!E$5:E$237)*('Detailed price list'!$M$5:$M$237)*('Detailed price list'!$L$5:$L$237=$B76))/SUMIF('Detailed price list'!$L$5:$L$237,$B76,'Detailed price list'!$M$5:$M$237)) -> 14.67238747 | E76: =IF(SUMIF('Detailed price list'!$L$5:$L$237,$B76,'Detailed price list'!$M$5:$M$237)=0,0, SUMPRODUCT(('Detailed price list'!F$5:F$237)*('Detailed price list'!$M$5:$M$237)*('Detailed price list'!$L$5:$L$237=$B76))/SUMIF('Detailed price list'!$L$5:$L$237,$B76,'Detailed price list'!$M$5:$M$237)) -> 15.09416847 | F76: =IF(SUMIF('Detailed price list'!$L$5:$L$237,$B76,'Detailed price list'!$M$5:$M$237)=0,0, SUMPRODUCT(('Detailed price list'!G$5:G$237)*('Detailed price list'!$M$5:$M$237)*('Detailed price list'!$L$5:$L$237=$B76))/SUMIF('Detailed price list'!$L$5:$L$237,$B76,'Detailed price list'!$M$5:$M$237)) -> 15.52807423 | G76: =IF(SUMIF('Detailed price list'!$L$5:$L$237,$B76,'Detailed price list'!$M$5:$M$237)=0,0, SUMPRODUCT(('Detailed price list'!H$5:H$237)*('Detailed price list'!$M$5:$M$237)*('Detailed price list'!$L$5:$L$237=$B76))/SUMIF('Detailed price list'!$L$5:$L$237,$B76,'Detailed price list'!$M$5:$M$237)) -> 15.9744533
B77: Legacy Bracket - Minor (Cat P) road - Long | C77: =IF(SUMIF('Detailed price list'!$L$5:$L$237,$B77,'Detailed price list'!$M$5:$M$237)=0,0, SUMPRODUCT(('Detailed price list'!D$5:D$237)*('Detailed price list'!$M$5:$M$237)*('Detailed price list'!$L$5:$L$237=$B77))/SUMIF('Detailed price list'!$L$5:$L$237,$B77,'Detailed price list'!$M$5:$M$237)) -> 22.51958038 | D77: =IF(SUMIF('Detailed price list'!$L$5:$L$237,$B77,'Detailed price list'!$M$5:$M$237)=0,0, SUMPRODUCT(('Detailed price list'!E$5:E$237)*('Detailed price list'!$M$5:$M$237)*('Detailed price list'!$L$5:$L$237=$B77))/SUMIF('Detailed price list'!$L$5:$L$237,$B77,'Detailed price list'!$M$5:$M$237)) -> 23.16694136 | E77: =IF(SUMIF('Detailed price list'!$L$5:$L$237,$B77,'Detailed price list'!$M$5:$M$237)=0,0, SUMPRODUCT(('Detailed price list'!F$5:F$237)*('Detailed price list'!$M$5:$M$237)*('Detailed price list'!$L$5:$L$237=$B77))/SUMIF('Detailed price list'!$L$5:$L$237,$B77,'Detailed price list'!$M$5:$M$237)) -> 23.83291175 | F77: =IF(SUMIF('Detailed price list'!$L$5:$L$237,$B77,'Detailed price list'!$M$5:$M$237)=0,0, SUMPRODUCT(('Detailed price list'!G$5:G$237)*('Detailed price list'!$M$5:$M$237)*('Detailed price list'!$L$5:$L$237=$B77))/SUMIF('Detailed price list'!$L$5:$L$237,$B77,'Detailed price list'!$M$5:$M$237)) -> 24.51802652 | G77: =IF(SUMIF('Detailed price list'!$L$5:$L$237,$B77,'Detailed price list'!$M$5:$M$237)=0,0, SUMPRODUCT(('Detailed price list'!H$5:H$237)*('Detailed price list'!$M$5:$M$237)*('Detailed price list'!$L$5:$L$237=$B77))/SUMIF('Detailed price list'!$L$5:$L$237,$B77,'Detailed price list'!$M$5:$M$237)) -> 25.22283599
B78: Legacy Bracket - Minor (Cat P) road - Long | C78: =IF(SUMIF('Detailed price list'!$L$5:$L$237,$B78,'Detailed price list'!$M$5:$M$237)=0,0, SUMPRODUCT(('Detailed price list'!D$5:D$237)*('Detailed price list'!$M$5:$M$237)*('Detailed price list'!$L$5:$L$237=$B78))/SUMIF('Detailed price list'!$L$5:$L$237,$B78,'Detailed price list'!$M$5:$M$237)) -> 22.51958038 | D78: =IF(SUMIF('Detailed price list'!$L$5:$L$237,$B78,'Detailed price list'!$M$5:$M$237)=0,0, SUMPRODUCT(('Detailed price list'!E$5:E$237)*('Detailed price list'!$M$5:$M$237)*('Detailed price list'!$L$5:$L$237=$B78))/SUMIF('Detailed price list'!$L$5:$L$237,$B78,'Detailed price list'!$M$5:$M$237)) -> 23.16694136 | E78: =IF(SUMIF('Detailed price list'!$L$5:$L$237,$B78,'Detailed price list'!$M$5:$M$237)=0,0, SUMPRODUCT(('Detailed price list'!F$5:F$237)*('Detailed price list'!$M$5:$M$237)*('Detailed price list'!$L$5:$L$237=$B78))/SUMIF('Detailed price list'!$L$5:$L$237,$B78,'Detailed price list'!$M$5:$M$237)) -> 23.83291175 | F78: =IF(SUMIF('Detailed price list'!$L$5:$L$237,$B78,'Detailed price list'!$M$5:$M$237)=0,0, SUMPRODUCT(('Detailed price list'!G$5:G$237)*('Detailed price list'!$M$5:$M$237)*('Detailed price list'!$L$5:$L$237=$B78))/SUMIF('Detailed price list'!$L$5:$L$237,$B78,'Detailed price list'!$M$5:$M$237)) -> 24.51802652 | G78: =IF(SUMIF('Detailed price list'!$L$5:$L$237,$B78,'Detailed price list'!$M$5:$M$237)=0,0, SUMPRODUCT(('Detailed price list'!H$5:H$237)*('Detailed price list'!$M$5:$M$237)*('Detailed price list'!$L$5:$L$237=$B78))/SUMIF('Detailed price list'!$L$5:$L$237,$B78,'Detailed price list'!$M$5:$M$237)) -> 25.22283599
B79: Legacy Bracket - Minor (Cat P) road - Long | C79: =IF(SUMIF('Detailed price list'!$L$5:$L$237,$B79,'Detailed price list'!$M$5:$M$237)=0,0, SUMPRODUCT(('Detailed price list'!D$5:D$237)*('Detailed price list'!$M$5:$M$237)*('Detailed price list'!$L$5:$L$237=$B79))/SUMIF('Detailed price list'!$L$5:$L$237,$B79,'Detailed price list'!$M$5:$M$237)) -> 22.51958038 | D79: =IF(SUMIF('Detailed price list'!$L$5:$L$237,$B79,'Detailed price list'!$M$5:$M$237)=0,0, SUMPRODUCT(('Detailed price list'!E$5:E$237)*('Detailed price list'!$M$5:$M$237)*('Detailed price list'!$L$5:$L$237=$B79))/SUMIF('Detailed price list'!$L$5:$L$237,$B79,'Detailed price list'!$M$5:$M$237)) -> 23.16694136 | E79: =IF(SUMIF('Detailed price list'!$L$5:$L$237,$B79,'Detailed price list'!$M$5:$M$237)=0,0, SUMPRODUCT(('Detailed price list'!F$5:F$237)*('Detailed price list'!$M$5:$M$237)*('Detailed price list'!$L$5:$L$237=$B79))/SUMIF('Detailed price list'!$L$5:$L$237,$B79,'Detailed price list'!$M$5:$M$237)) -> 23.83291175 | F79: =IF(SUMIF('Detailed price list'!$L$5:$L$237,$B79,'Detailed price list'!$M$5:$M$237)=0,0, SUMPRODUCT(('Detailed price list'!G$5:G$237)*('Detailed price list'!$M$5:$M$237)*('Detailed price list'!$L$5:$L$237=$B79))/SUMIF('Detailed price list'!$L$5:$L$237,$B79,'Detailed price list'!$M$5:$M$237)) -> 24.51802652 | G79: =IF(SUMIF('Detailed price list'!$L$5:$L$237,$B79,'Detailed price list'!$M$5:$M$237)=0,0, SUMPRODUCT(('Detailed price list'!H$5:H$237)*('Detailed price list'!$M$5:$M$237)*('Detailed price list'!$L$5:$L$237=$B79))/SUMIF('Detailed price list'!$L$5:$L$237,$B79,'Detailed price list'!$M$5:$M$237)) -> 25.22283599
B80: Legacy Bracket - Minor (Cat P) road - Long | C80: =IF(SUMIF('Detailed price list'!$L$5:$L$237,$B80,'Detailed price list'!$M$5:$M$237)=0,0, SUMPRODUCT(('Detailed price list'!D$5:D$237)*('Detailed price list'!$M$5:$M$237)*('Detailed price list'!$L$5:$L$237=$B80))/SUMIF('Detailed price list'!$L$5:$L$237,$B80,'Detailed price list'!$M$5:$M$237)) -> 22.51958038 | D80: =IF(SUMIF('Detailed price list'!$L$5:$L$237,$B80,'Detailed price list'!$M$5:$M$237)=0,0, SUMPRODUCT(('Detailed price list'!E$5:E$237)*('Detailed price list'!$M$5:$M$237)*('Detailed price list'!$L$5:$L$237=$B80))/SUMIF('Detailed price list'!$L$5:$L$237,$B80,'Detailed price list'!$M$5:$M$237)) -> 23.16694136 | E80: =IF(SUMIF('Detailed price list'!$L$5:$L$237,$B80,'Detailed price list'!$M$5:$M$237)=0,0, SUMPRODUCT(('Detailed price list'!F$5:F$237)*('Detailed price list'!$M$5:$M$237)*('Detailed price list'!$L$5:$L$237=$B80))/SUMIF('Detailed price list'!$L$5:$L$237,$B80,'Detailed price list'!$M$5:$M$237)) -> 23.83291175 | F80: =IF(SUMIF('Detailed price list'!$L$5:$L$237,$B80,'Detailed price list'!$M$5:$M$237)=0,0, SUMPRODUCT(('Detailed price list'!G$5:G$237)*('Detailed price list'!$M$5:$M$237)*('Detailed price list'!$L$5:$L$237=$B80))/SUMIF('Detailed price list'!$L$5:$L$237,$B80,'Detailed price list'!$M$5:$M$237)) -> 24.51802652 | G80: =IF(SUMIF('Detailed price list'!$L$5:$L$237,$B80,'Detailed price list'!$M$5:$M$237)=0,0, SUMPRODUCT(('Detailed price list'!H$5:H$237)*('Detailed price list'!$M$5:$M$237)*('Detailed price list'!$L$5:$L$237=$B80))/SUMIF('Detailed price list'!$L$5:$L$237,$B80,'Detailed price list'!$M$5:$M$237)) -> 25.22283599
B81: Legacy Bracket - Major (Cat V) road - Short | C81: =IF(SUMIF('Detailed price list'!$L$5:$L$237,$B81,'Detailed price list'!$M$5:$M$237)=0,0, SUMPRODUCT(('Detailed price list'!D$5:D$237)*('Detailed price list'!$M$5:$M$237)*('Detailed price list'!$L$5:$L$237=$B81))/SUMIF('Detailed price list'!$L$5:$L$237,$B81,'Detailed price list'!$M$5:$M$237)) -> 11.55562057 | D81: =IF(SUMIF('Detailed price list'!$L$5:$L$237,$B81,'Detailed price list'!$M$5:$M$237)=0,0, SUMPRODUCT(('Detailed price list'!E$5:E$237)*('Detailed price list'!$M$5:$M$237)*('Detailed price list'!$L$5:$L$237=$B81))/SUMIF('Detailed price list'!$L$5:$L$237,$B81,'Detailed price list'!$M$5:$M$237)) -> 11.88780517 | E81: =IF(SUMIF('Detailed price list'!$L$5:$L$237,$B81,'Detailed price list'!$M$5:$M$237)=0,0, SUMPRODUCT(('Detailed price list'!F$5:F$237)*('Detailed price list'!$M$5:$M$237)*('Detailed price list'!$L$5:$L$237=$B81))/SUMIF('Detailed price list'!$L$5:$L$237,$B81,'Detailed price list'!$M$5:$M$237)) -> 12.22953894 | F81: =IF(SUMIF('Detailed price list'!$L$5:$L$237,$B81,'Detailed price list'!$M$5:$M$237)=0,0, SUMPRODUCT(('Detailed price list'!G$5:G$237)*('Detailed price list'!$M$5:$M$237)*('Detailed price list'!$L$5:$L$237=$B81))/SUMIF('Detailed price list'!$L$5:$L$237,$B81,'Detailed price list'!$M$5:$M$237)) -> 12.58109639 | G81: =IF(SUMIF('Detailed price list'!$L$5:$L$237,$B81,'Detailed price list'!$M$5:$M$237)=0,0, SUMPRODUCT(('Detailed price list'!H$5:H$237)*('Detailed price list'!$M$5:$M$237)*('Detailed price list'!$L$5:$L$237=$B81))/SUMIF('Detailed price list'!$L$5:$L$237,$B81,'Detailed price list'!$M$5:$M$237)) -> 12.94275992
B82: Legacy Bracket - Major (Cat V) road - Short | C82: =IF(SUMIF('Detailed price list'!$L$5:$L$237,$B82,'Detailed price list'!$M$5:$M$237)=0,0, SUMPRODUCT(('Detailed price list'!D$5:D$237)*('Detailed price list'!$M$5:$M$237)*('Detailed price list'!$L$5:$L$237=$B82))/SUMIF('Detailed price list'!$L$5:$L$237,$B82,'Detailed price list'!$M$5:$M$237)) -> 11.55562057 | D82: =IF(SUMIF('Detailed price list'!$L$5:$L$237,$B82,'Detailed price list'!$M$5:$M$237)=0,0, SUMPRODUCT(('Detailed price list'!E$5:E$237)*('Detailed price list'!$M$5:$M$237)*('Detailed price list'!$L$5:$L$237=$B82))/SUMIF('Detailed price list'!$L$5:$L$237,$B82,'Detailed price list'!$M$5:$M$237)) -> 11.88780517 | E82: =IF(SUMIF('Detailed price list'!$L$5:$L$237,$B82,'Detailed price list'!$M$5:$M$237)=0,0, SUMPRODUCT(('Detailed price list'!F$5:F$237)*('Detailed price list'!$M$5:$M$237)*('Detailed price list'!$L$5:$L$237=$B82))/SUMIF('Detailed price list'!$L$5:$L$237,$B82,'Detailed price list'!$M$5:$M$237)) -> 12.22953894 | F82: =IF(SUMIF('Detailed price list'!$L$5:$L$237,$B82,'Detailed price list'!$M$5:$M$237)=0,0, SUMPRODUCT(('Detailed price list'!G$5:G$237)*('Detailed price list'!$M$5:$M$237)*('Detailed price list'!$L$5:$L$237=$B82))/SUMIF('Detailed price list'!$L$5:$L$237,$B82,'Detailed price list'!$M$5:$M$237)) -> 12.58109639 | G82: =IF(SUMIF('Detailed price list'!$L$5:$L$237,$B82,'Detailed price list'!$M$5:$M$237)=0,0, SUMPRODUCT(('Detailed price list'!H$5:H$237)*('Detailed price list'!$M$5:$M$237)*('Detailed price list'!$L$5:$L$237=$B82))/SUMIF('Detailed price list'!$L$5:$L$237,$B82,'Detailed price list'!$M$5:$M$237)) -> 12.94275992
B83: Legacy Bracket - Major (Cat V) road - Short | C83: =IF(SUMIF('Detailed price list'!$L$5:$L$237,$B83,'Detailed price list'!$M$5:$M$237)=0,0, SUMPRODUCT(('Detailed price list'!D$5:D$237)*('Detailed price list'!$M$5:$M$237)*('Detailed price list'!$L$5:$L$237=$B83))/SUMIF('Detailed price list'!$L$5:$L$237,$B83,'Detailed price list'!$M$5:$M$237)) -> 11.55562057 | D83: =IF(SUMIF('Detailed price list'!$L$5:$L$237,$B83,'Detailed price list'!$M$5:$M$237)=0,0, SUMPRODUCT(('Detailed price list'!E$5:E$237)*('Detailed price list'!$M$5:$M$237)*('Detailed price list'!$L$5:$L$237=$B83))/SUMIF('Detailed price list'!$L$5:$L$237,$B83,'Detailed price list'!$M$5:$M$237)) -> 11.88780517 | E83: =IF(SUMIF('Detailed price list'!$L$5:$L$237,$B83,'Detailed price list'!$M$5:$M$237)=0,0, SUMPRODUCT(('Detailed price list'!F$5:F$237)*('Detailed price list'!$M$5:$M$237)*('Detailed price list'!$L$5:$L$237=$B83))/SUMIF('Detailed price list'!$L$5:$L$237,$B83,'Detailed price list'!$M$5:$M$237)) -> 12.22953894 | F83: =IF(SUMIF('Detailed price list'!$L$5:$L$237,$B83,'Detailed price list'!$M$5:$M$237)=0,0, SUMPRODUCT(('Detailed price list'!G$5:G$237)*('Detailed price list'!$M$5:$M$237)*('Detailed price list'!$L$5:$L$237=$B83))/SUMIF('Detailed price list'!$L$5:$L$237,$B83,'Detailed price list'!$M$5:$M$237)) -> 12.58109639 | G83: =IF(SUMIF('Detailed price list'!$L$5:$L$237,$B83,'Detailed price list'!$M$5:$M$237)=0,0, SUMPRODUCT(('Detailed price list'!H$5:H$237)*('Detailed price list'!$M$5:$M$237)*('Detailed price list'!$L$5:$L$237=$B83))/SUMIF('Detailed price list'!$L$5:$L$237,$B83,'Detailed price list'!$M$5:$M$237)) -> 12.94275992
B84: Legacy Bracket - Major (Cat V) road - Short | C84: =IF(SUMIF('Detailed price list'!$L$5:$L$237,$B84,'Detailed price list'!$M$5:$M$237)=0,0, SUMPRODUCT(('Detailed price list'!D$5:D$237)*('Detailed price list'!$M$5:$M$237)*('Detailed price list'!$L$5:$L$237=$B84))/SUMIF('Detailed price list'!$L$5:$L$237,$B84,'Detailed price list'!$M$5:$M$237)) -> 11.55562057 | D84: =IF(SUMIF('Detailed price list'!$L$5:$L$237,$B84,'Detailed price list'!$M$5:$M$237)=0,0, SUMPRODUCT(('Detailed price list'!E$5:E$237)*('Detailed price list'!$M$5:$M$237)*('Detailed price list'!$L$5:$L$237=$B84))/SUMIF('Detailed price list'!$L$5:$L$237,$B84,'Detailed price list'!$M$5:$M$237)) -> 11.88780517 | E84: =IF(SUMIF('Detailed price list'!$L$5:$L$237,$B84,'Detailed price list'!$M$5:$M$237)=0,0, SUMPRODUCT(('Detailed price list'!F$5:F$237)*('Detailed price list'!$M$5:$M$237)*('Detailed price list'!$L$5:$L$237=$B84))/SUMIF('Detailed price list'!$L$5:$L$237,$B84,'Detailed price list'!$M$5:$M$237)) -> 12.22953894 | F84: =IF(SUMIF('Detailed price list'!$L$5:$L$237,$B84,'Detailed price list'!$M$5:$M$237)=0,0, SUMPRODUCT(('Detailed price list'!G$5:G$237)*('Detailed price list'!$M$5:$M$237)*('Detailed price list'!$L$5:$L$237=$B84))/SUMIF('Detailed price list'!$L$5:$L$237,$B84,'Detailed price list'!$M$5:$M$237)) -> 12.58109639 | G84: =IF(SUMIF('Detailed price list'!$L$5:$L$237,$B84,'Detailed price list'!$M$5:$M$237)=0,0, SUMPRODUCT(('Detailed price list'!H$5:H$237)*('Detailed price list'!$M$5:$M$237)*('Detailed price list'!$L$5:$L$237=$B84))/SUMIF('Detailed price list'!$L$5:$L$237,$B84,'Detailed price list'!$M$5:$M$237)) -> 12.94275992
B85: Legacy Bracket - Major (Cat V) road - Medium | C85: =IF(SUMIF('Detailed price list'!$L$5:$L$237,$B85,'Detailed price list'!$M$5:$M$237)=0,0, SUMPRODUCT(('Detailed price list'!D$5:D$237)*('Detailed price list'!$M$5:$M$237)*('Detailed price list'!$L$5:$L$237=$B85))/SUMIF('Detailed price list'!$L$5:$L$237,$B85,'Detailed price list'!$M$5:$M$237)) -> 22.18822209 | D85: =IF(SUMIF('Detailed price list'!$L$5:$L$237,$B85,'Detailed price list'!$M$5:$M$237)=0,0, SUMPRODUCT(('Detailed price list'!E$5:E$237)*('Detailed price list'!$M$5:$M$237)*('Detailed price list'!$L$5:$L$237=$B85))/SUMIF('Detailed price list'!$L$5:$L$237,$B85,'Detailed price list'!$M$5:$M$237)) -> 22.82605765 | E85: =IF(SUMIF('Detailed price list'!$L$5:$L$237,$B85,'Detailed price list'!$M$5:$M$237)=0,0, SUMPRODUCT(('Detailed price list'!F$5:F$237)*('Detailed price list'!$M$5:$M$237)*('Detailed price list'!$L$5:$L$237=$B85))/SUMIF('Detailed price list'!$L$5:$L$237,$B85,'Detailed price list'!$M$5:$M$237)) -> 23.4822288 | F85: =IF(SUMIF('Detailed price list'!$L$5:$L$237,$B85,'Detailed price list'!$M$5:$M$237)=0,0, SUMPRODUCT(('Detailed price list'!G$5:G$237)*('Detailed price list'!$M$5:$M$237)*('Detailed price list'!$L$5:$L$237=$B85))/SUMIF('Detailed price list'!$L$5:$L$237,$B85,'Detailed price list'!$M$5:$M$237)) -> 24.15726263 | G85: =IF(SUMIF('Detailed price list'!$L$5:$L$237,$B85,'Detailed price list'!$M$5:$M$237)=0,0, SUMPRODUCT(('Detailed price list'!H$5:H$237)*('Detailed price list'!$M$5:$M$237)*('Detailed price list'!$L$5:$L$237=$B85))/SUMIF('Detailed price list'!$L$5:$L$237,$B85,'Detailed price list'!$M$5:$M$237)) -> 24.85170138
B86: Legacy Bracket - Major (Cat V) road - Medium | C86: =IF(SUMIF('Detailed price list'!$L$5:$L$237,$B86,'Detailed price list'!$M$5:$M$237)=0,0, SUMPRODUCT(('Detailed price list'!D$5:D$237)*('Detailed price list'!$M$5:$M$237)*('Detailed price list'!$L$5:$L$237=$B86))/SUMIF('Detailed price list'!$L$5:$L$237,$B86,'Detailed price list'!$M$5:$M$237)) -> 22.18822209 | D86: =IF(SUMIF('Detailed price list'!$L$5:$L$237,$B86,'Detailed price list'!$M$5:$M$237)=0,0, SUMPRODUCT(('Detailed price list'!E$5:E$237)*('Detailed price list'!$M$5:$M$237)*('Detailed price list'!$L$5:$L$237=$B86))/SUMIF('Detailed price list'!$L$5:$L$237,$B86,'Detailed price list'!$M$5:$M$237)) -> 22.82605765 | E86: =IF(SUMIF('Detailed price list'!$L$5:$L$237,$B86,'Detailed price list'!$M$5:$M$237)=0,0, SUMPRODUCT(('Detailed price list'!F$5:F$237)*('Detailed price list'!$M$5:$M$237)*('Detailed price list'!$L$5:$L$237=$B86))/SUMIF('Detailed price list'!$L$5:$L$237,$B86,'Detailed price list'!$M$5:$M$237)) -> 23.4822288 | F86: =IF(SUMIF('Detailed price list'!$L$5:$L$237,$B86,'Detailed price list'!$M$5:$M$237)=0,0, SUMPRODUCT(('Detailed price list'!G$5:G$237)*('Detailed price list'!$M$5:$M$237)*('Detailed price list'!$L$5:$L$237=$B86))/SUMIF('Detailed price list'!$L$5:$L$237,$B86,'Detailed price list'!$M$5:$M$237)) -> 24.15726263 | G86: =IF(SUMIF('Detailed price list'!$L$5:$L$237,$B86,'Detailed price list'!$M$5:$M$237)=0,0, SUMPRODUCT(('Detailed price list'!H$5:H$237)*('Detailed price list'!$M$5:$M$237)*('Detailed price list'!$L$5:$L$237=$B86))/SUMIF('Detailed price list'!$L$5:$L$237,$B86,'Detailed price list'!$M$5:$M$237)) -> 24.85170138
B87: Legacy Bracket - Major (Cat V) road - Medium | C87: =IF(SUMIF('Detailed price list'!$L$5:$L$237,$B87,'Detailed price list'!$M$5:$M$237)=0,0, SUMPRODUCT(('Detailed price list'!D$5:D$237)*('Detailed price list'!$M$5:$M$237)*('Detailed price list'!$L$5:$L$237=$B87))/SUMIF('Detailed price list'!$L$5:$L$237,$B87,'Detailed price list'!$M$5:$M$237)) -> 22.18822209 | D87: =IF(SUMIF('Detailed price list'!$L$5:$L$237,$B87,'Detailed price list'!$M$5:$M$237)=0,0, SUMPRODUCT(('Detailed price list'!E$5:E$237)*('Detailed price list'!$M$5:$M$237)*('Detailed price list'!$L$5:$L$237=$B87))/SUMIF('Detailed price list'!$L$5:$L$237,$B87,'Detailed price list'!$M$5:$M$237)) -> 22.82605765 | E87: =IF(SUMIF('Detailed price list'!$L$5:$L$237,$B87,'Detailed price list'!$M$5:$M$237)=0,0, SUMPRODUCT(('Detailed price list'!F$5:F$237)*('Detailed price list'!$M$5:$M$237)*('Detailed price list'!$L$5:$L$237=$B87))/SUMIF('Detailed price list'!$L$5:$L$237,$B87,'Detailed price list'!$M$5:$M$237)) -> 23.4822288 | F87: =IF(SUMIF('Detailed price list'!$L$5:$L$237,$B87,'Detailed price list'!$M$5:$M$237)=0,0, SUMPRODUCT(('Detailed price list'!G$5:G$237)*('Detailed price list'!$M$5:$M$237)*('Detailed price list'!$L$5:$L$237=$B87))/SUMIF('Detailed price list'!$L$5:$L$237,$B87,'Detailed price list'!$M$5:$M$237)) -> 24.15726263 | G87: =IF(SUMIF('Detailed price list'!$L$5:$L$237,$B87,'Detailed price list'!$M$5:$M$237)=0,0, SUMPRODUCT(('Detailed price list'!H$5:H$237)*('Detailed price list'!$M$5:$M$237)*('Detailed price list'!$L$5:$L$237=$B87))/SUMIF('Detailed price list'!$L$5:$L$237,$B87,'Detailed price list'!$M$5:$M$237)) -> 24.85170138
B88: Legacy Bracket - Major (Cat V) road - Medium | C88: =IF(SUMIF('Detailed price list'!$L$5:$L$237,$B88,'Detailed price list'!$M$5:$M$237)=0,0, SUMPRODUCT(('Detailed price list'!D$5:D$237)*('Detailed price list'!$M$5:$M$237)*('Detailed price list'!$L$5:$L$237=$B88))/SUMIF('Detailed price list'!$L$5:$L$237,$B88,'Detailed price list'!$M$5:$M$237)) -> 22.18822209 | D88: =IF(SUMIF('Detailed price list'!$L$5:$L$237,$B88,'Detailed price list'!$M$5:$M$237)=0,0, SUMPRODUCT(('Detailed price list'!E$5:E$237)*('Detailed price list'!$M$5:$M$237)*('Detailed price list'!$L$5:$L$237=$B88))/SUMIF('Detailed price list'!$L$5:$L$237,$B88,'Detailed price list'!$M$5:$M$237)) -> 22.82605765 | E88: =IF(SUMIF('Detailed price list'!$L$5:$L$237,$B88,'Detailed price list'!$M$5:$M$237)=0,0, SUMPRODUCT(('Detailed price list'!F$5:F$237)*('Detailed price list'!$M$5:$M$237)*('Detailed price list'!$L$5:$L$237=$B88))/SUMIF('Detailed price list'!$L$5:$L$237,$B88,'Detailed price list'!$M$5:$M$237)) -> 23.4822288 | F88: =IF(SUMIF('Detailed price list'!$L$5:$L$237,$B88,'Detailed price list'!$M$5:$M$237)=0,0, SUMPRODUCT(('Detailed price list'!G$5:G$237)*('Detailed price list'!$M$5:$M$237)*('Detailed price list'!$L$5:$L$237=$B88))/SUMIF('Detailed price list'!$L$5:$L$237,$B88,'Detailed price list'!$M$5:$M$237)) -> 24.15726263 | G88: =IF(SUMIF('Detailed price list'!$L$5:$L$237,$B88,'Detailed price list'!$M$5:$M$237)=0,0, SUMPRODUCT(('Detailed price list'!H$5:H$237)*('Detailed price list'!$M$5:$M$237)*('Detailed price list'!$L$5:$L$237=$B88))/SUMIF('Detailed price list'!$L$5:$L$237,$B88,'Detailed price list'!$M$5:$M$237)) -> 24.85170138
B89: Legacy Bracket - Major (Cat V) road - Medium | C89: =IF(SUMIF('Detailed price list'!$L$5:$L$237,$B89,'Detailed price list'!$M$5:$M$237)=0,0, SUMPRODUCT(('Detailed price list'!D$5:D$237)*('Detailed price list'!$M$5:$M$237)*('Detailed price list'!$L$5:$L$237=$B89))/SUMIF('Detailed price list'!$L$5:$L$237,$B89,'Detailed price list'!$M$5:$M$237)) -> 22.18822209 | D89: =IF(SUMIF('Detailed price list'!$L$5:$L$237,$B89,'Detailed price list'!$M$5:$M$237)=0,0, SUMPRODUCT(('Detailed price list'!E$5:E$237)*('Detailed price list'!$M$5:$M$237)*('Detailed price list'!$L$5:$L$237=$B89))/SUMIF('Detailed price list'!$L$5:$L$237,$B89,'Detailed price list'!$M$5:$M$237)) -> 22.82605765 | E89: =IF(SUMIF('Detailed price list'!$L$5:$L$237,$B89,'Detailed price list'!$M$5:$M$237)=0,0, SUMPRODUCT(('Detailed price list'!F$5:F$237)*('Detailed price list'!$M$5:$M$237)*('Detailed price list'!$L$5:$L$237=$B89))/SUMIF('Detailed price list'!$L$5:$L$237,$B89,'Detailed price list'!$M$5:$M$237)) -> 23.4822288 | F89: =IF(SUMIF('Detailed price list'!$L$5:$L$237,$B89,'Detailed price list'!$M$5:$M$237)=0,0, SUMPRODUCT(('Detailed price list'!G$5:G$237)*('Detailed price list'!$M$5:$M$237)*('Detailed price list'!$L$5:$L$237=$B89))/SUMIF('Detailed price list'!$L$5:$L$237,$B89,'Detailed price list'!$M$5:$M$237)) -> 24.15726263 | G89: =IF(SUMIF('Detailed price list'!$L$5:$L$237,$B89,'Detailed price list'!$M$5:$M$237)=0,0, SUMPRODUCT(('Detailed price list'!H$5:H$237)*('Detailed price list'!$M$5:$M$237)*('Detailed price list'!$L$5:$L$237=$B89))/SUMIF('Detailed price list'!$L$5:$L$237,$B89,'Detailed price list'!$M$5:$M$237)) -> 24.85170138
B90: Legacy Bracket - Major (Cat V) road - Long | C90: =IF(SUMIF('Detailed price list'!$L$5:$L$237,$B90,'Detailed price list'!$M$5:$M$237)=0,0, SUMPRODUCT(('Detailed price list'!D$5:D$237)*('Detailed price list'!$M$5:$M$237)*('Detailed price list'!$L$5:$L$237=$B90))/SUMIF('Detailed price list'!$L$5:$L$237,$B90,'Detailed price list'!$M$5:$M$237)) -> 32.16374413 | D90: =IF(SUMIF('Detailed price list'!$L$5:$L$237,$B90,'Detailed price list'!$M$5:$M$237)=0,0, SUMPRODUCT(('Detailed price list'!E$5:E$237)*('Detailed price list'!$M$5:$M$237)*('Detailed price list'!$L$5:$L$237=$B90))/SUMIF('Detailed price list'!$L$5:$L$237,$B90,'Detailed price list'!$M$5:$M$237)) -> 33.08834186 | E90: =IF(SUMIF('Detailed price list'!$L$5:$L$237,$B90,'Detailed price list'!$M$5:$M$237)=0,0, SUMPRODUCT(('Detailed price list'!F$5:F$237)*('Detailed price list'!$M$5:$M$237)*('Detailed price list'!$L$5:$L$237=$B90))/SUMIF('Detailed price list'!$L$5:$L$237,$B90,'Detailed price list'!$M$5:$M$237)) -> 34.03951861 | F90: =IF(SUMIF('Detailed price list'!$L$5:$L$237,$B90,'Detailed price list'!$M$5:$M$237)=0,0, SUMPRODUCT(('Detailed price list'!G$5:G$237)*('Detailed price list'!$M$5:$M$237)*('Detailed price list'!$L$5:$L$237=$B90))/SUMIF('Detailed price list'!$L$5:$L$237,$B90,'Detailed price list'!$M$5:$M$237)) -> 35.01803844 | G90: =IF(SUMIF('Detailed price list'!$L$5:$L$237,$B90,'Detailed price list'!$M$5:$M$237)=0,0, SUMPRODUCT(('Detailed price list'!H$5:H$237)*('Detailed price list'!$M$5:$M$237)*('Detailed price list'!$L$5:$L$237=$B90))/SUMIF('Detailed price list'!$L$5:$L$237,$B90,'Detailed price list'!$M$5:$M$237)) -> 36.02468738
B91: Bracket - Minor Road (Cat P) - Short | C91: =IF(SUMIF('Detailed price list'!$L$5:$L$237,$B91,'Detailed price list'!$M$5:$M$237)=0,0, SUMPRODUCT(('Detailed price list'!D$5:D$237)*('Detailed price list'!$M$5:$M$237)*('Detailed price list'!$L$5:$L$237=$B91))/SUMIF('Detailed price list'!$L$5:$L$237,$B91,'Detailed price list'!$M$5:$M$237)) -> 9.649455457 | D91: =IF(SUMIF('Detailed price list'!$L$5:$L$237,$B91,'Detailed price list'!$M$5:$M$237)=0,0, SUMPRODUCT(('Detailed price list'!E$5:E$237)*('Detailed price list'!$M$5:$M$237)*('Detailed price list'!$L$5:$L$237=$B91))/SUMIF('Detailed price list'!$L$5:$L$237,$B91,'Detailed price list'!$M$5:$M$237)) -> 9.926844325 | E91: =IF(SUMIF('Detailed price list'!$L$5:$L$237,$B91,'Detailed price list'!$M$5:$M$237)=0,0, SUMPRODUCT(('Detailed price list'!F$5:F$237)*('Detailed price list'!$M$5:$M$237)*('Detailed price list'!$L$5:$L$237=$B91))/SUMIF('Detailed price list'!$L$5:$L$237,$B91,'Detailed price list'!$M$5:$M$237)) -> 10.21220718 | F91: =IF(SUMIF('Detailed price list'!$L$5:$L$237,$B91,'Detailed price list'!$M$5:$M$237)=0,0, SUMPRODUCT(('Detailed price list'!G$5:G$237)*('Detailed price list'!$M$5:$M$237)*('Detailed price list'!$L$5:$L$237=$B91))/SUMIF('Detailed price list'!$L$5:$L$237,$B91,'Detailed price list'!$M$5:$M$237)) -> 10.50577323 | G91: =IF(SUMIF('Detailed price list'!$L$5:$L$237,$B91,'Detailed price list'!$M$5:$M$237)=0,0, SUMPRODUCT(('Detailed price list'!H$5:H$237)*('Detailed price list'!$M$5:$M$237)*('Detailed price list'!$L$5:$L$237=$B91))/SUMIF('Detailed price list'!$L$5:$L$237,$B91,'Detailed price list'!$M$5:$M$237)) -> 10.80777831
B92: Bracket - Minor Road (Cat P) - Medium | C92: =IF(SUMIF('Detailed price list'!$L$5:$L$237,$B92,'Detailed price list'!$M$5:$M$237)=0,0, SUMPRODUCT(('Detailed price list'!D$5:D$237)*('Detailed price list'!$M$5:$M$237)*('Detailed price list'!$L$5:$L$237=$B92))/SUMIF('Detailed price list'!$L$5:$L$237,$B92,'Detailed price list'!$M$5:$M$237)) -> 0 | D92: =IF(SUMIF('Detailed price list'!$L$5:$L$237,$B92,'Detailed price list'!$M$5:$M$237)=0,0, SUMPRODUCT(('Detailed price list'!E$5:E$237)*('Detailed price list'!$M$5:$M$237)*('Detailed price list'!$L$5:$L$237=$B92))/SUMIF('Detailed price list'!$L$5:$L$237,$B92,'Detailed price list'!$M$5:$M$237)) -> 0 | E92: =IF(SUMIF('Detailed price list'!$L$5:$L$237,$B92,'Detailed price list'!$M$5:$M$237)=0,0, SUMPRODUCT(('Detailed price list'!F$5:F$237)*('Detailed price list'!$M$5:$M$237)*('Detailed price list'!$L$5:$L$237=$B92))/SUMIF('Detailed price list'!$L$5:$L$237,$B92,'Detailed price list'!$M$5:$M$237)) -> 0 | F92: =IF(SUMIF('Detailed price list'!$L$5:$L$237,$B92,'Detailed price list'!$M$5:$M$237)=0,0, SUMPRODUCT(('Detailed price list'!G$5:G$237)*('Detailed price list'!$M$5:$M$237)*('Detailed price list'!$L$5:$L$237=$B92))/SUMIF('Detailed price list'!$L$5:$L$237,$B92,'Detailed price list'!$M$5:$M$237)) -> 0 | G92: =IF(SUMIF('Detailed price list'!$L$5:$L$237,$B92,'Detailed price list'!$M$5:$M$237)=0,0, SUMPRODUCT(('Detailed price list'!H$5:H$237)*('Detailed price list'!$M$5:$M$237)*('Detailed price list'!$L$5:$L$237=$B92))/SUMIF('Detailed price list'!$L$5:$L$237,$B92,'Detailed price list'!$M$5:$M$237)) -> 0
B93: Bracket - Major Road (Cat V) - Short | C93: =IF(SUMIF('Detailed price list'!$L$5:$L$237,$B93,'Detailed price list'!$M$5:$M$237)=0,0, SUMPRODUCT(('Detailed price list'!D$5:D$237)*('Detailed price list'!$M$5:$M$237)*('Detailed price list'!$L$5:$L$237=$B93))/SUMIF('Detailed price list'!$L$5:$L$237,$B93,'Detailed price list'!$M$5:$M$237)) -> 12.52024703 | D93: =IF(SUMIF('Detailed price list'!$L$5:$L$237,$B93,'Detailed price list'!$M$5:$M$237)=0,0, SUMPRODUCT(('Detailed price list'!E$5:E$237)*('Detailed price list'!$M$5:$M$237)*('Detailed price list'!$L$5:$L$237=$B93))/SUMIF('Detailed price list'!$L$5:$L$237,$B93,'Detailed price list'!$M$5:$M$237)) -> 12.88016135 | E93: =IF(SUMIF('Detailed price list'!$L$5:$L$237,$B93,'Detailed price list'!$M$5:$M$237)=0,0, SUMPRODUCT(('Detailed price list'!F$5:F$237)*('Detailed price list'!$M$5:$M$237)*('Detailed price list'!$L$5:$L$237=$B93))/SUMIF('Detailed price list'!$L$5:$L$237,$B93,'Detailed price list'!$M$5:$M$237)) -> 13.25042197 | F93: =IF(SUMIF('Detailed price list'!$L$5:$L$237,$B93,'Detailed price list'!$M$5:$M$237)=0,0, SUMPRODUCT(('Detailed price list'!G$5:G$237)*('Detailed price list'!$M$5:$M$237)*('Detailed price list'!$L$5:$L$237=$B93))/SUMIF('Detailed price list'!$L$5:$L$237,$B93,'Detailed price list'!$M$5:$M$237)) -> 13.63132632 | G93: =IF(SUMIF('Detailed price list'!$L$5:$L$237,$B93,'Detailed price list'!$M$5:$M$237)=0,0, SUMPRODUCT(('Detailed price list'!H$5:H$237)*('Detailed price list'!$M$5:$M$237)*('Detailed price list'!$L$5:$L$237=$B93))/SUMIF('Detailed price list'!$L$5:$L$237,$B93,'Detailed price list'!$M$5:$M$237)) -> 14.02318037
B94: Bracket - Major Road (Cat V) - Medium | C94: =IF(SUMIF('Detailed price list'!$L$5:$L$237,$B94,'Detailed price list'!$M$5:$M$237)=0,0, SUMPRODUCT(('Detailed price list'!D$5:D$237)*('Detailed price list'!$M$5:$M$237)*('Detailed price list'!$L$5:$L$237=$B94))/SUMIF('Detailed price list'!$L$5:$L$237,$B94,'Detailed price list'!$M$5:$M$237)) -> 0 | D94: =IF(SUMIF('Detailed price list'!$L$5:$L$237,$B94,'Detailed price list'!$M$5:$M$237)=0,0, SUMPRODUCT(('Detailed price list'!E$5:E$237)*('Detailed price list'!$M$5:$M$237)*('Detailed price list'!$L$5:$L$237=$B94))/SUMIF('Detailed price list'!$L$5:$L$237,$B94,'Detailed price list'!$M$5:$M$237)) -> 0 | E94: =IF(SUMIF('Detailed price list'!$L$5:$L$237,$B94,'Detailed price list'!$M$5:$M$237)=0,0, SUMPRODUCT(('Detailed price list'!F$5:F$237)*('Detailed price list'!$M$5:$M$237)*('Detailed price list'!$L$5:$L$237=$B94))/SUMIF('Detailed price list'!$L$5:$L$237,$B94,'Detailed price list'!$M$5:$M$237)) -> 0 | F94: =IF(SUMIF('Detailed price list'!$L$5:$L$237,$B94,'Detailed price list'!$M$5:$M$237)=0,0, SUMPRODUCT(('Detailed price list'!G$5:G$237)*('Detailed price list'!$M$5:$M$237)*('Detailed price list'!$L$5:$L$237=$B94))/SUMIF('Detailed price list'!$L$5:$L$237,$B94,'Detailed price list'!$M$5:$M$237)) -> 0 | G94: =IF(SUMIF('Detailed price list'!$L$5:$L$237,$B94,'Detailed price list'!$M$5:$M$237)=0,0, SUMPRODUCT(('Detailed price list'!H$5:H$237)*('Detailed price list'!$M$5:$M$237)*('Detailed price list'!$L$5:$L$237=$B94))/SUMIF('Detailed price list'!$L$5:$L$237,$B94,'Detailed price list'!$M$5:$M$237)) -> 0
B95: Bracket - Major Road (Cat V) - Long | C95: =IF(SUMIF('Detailed price list'!$L$5:$L$237,$B95,'Detailed price list'!$M$5:$M$237)=0,0, SUMPRODUCT(('Detailed price list'!D$5:D$237)*('Detailed price list'!$M$5:$M$237)*('Detailed price list'!$L$5:$L$237=$B95))/SUMIF('Detailed price list'!$L$5:$L$237,$B95,'Detailed price list'!$M$5:$M$237)) -> 0 | D95: =IF(SUMIF('Detailed price list'!$L$5:$L$237,$B95,'Detailed price list'!$M$5:$M$237)=0,0, SUMPRODUCT(('Detailed price list'!E$5:E$237)*('Detailed price list'!$M$5:$M$237)*('Detailed price list'!$L$5:$L$237=$B95))/SUMIF('Detailed price list'!$L$5:$L$237,$B95,'Detailed price list'!$M$5:$M$237)) -> 0 | E95: =IF(SUMIF('Detailed price list'!$L$5:$L$237,$B95,'Detailed price list'!$M$5:$M$237)=0,0, SUMPRODUCT(('Detailed price list'!F$5:F$237)*('Detailed price list'!$M$5:$M$237)*('Detailed price list'!$L$5:$L$237=$B95))/SUMIF('Detailed price list'!$L$5:$L$237,$B95,'Detailed price list'!$M$5:$M$237)) -> 0 | F95: =IF(SUMIF('Detailed price list'!$L$5:$L$237,$B95,'Detailed price list'!$M$5:$M$237)=0,0, SUMPRODUCT(('Detailed price list'!G$5:G$237)*('Detailed price list'!$M$5:$M$237)*('Detailed price list'!$L$5:$L$237=$B95))/SUMIF('Detailed price list'!$L$5:$L$237,$B95,'Detailed price list'!$M$5:$M$237)) -> 0 | G95: =IF(SUMIF('Detailed price list'!$L$5:$L$237,$B95,'Detailed price list'!$M$5:$M$237)=0,0, SUMPRODUCT(('Detailed price list'!H$5:H$237)*('Detailed price list'!$M$5:$M$237)*('Detailed price list'!$L$5:$L$237=$B95))/SUMIF('Detailed price list'!$L$5:$L$237,$B95,'Detailed price list'!$M$5:$M$237)) -> 0
B96: Legacy Luminaire - 1000W SON | C96: =IF(SUMIF('Detailed price list'!$L$5:$L$237,$B96,'Detailed price list'!$M$5:$M$237)=0,0, SUMPRODUCT(('Detailed price list'!D$5:D$237)*('Detailed price list'!$M$5:$M$237)*('Detailed price list'!$L$5:$L$237=$B96))/SUMIF('Detailed price list'!$L$5:$L$237,$B96,'Detailed price list'!$M$5:$M$237)) -> 107.467215 | D96: =IF(SUMIF('Detailed price list'!$L$5:$L$237,$B96,'Detailed price list'!$M$5:$M$237)=0,0, SUMPRODUCT(('Detailed price list'!E$5:E$237)*('Detailed price list'!$M$5:$M$237)*('Detailed price list'!$L$5:$L$237=$B96))/SUMIF('Detailed price list'!$L$5:$L$237,$B96,'Detailed price list'!$M$5:$M$237)) -> 110.5565302 | E96: =IF(SUMIF('Detailed price list'!$L$5:$L$237,$B96,'Detailed price list'!$M$5:$M$237)=0,0, SUMPRODUCT(('Detailed price list'!F$5:F$237)*('Detailed price list'!$M$5:$M$237)*('Detailed price list'!$L$5:$L$237=$B96))/SUMIF('Detailed price list'!$L$5:$L$237,$B96,'Detailed price list'!$M$5:$M$237)) -> 113.7346526 | F96: =IF(SUMIF('Detailed price list'!$L$5:$L$237,$B96,'Detailed price list'!$M$5:$M$237)=0,0, SUMPRODUCT(('Detailed price list'!G$5:G$237)*('Detailed price list'!$M$5:$M$237)*('Detailed price list'!$L$5:$L$237=$B96))/SUMIF('Detailed price list'!$L$5:$L$237,$B96,'Detailed price list'!$M$5:$M$237)) -> 117.0041352 | G96: =IF(SUMIF('Detailed price list'!$L$5:$L$237,$B96,'Detailed price list'!$M$5:$M$237)=0,0, SUMPRODUCT(('Detailed price list'!H$5:H$237)*('Detailed price list'!$M$5:$M$237)*('Detailed price list'!$L$5:$L$237=$B96))/SUMIF('Detailed price list'!$L$5:$L$237,$B96,'Detailed price list'!$M$5:$M$237)) -> 120.3676042
B97: Legacy Luminaire - 1000W SON FLOODLIGHT | C97: =IF(SUMIF('Detailed price list'!$L$5:$L$237,$B97,'Detailed price list'!$M$5:$M$237)=0,0, SUMPRODUCT(('Detailed price list'!D$5:D$237)*('Detailed price list'!$M$5:$M$237)*('Detailed price list'!$L$5:$L$237=$B97))/SUMIF('Detailed price list'!$L$5:$L$237,$B97,'Detailed price list'!$M$5:$M$237)) -> 87.92947588 | D97: =IF(SUMIF('Detailed price list'!$L$5:$L$237,$B97,'Detailed price list'!$M$5:$M$237)=0,0, SUMPRODUCT(('Detailed price list'!E$5:E$237)*('Detailed price list'!$M$5:$M$237)*('Detailed price list'!$L$5:$L$237=$B97))/SUMIF('Detailed price list'!$L$5:$L$237,$B97,'Detailed price list'!$M$5:$M$237)) -> 90.45714783 | E97: =IF(SUMIF('Detailed price list'!$L$5:$L$237,$B97,'Detailed price list'!$M$5:$M$237)=0,0, SUMPRODUCT(('Detailed price list'!F$5:F$237)*('Detailed price list'!$M$5:$M$237)*('Detailed price list'!$L$5:$L$237=$B97))/SUMIF('Detailed price list'!$L$5:$L$237,$B97,'Detailed price list'!$M$5:$M$237)) -> 93.0574817 | F97: =IF(SUMIF('Detailed price list'!$L$5:$L$237,$B97,'Detailed price list'!$M$5:$M$237)=0,0, SUMPRODUCT(('Detailed price list'!G$5:G$237)*('Detailed price list'!$M$5:$M$237)*('Detailed price list'!$L$5:$L$237=$B97))/SUMIF('Detailed price list'!$L$5:$L$237,$B97,'Detailed price list'!$M$5:$M$237)) -> 95.73256628 | G97: =IF(SUMIF('Detailed price list'!$L$5:$L$237,$B97,'Detailed price list'!$M$5:$M$237)=0,0, SUMPRODUCT(('Detailed price list'!H$5:H$237)*('Detailed price list'!$M$5:$M$237)*('Detailed price list'!$L$5:$L$237=$B97))/SUMIF('Detailed price list'!$L$5:$L$237,$B97,'Detailed price list'!$M$5:$M$237)) -> 98.48455041
B98: Legacy Luminaire - 1000W/1500W MBI FLOODLIG | C98: =IF(SUMIF('Detailed price list'!$L$5:$L$237,$B98,'Detailed price list'!$M$5:$M$237)=0,0, SUMPRODUCT(('Detailed price list'!D$5:D$237)*('Detailed price list'!$M$5:$M$237)*('Detailed price list'!$L$5:$L$237=$B98))/SUMIF('Detailed price list'!$L$5:$L$237,$B98,'Detailed price list'!$M$5:$M$237)) -> 119.1045106 | D98: =IF(SUMIF('Detailed price list'!$L$5:$L$237,$B98,'Detailed price list'!$M$5:$M$237)=0,0, SUMPRODUCT(('Detailed price list'!E$5:E$237)*('Detailed price list'!$M$5:$M$237)*('Detailed price list'!$L$5:$L$237=$B98))/SUMIF('Detailed price list'!$L$5:$L$237,$B98,'Detailed price list'!$M$5:$M$237)) -> 122.5283582 | E98: =IF(SUMIF('Detailed price list'!$L$5:$L$237,$B98,'Detailed price list'!$M$5:$M$237)=0,0, SUMPRODUCT(('Detailed price list'!F$5:F$237)*('Detailed price list'!$M$5:$M$237)*('Detailed price list'!$L$5:$L$237=$B98))/SUMIF('Detailed price list'!$L$5:$L$237,$B98,'Detailed price list'!$M$5:$M$237)) -> 126.0506298 | F98: =IF(SUMIF('Detailed price list'!$L$5:$L$237,$B98,'Detailed price list'!$M$5:$M$237)=0,0, SUMPRODUCT(('Detailed price list'!G$5:G$237)*('Detailed price list'!$M$5:$M$237)*('Detailed price list'!$L$5:$L$237=$B98))/SUMIF('Detailed price list'!$L$5:$L$237,$B98,'Detailed price list'!$M$5:$M$237)) -> 129.6741547 | G98: =IF(SUMIF('Detailed price list'!$L$5:$L$237,$B98,'Detailed price list'!$M$5:$M$237)=0,0, SUMPRODUCT(('Detailed price list'!H$5:H$237)*('Detailed price list'!$M$5:$M$237)*('Detailed price list'!$L$5:$L$237=$B98))/SUMIF('Detailed price list'!$L$5:$L$237,$B98,'Detailed price list'!$M$5:$M$237)) -> 133.4018435
B99: Legacy Luminaire - 100W MBI | C99: =IF(SUMIF('Detailed price list'!$L$5:$L$237,$B99,'Detailed price list'!$M$5:$M$237)=0,0, SUMPRODUCT(('Detailed price list'!D$5:D$237)*('Detailed price list'!$M$5:$M$237)*('Detailed price list'!$L$5:$L$237=$B99))/SUMIF('Detailed price list'!$L$5:$L$237,$B99,'Detailed price list'!$M$5:$M$237)) -> 0 | D99: =IF(SUMIF('Detailed price list'!$L$5:$L$237,$B99,'Detailed price list'!$M$5:$M$237)=0,0, SUMPRODUCT(('Detailed price list'!E$5:E$237)*('Detailed price list'!$M$5:$M$237)*('Detailed price list'!$L$5:$L$237=$B99))/SUMIF('Detailed price list'!$L$5:$L$237,$B99,'Detailed price list'!$M$5:$M$237)) -> 0 | E99: =IF(SUMIF('Detailed price list'!$L$5:$L$237,$B99,'Detailed price list'!$M$5:$M$237)=0,0, SUMPRODUCT(('Detailed price list'!F$5:F$237)*('Detailed price list'!$M$5:$M$237)*('Detailed price list'!$L$5:$L$237=$B99))/SUMIF('Detailed price list'!$L$5:$L$237,$B99,'Detailed price list'!$M$5:$M$237)) -> 0 | F99: =IF(SUMIF('Detailed price list'!$L$5:$L$237,$B99,'Detailed price list'!$M$5:$M$237)=0,0, SUMPRODUCT(('Detailed price list'!G$5:G$237)*('Detailed price list'!$M$5:$M$237)*('Detailed price list'!$L$5:$L$237=$B99))/SUMIF('Detailed price list'!$L$5:$L$237,$B99,'Detailed price list'!$M$5:$M$237)) -> 0 | G99: =IF(SUMIF('Detailed price list'!$L$5:$L$237,$B99,'Detailed price list'!$M$5:$M$237)=0,0, SUMPRODUCT(('Detailed price list'!H$5:H$237)*('Detailed price list'!$M$5:$M$237)*('Detailed price list'!$L$5:$L$237=$B99))/SUMIF('Detailed price list'!$L$5:$L$237,$B99,'Detailed price list'!$M$5:$M$237)) -> 0
B100: Legacy Luminaire - 100W MBI FLOODLIGHT | C100: =IF(SUMIF('Detailed price list'!$L$5:$L$237,$B100,'Detailed price list'!$M$5:$M$237)=0,0, SUMPRODUCT(('Detailed price list'!D$5:D$237)*('Detailed price list'!$M$5:$M$237)*('Detailed price list'!$L$5:$L$237=$B100))/SUMIF('Detailed price list'!$L$5:$L$237,$B100,'Detailed price list'!$M$5:$M$237)) -> 43.71390379 | D100: =IF(SUMIF('Detailed price list'!$L$5:$L$237,$B100,'Detailed price list'!$M$5:$M$237)=0,0, SUMPRODUCT(('Detailed price list'!E$5:E$237)*('Detailed price list'!$M$5:$M$237)*('Detailed price list'!$L$5:$L$237=$B100))/SUMIF('Detailed price list'!$L$5:$L$237,$B100,'Detailed price list'!$M$5:$M$237)) -> 44.97052913 | E100: =IF(SUMIF('Detailed price list'!$L$5:$L$237,$B100,'Detailed price list'!$M$5:$M$237)=0,0, SUMPRODUCT(('Detailed price list'!F$5:F$237)*('Detailed price list'!$M$5:$M$237)*('Detailed price list'!$L$5:$L$237=$B100))/SUMIF('Detailed price list'!$L$5:$L$237,$B100,'Detailed price list'!$M$5:$M$237)) -> 46.26327817 | F100: =IF(SUMIF('Detailed price list'!$L$5:$L$237,$B100,'Detailed price list'!$M$5:$M$237)=0,0, SUMPRODUCT(('Detailed price list'!G$5:G$237)*('Detailed price list'!$M$5:$M$237)*('Detailed price list'!$L$5:$L$237=$B100))/SUMIF('Detailed price list'!$L$5:$L$237,$B100,'Detailed price list'!$M$5:$M$237)) -> 47.59318931 | G100: =IF(SUMIF('Detailed price list'!$L$5:$L$237,$B100,'Detailed price list'!$M$5:$M$237)=0,0, SUMPRODUCT(('Detailed price list'!H$5:H$237)*('Detailed price list'!$M$5:$M$237)*('Detailed price list'!$L$5:$L$237=$B100))/SUMIF('Detailed price list'!$L$5:$L$237,$B100,'Detailed price list'!$M$5:$M$237)) -> 48.96133086
B101: Legacy Luminaire - 100W SON | C101: =IF(SUMIF('Detailed price list'!$L$5:$L$237,$B101,'Detailed price list'!$M$5:$M$237)=0,0, SUMPRODUCT(('Detailed price list'!D$5:D$237)*('Detailed price list'!$M$5:$M$237)*('Detailed price list'!$L$5:$L$237=$B101))/SUMIF('Detailed price list'!$L$5:$L$237,$B101,'Detailed price list'!$M$5:$M$237)) -> 42.97576016 | D101: =IF(SUMIF('Detailed price list'!$L$5:$L$237,$B101,'Detailed price list'!$M$5:$M$237)=0,0, SUMPRODUCT(('Detailed price list'!E$5:E$237)*('Detailed price list'!$M$5:$M$237)*('Detailed price list'!$L$5:$L$237=$B101))/SUMIF('Detailed price list'!$L$5:$L$237,$B101,'Detailed price list'!$M$5:$M$237)) -> 44.2111664 | E101: =IF(SUMIF('Detailed price list'!$L$5:$L$237,$B101,'Detailed price list'!$M$5:$M$237)=0,0, SUMPRODUCT(('Detailed price list'!F$5:F$237)*('Detailed price list'!$M$5:$M$237)*('Detailed price list'!$L$5:$L$237=$B101))/SUMIF('Detailed price list'!$L$5:$L$237,$B101,'Detailed price list'!$M$5:$M$237)) -> 45.48208635 | F101: =IF(SUMIF('Detailed price list'!$L$5:$L$237,$B101,'Detailed price list'!$M$5:$M$237)=0,0, SUMPRODUCT(('Detailed price list'!G$5:G$237)*('Detailed price list'!$M$5:$M$237)*('Detailed price list'!$L$5:$L$237=$B101))/SUMIF('Detailed price list'!$L$5:$L$237,$B101,'Detailed price list'!$M$5:$M$237)) -> 46.7895409 | G101: =IF(SUMIF('Detailed price list'!$L$5:$L$237,$B101,'Detailed price list'!$M$5:$M$237)=0,0, SUMPRODUCT(('Detailed price list'!H$5:H$237)*('Detailed price list'!$M$5:$M$237)*('Detailed price list'!$L$5:$L$237=$B101))/SUMIF('Detailed price list'!$L$5:$L$237,$B101,'Detailed price list'!$M$5:$M$237)) -> 48.1345803
B102: Legacy Luminaire - 100W SON - PLAIN | C102: =IF(SUMIF('Detailed price list'!$L$5:$L$237,$B102,'Detailed price list'!$M$5:$M$237)=0,0, SUMPRODUCT(('Detailed price list'!D$5:D$237)*('Detailed price list'!$M$5:$M$237)*('Detailed price list'!$L$5:$L$237=$B102))/SUMIF('Detailed price list'!$L$5:$L$237,$B102,'Detailed price list'!$M$5:$M$237)) -> 42.97576016 | D102: =IF(SUMIF('Detailed price list'!$L$5:$L$237,$B102,'Detailed price list'!$M$5:$M$237)=0,0, SUMPRODUCT(('Detailed price list'!E$5:E$237)*('Detailed price list'!$M$5:$M$237)*('Detailed price list'!$L$5:$L$237=$B102))/SUMIF('Detailed price list'!$L$5:$L$237,$B102,'Detailed price list'!$M$5:$M$237)) -> 44.2111664 | E102: =IF(SUMIF('Detailed price list'!$L$5:$L$237,$B102,'Detailed price list'!$M$5:$M$237)=0,0, SUMPRODUCT(('Detailed price list'!F$5:F$237)*('Detailed price list'!$M$5:$M$237)*('Detailed price list'!$L$5:$L$237=$B102))/SUMIF('Detailed price list'!$L$5:$L$237,$B102,'Detailed price list'!$M$5:$M$237)) -> 45.48208635 | F102: =IF(SUMIF('Detailed price list'!$L$5:$L$237,$B102,'Detailed price list'!$M$5:$M$237)=0,0, SUMPRODUCT(('Detailed price list'!G$5:G$237)*('Detailed price list'!$M$5:$M$237)*('Detailed price list'!$L$5:$L$237=$B102))/SUMIF('Detailed price list'!$L$5:$L$237,$B102,'Detailed price list'!$M$5:$M$237)) -> 46.7895409 | G102: =IF(SUMIF('Detailed price list'!$L$5:$L$237,$B102,'Detailed price list'!$M$5:$M$237)=0,0, SUMPRODUCT(('Detailed price list'!H$5:H$237)*('Detailed price list'!$M$5:$M$237)*('Detailed price list'!$L$5:$L$237=$B102))/SUMIF('Detailed price list'!$L$5:$L$237,$B102,'Detailed price list'!$M$5:$M$237)) -> 48.1345803
B103: Legacy Luminaire - 100W SON FLOODLIGHT | C103: =IF(SUMIF('Detailed price list'!$L$5:$L$237,$B103,'Detailed price list'!$M$5:$M$237)=0,0, SUMPRODUCT(('Detailed price list'!D$5:D$237)*('Detailed price list'!$M$5:$M$237)*('Detailed price list'!$L$5:$L$237=$B103))/SUMIF('Detailed price list'!$L$5:$L$237,$B103,'Detailed price list'!$M$5:$M$237)) -> 63.17283068 | D103: =IF(SUMIF('Detailed price list'!$L$5:$L$237,$B103,'Detailed price list'!$M$5:$M$237)=0,0, SUMPRODUCT(('Detailed price list'!E$5:E$237)*('Detailed price list'!$M$5:$M$237)*('Detailed price list'!$L$5:$L$237=$B103))/SUMIF('Detailed price list'!$L$5:$L$237,$B103,'Detailed price list'!$M$5:$M$237)) -> 64.98883367 | E103: =IF(SUMIF('Detailed price list'!$L$5:$L$237,$B103,'Detailed price list'!$M$5:$M$237)=0,0, SUMPRODUCT(('Detailed price list'!F$5:F$237)*('Detailed price list'!$M$5:$M$237)*('Detailed price list'!$L$5:$L$237=$B103))/SUMIF('Detailed price list'!$L$5:$L$237,$B103,'Detailed price list'!$M$5:$M$237)) -> 66.85704055 | F103: =IF(SUMIF('Detailed price list'!$L$5:$L$237,$B103,'Detailed price list'!$M$5:$M$237)=0,0, SUMPRODUCT(('Detailed price list'!G$5:G$237)*('Detailed price list'!$M$5:$M$237)*('Detailed price list'!$L$5:$L$237=$B103))/SUMIF('Detailed price list'!$L$5:$L$237,$B103,'Detailed price list'!$M$5:$M$237)) -> 68.77895199 | G103: =IF(SUMIF('Detailed price list'!$L$5:$L$237,$B103,'Detailed price list'!$M$5:$M$237)=0,0, SUMPRODUCT(('Detailed price list'!H$5:H$237)*('Detailed price list'!$M$5:$M$237)*('Detailed price list'!$L$5:$L$237=$B103))/SUMIF('Detailed price list'!$L$5:$L$237,$B103,'Detailed price list'!$M$5:$M$237)) -> 70.75611181
B104: Legacy Luminaire - 125W MBF | C104: =IF(SUMIF('Detailed price list'!$L$5:$L$237,$B104,'Detailed price list'!$M$5:$M$237)=0,0, SUMPRODUCT(('Detailed price list'!D$5:D$237)*('Detailed price list'!$M$5:$M$237)*('Detailed price list'!$L$5:$L$237=$B104))/SUMIF('Detailed price list'!$L$5:$L$237,$B104,'Detailed price list'!$M$5:$M$237)) -> 0 | D104: =IF(SUMIF('Detailed price list'!$L$5:$L$237,$B104,'Detailed price list'!$M$5:$M$237)=0,0, SUMPRODUCT(('Detailed price list'!E$5:E$237)*('Detailed price list'!$M$5:$M$237)*('Detailed price list'!$L$5:$L$237=$B104))/SUMIF('Detailed price list'!$L$5:$L$237,$B104,'Detailed price list'!$M$5:$M$237)) -> 0 | E104: =IF(SUMIF('Detailed price list'!$L$5:$L$237,$B104,'Detailed price list'!$M$5:$M$237)=0,0, SUMPRODUCT(('Detailed price list'!F$5:F$237)*('Detailed price list'!$M$5:$M$237)*('Detailed price list'!$L$5:$L$237=$B104))/SUMIF('Detailed price list'!$L$5:$L$237,$B104,'Detailed price list'!$M$5:$M$237)) -> 0 | F104: =IF(SUMIF('Detailed price list'!$L$5:$L$237,$B104,'Detailed price list'!$M$5:$M$237)=0,0, SUMPRODUCT(('Detailed price list'!G$5:G$237)*('Detailed price list'!$M$5:$M$237)*('Detailed price list'!$L$5:$L$237=$B104))/SUMIF('Detailed price list'!$L$5:$L$237,$B104,'Detailed price list'!$M$5:$M$237)) -> 0 | G104: =IF(SUMIF('Detailed price list'!$L$5:$L$237,$B104,'Detailed price list'!$M$5:$M$237)=0,0, SUMPRODUCT(('Detailed price list'!H$5:H$237)*('Detailed price list'!$M$5:$M$237)*('Detailed price list'!$L$5:$L$237=$B104))/SUMIF('Detailed price list'!$L$5:$L$237,$B104,'Detailed price list'!$M$5:$M$237)) -> 0
B105: Legacy Luminaire - 125W MBF - BOURKE HILL | C105: =IF(SUMIF('Detailed price list'!$L$5:$L$237,$B105,'Detailed price list'!$M$5:$M$237)=0,0, SUMPRODUCT(('Detailed price list'!D$5:D$237)*('Detailed price list'!$M$5:$M$237)*('Detailed price list'!$L$5:$L$237=$B105))/SUMIF('Detailed price list'!$L$5:$L$237,$B105,'Detailed price list'!$M$5:$M$237)) -> 80.65131534 | D105: =IF(SUMIF('Detailed price list'!$L$5:$L$237,$B105,'Detailed price list'!$M$5:$M$237)=0,0, SUMPRODUCT(('Detailed price list'!E$5:E$237)*('Detailed price list'!$M$5:$M$237)*('Detailed price list'!$L$5:$L$237=$B105))/SUMIF('Detailed price list'!$L$5:$L$237,$B105,'Detailed price list'!$M$5:$M$237)) -> 82.96976504 | E105: =IF(SUMIF('Detailed price list'!$L$5:$L$237,$B105,'Detailed price list'!$M$5:$M$237)=0,0, SUMPRODUCT(('Detailed price list'!F$5:F$237)*('Detailed price list'!$M$5:$M$237)*('Detailed price list'!$L$5:$L$237=$B105))/SUMIF('Detailed price list'!$L$5:$L$237,$B105,'Detailed price list'!$M$5:$M$237)) -> 85.35486224 | F105: =IF(SUMIF('Detailed price list'!$L$5:$L$237,$B105,'Detailed price list'!$M$5:$M$237)=0,0, SUMPRODUCT(('Detailed price list'!G$5:G$237)*('Detailed price list'!$M$5:$M$237)*('Detailed price list'!$L$5:$L$237=$B105))/SUMIF('Detailed price list'!$L$5:$L$237,$B105,'Detailed price list'!$M$5:$M$237)) -> 87.80852284 | G105: =IF(SUMIF('Detailed price list'!$L$5:$L$237,$B105,'Detailed price list'!$M$5:$M$237)=0,0, SUMPRODUCT(('Detailed price list'!H$5:H$237)*('Detailed price list'!$M$5:$M$237)*('Detailed price list'!$L$5:$L$237=$B105))/SUMIF('Detailed price list'!$L$5:$L$237,$B105,'Detailed price list'!$M$5:$M$237)) -> 90.3327178
B106: Legacy Luminaire - 125W MBF - PARKVILLE | C106: =IF(SUMIF('Detailed price list'!$L$5:$L$237,$B106,'Detailed price list'!$M$5:$M$237)=0,0, SUMPRODUCT(('Detailed price list'!D$5:D$237)*('Detailed price list'!$M$5:$M$237)*('Detailed price list'!$L$5:$L$237=$B106))/SUMIF('Detailed price list'!$L$5:$L$237,$B106,'Detailed price list'!$M$5:$M$237)) -> 101.5423178 | D106: =IF(SUMIF('Detailed price list'!$L$5:$L$237,$B106,'Detailed price list'!$M$5:$M$237)=0,0, SUMPRODUCT(('Detailed price list'!E$5:E$237)*('Detailed price list'!$M$5:$M$237)*('Detailed price list'!$L$5:$L$237=$B106))/SUMIF('Detailed price list'!$L$5:$L$237,$B106,'Detailed price list'!$M$5:$M$237)) -> 104.4613124 | E106: =IF(SUMIF('Detailed price list'!$L$5:$L$237,$B106,'Detailed price list'!$M$5:$M$237)=0,0, SUMPRODUCT(('Detailed price list'!F$5:F$237)*('Detailed price list'!$M$5:$M$237)*('Detailed price list'!$L$5:$L$237=$B106))/SUMIF('Detailed price list'!$L$5:$L$237,$B106,'Detailed price list'!$M$5:$M$237)) -> 107.4642181 | F106: =IF(SUMIF('Detailed price list'!$L$5:$L$237,$B106,'Detailed price list'!$M$5:$M$237)=0,0, SUMPRODUCT(('Detailed price list'!G$5:G$237)*('Detailed price list'!$M$5:$M$237)*('Detailed price list'!$L$5:$L$237=$B106))/SUMIF('Detailed price list'!$L$5:$L$237,$B106,'Detailed price list'!$M$5:$M$237)) -> 110.5534471 | G106: =IF(SUMIF('Detailed price list'!$L$5:$L$237,$B106,'Detailed price list'!$M$5:$M$237)=0,0, SUMPRODUCT(('Detailed price list'!H$5:H$237)*('Detailed price list'!$M$5:$M$237)*('Detailed price list'!$L$5:$L$237=$B106))/SUMIF('Detailed price list'!$L$5:$L$237,$B106,'Detailed price list'!$M$5:$M$237)) -> 113.7314809
B107: Legacy Luminaire - 125W MBF - PLAIN | C107: =IF(SUMIF('Detailed price list'!$L$5:$L$237,$B107,'Detailed price list'!$M$5:$M$237)=0,0, SUMPRODUCT(('Detailed price list'!D$5:D$237)*('Detailed price list'!$M$5:$M$237)*('Detailed price list'!$L$5:$L$237=$B107))/SUMIF('Detailed price list'!$L$5:$L$237,$B107,'Detailed price list'!$M$5:$M$237)) -> 26.09404348 | D107: =IF(SUMIF('Detailed price list'!$L$5:$L$237,$B107,'Detailed price list'!$M$5:$M$237)=0,0, SUMPRODUCT(('Detailed price list'!E$5:E$237)*('Detailed price list'!$M$5:$M$237)*('Detailed price list'!$L$5:$L$237=$B107))/SUMIF('Detailed price list'!$L$5:$L$237,$B107,'Detailed price list'!$M$5:$M$237)) -> 26.84415806 | E107: =IF(SUMIF('Detailed price list'!$L$5:$L$237,$B107,'Detailed price list'!$M$5:$M$237)=0,0, SUMPRODUCT(('Detailed price list'!F$5:F$237)*('Detailed price list'!$M$5:$M$237)*('Detailed price list'!$L$5:$L$237=$B107))/SUMIF('Detailed price list'!$L$5:$L$237,$B107,'Detailed price list'!$M$5:$M$237)) -> 27.61583587 | F107: =IF(SUMIF('Detailed price list'!$L$5:$L$237,$B107,'Detailed price list'!$M$5:$M$237)=0,0, SUMPRODUCT(('Detailed price list'!G$5:G$237)*('Detailed price list'!$M$5:$M$237)*('Detailed price list'!$L$5:$L$237=$B107))/SUMIF('Detailed price list'!$L$5:$L$237,$B107,'Detailed price list'!$M$5:$M$237)) -> 28.40969677 | G107: =IF(SUMIF('Detailed price list'!$L$5:$L$237,$B107,'Detailed price list'!$M$5:$M$237)=0,0, SUMPRODUCT(('Detailed price list'!H$5:H$237)*('Detailed price list'!$M$5:$M$237)*('Detailed price list'!$L$5:$L$237=$B107))/SUMIF('Detailed price list'!$L$5:$L$237,$B107,'Detailed price list'!$M$5:$M$237)) -> 29.22637847
B108: Legacy Luminaire - 125W/250W MBF FLOODLIGHT | C108: =IF(SUMIF('Detailed price list'!$L$5:$L$237,$B108,'Detailed price list'!$M$5:$M$237)=0,0, SUMPRODUCT(('Detailed price list'!D$5:D$237)*('Detailed price list'!$M$5:$M$237)*('Detailed price list'!$L$5:$L$237=$B108))/SUMIF('Detailed price list'!$L$5:$L$237,$B108,'Detailed price list'!$M$5:$M$237)) -> 36.02313249 | D108: =IF(SUMIF('Detailed price list'!$L$5:$L$237,$B108,'Detailed price list'!$M$5:$M$237)=0,0, SUMPRODUCT(('Detailed price list'!E$5:E$237)*('Detailed price list'!$M$5:$M$237)*('Detailed price list'!$L$5:$L$237=$B108))/SUMIF('Detailed price list'!$L$5:$L$237,$B108,'Detailed price list'!$M$5:$M$237)) -> 37.05867444 | E108: =IF(SUMIF('Detailed price list'!$L$5:$L$237,$B108,'Detailed price list'!$M$5:$M$237)=0,0, SUMPRODUCT(('Detailed price list'!F$5:F$237)*('Detailed price list'!$M$5:$M$237)*('Detailed price list'!$L$5:$L$237=$B108))/SUMIF('Detailed price list'!$L$5:$L$237,$B108,'Detailed price list'!$M$5:$M$237)) -> 38.12398469 | F108: =IF(SUMIF('Detailed price list'!$L$5:$L$237,$B108,'Detailed price list'!$M$5:$M$237)=0,0, SUMPRODUCT(('Detailed price list'!G$5:G$237)*('Detailed price list'!$M$5:$M$237)*('Detailed price list'!$L$5:$L$237=$B108))/SUMIF('Detailed price list'!$L$5:$L$237,$B108,'Detailed price list'!$M$5:$M$237)) -> 39.21991896 | G108: =IF(SUMIF('Detailed price list'!$L$5:$L$237,$B108,'Detailed price list'!$M$5:$M$237)=0,0, SUMPRODUCT(('Detailed price list'!H$5:H$237)*('Detailed price list'!$M$5:$M$237)*('Detailed price list'!$L$5:$L$237=$B108))/SUMIF('Detailed price list'!$L$5:$L$237,$B108,'Detailed price list'!$M$5:$M$237)) -> 40.34735761
B109: Legacy Luminaire - 150W SON | C109: =IF(SUMIF('Detailed price list'!$L$5:$L$237,$B109,'Detailed price list'!$M$5:$M$237)=0,0, SUMPRODUCT(('Detailed price list'!D$5:D$237)*('Detailed price list'!$M$5:$M$237)*('Detailed price list'!$L$5:$L$237=$B109))/SUMIF('Detailed price list'!$L$5:$L$237,$B109,'Detailed price list'!$M$5:$M$237)) -> 43.36020997 | D109: =IF(SUMIF('Detailed price list'!$L$5:$L$237,$B109,'Detailed price list'!$M$5:$M$237)=0,0, SUMPRODUCT(('Detailed price list'!E$5:E$237)*('Detailed price list'!$M$5:$M$237)*('Detailed price list'!$L$5:$L$237=$B109))/SUMIF('Detailed price list'!$L$5:$L$237,$B109,'Detailed price list'!$M$5:$M$237)) -> 44.60666783 | E109: =IF(SUMIF('Detailed price list'!$L$5:$L$237,$B109,'Detailed price list'!$M$5:$M$237)=0,0, SUMPRODUCT(('Detailed price list'!F$5:F$237)*('Detailed price list'!$M$5:$M$237)*('Detailed price list'!$L$5:$L$237=$B109))/SUMIF('Detailed price list'!$L$5:$L$237,$B109,'Detailed price list'!$M$5:$M$237)) -> 45.88895709 | F109: =IF(SUMIF('Detailed price list'!$L$5:$L$237,$B109,'Detailed price list'!$M$5:$M$237)=0,0, SUMPRODUCT(('Detailed price list'!G$5:G$237)*('Detailed price list'!$M$5:$M$237)*('Detailed price list'!$L$5:$L$237=$B109))/SUMIF('Detailed price list'!$L$5:$L$237,$B109,'Detailed price list'!$M$5:$M$237)) -> 47.20810778 | G109: =IF(SUMIF('Detailed price list'!$L$5:$L$237,$B109,'Detailed price list'!$M$5:$M$237)=0,0, SUMPRODUCT(('Detailed price list'!H$5:H$237)*('Detailed price list'!$M$5:$M$237)*('Detailed price list'!$L$5:$L$237=$B109))/SUMIF('Detailed price list'!$L$5:$L$237,$B109,'Detailed price list'!$M$5:$M$237)) -> 48.56517955
B110: Legacy Luminaire - 150W SON - PARKVILLE | C110: =IF(SUMIF('Detailed price list'!$L$5:$L$237,$B110,'Detailed price list'!$M$5:$M$237)=0,0, SUMPRODUCT(('Detailed price list'!D$5:D$237)*('Detailed price list'!$M$5:$M$237)*('Detailed price list'!$L$5:$L$237=$B110))/SUMIF('Detailed price list'!$L$5:$L$237,$B110,'Detailed price list'!$M$5:$M$237)) -> 117.0669266 | D110: =IF(SUMIF('Detailed price list'!$L$5:$L$237,$B110,'Detailed price list'!$M$5:$M$237)=0,0, SUMPRODUCT(('Detailed price list'!E$5:E$237)*('Detailed price list'!$M$5:$M$237)*('Detailed price list'!$L$5:$L$237=$B110))/SUMIF('Detailed price list'!$L$5:$L$237,$B110,'Detailed price list'!$M$5:$M$237)) -> 120.4322007 | E110: =IF(SUMIF('Detailed price list'!$L$5:$L$237,$B110,'Detailed price list'!$M$5:$M$237)=0,0, SUMPRODUCT(('Detailed price list'!F$5:F$237)*('Detailed price list'!$M$5:$M$237)*('Detailed price list'!$L$5:$L$237=$B110))/SUMIF('Detailed price list'!$L$5:$L$237,$B110,'Detailed price list'!$M$5:$M$237)) -> 123.8942149 | F110: =IF(SUMIF('Detailed price list'!$L$5:$L$237,$B110,'Detailed price list'!$M$5:$M$237)=0,0, SUMPRODUCT(('Detailed price list'!G$5:G$237)*('Detailed price list'!$M$5:$M$237)*('Detailed price list'!$L$5:$L$237=$B110))/SUMIF('Detailed price list'!$L$5:$L$237,$B110,'Detailed price list'!$M$5:$M$237)) -> 127.4557502 | G110: =IF(SUMIF('Detailed price list'!$L$5:$L$237,$B110,'Detailed price list'!$M$5:$M$237)=0,0, SUMPRODUCT(('Detailed price list'!H$5:H$237)*('Detailed price list'!$M$5:$M$237)*('Detailed price list'!$L$5:$L$237=$B110))/SUMIF('Detailed price list'!$L$5:$L$237,$B110,'Detailed price list'!$M$5:$M$237)) -> 131.1196674
B111: Legacy Luminaire - 150W SON - PARKWAY 1 | C111: =IF(SUMIF('Detailed price list'!$L$5:$L$237,$B111,'Detailed price list'!$M$5:$M$237)=0,0, SUMPRODUCT(('Detailed price list'!D$5:D$237)*('Detailed price list'!$M$5:$M$237)*('Detailed price list'!$L$5:$L$237=$B111))/SUMIF('Detailed price list'!$L$5:$L$237,$B111,'Detailed price list'!$M$5:$M$237)) -> 51.72199323 | D111: =IF(SUMIF('Detailed price list'!$L$5:$L$237,$B111,'Detailed price list'!$M$5:$M$237)=0,0, SUMPRODUCT(('Detailed price list'!E$5:E$237)*('Detailed price list'!$M$5:$M$237)*('Detailed price list'!$L$5:$L$237=$B111))/SUMIF('Detailed price list'!$L$5:$L$237,$B111,'Detailed price list'!$M$5:$M$237)) -> 53.20882378 | E111: =IF(SUMIF('Detailed price list'!$L$5:$L$237,$B111,'Detailed price list'!$M$5:$M$237)=0,0, SUMPRODUCT(('Detailed price list'!F$5:F$237)*('Detailed price list'!$M$5:$M$237)*('Detailed price list'!$L$5:$L$237=$B111))/SUMIF('Detailed price list'!$L$5:$L$237,$B111,'Detailed price list'!$M$5:$M$237)) -> 54.73839563 | F111: =IF(SUMIF('Detailed price list'!$L$5:$L$237,$B111,'Detailed price list'!$M$5:$M$237)=0,0, SUMPRODUCT(('Detailed price list'!G$5:G$237)*('Detailed price list'!$M$5:$M$237)*('Detailed price list'!$L$5:$L$237=$B111))/SUMIF('Detailed price list'!$L$5:$L$237,$B111,'Detailed price list'!$M$5:$M$237)) -> 56.31193744 | G111: =IF(SUMIF('Detailed price list'!$L$5:$L$237,$B111,'Detailed price list'!$M$5:$M$237)=0,0, SUMPRODUCT(('Detailed price list'!H$5:H$237)*('Detailed price list'!$M$5:$M$237)*('Detailed price list'!$L$5:$L$237=$B111))/SUMIF('Detailed price list'!$L$5:$L$237,$B111,'Detailed price list'!$M$5:$M$237)) -> 57.9307132
B112: Legacy Luminaire - 150W SON ACTIVE REACTOR | C112: =IF(SUMIF('Detailed price list'!$L$5:$L$237,$B112,'Detailed price list'!$M$5:$M$237)=0,0, SUMPRODUCT(('Detailed price list'!D$5:D$237)*('Detailed price list'!$M$5:$M$237)*('Detailed price list'!$L$5:$L$237=$B112))/SUMIF('Detailed price list'!$L$5:$L$237,$B112,'Detailed price list'!$M$5:$M$237)) -> 63.73604964 | D112: =IF(SUMIF('Detailed price list'!$L$5:$L$237,$B112,'Detailed price list'!$M$5:$M$237)=0,0, SUMPRODUCT(('Detailed price list'!E$5:E$237)*('Detailed price list'!$M$5:$M$237)*('Detailed price list'!$L$5:$L$237=$B112))/SUMIF('Detailed price list'!$L$5:$L$237,$B112,'Detailed price list'!$M$5:$M$237)) -> 65.56824326 | E112: =IF(SUMIF('Detailed price list'!$L$5:$L$237,$B112,'Detailed price list'!$M$5:$M$237)=0,0, SUMPRODUCT(('Detailed price list'!F$5:F$237)*('Detailed price list'!$M$5:$M$237)*('Detailed price list'!$L$5:$L$237=$B112))/SUMIF('Detailed price list'!$L$5:$L$237,$B112,'Detailed price list'!$M$5:$M$237)) -> 67.45310618 | F112: =IF(SUMIF('Detailed price list'!$L$5:$L$237,$B112,'Detailed price list'!$M$5:$M$237)=0,0, SUMPRODUCT(('Detailed price list'!G$5:G$237)*('Detailed price list'!$M$5:$M$237)*('Detailed price list'!$L$5:$L$237=$B112))/SUMIF('Detailed price list'!$L$5:$L$237,$B112,'Detailed price list'!$M$5:$M$237)) -> 69.39215247 | G112: =IF(SUMIF('Detailed price list'!$L$5:$L$237,$B112,'Detailed price list'!$M$5:$M$237)=0,0, SUMPRODUCT(('Detailed price list'!H$5:H$237)*('Detailed price list'!$M$5:$M$237)*('Detailed price list'!$L$5:$L$237=$B112))/SUMIF('Detailed price list'!$L$5:$L$237,$B112,'Detailed price list'!$M$5:$M$237)) -> 71.38693971
B113: Legacy Luminaire - 150W SON FLOODLIGHT | C113: =IF(SUMIF('Detailed price list'!$L$5:$L$237,$B113,'Detailed price list'!$M$5:$M$237)=0,0, SUMPRODUCT(('Detailed price list'!D$5:D$237)*('Detailed price list'!$M$5:$M$237)*('Detailed price list'!$L$5:$L$237=$B113))/SUMIF('Detailed price list'!$L$5:$L$237,$B113,'Detailed price list'!$M$5:$M$237)) -> 50.76086872 | D113: =IF(SUMIF('Detailed price list'!$L$5:$L$237,$B113,'Detailed price list'!$M$5:$M$237)=0,0, SUMPRODUCT(('Detailed price list'!E$5:E$237)*('Detailed price list'!$M$5:$M$237)*('Detailed price list'!$L$5:$L$237=$B113))/SUMIF('Detailed price list'!$L$5:$L$237,$B113,'Detailed price list'!$M$5:$M$237)) -> 52.22007022 | E113: =IF(SUMIF('Detailed price list'!$L$5:$L$237,$B113,'Detailed price list'!$M$5:$M$237)=0,0, SUMPRODUCT(('Detailed price list'!F$5:F$237)*('Detailed price list'!$M$5:$M$237)*('Detailed price list'!$L$5:$L$237=$B113))/SUMIF('Detailed price list'!$L$5:$L$237,$B113,'Detailed price list'!$M$5:$M$237)) -> 53.72121879 | F113: =IF(SUMIF('Detailed price list'!$L$5:$L$237,$B113,'Detailed price list'!$M$5:$M$237)=0,0, SUMPRODUCT(('Detailed price list'!G$5:G$237)*('Detailed price list'!$M$5:$M$237)*('Detailed price list'!$L$5:$L$237=$B113))/SUMIF('Detailed price list'!$L$5:$L$237,$B113,'Detailed price list'!$M$5:$M$237)) -> 55.26552024 | G113: =IF(SUMIF('Detailed price list'!$L$5:$L$237,$B113,'Detailed price list'!$M$5:$M$237)=0,0, SUMPRODUCT(('Detailed price list'!H$5:H$237)*('Detailed price list'!$M$5:$M$237)*('Detailed price list'!$L$5:$L$237=$B113))/SUMIF('Detailed price list'!$L$5:$L$237,$B113,'Detailed price list'!$M$5:$M$237)) -> 56.85421508
B114: Legacy Luminaire - 150W/250W MBI FLOODLIGHT | C114: =IF(SUMIF('Detailed price list'!$L$5:$L$237,$B114,'Detailed price list'!$M$5:$M$237)=0,0, SUMPRODUCT(('Detailed price list'!D$5:D$237)*('Detailed price list'!$M$5:$M$237)*('Detailed price list'!$L$5:$L$237=$B114))/SUMIF('Detailed price list'!$L$5:$L$237,$B114,'Detailed price list'!$M$5:$M$237)) -> 77.94531444 | D114: =IF(SUMIF('Detailed price list'!$L$5:$L$237,$B114,'Detailed price list'!$M$5:$M$237)=0,0, SUMPRODUCT(('Detailed price list'!E$5:E$237)*('Detailed price list'!$M$5:$M$237)*('Detailed price list'!$L$5:$L$237=$B114))/SUMIF('Detailed price list'!$L$5:$L$237,$B114,'Detailed price list'!$M$5:$M$237)) -> 80.18597586 | E114: =IF(SUMIF('Detailed price list'!$L$5:$L$237,$B114,'Detailed price list'!$M$5:$M$237)=0,0, SUMPRODUCT(('Detailed price list'!F$5:F$237)*('Detailed price list'!$M$5:$M$237)*('Detailed price list'!$L$5:$L$237=$B114))/SUMIF('Detailed price list'!$L$5:$L$237,$B114,'Detailed price list'!$M$5:$M$237)) -> 82.49104864 | F114: =IF(SUMIF('Detailed price list'!$L$5:$L$237,$B114,'Detailed price list'!$M$5:$M$237)=0,0, SUMPRODUCT(('Detailed price list'!G$5:G$237)*('Detailed price list'!$M$5:$M$237)*('Detailed price list'!$L$5:$L$237=$B114))/SUMIF('Detailed price list'!$L$5:$L$237,$B114,'Detailed price list'!$M$5:$M$237)) -> 84.86238439 | G114: =IF(SUMIF('Detailed price list'!$L$5:$L$237,$B114,'Detailed price list'!$M$5:$M$237)=0,0, SUMPRODUCT(('Detailed price list'!H$5:H$237)*('Detailed price list'!$M$5:$M$237)*('Detailed price list'!$L$5:$L$237=$B114))/SUMIF('Detailed price list'!$L$5:$L$237,$B114,'Detailed price list'!$M$5:$M$237)) -> 87.30188793
B115: Legacy Luminaire - 250W MBF | C115: =IF(SUMIF('Detailed price list'!$L$5:$L$237,$B115,'Detailed price list'!$M$5:$M$237)=0,0, SUMPRODUCT(('Detailed price list'!D$5:D$237)*('Detailed price list'!$M$5:$M$237)*('Detailed price list'!$L$5:$L$237=$B115))/SUMIF('Detailed price list'!$L$5:$L$237,$B115,'Detailed price list'!$M$5:$M$237)) -> 42.59131036 | D115: =IF(SUMIF('Detailed price list'!$L$5:$L$237,$B115,'Detailed price list'!$M$5:$M$237)=0,0, SUMPRODUCT(('Detailed price list'!E$5:E$237)*('Detailed price list'!$M$5:$M$237)*('Detailed price list'!$L$5:$L$237=$B115))/SUMIF('Detailed price list'!$L$5:$L$237,$B115,'Detailed price list'!$M$5:$M$237)) -> 43.81566498 | E115: =IF(SUMIF('Detailed price list'!$L$5:$L$237,$B115,'Detailed price list'!$M$5:$M$237)=0,0, SUMPRODUCT(('Detailed price list'!F$5:F$237)*('Detailed price list'!$M$5:$M$237)*('Detailed price list'!$L$5:$L$237=$B115))/SUMIF('Detailed price list'!$L$5:$L$237,$B115,'Detailed price list'!$M$5:$M$237)) -> 45.07521561 | F115: =IF(SUMIF('Detailed price list'!$L$5:$L$237,$B115,'Detailed price list'!$M$5:$M$237)=0,0, SUMPRODUCT(('Detailed price list'!G$5:G$237)*('Detailed price list'!$M$5:$M$237)*('Detailed price list'!$L$5:$L$237=$B115))/SUMIF('Detailed price list'!$L$5:$L$237,$B115,'Detailed price list'!$M$5:$M$237)) -> 46.37097402 | G115: =IF(SUMIF('Detailed price list'!$L$5:$L$237,$B115,'Detailed price list'!$M$5:$M$237)=0,0, SUMPRODUCT(('Detailed price list'!H$5:H$237)*('Detailed price list'!$M$5:$M$237)*('Detailed price list'!$L$5:$L$237=$B115))/SUMIF('Detailed price list'!$L$5:$L$237,$B115,'Detailed price list'!$M$5:$M$237)) -> 47.70398106
B116: Legacy Luminaire - 250W MBF - PARKWAY 1 | C116: =IF(SUMIF('Detailed price list'!$L$5:$L$237,$B116,'Detailed price list'!$M$5:$M$237)=0,0, SUMPRODUCT(('Detailed price list'!D$5:D$237)*('Detailed price list'!$M$5:$M$237)*('Detailed price list'!$L$5:$L$237=$B116))/SUMIF('Detailed price list'!$L$5:$L$237,$B116,'Detailed price list'!$M$5:$M$237)) -> 51.72199323 | D116: =IF(SUMIF('Detailed price list'!$L$5:$L$237,$B116,'Detailed price list'!$M$5:$M$237)=0,0, SUMPRODUCT(('Detailed price list'!E$5:E$237)*('Detailed price list'!$M$5:$M$237)*('Detailed price list'!$L$5:$L$237=$B116))/SUMIF('Detailed price list'!$L$5:$L$237,$B116,'Detailed price list'!$M$5:$M$237)) -> 53.20882378 | E116: =IF(SUMIF('Detailed price list'!$L$5:$L$237,$B116,'Detailed price list'!$M$5:$M$237)=0,0, SUMPRODUCT(('Detailed price list'!F$5:F$237)*('Detailed price list'!$M$5:$M$237)*('Detailed price list'!$L$5:$L$237=$B116))/SUMIF('Detailed price list'!$L$5:$L$237,$B116,'Detailed price list'!$M$5:$M$237)) -> 54.73839563 | F116: =IF(SUMIF('Detailed price list'!$L$5:$L$237,$B116,'Detailed price list'!$M$5:$M$237)=0,0, SUMPRODUCT(('Detailed price list'!G$5:G$237)*('Detailed price list'!$M$5:$M$237)*('Detailed price list'!$L$5:$L$237=$B116))/SUMIF('Detailed price list'!$L$5:$L$237,$B116,'Detailed price list'!$M$5:$M$237)) -> 56.31193744 | G116: =IF(SUMIF('Detailed price list'!$L$5:$L$237,$B116,'Detailed price list'!$M$5:$M$237)=0,0, SUMPRODUCT(('Detailed price list'!H$5:H$237)*('Detailed price list'!$M$5:$M$237)*('Detailed price list'!$L$5:$L$237=$B116))/SUMIF('Detailed price list'!$L$5:$L$237,$B116,'Detailed price list'!$M$5:$M$237)) -> 57.9307132
B117: Legacy Luminaire - 250W SON | C117: =IF(SUMIF('Detailed price list'!$L$5:$L$237,$B117,'Detailed price list'!$M$5:$M$237)=0,0, SUMPRODUCT(('Detailed price list'!D$5:D$237)*('Detailed price list'!$M$5:$M$237)*('Detailed price list'!$L$5:$L$237=$B117))/SUMIF('Detailed price list'!$L$5:$L$237,$B117,'Detailed price list'!$M$5:$M$237)) -> 43.36020997 | D117: =IF(SUMIF('Detailed price list'!$L$5:$L$237,$B117,'Detailed price list'!$M$5:$M$237)=0,0, SUMPRODUCT(('Detailed price list'!E$5:E$237)*('Detailed price list'!$M$5:$M$237)*('Detailed price list'!$L$5:$L$237=$B117))/SUMIF('Detailed price list'!$L$5:$L$237,$B117,'Detailed price list'!$M$5:$M$237)) -> 44.60666783 | E117: =IF(SUMIF('Detailed price list'!$L$5:$L$237,$B117,'Detailed price list'!$M$5:$M$237)=0,0, SUMPRODUCT(('Detailed price list'!F$5:F$237)*('Detailed price list'!$M$5:$M$237)*('Detailed price list'!$L$5:$L$237=$B117))/SUMIF('Detailed price list'!$L$5:$L$237,$B117,'Detailed price list'!$M$5:$M$237)) -> 45.88895709 | F117: =IF(SUMIF('Detailed price list'!$L$5:$L$237,$B117,'Detailed price list'!$M$5:$M$237)=0,0, SUMPRODUCT(('Detailed price list'!G$5:G$237)*('Detailed price list'!$M$5:$M$237)*('Detailed price list'!$L$5:$L$237=$B117))/SUMIF('Detailed price list'!$L$5:$L$237,$B117,'Detailed price list'!$M$5:$M$237)) -> 47.20810778 | G117: =IF(SUMIF('Detailed price list'!$L$5:$L$237,$B117,'Detailed price list'!$M$5:$M$237)=0,0, SUMPRODUCT(('Detailed price list'!H$5:H$237)*('Detailed price list'!$M$5:$M$237)*('Detailed price list'!$L$5:$L$237=$B117))/SUMIF('Detailed price list'!$L$5:$L$237,$B117,'Detailed price list'!$M$5:$M$237)) -> 48.56517955
B118: Legacy Luminaire - 250W SON - PARKVILLE | C118: =IF(SUMIF('Detailed price list'!$L$5:$L$237,$B118,'Detailed price list'!$M$5:$M$237)=0,0, SUMPRODUCT(('Detailed price list'!D$5:D$237)*('Detailed price list'!$M$5:$M$237)*('Detailed price list'!$L$5:$L$237=$B118))/SUMIF('Detailed price list'!$L$5:$L$237,$B118,'Detailed price list'!$M$5:$M$237)) -> 126.4398129 | D118: =IF(SUMIF('Detailed price list'!$L$5:$L$237,$B118,'Detailed price list'!$M$5:$M$237)=0,0, SUMPRODUCT(('Detailed price list'!E$5:E$237)*('Detailed price list'!$M$5:$M$237)*('Detailed price list'!$L$5:$L$237=$B118))/SUMIF('Detailed price list'!$L$5:$L$237,$B118,'Detailed price list'!$M$5:$M$237)) -> 130.0745254 | E118: =IF(SUMIF('Detailed price list'!$L$5:$L$237,$B118,'Detailed price list'!$M$5:$M$237)=0,0, SUMPRODUCT(('Detailed price list'!F$5:F$237)*('Detailed price list'!$M$5:$M$237)*('Detailed price list'!$L$5:$L$237=$B118))/SUMIF('Detailed price list'!$L$5:$L$237,$B118,'Detailed price list'!$M$5:$M$237)) -> 133.8137235 | F118: =IF(SUMIF('Detailed price list'!$L$5:$L$237,$B118,'Detailed price list'!$M$5:$M$237)=0,0, SUMPRODUCT(('Detailed price list'!G$5:G$237)*('Detailed price list'!$M$5:$M$237)*('Detailed price list'!$L$5:$L$237=$B118))/SUMIF('Detailed price list'!$L$5:$L$237,$B118,'Detailed price list'!$M$5:$M$237)) -> 137.6604107 | G118: =IF(SUMIF('Detailed price list'!$L$5:$L$237,$B118,'Detailed price list'!$M$5:$M$237)=0,0, SUMPRODUCT(('Detailed price list'!H$5:H$237)*('Detailed price list'!$M$5:$M$237)*('Detailed price list'!$L$5:$L$237=$B118))/SUMIF('Detailed price list'!$L$5:$L$237,$B118,'Detailed price list'!$M$5:$M$237)) -> 141.6176771
B119: Legacy Luminaire - 250W SON - PARKWAY 1 | C119: =IF(SUMIF('Detailed price list'!$L$5:$L$237,$B119,'Detailed price list'!$M$5:$M$237)=0,0, SUMPRODUCT(('Detailed price list'!D$5:D$237)*('Detailed price list'!$M$5:$M$237)*('Detailed price list'!$L$5:$L$237=$B119))/SUMIF('Detailed price list'!$L$5:$L$237,$B119,'Detailed price list'!$M$5:$M$237)) -> 51.72199323 | D119: =IF(SUMIF('Detailed price list'!$L$5:$L$237,$B119,'Detailed price list'!$M$5:$M$237)=0,0, SUMPRODUCT(('Detailed price list'!E$5:E$237)*('Detailed price list'!$M$5:$M$237)*('Detailed price list'!$L$5:$L$237=$B119))/SUMIF('Detailed price list'!$L$5:$L$237,$B119,'Detailed price list'!$M$5:$M$237)) -> 53.20882378 | E119: =IF(SUMIF('Detailed price list'!$L$5:$L$237,$B119,'Detailed price list'!$M$5:$M$237)=0,0, SUMPRODUCT(('Detailed price list'!F$5:F$237)*('Detailed price list'!$M$5:$M$237)*('Detailed price list'!$L$5:$L$237=$B119))/SUMIF('Detailed price list'!$L$5:$L$237,$B119,'Detailed price list'!$M$5:$M$237)) -> 54.73839563 | F119: =IF(SUMIF('Detailed price list'!$L$5:$L$237,$B119,'Detailed price list'!$M$5:$M$237)=0,0, SUMPRODUCT(('Detailed price list'!G$5:G$237)*('Detailed price list'!$M$5:$M$237)*('Detailed price list'!$L$5:$L$237=$B119))/SUMIF('Detailed price list'!$L$5:$L$237,$B119,'Detailed price list'!$M$5:$M$237)) -> 56.31193744 | G119: =IF(SUMIF('Detailed price list'!$L$5:$L$237,$B119,'Detailed price list'!$M$5:$M$237)=0,0, SUMPRODUCT(('Detailed price list'!H$5:H$237)*('Detailed price list'!$M$5:$M$237)*('Detailed price list'!$L$5:$L$237=$B119))/SUMIF('Detailed price list'!$L$5:$L$237,$B119,'Detailed price list'!$M$5:$M$237)) -> 57.9307132
B120: Legacy Luminaire - 250W SON ACTIVE REACTOR | C120: =IF(SUMIF('Detailed price list'!$L$5:$L$237,$B120,'Detailed price list'!$M$5:$M$237)=0,0, SUMPRODUCT(('Detailed price list'!D$5:D$237)*('Detailed price list'!$M$5:$M$237)*('Detailed price list'!$L$5:$L$237=$B120))/SUMIF('Detailed price list'!$L$5:$L$237,$B120,'Detailed price list'!$M$5:$M$237)) -> 63.73604964 | D120: =IF(SUMIF('Detailed price list'!$L$5:$L$237,$B120,'Detailed price list'!$M$5:$M$237)=0,0, SUMPRODUCT(('Detailed price list'!E$5:E$237)*('Detailed price list'!$M$5:$M$237)*('Detailed price list'!$L$5:$L$237=$B120))/SUMIF('Detailed price list'!$L$5:$L$237,$B120,'Detailed price list'!$M$5:$M$237)) -> 65.56824326 | E120: =IF(SUMIF('Detailed price list'!$L$5:$L$237,$B120,'Detailed price list'!$M$5:$M$237)=0,0, SUMPRODUCT(('Detailed price list'!F$5:F$237)*('Detailed price list'!$M$5:$M$237)*('Detailed price list'!$L$5:$L$237=$B120))/SUMIF('Detailed price list'!$L$5:$L$237,$B120,'Detailed price list'!$M$5:$M$237)) -> 67.45310618 | F120: =IF(SUMIF('Detailed price list'!$L$5:$L$237,$B120,'Detailed price list'!$M$5:$M$237)=0,0, SUMPRODUCT(('Detailed price list'!G$5:G$237)*('Detailed price list'!$M$5:$M$237)*('Detailed price list'!$L$5:$L$237=$B120))/SUMIF('Detailed price list'!$L$5:$L$237,$B120,'Detailed price list'!$M$5:$M$237)) -> 69.39215247 | G120: =IF(SUMIF('Detailed price list'!$L$5:$L$237,$B120,'Detailed price list'!$M$5:$M$237)=0,0, SUMPRODUCT(('Detailed price list'!H$5:H$237)*('Detailed price list'!$M$5:$M$237)*('Detailed price list'!$L$5:$L$237=$B120))/SUMIF('Detailed price list'!$L$5:$L$237,$B120,'Detailed price list'!$M$5:$M$237)) -> 71.38693971
B121: Legacy Luminaire - 250W SON FLOODLIGHT | C121: =IF(SUMIF('Detailed price list'!$L$5:$L$237,$B121,'Detailed price list'!$M$5:$M$237)=0,0, SUMPRODUCT(('Detailed price list'!D$5:D$237)*('Detailed price list'!$M$5:$M$237)*('Detailed price list'!$L$5:$L$237=$B121))/SUMIF('Detailed price list'!$L$5:$L$237,$B121,'Detailed price list'!$M$5:$M$237)) -> 50.76086872 | D121: =IF(SUMIF('Detailed price list'!$L$5:$L$237,$B121,'Detailed price list'!$M$5:$M$237)=0,0, SUMPRODUCT(('Detailed price list'!E$5:E$237)*('Detailed price list'!$M$5:$M$237)*('Detailed price list'!$L$5:$L$237=$B121))/SUMIF('Detailed price list'!$L$5:$L$237,$B121,'Detailed price list'!$M$5:$M$237)) -> 52.22007022 | E121: =IF(SUMIF('Detailed price list'!$L$5:$L$237,$B121,'Detailed price list'!$M$5:$M$237)=0,0, SUMPRODUCT(('Detailed price list'!F$5:F$237)*('Detailed price list'!$M$5:$M$237)*('Detailed price list'!$L$5:$L$237=$B121))/SUMIF('Detailed price list'!$L$5:$L$237,$B121,'Detailed price list'!$M$5:$M$237)) -> 53.72121879 | F121: =IF(SUMIF('Detailed price list'!$L$5:$L$237,$B121,'Detailed price list'!$M$5:$M$237)=0,0, SUMPRODUCT(('Detailed price list'!G$5:G$237)*('Detailed price list'!$M$5:$M$237)*('Detailed price list'!$L$5:$L$237=$B121))/SUMIF('Detailed price list'!$L$5:$L$237,$B121,'Detailed price list'!$M$5:$M$237)) -> 55.26552024 | G121: =IF(SUMIF('Detailed price list'!$L$5:$L$237,$B121,'Detailed price list'!$M$5:$M$237)=0,0, SUMPRODUCT(('Detailed price list'!H$5:H$237)*('Detailed price list'!$M$5:$M$237)*('Detailed price list'!$L$5:$L$237=$B121))/SUMIF('Detailed price list'!$L$5:$L$237,$B121,'Detailed price list'!$M$5:$M$237)) -> 56.85421508
B122: Legacy Luminaire - 250W SON GEC 'BOSTON 3' | C122: =IF(SUMIF('Detailed price list'!$L$5:$L$237,$B122,'Detailed price list'!$M$5:$M$237)=0,0, SUMPRODUCT(('Detailed price list'!D$5:D$237)*('Detailed price list'!$M$5:$M$237)*('Detailed price list'!$L$5:$L$237=$B122))/SUMIF('Detailed price list'!$L$5:$L$237,$B122,'Detailed price list'!$M$5:$M$237)) -> 109.0184699 | D122: =IF(SUMIF('Detailed price list'!$L$5:$L$237,$B122,'Detailed price list'!$M$5:$M$237)=0,0, SUMPRODUCT(('Detailed price list'!E$5:E$237)*('Detailed price list'!$M$5:$M$237)*('Detailed price list'!$L$5:$L$237=$B122))/SUMIF('Detailed price list'!$L$5:$L$237,$B122,'Detailed price list'!$M$5:$M$237)) -> 112.1523784 | E122: =IF(SUMIF('Detailed price list'!$L$5:$L$237,$B122,'Detailed price list'!$M$5:$M$237)=0,0, SUMPRODUCT(('Detailed price list'!F$5:F$237)*('Detailed price list'!$M$5:$M$237)*('Detailed price list'!$L$5:$L$237=$B122))/SUMIF('Detailed price list'!$L$5:$L$237,$B122,'Detailed price list'!$M$5:$M$237)) -> 115.376376 | F122: =IF(SUMIF('Detailed price list'!$L$5:$L$237,$B122,'Detailed price list'!$M$5:$M$237)=0,0, SUMPRODUCT(('Detailed price list'!G$5:G$237)*('Detailed price list'!$M$5:$M$237)*('Detailed price list'!$L$5:$L$237=$B122))/SUMIF('Detailed price list'!$L$5:$L$237,$B122,'Detailed price list'!$M$5:$M$237)) -> 118.6930525 | G122: =IF(SUMIF('Detailed price list'!$L$5:$L$237,$B122,'Detailed price list'!$M$5:$M$237)=0,0, SUMPRODUCT(('Detailed price list'!H$5:H$237)*('Detailed price list'!$M$5:$M$237)*('Detailed price list'!$L$5:$L$237=$B122))/SUMIF('Detailed price list'!$L$5:$L$237,$B122,'Detailed price list'!$M$5:$M$237)) -> 122.1050722
B123: Legacy Luminaire - 2X14W TF - T5 PIERLIGHT | C123: =IF(SUMIF('Detailed price list'!$L$5:$L$237,$B123,'Detailed price list'!$M$5:$M$237)=0,0, SUMPRODUCT(('Detailed price list'!D$5:D$237)*('Detailed price list'!$M$5:$M$237)*('Detailed price list'!$L$5:$L$237=$B123))/SUMIF('Detailed price list'!$L$5:$L$237,$B123,'Detailed price list'!$M$5:$M$237)) -> 0 | D123: =IF(SUMIF('Detailed price list'!$L$5:$L$237,$B123,'Detailed price list'!$M$5:$M$237)=0,0, SUMPRODUCT(('Detailed price list'!E$5:E$237)*('Detailed price list'!$M$5:$M$237)*('Detailed price list'!$L$5:$L$237=$B123))/SUMIF('Detailed price list'!$L$5:$L$237,$B123,'Detailed price list'!$M$5:$M$237)) -> 0 | E123: =IF(SUMIF('Detailed price list'!$L$5:$L$237,$B123,'Detailed price list'!$M$5:$M$237)=0,0, SUMPRODUCT(('Detailed price list'!F$5:F$237)*('Detailed price list'!$M$5:$M$237)*('Detailed price list'!$L$5:$L$237=$B123))/SUMIF('Detailed price list'!$L$5:$L$237,$B123,'Detailed price list'!$M$5:$M$237)) -> 0 | F123: =IF(SUMIF('Detailed price list'!$L$5:$L$237,$B123,'Detailed price list'!$M$5:$M$237)=0,0, SUMPRODUCT(('Detailed price list'!G$5:G$237)*('Detailed price list'!$M$5:$M$237)*('Detailed price list'!$L$5:$L$237=$B123))/SUMIF('Detailed price list'!$L$5:$L$237,$B123,'Detailed price list'!$M$5:$M$237)) -> 0 | G123: =IF(SUMIF('Detailed price list'!$L$5:$L$237,$B123,'Detailed price list'!$M$5:$M$237)=0,0, SUMPRODUCT(('Detailed price list'!H$5:H$237)*('Detailed price list'!$M$5:$M$237)*('Detailed price list'!$L$5:$L$237=$B123))/SUMIF('Detailed price list'!$L$5:$L$237,$B123,'Detailed price list'!$M$5:$M$237)) -> 0
B124: Legacy Luminaire - 2x14W TF - T5 PIERLITE M | C124: =IF(SUMIF('Detailed price list'!$L$5:$L$237,$B124,'Detailed price list'!$M$5:$M$237)=0,0, SUMPRODUCT(('Detailed price list'!D$5:D$237)*('Detailed price list'!$M$5:$M$237)*('Detailed price list'!$L$5:$L$237=$B124))/SUMIF('Detailed price list'!$L$5:$L$237,$B124,'Detailed price list'!$M$5:$M$237)) -> 0 | D124: =IF(SUMIF('Detailed price list'!$L$5:$L$237,$B124,'Detailed price list'!$M$5:$M$237)=0,0, SUMPRODUCT(('Detailed price list'!E$5:E$237)*('Detailed price list'!$M$5:$M$237)*('Detailed price list'!$L$5:$L$237=$B124))/SUMIF('Detailed price list'!$L$5:$L$237,$B124,'Detailed price list'!$M$5:$M$237)) -> 0 | E124: =IF(SUMIF('Detailed price list'!$L$5:$L$237,$B124,'Detailed price list'!$M$5:$M$237)=0,0, SUMPRODUCT(('Detailed price list'!F$5:F$237)*('Detailed price list'!$M$5:$M$237)*('Detailed price list'!$L$5:$L$237=$B124))/SUMIF('Detailed price list'!$L$5:$L$237,$B124,'Detailed price list'!$M$5:$M$237)) -> 0 | F124: =IF(SUMIF('Detailed price list'!$L$5:$L$237,$B124,'Detailed price list'!$M$5:$M$237)=0,0, SUMPRODUCT(('Detailed price list'!G$5:G$237)*('Detailed price list'!$M$5:$M$237)*('Detailed price list'!$L$5:$L$237=$B124))/SUMIF('Detailed price list'!$L$5:$L$237,$B124,'Detailed price list'!$M$5:$M$237)) -> 0 | G124: =IF(SUMIF('Detailed price list'!$L$5:$L$237,$B124,'Detailed price list'!$M$5:$M$237)=0,0, SUMPRODUCT(('Detailed price list'!H$5:H$237)*('Detailed price list'!$M$5:$M$237)*('Detailed price list'!$L$5:$L$237=$B124))/SUMIF('Detailed price list'!$L$5:$L$237,$B124,'Detailed price list'!$M$5:$M$237)) -> 0
B125: Legacy Luminaire - 2x250W SON FLOODLIGHT | C125: =IF(SUMIF('Detailed price list'!$L$5:$L$237,$B125,'Detailed price list'!$M$5:$M$237)=0,0, SUMPRODUCT(('Detailed price list'!D$5:D$237)*('Detailed price list'!$M$5:$M$237)*('Detailed price list'!$L$5:$L$237=$B125))/SUMIF('Detailed price list'!$L$5:$L$237,$B125,'Detailed price list'!$M$5:$M$237)) -> 71.42504575 | D125: =IF(SUMIF('Detailed price list'!$L$5:$L$237,$B125,'Detailed price list'!$M$5:$M$237)=0,0, SUMPRODUCT(('Detailed price list'!E$5:E$237)*('Detailed price list'!$M$5:$M$237)*('Detailed price list'!$L$5:$L$237=$B125))/SUMIF('Detailed price list'!$L$5:$L$237,$B125,'Detailed price list'!$M$5:$M$237)) -> 73.47827172 | E125: =IF(SUMIF('Detailed price list'!$L$5:$L$237,$B125,'Detailed price list'!$M$5:$M$237)=0,0, SUMPRODUCT(('Detailed price list'!F$5:F$237)*('Detailed price list'!$M$5:$M$237)*('Detailed price list'!$L$5:$L$237=$B125))/SUMIF('Detailed price list'!$L$5:$L$237,$B125,'Detailed price list'!$M$5:$M$237)) -> 75.59052093 | F125: =IF(SUMIF('Detailed price list'!$L$5:$L$237,$B125,'Detailed price list'!$M$5:$M$237)=0,0, SUMPRODUCT(('Detailed price list'!G$5:G$237)*('Detailed price list'!$M$5:$M$237)*('Detailed price list'!$L$5:$L$237=$B125))/SUMIF('Detailed price list'!$L$5:$L$237,$B125,'Detailed price list'!$M$5:$M$237)) -> 77.76349009 | G125: =IF(SUMIF('Detailed price list'!$L$5:$L$237,$B125,'Detailed price list'!$M$5:$M$237)=0,0, SUMPRODUCT(('Detailed price list'!H$5:H$237)*('Detailed price list'!$M$5:$M$237)*('Detailed price list'!$L$5:$L$237=$B125))/SUMIF('Detailed price list'!$L$5:$L$237,$B125,'Detailed price list'!$M$5:$M$237)) -> 79.99892468
B126: Legacy Luminaire - 2x400W SON FLOODLIGHT | C126: =IF(SUMIF('Detailed price list'!$L$5:$L$237,$B126,'Detailed price list'!$M$5:$M$237)=0,0, SUMPRODUCT(('Detailed price list'!D$5:D$237)*('Detailed price list'!$M$5:$M$237)*('Detailed price list'!$L$5:$L$237=$B126))/SUMIF('Detailed price list'!$L$5:$L$237,$B126,'Detailed price list'!$M$5:$M$237)) -> 142.434847 | D126: =IF(SUMIF('Detailed price list'!$L$5:$L$237,$B126,'Detailed price list'!$M$5:$M$237)=0,0, SUMPRODUCT(('Detailed price list'!E$5:E$237)*('Detailed price list'!$M$5:$M$237)*('Detailed price list'!$L$5:$L$237=$B126))/SUMIF('Detailed price list'!$L$5:$L$237,$B126,'Detailed price list'!$M$5:$M$237)) -> 146.5293621 | E126: =IF(SUMIF('Detailed price list'!$L$5:$L$237,$B126,'Detailed price list'!$M$5:$M$237)=0,0, SUMPRODUCT(('Detailed price list'!F$5:F$237)*('Detailed price list'!$M$5:$M$237)*('Detailed price list'!$L$5:$L$237=$B126))/SUMIF('Detailed price list'!$L$5:$L$237,$B126,'Detailed price list'!$M$5:$M$237)) -> 150.7415805 | F126: =IF(SUMIF('Detailed price list'!$L$5:$L$237,$B126,'Detailed price list'!$M$5:$M$237)=0,0, SUMPRODUCT(('Detailed price list'!G$5:G$237)*('Detailed price list'!$M$5:$M$237)*('Detailed price list'!$L$5:$L$237=$B126))/SUMIF('Detailed price list'!$L$5:$L$237,$B126,'Detailed price list'!$M$5:$M$237)) -> 155.0748858 | G126: =IF(SUMIF('Detailed price list'!$L$5:$L$237,$B126,'Detailed price list'!$M$5:$M$237)=0,0, SUMPRODUCT(('Detailed price list'!H$5:H$237)*('Detailed price list'!$M$5:$M$237)*('Detailed price list'!$L$5:$L$237=$B126))/SUMIF('Detailed price list'!$L$5:$L$237,$B126,'Detailed price list'!$M$5:$M$237)) -> 159.5327588
B127: Legacy Luminaire - 2x80W MBF - BOURKE HILL | C127: =IF(SUMIF('Detailed price list'!$L$5:$L$237,$B127,'Detailed price list'!$M$5:$M$237)=0,0, SUMPRODUCT(('Detailed price list'!D$5:D$237)*('Detailed price list'!$M$5:$M$237)*('Detailed price list'!$L$5:$L$237=$B127))/SUMIF('Detailed price list'!$L$5:$L$237,$B127,'Detailed price list'!$M$5:$M$237)) -> 70.30577108 | D127: =IF(SUMIF('Detailed price list'!$L$5:$L$237,$B127,'Detailed price list'!$M$5:$M$237)=0,0, SUMPRODUCT(('Detailed price list'!E$5:E$237)*('Detailed price list'!$M$5:$M$237)*('Detailed price list'!$L$5:$L$237=$B127))/SUMIF('Detailed price list'!$L$5:$L$237,$B127,'Detailed price list'!$M$5:$M$237)) -> 72.32682174 | E127: =IF(SUMIF('Detailed price list'!$L$5:$L$237,$B127,'Detailed price list'!$M$5:$M$237)=0,0, SUMPRODUCT(('Detailed price list'!F$5:F$237)*('Detailed price list'!$M$5:$M$237)*('Detailed price list'!$L$5:$L$237=$B127))/SUMIF('Detailed price list'!$L$5:$L$237,$B127,'Detailed price list'!$M$5:$M$237)) -> 74.40597069 | F127: =IF(SUMIF('Detailed price list'!$L$5:$L$237,$B127,'Detailed price list'!$M$5:$M$237)=0,0, SUMPRODUCT(('Detailed price list'!G$5:G$237)*('Detailed price list'!$M$5:$M$237)*('Detailed price list'!$L$5:$L$237=$B127))/SUMIF('Detailed price list'!$L$5:$L$237,$B127,'Detailed price list'!$M$5:$M$237)) -> 76.54488808 | G127: =IF(SUMIF('Detailed price list'!$L$5:$L$237,$B127,'Detailed price list'!$M$5:$M$237)=0,0, SUMPRODUCT(('Detailed price list'!H$5:H$237)*('Detailed price list'!$M$5:$M$237)*('Detailed price list'!$L$5:$L$237=$B127))/SUMIF('Detailed price list'!$L$5:$L$237,$B127,'Detailed price list'!$M$5:$M$237)) -> 78.74529202
B128: Legacy Luminaire - 400W MBF | C128: =IF(SUMIF('Detailed price list'!$L$5:$L$237,$B128,'Detailed price list'!$M$5:$M$237)=0,0, SUMPRODUCT(('Detailed price list'!D$5:D$237)*('Detailed price list'!$M$5:$M$237)*('Detailed price list'!$L$5:$L$237=$B128))/SUMIF('Detailed price list'!$L$5:$L$237,$B128,'Detailed price list'!$M$5:$M$237)) -> 34.10458091 | D128: =IF(SUMIF('Detailed price list'!$L$5:$L$237,$B128,'Detailed price list'!$M$5:$M$237)=0,0, SUMPRODUCT(('Detailed price list'!E$5:E$237)*('Detailed price list'!$M$5:$M$237)*('Detailed price list'!$L$5:$L$237=$B128))/SUMIF('Detailed price list'!$L$5:$L$237,$B128,'Detailed price list'!$M$5:$M$237)) -> 35.08497106 | E128: =IF(SUMIF('Detailed price list'!$L$5:$L$237,$B128,'Detailed price list'!$M$5:$M$237)=0,0, SUMPRODUCT(('Detailed price list'!F$5:F$237)*('Detailed price list'!$M$5:$M$237)*('Detailed price list'!$L$5:$L$237=$B128))/SUMIF('Detailed price list'!$L$5:$L$237,$B128,'Detailed price list'!$M$5:$M$237)) -> 36.09354408 | F128: =IF(SUMIF('Detailed price list'!$L$5:$L$237,$B128,'Detailed price list'!$M$5:$M$237)=0,0, SUMPRODUCT(('Detailed price list'!G$5:G$237)*('Detailed price list'!$M$5:$M$237)*('Detailed price list'!$L$5:$L$237=$B128))/SUMIF('Detailed price list'!$L$5:$L$237,$B128,'Detailed price list'!$M$5:$M$237)) -> 37.13111013 | G128: =IF(SUMIF('Detailed price list'!$L$5:$L$237,$B128,'Detailed price list'!$M$5:$M$237)=0,0, SUMPRODUCT(('Detailed price list'!H$5:H$237)*('Detailed price list'!$M$5:$M$237)*('Detailed price list'!$L$5:$L$237=$B128))/SUMIF('Detailed price list'!$L$5:$L$237,$B128,'Detailed price list'!$M$5:$M$237)) -> 38.19850265
B129: Legacy Luminaire - 400W MBF - B2229 | C129: =IF(SUMIF('Detailed price list'!$L$5:$L$237,$B129,'Detailed price list'!$M$5:$M$237)=0,0, SUMPRODUCT(('Detailed price list'!D$5:D$237)*('Detailed price list'!$M$5:$M$237)*('Detailed price list'!$L$5:$L$237=$B129))/SUMIF('Detailed price list'!$L$5:$L$237,$B129,'Detailed price list'!$M$5:$M$237)) -> 34.10458091 | D129: =IF(SUMIF('Detailed price list'!$L$5:$L$237,$B129,'Detailed price list'!$M$5:$M$237)=0,0, SUMPRODUCT(('Detailed price list'!E$5:E$237)*('Detailed price list'!$M$5:$M$237)*('Detailed price list'!$L$5:$L$237=$B129))/SUMIF('Detailed price list'!$L$5:$L$237,$B129,'Detailed price list'!$M$5:$M$237)) -> 35.08497106 | E129: =IF(SUMIF('Detailed price list'!$L$5:$L$237,$B129,'Detailed price list'!$M$5:$M$237)=0,0, SUMPRODUCT(('Detailed price list'!F$5:F$237)*('Detailed price list'!$M$5:$M$237)*('Detailed price list'!$L$5:$L$237=$B129))/SUMIF('Detailed price list'!$L$5:$L$237,$B129,'Detailed price list'!$M$5:$M$237)) -> 36.09354408 | F129: =IF(SUMIF('Detailed price list'!$L$5:$L$237,$B129,'Detailed price list'!$M$5:$M$237)=0,0, SUMPRODUCT(('Detailed price list'!G$5:G$237)*('Detailed price list'!$M$5:$M$237)*('Detailed price list'!$L$5:$L$237=$B129))/SUMIF('Detailed price list'!$L$5:$L$237,$B129,'Detailed price list'!$M$5:$M$237)) -> 37.13111013 | G129: =IF(SUMIF('Detailed price list'!$L$5:$L$237,$B129,'Detailed price list'!$M$5:$M$237)=0,0, SUMPRODUCT(('Detailed price list'!H$5:H$237)*('Detailed price list'!$M$5:$M$237)*('Detailed price list'!$L$5:$L$237=$B129))/SUMIF('Detailed price list'!$L$5:$L$237,$B129,'Detailed price list'!$M$5:$M$237)) -> 38.19850265
B130: Legacy Luminaire - 400W MBF - PARKWAY 1 | C130: =IF(SUMIF('Detailed price list'!$L$5:$L$237,$B130,'Detailed price list'!$M$5:$M$237)=0,0, SUMPRODUCT(('Detailed price list'!D$5:D$237)*('Detailed price list'!$M$5:$M$237)*('Detailed price list'!$L$5:$L$237=$B130))/SUMIF('Detailed price list'!$L$5:$L$237,$B130,'Detailed price list'!$M$5:$M$237)) -> 68.47954216 | D130: =IF(SUMIF('Detailed price list'!$L$5:$L$237,$B130,'Detailed price list'!$M$5:$M$237)=0,0, SUMPRODUCT(('Detailed price list'!E$5:E$237)*('Detailed price list'!$M$5:$M$237)*('Detailed price list'!$L$5:$L$237=$B130))/SUMIF('Detailed price list'!$L$5:$L$237,$B130,'Detailed price list'!$M$5:$M$237)) -> 70.44809498 | E130: =IF(SUMIF('Detailed price list'!$L$5:$L$237,$B130,'Detailed price list'!$M$5:$M$237)=0,0, SUMPRODUCT(('Detailed price list'!F$5:F$237)*('Detailed price list'!$M$5:$M$237)*('Detailed price list'!$L$5:$L$237=$B130))/SUMIF('Detailed price list'!$L$5:$L$237,$B130,'Detailed price list'!$M$5:$M$237)) -> 72.47323696 | F130: =IF(SUMIF('Detailed price list'!$L$5:$L$237,$B130,'Detailed price list'!$M$5:$M$237)=0,0, SUMPRODUCT(('Detailed price list'!G$5:G$237)*('Detailed price list'!$M$5:$M$237)*('Detailed price list'!$L$5:$L$237=$B130))/SUMIF('Detailed price list'!$L$5:$L$237,$B130,'Detailed price list'!$M$5:$M$237)) -> 74.55659485 | G130: =IF(SUMIF('Detailed price list'!$L$5:$L$237,$B130,'Detailed price list'!$M$5:$M$237)=0,0, SUMPRODUCT(('Detailed price list'!H$5:H$237)*('Detailed price list'!$M$5:$M$237)*('Detailed price list'!$L$5:$L$237=$B130))/SUMIF('Detailed price list'!$L$5:$L$237,$B130,'Detailed price list'!$M$5:$M$237)) -> 76.69984217
B131: Legacy Luminaire - 400W MBF FLOODLIGHT | C131: =IF(SUMIF('Detailed price list'!$L$5:$L$237,$B131,'Detailed price list'!$M$5:$M$237)=0,0, SUMPRODUCT(('Detailed price list'!D$5:D$237)*('Detailed price list'!$M$5:$M$237)*('Detailed price list'!$L$5:$L$237=$B131))/SUMIF('Detailed price list'!$L$5:$L$237,$B131,'Detailed price list'!$M$5:$M$237)) -> 75.19871555 | D131: =IF(SUMIF('Detailed price list'!$L$5:$L$237,$B131,'Detailed price list'!$M$5:$M$237)=0,0, SUMPRODUCT(('Detailed price list'!E$5:E$237)*('Detailed price list'!$M$5:$M$237)*('Detailed price list'!$L$5:$L$237=$B131))/SUMIF('Detailed price list'!$L$5:$L$237,$B131,'Detailed price list'!$M$5:$M$237)) -> 77.36042164 | E131: =IF(SUMIF('Detailed price list'!$L$5:$L$237,$B131,'Detailed price list'!$M$5:$M$237)=0,0, SUMPRODUCT(('Detailed price list'!F$5:F$237)*('Detailed price list'!$M$5:$M$237)*('Detailed price list'!$L$5:$L$237=$B131))/SUMIF('Detailed price list'!$L$5:$L$237,$B131,'Detailed price list'!$M$5:$M$237)) -> 79.58426939 | F131: =IF(SUMIF('Detailed price list'!$L$5:$L$237,$B131,'Detailed price list'!$M$5:$M$237)=0,0, SUMPRODUCT(('Detailed price list'!G$5:G$237)*('Detailed price list'!$M$5:$M$237)*('Detailed price list'!$L$5:$L$237=$B131))/SUMIF('Detailed price list'!$L$5:$L$237,$B131,'Detailed price list'!$M$5:$M$237)) -> 81.87204516 | G131: =IF(SUMIF('Detailed price list'!$L$5:$L$237,$B131,'Detailed price list'!$M$5:$M$237)=0,0, SUMPRODUCT(('Detailed price list'!H$5:H$237)*('Detailed price list'!$M$5:$M$237)*('Detailed price list'!$L$5:$L$237=$B131))/SUMIF('Detailed price list'!$L$5:$L$237,$B131,'Detailed price list'!$M$5:$M$237)) -> 84.22558667
B132: Legacy Luminaire - 400W MBI FLOODLIGHT | C132: =IF(SUMIF('Detailed price list'!$L$5:$L$237,$B132,'Detailed price list'!$M$5:$M$237)=0,0, SUMPRODUCT(('Detailed price list'!D$5:D$237)*('Detailed price list'!$M$5:$M$237)*('Detailed price list'!$L$5:$L$237=$B132))/SUMIF('Detailed price list'!$L$5:$L$237,$B132,'Detailed price list'!$M$5:$M$237)) -> 59.19954194 | D132: =IF(SUMIF('Detailed price list'!$L$5:$L$237,$B132,'Detailed price list'!$M$5:$M$237)=0,0, SUMPRODUCT(('Detailed price list'!E$5:E$237)*('Detailed price list'!$M$5:$M$237)*('Detailed price list'!$L$5:$L$237=$B132))/SUMIF('Detailed price list'!$L$5:$L$237,$B132,'Detailed price list'!$M$5:$M$237)) -> 60.90132646 | E132: =IF(SUMIF('Detailed price list'!$L$5:$L$237,$B132,'Detailed price list'!$M$5:$M$237)=0,0, SUMPRODUCT(('Detailed price list'!F$5:F$237)*('Detailed price list'!$M$5:$M$237)*('Detailed price list'!$L$5:$L$237=$B132))/SUMIF('Detailed price list'!$L$5:$L$237,$B132,'Detailed price list'!$M$5:$M$237)) -> 62.65203148 | F132: =IF(SUMIF('Detailed price list'!$L$5:$L$237,$B132,'Detailed price list'!$M$5:$M$237)=0,0, SUMPRODUCT(('Detailed price list'!G$5:G$237)*('Detailed price list'!$M$5:$M$237)*('Detailed price list'!$L$5:$L$237=$B132))/SUMIF('Detailed price list'!$L$5:$L$237,$B132,'Detailed price list'!$M$5:$M$237)) -> 64.45306328 | G132: =IF(SUMIF('Detailed price list'!$L$5:$L$237,$B132,'Detailed price list'!$M$5:$M$237)=0,0, SUMPRODUCT(('Detailed price list'!H$5:H$237)*('Detailed price list'!$M$5:$M$237)*('Detailed price list'!$L$5:$L$237=$B132))/SUMIF('Detailed price list'!$L$5:$L$237,$B132,'Detailed price list'!$M$5:$M$237)) -> 66.30586858
B133: Legacy Luminaire - 400W SON | C133: =IF(SUMIF('Detailed price list'!$L$5:$L$237,$B133,'Detailed price list'!$M$5:$M$237)=0,0, SUMPRODUCT(('Detailed price list'!D$5:D$237)*('Detailed price list'!$M$5:$M$237)*('Detailed price list'!$L$5:$L$237=$B133))/SUMIF('Detailed price list'!$L$5:$L$237,$B133,'Detailed price list'!$M$5:$M$237)) -> 47.10859557 | D133: =IF(SUMIF('Detailed price list'!$L$5:$L$237,$B133,'Detailed price list'!$M$5:$M$237)=0,0, SUMPRODUCT(('Detailed price list'!E$5:E$237)*('Detailed price list'!$M$5:$M$237)*('Detailed price list'!$L$5:$L$237=$B133))/SUMIF('Detailed price list'!$L$5:$L$237,$B133,'Detailed price list'!$M$5:$M$237)) -> 48.4628067 | E133: =IF(SUMIF('Detailed price list'!$L$5:$L$237,$B133,'Detailed price list'!$M$5:$M$237)=0,0, SUMPRODUCT(('Detailed price list'!F$5:F$237)*('Detailed price list'!$M$5:$M$237)*('Detailed price list'!$L$5:$L$237=$B133))/SUMIF('Detailed price list'!$L$5:$L$237,$B133,'Detailed price list'!$M$5:$M$237)) -> 49.85594678 | F133: =IF(SUMIF('Detailed price list'!$L$5:$L$237,$B133,'Detailed price list'!$M$5:$M$237)=0,0, SUMPRODUCT(('Detailed price list'!G$5:G$237)*('Detailed price list'!$M$5:$M$237)*('Detailed price list'!$L$5:$L$237=$B133))/SUMIF('Detailed price list'!$L$5:$L$237,$B133,'Detailed price list'!$M$5:$M$237)) -> 51.28913487 | G133: =IF(SUMIF('Detailed price list'!$L$5:$L$237,$B133,'Detailed price list'!$M$5:$M$237)=0,0, SUMPRODUCT(('Detailed price list'!H$5:H$237)*('Detailed price list'!$M$5:$M$237)*('Detailed price list'!$L$5:$L$237=$B133))/SUMIF('Detailed price list'!$L$5:$L$237,$B133,'Detailed price list'!$M$5:$M$237)) -> 52.76352222
B134: Legacy Luminaire - 400W SON - PARKWAY 1 | C134: =IF(SUMIF('Detailed price list'!$L$5:$L$237,$B134,'Detailed price list'!$M$5:$M$237)=0,0, SUMPRODUCT(('Detailed price list'!D$5:D$237)*('Detailed price list'!$M$5:$M$237)*('Detailed price list'!$L$5:$L$237=$B134))/SUMIF('Detailed price list'!$L$5:$L$237,$B134,'Detailed price list'!$M$5:$M$237)) -> 51.72199323 | D134: =IF(SUMIF('Detailed price list'!$L$5:$L$237,$B134,'Detailed price list'!$M$5:$M$237)=0,0, SUMPRODUCT(('Detailed price list'!E$5:E$237)*('Detailed price list'!$M$5:$M$237)*('Detailed price list'!$L$5:$L$237=$B134))/SUMIF('Detailed price list'!$L$5:$L$237,$B134,'Detailed price list'!$M$5:$M$237)) -> 53.20882378 | E134: =IF(SUMIF('Detailed price list'!$L$5:$L$237,$B134,'Detailed price list'!$M$5:$M$237)=0,0, SUMPRODUCT(('Detailed price list'!F$5:F$237)*('Detailed price list'!$M$5:$M$237)*('Detailed price list'!$L$5:$L$237=$B134))/SUMIF('Detailed price list'!$L$5:$L$237,$B134,'Detailed price list'!$M$5:$M$237)) -> 54.73839563 | F134: =IF(SUMIF('Detailed price list'!$L$5:$L$237,$B134,'Detailed price list'!$M$5:$M$237)=0,0, SUMPRODUCT(('Detailed price list'!G$5:G$237)*('Detailed price list'!$M$5:$M$237)*('Detailed price list'!$L$5:$L$237=$B134))/SUMIF('Detailed price list'!$L$5:$L$237,$B134,'Detailed price list'!$M$5:$M$237)) -> 56.31193744 | G134: =IF(SUMIF('Detailed price list'!$L$5:$L$237,$B134,'Detailed price list'!$M$5:$M$237)=0,0, SUMPRODUCT(('Detailed price list'!H$5:H$237)*('Detailed price list'!$M$5:$M$237)*('Detailed price list'!$L$5:$L$237=$B134))/SUMIF('Detailed price list'!$L$5:$L$237,$B134,'Detailed price list'!$M$5:$M$237)) -> 57.9307132
B135: Legacy Luminaire - 400W SON ACTIVE REACTOR | C135: =IF(SUMIF('Detailed price list'!$L$5:$L$237,$B135,'Detailed price list'!$M$5:$M$237)=0,0, SUMPRODUCT(('Detailed price list'!D$5:D$237)*('Detailed price list'!$M$5:$M$237)*('Detailed price list'!$L$5:$L$237=$B135))/SUMIF('Detailed price list'!$L$5:$L$237,$B135,'Detailed price list'!$M$5:$M$237)) -> 71.42504575 | D135: =IF(SUMIF('Detailed price list'!$L$5:$L$237,$B135,'Detailed price list'!$M$5:$M$237)=0,0, SUMPRODUCT(('Detailed price list'!E$5:E$237)*('Detailed price list'!$M$5:$M$237)*('Detailed price list'!$L$5:$L$237=$B135))/SUMIF('Detailed price list'!$L$5:$L$237,$B135,'Detailed price list'!$M$5:$M$237)) -> 73.47827172 | E135: =IF(SUMIF('Detailed price list'!$L$5:$L$237,$B135,'Detailed price list'!$M$5:$M$237)=0,0, SUMPRODUCT(('Detailed price list'!F$5:F$237)*('Detailed price list'!$M$5:$M$237)*('Detailed price list'!$L$5:$L$237=$B135))/SUMIF('Detailed price list'!$L$5:$L$237,$B135,'Detailed price list'!$M$5:$M$237)) -> 75.59052093 | F135: =IF(SUMIF('Detailed price list'!$L$5:$L$237,$B135,'Detailed price list'!$M$5:$M$237)=0,0, SUMPRODUCT(('Detailed price list'!G$5:G$237)*('Detailed price list'!$M$5:$M$237)*('Detailed price list'!$L$5:$L$237=$B135))/SUMIF('Detailed price list'!$L$5:$L$237,$B135,'Detailed price list'!$M$5:$M$237)) -> 77.76349009 | G135: =IF(SUMIF('Detailed price list'!$L$5:$L$237,$B135,'Detailed price list'!$M$5:$M$237)=0,0, SUMPRODUCT(('Detailed price list'!H$5:H$237)*('Detailed price list'!$M$5:$M$237)*('Detailed price list'!$L$5:$L$237=$B135))/SUMIF('Detailed price list'!$L$5:$L$237,$B135,'Detailed price list'!$M$5:$M$237)) -> 79.99892468
B136: Legacy Luminaire - 400W SON FLOODLIGHT | C136: =IF(SUMIF('Detailed price list'!$L$5:$L$237,$B136,'Detailed price list'!$M$5:$M$237)=0,0, SUMPRODUCT(('Detailed price list'!D$5:D$237)*('Detailed price list'!$M$5:$M$237)*('Detailed price list'!$L$5:$L$237=$B136))/SUMIF('Detailed price list'!$L$5:$L$237,$B136,'Detailed price list'!$M$5:$M$237)) -> 50.76086872 | D136: =IF(SUMIF('Detailed price list'!$L$5:$L$237,$B136,'Detailed price list'!$M$5:$M$237)=0,0, SUMPRODUCT(('Detailed price list'!E$5:E$237)*('Detailed price list'!$M$5:$M$237)*('Detailed price list'!$L$5:$L$237=$B136))/SUMIF('Detailed price list'!$L$5:$L$237,$B136,'Detailed price list'!$M$5:$M$237)) -> 52.22007022 | E136: =IF(SUMIF('Detailed price list'!$L$5:$L$237,$B136,'Detailed price list'!$M$5:$M$237)=0,0, SUMPRODUCT(('Detailed price list'!F$5:F$237)*('Detailed price list'!$M$5:$M$237)*('Detailed price list'!$L$5:$L$237=$B136))/SUMIF('Detailed price list'!$L$5:$L$237,$B136,'Detailed price list'!$M$5:$M$237)) -> 53.72121879 | F136: =IF(SUMIF('Detailed price list'!$L$5:$L$237,$B136,'Detailed price list'!$M$5:$M$237)=0,0, SUMPRODUCT(('Detailed price list'!G$5:G$237)*('Detailed price list'!$M$5:$M$237)*('Detailed price list'!$L$5:$L$237=$B136))/SUMIF('Detailed price list'!$L$5:$L$237,$B136,'Detailed price list'!$M$5:$M$237)) -> 55.26552024 | G136: =IF(SUMIF('Detailed price list'!$L$5:$L$237,$B136,'Detailed price list'!$M$5:$M$237)=0,0, SUMPRODUCT(('Detailed price list'!H$5:H$237)*('Detailed price list'!$M$5:$M$237)*('Detailed price list'!$L$5:$L$237=$B136))/SUMIF('Detailed price list'!$L$5:$L$237,$B136,'Detailed price list'!$M$5:$M$237)) -> 56.85421508
B137: Legacy Luminaire - 42W MBF SYLVANIA SUB ECO | C137: =IF(SUMIF('Detailed price list'!$L$5:$L$237,$B137,'Detailed price list'!$M$5:$M$237)=0,0, SUMPRODUCT(('Detailed price list'!D$5:D$237)*('Detailed price list'!$M$5:$M$237)*('Detailed price list'!$L$5:$L$237=$B137))/SUMIF('Detailed price list'!$L$5:$L$237,$B137,'Detailed price list'!$M$5:$M$237)) -> 0 | D137: =IF(SUMIF('Detailed price list'!$L$5:$L$237,$B137,'Detailed price list'!$M$5:$M$237)=0,0, SUMPRODUCT(('Detailed price list'!E$5:E$237)*('Detailed price list'!$M$5:$M$237)*('Detailed price list'!$L$5:$L$237=$B137))/SUMIF('Detailed price list'!$L$5:$L$237,$B137,'Detailed price list'!$M$5:$M$237)) -> 0 | E137: =IF(SUMIF('Detailed price list'!$L$5:$L$237,$B137,'Detailed price list'!$M$5:$M$237)=0,0, SUMPRODUCT(('Detailed price list'!F$5:F$237)*('Detailed price list'!$M$5:$M$237)*('Detailed price list'!$L$5:$L$237=$B137))/SUMIF('Detailed price list'!$L$5:$L$237,$B137,'Detailed price list'!$M$5:$M$237)) -> 0 | F137: =IF(SUMIF('Detailed price list'!$L$5:$L$237,$B137,'Detailed price list'!$M$5:$M$237)=0,0, SUMPRODUCT(('Detailed price list'!G$5:G$237)*('Detailed price list'!$M$5:$M$237)*('Detailed price list'!$L$5:$L$237=$B137))/SUMIF('Detailed price list'!$L$5:$L$237,$B137,'Detailed price list'!$M$5:$M$237)) -> 0 | G137: =IF(SUMIF('Detailed price list'!$L$5:$L$237,$B137,'Detailed price list'!$M$5:$M$237)=0,0, SUMPRODUCT(('Detailed price list'!H$5:H$237)*('Detailed price list'!$M$5:$M$237)*('Detailed price list'!$L$5:$L$237=$B137))/SUMIF('Detailed price list'!$L$5:$L$237,$B137,'Detailed price list'!$M$5:$M$237)) -> 0
B138: Legacy Luminaire - 4x250W SON | C138: =IF(SUMIF('Detailed price list'!$L$5:$L$237,$B138,'Detailed price list'!$M$5:$M$237)=0,0, SUMPRODUCT(('Detailed price list'!D$5:D$237)*('Detailed price list'!$M$5:$M$237)*('Detailed price list'!$L$5:$L$237=$B138))/SUMIF('Detailed price list'!$L$5:$L$237,$B138,'Detailed price list'!$M$5:$M$237)) -> 0 | D138: =IF(SUMIF('Detailed price list'!$L$5:$L$237,$B138,'Detailed price list'!$M$5:$M$237)=0,0, SUMPRODUCT(('Detailed price list'!E$5:E$237)*('Detailed price list'!$M$5:$M$237)*('Detailed price list'!$L$5:$L$237=$B138))/SUMIF('Detailed price list'!$L$5:$L$237,$B138,'Detailed price list'!$M$5:$M$237)) -> 0 | E138: =IF(SUMIF('Detailed price list'!$L$5:$L$237,$B138,'Detailed price list'!$M$5:$M$237)=0,0, SUMPRODUCT(('Detailed price list'!F$5:F$237)*('Detailed price list'!$M$5:$M$237)*('Detailed price list'!$L$5:$L$237=$B138))/SUMIF('Detailed price list'!$L$5:$L$237,$B138,'Detailed price list'!$M$5:$M$237)) -> 0 | F138: =IF(SUMIF('Detailed price list'!$L$5:$L$237,$B138,'Detailed price list'!$M$5:$M$237)=0,0, SUMPRODUCT(('Detailed price list'!G$5:G$237)*('Detailed price list'!$M$5:$M$237)*('Detailed price list'!$L$5:$L$237=$B138))/SUMIF('Detailed price list'!$L$5:$L$237,$B138,'Detailed price list'!$M$5:$M$237)) -> 0 | G138: =IF(SUMIF('Detailed price list'!$L$5:$L$237,$B138,'Detailed price list'!$M$5:$M$237)=0,0, SUMPRODUCT(('Detailed price list'!H$5:H$237)*('Detailed price list'!$M$5:$M$237)*('Detailed price list'!$L$5:$L$237=$B138))/SUMIF('Detailed price list'!$L$5:$L$237,$B138,'Detailed price list'!$M$5:$M$237)) -> 0
